Workbook

Sheet Cover
C2: CitiPower
C3: Revised regulatory proposal 2026-31
C5: Bouverie Queensberry supply area
C6: Model number: | D6: 3.3.03
C8: 2025-12-01
A40: =_xlfn.SHEETS() -> 23
A41: 2025-05-12

Sheet Summary
A1: =bus -> CitiPower
A2: =proj -> Bouverie Queensberry supply area
A3: SUMMARY
A5: RESULTS
G7: PV of costs | H7: PV of benefits | I7: NPV
C8: Option | G8: =output_dollars -> 2026-06-30 | H8: =output_dollars -> 2026-06-30 | I8: =output_dollars -> 2026-06-30
C9: =options -> Option 1 (base case) | D9: =INDEX(Assumptions!$E$14:$E$18, MATCH(C9, Assumptions!$C$14:$C$18,0)) -> No change to existing practices | G9: =IF(Data!$C9, "", INDEX(Consol!$F$15:$F$82, MATCH($C9&G$7, Consol!$D$15:$D$82,0))/mill_conv) -> 0 | H9: =IF(Data!$C9, "", INDEX(Consol!$F$15:$F$82, MATCH($C9&H$7, Consol!$D$15:$D$82,0))/mill_conv) -> 0 | I9: =IF(Data!$C9, "", INDEX(Consol!$F$15:$F$82, MATCH($C9&I$7, Consol!$D$15:$D$82,0))/mill_conv) -> 0
C10: Option 2 | D10: =INDEX(Assumptions!$E$14:$E$18, MATCH(C10, Assumptions!$C$14:$C$18,0)) -> Install a third transformer at BQ and offload VM to BQ | G10: =IF(Data!$C10, "", INDEX(Consol!$F$15:$F$82, MATCH($C10&G$7, Consol!$D$15:$D$82,0))/mill_conv) -> -11.10465621 | H10: =IF(Data!$C10, "", INDEX(Consol!$F$15:$F$82, MATCH($C10&H$7, Consol!$D$15:$D$82,0))/mill_conv) -> 101.1364851 | I10: =IF(Data!$C10, "", INDEX(Consol!$F$15:$F$82, MATCH($C10&I$7, Consol!$D$15:$D$82,0))/mill_conv) -> 90.03182894
C11: Option 3 | D11: =INDEX(Assumptions!$E$14:$E$18, MATCH(C11, Assumptions!$C$14:$C$18,0)) -> Rebuild LS to supply the Arden precinct | G11: =IF(Data!$C11, "", INDEX(Consol!$F$15:$F$82, MATCH($C11&G$7, Consol!$D$15:$D$82,0))/mill_conv) -> -38.60770073 | H11: =IF(Data!$C11, "", INDEX(Consol!$F$15:$F$82, MATCH($C11&H$7, Consol!$D$15:$D$82,0))/mill_conv) -> 100.4196028 | I11: =IF(Data!$C11, "", INDEX(Consol!$F$15:$F$82, MATCH($C11&I$7, Consol!$D$15:$D$82,0))/mill_conv) -> 61.81190205
C12: Option 4 | D12: =INDEX(Assumptions!$E$14:$E$18, MATCH(C12, Assumptions!$C$14:$C$18,0)) -> Rebuild LS and offload BQ and VM to LS | G12: =IF(Data!$C12, "", INDEX(Consol!$F$15:$F$82, MATCH($C12&G$7, Consol!$D$15:$D$82,0))/mill_conv) -> -53.62395699 | H12: =IF(Data!$C12, "", INDEX(Consol!$F$15:$F$82, MATCH($C12&H$7, Consol!$D$15:$D$82,0))/mill_conv) -> 101.0499854 | I12: =IF(Data!$C12, "", INDEX(Consol!$F$15:$F$82, MATCH($C12&I$7, Consol!$D$15:$D$82,0))/mill_conv) -> 47.42602843
C13: Option 5 | D13: =INDEX(Assumptions!$E$14:$E$18, MATCH(C13, Assumptions!$C$14:$C$18,0)) -> 0 | G13: =IF(Data!$C13, "", INDEX(Consol!$F$15:$F$82, MATCH($C13&G$7, Consol!$D$15:$D$82,0))/mill_conv) ->  | H13: =IF(Data!$C13, "", INDEX(Consol!$F$15:$F$82, MATCH($C13&H$7, Consol!$D$15:$D$82,0))/mill_conv) ->  | I13: =IF(Data!$C13, "", INDEX(Consol!$F$15:$F$82, MATCH($C13&I$7, Consol!$D$15:$D$82,0))/mill_conv) -> 
G16: NPV
C17: Preferred option: | G17: =output_dollars -> 2026-06-30
C18: =INDEX($C$9:$C$13,MATCH(G18, $I$9:$I$13,0)) -> Option 2 | D18: =INDEX($D$9:$D$13,MATCH(G18, $I$9:$I$13,0)) -> Install a third transformer at BQ and offload VM to BQ | G18: =_xlfn.MAXIFS(I9:I13, IF(compliance, Data!$F$9:$F$13, Data!$C$9:$C$13),FALSE) -> 90.03182894
A23: PREFERRED OPTION
C25: Preferred Option
C26: =C18 -> Option 2
C29: Expenditure forecast | D29: =output_dollars -> 2026-06-30 | F29: =Assumptions!K89 -> 2026-27 | G29: =Assumptions!L89 -> 2027-28 | H29: =Assumptions!M89 -> 2028-29 | I29: =Assumptions!N89 -> 2029-30 | J29: =Assumptions!O89 -> 2030-31 | L29: Total
C30: Capital expenditure | F30: =-INDEX(Consol!$I$15:$Q$82,MATCH($C$26&$C30,Consol!$D$15:$D$82,0), MATCH(F$29, Consol!$I$9:$Q$9,0))/mill_conv -> 10.01703458 | G30: =-INDEX(Consol!$I$15:$Q$82,MATCH($C$26&$C30,Consol!$D$15:$D$82,0), MATCH(G$29, Consol!$I$9:$Q$9,0))/mill_conv -> 10.01703458 | H30: =-INDEX(Consol!$I$15:$Q$82,MATCH($C$26&$C30,Consol!$D$15:$D$82,0), MATCH(H$29, Consol!$I$9:$Q$9,0))/mill_conv -> 0 | I30: =-INDEX(Consol!$I$15:$Q$82,MATCH($C$26&$C30,Consol!$D$15:$D$82,0), MATCH(I$29, Consol!$I$9:$Q$9,0))/mill_conv -> 0 | J30: =-INDEX(Consol!$I$15:$Q$82,MATCH($C$26&$C30,Consol!$D$15:$D$82,0), MATCH(J$29, Consol!$I$9:$Q$9,0))/mill_conv -> 0 | L30: =SUM(F30:J30) -> 20.03406916
C31: Operating expenditure | F31: =-INDEX(Consol!$I$15:$Q$82,MATCH($C$26&$C31,Consol!$D$15:$D$82,0), MATCH(F$29, Consol!$I$9:$Q$9,0))/mill_conv -> 0 | G31: =-INDEX(Consol!$I$15:$Q$82,MATCH($C$26&$C31,Consol!$D$15:$D$82,0), MATCH(G$29, Consol!$I$9:$Q$9,0))/mill_conv -> 0 | H31: =-INDEX(Consol!$I$15:$Q$82,MATCH($C$26&$C31,Consol!$D$15:$D$82,0), MATCH(H$29, Consol!$I$9:$Q$9,0))/mill_conv -> 0 | I31: =-INDEX(Consol!$I$15:$Q$82,MATCH($C$26&$C31,Consol!$D$15:$D$82,0), MATCH(I$29, Consol!$I$9:$Q$9,0))/mill_conv -> 0 | J31: =-INDEX(Consol!$I$15:$Q$82,MATCH($C$26&$C31,Consol!$D$15:$D$82,0), MATCH(J$29, Consol!$I$9:$Q$9,0))/mill_conv -> 0 | L31: =SUM(F31:J31) -> 0
A35: CHART
C37: Capex and risk ($M, 2026) | F37: Value of expected unserved energy ($M, 2026)
A63: SENSITIVITIES
C66: Sensitivity | D66: =output_dollars -> 2026-06-30 | F66: =Sensitivity_calcs!C89 -> Option 1 (base case) | G66: =Sensitivity_calcs!D89 -> Option 2 | H66: =Sensitivity_calcs!E89 -> Option 3 | I66: =Sensitivity_calcs!F89 -> Option 4 | J66: =Sensitivity_calcs!G89 -> Option 5 | L66: Preferred option
C67: =Sensitivity_calcs!B90 -> None | F67: =Sensitivity_calcs!C90 -> 0 | G67: =Sensitivity_calcs!D90 -> 90.03182894 | H67: =Sensitivity_calcs!E90 -> 61.81190205 | I67: =Sensitivity_calcs!F90 -> 47.42602843 | J67: =Sensitivity_calcs!G90 ->  | L67: =Sensitivity_calcs!K90 -> Option 2
C68: =Sensitivity_calcs!B91 -> Capex 10% higher | F68: =Sensitivity_calcs!C91 -> 0 | G68: =Sensitivity_calcs!D91 -> 88.92136332 | H68: =Sensitivity_calcs!E91 -> 57.95113197 | I68: =Sensitivity_calcs!F91 -> 42.06363273 | J68: =Sensitivity_calcs!G91 ->  | L68: =Sensitivity_calcs!K91 -> Option 2
C69: =Sensitivity_calcs!B92 -> Capex 10% lower | F69: =Sensitivity_calcs!C92 -> 0 | G69: =Sensitivity_calcs!D92 -> 91.14229456 | H69: =Sensitivity_calcs!E92 -> 65.67267212 | I69: =Sensitivity_calcs!F92 -> 52.78842412 | J69: =Sensitivity_calcs!G92 ->  | L69: =Sensitivity_calcs!K92 -> Option 2
C70: =Sensitivity_calcs!B93 -> Total benefits 10% higher | F70: =Sensitivity_calcs!C93 -> 0 | G70: =Sensitivity_calcs!D93 -> 100.1454775 | H70: =Sensitivity_calcs!E93 -> 71.85386233 | I70: =Sensitivity_calcs!F93 -> 57.53102697 | J70: =Sensitivity_calcs!G93 ->  | L70: =Sensitivity_calcs!K93 -> Option 2
C71: =Sensitivity_calcs!B94 -> Total benefits 10% lower | F71: =Sensitivity_calcs!C94 -> 0 | G71: =Sensitivity_calcs!D94 -> 79.91818042 | H71: =Sensitivity_calcs!E94 -> 51.76994177 | I71: =Sensitivity_calcs!F94 -> 37.32102989 | J71: =Sensitivity_calcs!G94 ->  | L71: =Sensitivity_calcs!K94 -> Option 2
C72: =Sensitivity_calcs!B95 -> Capex 10% higher & Total benefits 10% lower | F72: =Sensitivity_calcs!C95 -> 0 | G72: =Sensitivity_calcs!D95 -> 78.8077148 | H72: =Sensitivity_calcs!E95 -> 47.9091717 | I72: =Sensitivity_calcs!F95 -> 31.95863419 | J72: =Sensitivity_calcs!G95 ->  | L72: =Sensitivity_calcs!K95 -> Option 2
C73: =Sensitivity_calcs!B96 -> 0 | F73: =Sensitivity_calcs!C96 ->  | G73: =Sensitivity_calcs!D96 ->  | H73: =Sensitivity_calcs!E96 ->  | I73: =Sensitivity_calcs!F96 ->  | J73: =Sensitivity_calcs!G96 ->  | L73: =Sensitivity_calcs!K96 -> 
C74: =Sensitivity_calcs!B97 -> 0 | F74: =Sensitivity_calcs!C97 ->  | G74: =Sensitivity_calcs!D97 ->  | H74: =Sensitivity_calcs!E97 ->  | I74: =Sensitivity_calcs!F97 ->  | J74: =Sensitivity_calcs!G97 ->  | K74: =IF(C74=0,0, INDEX($F$66:$J$66, MATCH(MAX($F74:$I74),$F74:$I74,0))) -> 0 | L74: =Sensitivity_calcs!K97 -> 
D75: =Sensitivity_calcs!B98 -> 0 | F75: =Sensitivity_calcs!C98 ->  | G75: =Sensitivity_calcs!D98 ->  | H75: =Sensitivity_calcs!E98 ->  | I75: =Sensitivity_calcs!F98 ->  | J75: =Sensitivity_calcs!G98 ->  | L75: =Sensitivity_calcs!K98 -> 
D76: =Sensitivity_calcs!B99 -> 0

Sheet Assumptions
A1: =bus -> CitiPower
A2: =proj -> Bouverie Queensberry supply area
A4: Project
C6: Business: | E6: CitiPower
C8: Descripton: | E8: Bouverie Queensberry supply area
C10: Date of cost inputs: | E10: December | G10: 2023
C13: Option | E13: Description
C14: =options -> Option 1 (base case) | E14: No change to existing practices
C15: Option 2 | E15: Install a third transformer at BQ and offload VM to BQ
C16: Option 3 | E16: Rebuild LS to supply the Arden precinct
C17: Option 4 | E17: Rebuild LS and offload BQ and VM to LS
C18: Option 5
C20: Compliance project | E20: No
C22: Expenditure starts | E22: 2026-27 | F22: [start]
A25: Timing & WACC
C27: Input dollars | G27: =EOMONTH(DATE(Assumptions!$G$10,INDEX(Data!$K$107:$K$108, MATCH(Assumptions!$E$10, Data!$J$107:$J$108,0)), 1),0) -> 2023-12-31 | H27: [input_dollars]
C28: Pre-tax real WACC | G28: 0.035 | H28: [real_disc]
C29: VCR date | G29: 2024-12-31 | H29: [vcr_date]
C31: Analysis period (years) | G31: 20 | H31: [years]\
C33: Output dollars | G33: 2026-06-30 | H33: [output_dollars]
C34: Other benefits date | G34: 2023-12-31 | H34: [custval_date]
C35: Value of CO2 reductions input date | G35: 2023-06-30
A39: VCR
C41: Enter ZSS code >> | D41: eg. AR | E41: Network average | G41: Network average | H41: 39123.64248 | I41: 2024 VCR ($/MWh)
A45: Risks
B48: SAFETY
C50: Value of statistical life | G50: 5400000 | H50: 2023-06-30
C52: Value of injury | G52: 0 | H52: =input_dollars -> 2023-12-31
C54: =Data!A83 -> Disproportionate factors applied to various bushfire and other risk valuations
C55: =Data!B85 -> Harm to property from network | G55: =Data!F85 -> 1
C56: =Data!B86 -> Harm to property from bushfire | G56: =Data!F86 -> 1
C57: =Data!B87 -> Harm to environment | G57: =Data!F87 -> 1
C58: =Data!B88 -> Safety - Public trespass | G58: =Data!F88 -> 1
C59: =Data!B89 -> Safety - Single fatality or serious injury ^ | G59: =Data!F89 -> 3
C60: =Data!B90 -> Safety from bushfire in HBRA | G60: =Data!F90 -> 3
C61: =Data!B91 -> Safety - Multiple fatality or serious injury ^ | G61: =Data!F91 -> 6
C62: =Data!B92 -> Safety from bushfire (REFCL declared areas) | G62: =Data!F92 -> 6
C63: =Data!B93 -> Safety from bushfire (electric line construction areas) | G63: =Data!F93 -> 10
C66: ^ Public or employee
C69: Incident type | G69: Value | H69: Probability | I69: DF selected | J69: Description/comment
C70: Safety (fatality) | G70: =G50*INDEX(hy_escalation, MATCH(input_dollars,hy_dates,0))/INDEX(hy_escalation, MATCH(H50,hy_dates,0)) -> 5607473.52 | H70: 0 | I70: 0 | J70: 0
C71: Safety (injury) | G71: =G52*INDEX(hy_escalation, MATCH(input_dollars,hy_dates,0))/INDEX(hy_escalation, MATCH(H52,hy_dates,0)) -> 0 | H71: 0 | I71: 0 | J71: 0
B77: UNPLANNED REPLACEMENT/REPAIR
C78: Major failure (replace) | G78: 0 | H78: =input_dollars -> 2023-12-31
C79: Minor failure (repair) | G79: 0 | H79: =input_dollars -> 2023-12-31
C81: Premium for failure | G81: 0.2
A87: Other benefits
B89: ENVIRONMENTAL | K89: 2026-27 | L89: 2027-28 | M89: 2028-29 | N89: 2029-30 | O89: 2030-31 | P89: 2031-32
C90: Value of CO2 reductions | H90: =G35 -> 2023-06-30 | I90: $/kWh | K90: 0.0247304868 | L90: 0.02234074009 | M90: 0.02019632912 | N90: 0.01806294208 | O90: 0.01591339762 | P90: 0.01371506943
B93: CUSTOMER VALUE | G93: Value
C94: =Data!B60 -> Reliability in worst-served areas | G94: =INDEX(Data!$D$60:$D$67,,MATCH(bus,Data!$D$59:$D$59,0)) -> 0 | H94: =custval_date -> 2023-12-31 | I94: per MWh
C95: =Data!B61 -> Network resilience | G95: 0 | H95: 2023-12-31 | I95: per MWh
C96: =Data!B62 -> Enabling solar exports | G96: 4220.99537 | H96: 2023-12-31 | I96: per MWh
C97: =Data!B63 -> Aesthetics | G97: 0 | H97: 2023-12-31 | I97: per customer
C98: =Data!B64 -> Customer value of time - residential | G98: 0.5476938068 | H98: 2023-12-31 | I98: per customer minute
C99: =Data!B65 -> Customer value of time - business | G99: 0.5476938068 | H99: 2023-12-31 | I99: per customer minute
C100: =Data!B66 -> Communication | G100: 0 | H100: 2023-12-31 | I100: per customer
C101: =Data!B67 -> Information accessibility | G101: 0 | H101: 2023-12-31 | I101: per customer
A106: Sensitivities
G110: Capex | H110: Total benefits
B111: 1 | C111: =IF(G111=0, "", G$110&" "&ABS($G111)*100&"%"&IF($G111>0, " higher", " lower"))&IF(AND(G111<>0, H111<>0), " & ", "")&IF(H111=0, "", H$110&" "&ABS($H111)*100&"%"&IF($H111>0, " higher", " lower")) -> Capex 10% higher | G111: 0.1 | H111: 0
B112: 2 | C112: =IF(G112=0, "", G$110&" "&ABS($G112)*100&"%"&IF($G112>0, " higher", " lower"))&IF(AND(G112<>0, H112<>0), " & ", "")&IF(H112=0, "", H$110&" "&ABS($H112)*100&"%"&IF($H112>0, " higher", " lower")) -> Capex 10% lower | G112: -0.1 | H112: 0
B113: 3 | C113: =IF(G113=0, "", G$110&" "&ABS($G113)*100&"%"&IF($G113>0, " higher", " lower"))&IF(AND(G113<>0, H113<>0), " & ", "")&IF(H113=0, "", H$110&" "&ABS($H113)*100&"%"&IF($H113>0, " higher", " lower")) -> Total benefits 10% higher | G113: 0 | H113: 0.1
B114: 4 | C114: =IF(G114=0, "", G$110&" "&ABS($G114)*100&"%"&IF($G114>0, " higher", " lower"))&IF(AND(G114<>0, H114<>0), " & ", "")&IF(H114=0, "", H$110&" "&ABS($H114)*100&"%"&IF($H114>0, " higher", " lower")) -> Total benefits 10% lower | G114: 0 | H114: -0.1
B115: 5 | C115: =IF(G115=0, "", G$110&" "&ABS($G115)*100&"%"&IF($G115>0, " higher", " lower"))&IF(AND(G115<>0, H115<>0), " & ", "")&IF(H115=0, "", H$110&" "&ABS($H115)*100&"%"&IF($H115>0, " higher", " lower")) -> Capex 10% higher & Total benefits 10% lower | G115: 0.1 | H115: -0.1

Sheet Option1 (base case)
A1: =bus -> CitiPower
A2: =proj -> Bouverie Queensberry supply area
A3: OPTION 1 (base case)
A6: Count | H6: 0 | I6: =H6+1 -> 1 | J6: 2 | K6: 3 | L6: 4 | M6: 5 | N6: 6 | O6: 7 | P6: 8 | Q6: 9 | R6: 10 | S6: 11 | T6: 12 | U6: 13 | V6: 14 | W6: 15 | X6: 16 | Y6: 17 | Z6: 18 | AA6: 19 | AB6: 20 | AC6: 21 | AD6: 22 | AE6: 23 | AF6: 24 | AG6: 25
A7: Value of CO2 reductions | G7: $/MWh | I7: =IF(ISBLANK(Assumptions!K90), H7,Assumptions!K90*thous_conv) -> 24.7304868 | J7: =IF(ISBLANK(Assumptions!L90), I7,Assumptions!L90*thous_conv) -> 22.34074009 | K7: =IF(ISBLANK(Assumptions!M90), J7,Assumptions!M90*thous_conv) -> 20.19632912 | L7: =IF(ISBLANK(Assumptions!N90), K7,Assumptions!N90*thous_conv) -> 18.06294208 | M7: =IF(ISBLANK(Assumptions!O90), L7,Assumptions!O90*thous_conv) -> 15.91339762 | N7: =IF(ISBLANK(Assumptions!P90), M7,Assumptions!P90*thous_conv) -> 13.71506943 | O7: =IF(ISBLANK(Assumptions!Q90), N7,Assumptions!Q90*thous_conv) -> 13.71506943 | P7: =IF(ISBLANK(Assumptions!R90), O7,Assumptions!R90*thous_conv) -> 13.71506943 | Q7: =IF(ISBLANK(Assumptions!S90), P7,Assumptions!S90*thous_conv) -> 13.71506943 | R7: =IF(ISBLANK(Assumptions!T90), Q7,Assumptions!T90*thous_conv) -> 13.71506943 | S7: =IF(ISBLANK(Assumptions!U90), R7,Assumptions!U90*thous_conv) -> 13.71506943 | T7: =IF(ISBLANK(Assumptions!V90), S7,Assumptions!V90*thous_conv) -> 13.71506943 | U7: =IF(ISBLANK(Assumptions!W90), T7,Assumptions!W90*thous_conv) -> 13.71506943 | V7: =IF(ISBLANK(Assumptions!X90), U7,Assumptions!X90*thous_conv) -> 13.71506943 | W7: =IF(ISBLANK(Assumptions!Y90), V7,Assumptions!Y90*thous_conv) -> 13.71506943 | X7: =IF(ISBLANK(Assumptions!Z90), W7,Assumptions!Z90*thous_conv) -> 13.71506943 | Y7: =IF(ISBLANK(Assumptions!AA90), X7,Assumptions!AA90*thous_conv) -> 13.71506943 | Z7: =IF(ISBLANK(Assumptions!AB90), Y7,Assumptions!AB90*thous_conv) -> 13.71506943 | AA7: =IF(ISBLANK(Assumptions!AC90), Z7,Assumptions!AC90*thous_conv) -> 13.71506943 | AB7: =IF(ISBLANK(Assumptions!AD90), AA7,Assumptions!AD90*thous_conv) -> 13.71506943 | AC7: =IF(ISBLANK(Assumptions!AE90), AB7,Assumptions!AE90*thous_conv) -> 13.71506943 | AD7: =IF(ISBLANK(Assumptions!AF90), AC7,Assumptions!AF90*thous_conv) -> 13.71506943 | AE7: =IF(ISBLANK(Assumptions!AG90), AD7,Assumptions!AG90*thous_conv) -> 13.71506943 | AF7: =IF(ISBLANK(Assumptions!AH90), AE7,Assumptions!AH90*thous_conv) -> 13.71506943 | AG7: =IF(ISBLANK(Assumptions!AI90), AF7,Assumptions!AI90*thous_conv) -> 13.71506943
G9: Units | H9: =DATE(LEFT(I9,4), 6,30) -> 2026-06-30 | I9: =start -> 2026-27 | J9: =LEFT(I9,4)+1&"-"&RIGHT(I9,2)+1 -> 2027-28 | K9: 2028-29 | L9: 2029-30 | M9: 2030-31 | N9: 2031-32 | O9: 2032-33 | P9: 2033-34 | Q9: 2034-35 | R9: 2035-36 | S9: 2036-37 | T9: 2037-38 | U9: 2038-39 | V9: 2039-40 | W9: 2040-41 | X9: 2041-42 | Y9: 2042-43 | Z9: 2043-44 | AA9: 2044-45 | AB9: 2045-46 | AC9: 2046-47 | AD9: 2047-48 | AE9: 2048-49 | AF9: 2049-50 | AG9: 2050-51
A11: INVESTMENT & OPERATING COST
C13: Capex | E13: Asset life (yrs)
C14: < Enter description > | E14: 0 | G14: =input_dollars -> 2023-12-31 | I14: 0 | J14: 0 | K14: 0 | L14: 0 | M14: 0 | N14: 0 | O14: 0 | P14: 0 | Q14: 0 | R14: 0 | S14: 0 | T14: 0 | U14: 0 | V14: 0 | W14: 0 | X14: 0 | Y14: 0 | Z14: 0 | AA14: 0 | AB14: 0 | AC14: 0 | AD14: 0 | AE14: 0 | AF14: 0 | AG14: 0
C15: < Enter description > | E15: 0 | G15: =input_dollars -> 2023-12-31 | I15: 0 | J15: 0 | K15: 0 | L15: 0 | M15: 0 | N15: 0 | O15: 0 | P15: 0 | Q15: 0 | R15: 0 | S15: 0 | T15: 0 | U15: 0 | V15: 0 | W15: 0 | X15: 0 | Y15: 0 | Z15: 0 | AA15: 0 | AB15: 0 | AC15: 0 | AD15: 0 | AE15: 0 | AF15: 0 | AG15: 0
C16: < Enter description > | E16: 0 | G16: =input_dollars -> 2023-12-31 | I16: 0 | J16: 0 | K16: 0 | L16: 0 | M16: 0 | N16: 0 | O16: 0 | P16: 0 | Q16: 0 | R16: 0 | S16: 0 | T16: 0 | U16: 0 | V16: 0 | W16: 0 | X16: 0 | Y16: 0 | Z16: 0 | AA16: 0 | AB16: 0 | AC16: 0 | AD16: 0 | AE16: 0 | AF16: 0 | AG16: 0
C17: Capital expenditure | G17: =input_dollars -> 2023-12-31 | I17: =SUM(I14:I16) -> 0 | J17: 0 | K17: 0 | L17: 0 | M17: 0 | N17: 0 | O17: 0 | P17: 0 | Q17: 0 | R17: 0 | S17: 0 | T17: 0 | U17: 0 | V17: 0 | W17: 0 | X17: 0 | Y17: 0 | Z17: 0 | AA17: 0 | AB17: 0 | AC17: =SUM(AC14:AC16) -> 0 | AD17: =SUM(AD14:AD16) -> 0 | AE17: =SUM(AE14:AE16) -> 0 | AF17: =SUM(AF14:AF16) -> 0 | AG17: =SUM(AG14:AG16) -> 0
C19: Operating expenditure | G19: =input_dollars -> 2023-12-31 | I19: 0 | J19: 0 | K19: 0 | L19: 0 | M19: 0 | N19: 0 | O19: 0 | P19: 0 | Q19: 0 | R19: 0 | S19: 0 | T19: 0 | U19: 0 | V19: 0 | W19: 0 | X19: 0 | Y19: 0 | Z19: 0 | AA19: 0 | AB19: 0 | AC19: 0 | AD19: 0 | AE19: 0 | AF19: 0 | AG19: 0
A22: RISK ASSUMPTIONS
C24: PoF (major) | I24: 0 | J24: 0 | K24: 0 | L24: 0 | M24: 0 | N24: 0 | O24: 0 | P24: 0 | Q24: 0 | R24: 0 | S24: 0 | T24: 0 | U24: 0 | V24: 0 | W24: 0 | X24: 0 | Y24: 0 | Z24: 0 | AA24: 0 | AB24: 0 | AC24: 0 | AD24: 0 | AE24: 0 | AF24: 0 | AG24: 0
C25: PoF (reparable) | I25: 0 | J25: 0 | K25: 0 | L25: 0 | M25: 0 | N25: 0 | O25: 0 | P25: 0 | Q25: 0 | R25: 0 | S25: 0 | T25: 0 | U25: 0 | V25: 0 | W25: 0 | X25: 0 | Y25: 0 | Z25: 0 | AA25: 0 | AB25: 0 | AC25: 0 | AD25: 0 | AE25: 0 | AF25: 0 | AG25: 0
C28: Energy at risk 10% PoE | E28: 0.3 | G28: MWh | I28: =SUM('EaR Opt1 VM'!I$10,'EaR Opt1 BQ'!I$10) -> 4.145505979 | J28: =SUM('EaR Opt1 VM'!J$10,'EaR Opt1 BQ'!J$10) -> 3.783998107 | K28: =SUM('EaR Opt1 VM'!K$10,'EaR Opt1 BQ'!K$10) -> 204.8980687 | L28: =SUM('EaR Opt1 VM'!L$10,'EaR Opt1 BQ'!L$10) -> 211.0442575 | M28: =SUM('EaR Opt1 VM'!M$10,'EaR Opt1 BQ'!M$10) -> 221.6692485 | N28: =SUM('EaR Opt1 VM'!N$10,'EaR Opt1 BQ'!N$10) -> 248.9075316 | O28: =SUM('EaR Opt1 VM'!O$10,'EaR Opt1 BQ'!O$10) -> 283.2452636 | P28: =SUM('EaR Opt1 VM'!P$10,'EaR Opt1 BQ'!P$10) -> 304.2871098 | Q28: =SUM('EaR Opt1 VM'!Q$10,'EaR Opt1 BQ'!Q$10) -> 300.1585918 | R28: =SUM('EaR Opt1 VM'!R$10,'EaR Opt1 BQ'!R$10) -> 300.1585918 | S28: =SUM('EaR Opt1 VM'!S$10,'EaR Opt1 BQ'!S$10) -> 300.1585918 | T28: =SUM('EaR Opt1 VM'!T$10,'EaR Opt1 BQ'!T$10) -> 300.1585918 | U28: =SUM('EaR Opt1 VM'!U$10,'EaR Opt1 BQ'!U$10) -> 300.1585918 | V28: =SUM('EaR Opt1 VM'!V$10,'EaR Opt1 BQ'!V$10) -> 300.1585918 | W28: =SUM('EaR Opt1 VM'!W$10,'EaR Opt1 BQ'!W$10) -> 300.1585918 | X28: =SUM('EaR Opt1 VM'!X$10,'EaR Opt1 BQ'!X$10) -> 300.1585918 | Y28: =SUM('EaR Opt1 VM'!Y$10,'EaR Opt1 BQ'!Y$10) -> 300.1585918 | Z28: =SUM('EaR Opt1 VM'!Z$10,'EaR Opt1 BQ'!Z$10) -> 300.1585918 | AA28: =SUM('EaR Opt1 VM'!AA$10,'EaR Opt1 BQ'!AA$10) -> 300.1585918 | AB28: =SUM('EaR Opt1 VM'!AB$10,'EaR Opt1 BQ'!AB$10) -> 300.1585918 | AC28: =SUM('EaR Opt1 VM'!AC$10,'EaR Opt1 BQ'!AC$10) -> 300.1585918 | AD28: =SUM('EaR Opt1 VM'!AD$10,'EaR Opt1 BQ'!AD$10) -> 300.1585918 | AE28: =SUM('EaR Opt1 VM'!AE$10,'EaR Opt1 BQ'!AE$10) -> 300.1585918 | AF28: =SUM('EaR Opt1 VM'!AF$10,'EaR Opt1 BQ'!AF$10) -> 300.1585918 | AG28: =AF28 -> 300.1585918
C29: Energy at risk 50% PoE | E29: 0.7 | G29: MWh | I29: =SUM('EaR Opt1 VM'!I$9,'EaR Opt1 BQ'!I$9) -> 1.038089825 | J29: =SUM('EaR Opt1 VM'!J$9,'EaR Opt1 BQ'!J$9) -> 0.9021775155 | K29: =SUM('EaR Opt1 VM'!K$9,'EaR Opt1 BQ'!K$9) -> 108.9197336 | L29: =SUM('EaR Opt1 VM'!L$9,'EaR Opt1 BQ'!L$9) -> 114.4259407 | M29: =SUM('EaR Opt1 VM'!M$9,'EaR Opt1 BQ'!M$9) -> 121.9094341 | N29: =SUM('EaR Opt1 VM'!N$9,'EaR Opt1 BQ'!N$9) -> 141.404272 | O29: =SUM('EaR Opt1 VM'!O$9,'EaR Opt1 BQ'!O$9) -> 166.7745064 | P29: =SUM('EaR Opt1 VM'!P$9,'EaR Opt1 BQ'!P$9) -> 182.9609975 | Q29: =SUM('EaR Opt1 VM'!Q$9,'EaR Opt1 BQ'!Q$9) -> 180.7064441 | R29: =SUM('EaR Opt1 VM'!R$9,'EaR Opt1 BQ'!R$9) -> 180.7064441 | S29: =SUM('EaR Opt1 VM'!S$9,'EaR Opt1 BQ'!S$9) -> 180.7064441 | T29: =SUM('EaR Opt1 VM'!T$9,'EaR Opt1 BQ'!T$9) -> 180.7064441 | U29: =SUM('EaR Opt1 VM'!U$9,'EaR Opt1 BQ'!U$9) -> 180.7064441 | V29: =SUM('EaR Opt1 VM'!V$9,'EaR Opt1 BQ'!V$9) -> 180.7064441 | W29: =SUM('EaR Opt1 VM'!W$9,'EaR Opt1 BQ'!W$9) -> 180.7064441 | X29: =SUM('EaR Opt1 VM'!X$9,'EaR Opt1 BQ'!X$9) -> 180.7064441 | Y29: =SUM('EaR Opt1 VM'!Y$9,'EaR Opt1 BQ'!Y$9) -> 180.7064441 | Z29: =SUM('EaR Opt1 VM'!Z$9,'EaR Opt1 BQ'!Z$9) -> 180.7064441 | AA29: =SUM('EaR Opt1 VM'!AA$9,'EaR Opt1 BQ'!AA$9) -> 180.7064441 | AB29: =SUM('EaR Opt1 VM'!AB$9,'EaR Opt1 BQ'!AB$9) -> 180.7064441 | AC29: =SUM('EaR Opt1 VM'!AC$9,'EaR Opt1 BQ'!AC$9) -> 180.7064441 | AD29: =SUM('EaR Opt1 VM'!AD$9,'EaR Opt1 BQ'!AD$9) -> 180.7064441 | AE29: =SUM('EaR Opt1 VM'!AE$9,'EaR Opt1 BQ'!AE$9) -> 180.7064441 | AF29: =SUM('EaR Opt1 VM'!AF$9,'EaR Opt1 BQ'!AF$9) -> 180.7064441 | AG29: =AF29 -> 180.7064441
C31: Energy at risk (weighted) | G31: MWh | I31: =SUMPRODUCT(I$28:I$29, $E$28:$E$29) -> 1.970314671 | J31: =SUMPRODUCT(J$28:J$29, $E$28:$E$29) -> 1.766723693 | K31: 137.7132341 | L31: 143.4114357 | M31: 151.8373784 | N31: 173.6552499 | O31: 201.7157336 | P31: 219.3588312 | Q31: 216.5420884 | R31: 216.5420884 | S31: 216.5420884 | T31: 216.5420884 | U31: 216.5420884 | V31: 216.5420884 | W31: 216.5420884 | X31: 216.5420884 | Y31: 216.5420884 | Z31: 216.5420884 | AA31: 216.5420884 | AB31: 216.5420884 | AC31: 216.5420884 | AD31: 216.5420884 | AE31: 216.5420884 | AF31: 216.5420884 | AG31: 216.5420884
C32: Energy at risk value | D32: $/MWh | E32: =Assumptions!H41*vcr_esc -> 36935.21398 | F32: =IF(AND(SUM(I31:AG31)<>0, E32=0), "!", "") ->  | G32: =input_dollars -> 2023-12-31 | I32: =I31*$E$32 -> 72773.99399 | J32: =J31*$E$32 -> 65254.31764 | K32: 5086467.77 | L32: 5296932.065 | M32: 5608146.062 | N32: 6413993.813 | O32: 7450413.782 | P32: 8102065.368 | Q32: 7998028.371 | R32: 7998028.371 | S32: 7998028.371 | T32: 7998028.371 | U32: 7998028.371 | V32: 7998028.371 | W32: 7998028.371 | X32: 7998028.371 | Y32: 7998028.371 | Z32: 7998028.371 | AA32: 7998028.371 | AB32: 7998028.371 | AC32: 7998028.371 | AD32: 7998028.371 | AE32: 7998028.371 | AF32: 7998028.371 | AG32: 7998028.371
C34: Safety consequence | D34: (after DF) | G34: =input_dollars -> 2023-12-31 | I34: 0 | J34: 0 | K34: 0 | L34: 0 | M34: 0 | N34: 0 | O34: 0 | P34: 0 | Q34: 0 | R34: 0 | S34: 0 | T34: 0 | U34: 0 | V34: 0 | W34: 0 | X34: 0 | Y34: 0 | Z34: 0 | AA34: 0 | AB34: 0 | AC34: 0 | AD34: 0 | AE34: 0 | AF34: 0 | AG34: 0
C35: Unplanned replacements | G35: =input_dollars -> 2023-12-31 | I35: 0 | J35: 0 | K35: 0 | L35: 0 | M35: 0 | N35: 0 | O35: 0 | P35: 0 | Q35: 0 | R35: 0 | S35: 0 | T35: 0 | U35: 0 | V35: 0 | W35: 0 | X35: 0 | Y35: 0 | Z35: 0 | AA35: 0 | AB35: 0 | AC35: 0 | AD35: 0 | AE35: 0 | AF35: 0 | AG35: 0
C36: Environmental consequence | D36: (after DF) | G36: =input_dollars -> 2023-12-31 | I36: 0 | J36: 0 | K36: 0 | L36: 0 | M36: 0 | N36: 0 | O36: 0 | P36: 0 | Q36: 0 | R36: 0 | S36: 0 | T36: 0 | U36: 0 | V36: 0 | W36: 0 | X36: 0 | Y36: 0 | Z36: 0 | AA36: 0 | AB36: 0 | AC36: 0 | AD36: 0 | AE36: 0 | AF36: 0 | AG36: 0
C37: < Other risk - enter description > | G37: =input_dollars -> 2023-12-31 | I37: 0 | J37: 0 | K37: 0 | L37: 0 | M37: 0 | N37: 0 | O37: 0 | P37: 0 | Q37: 0 | R37: 0 | S37: 0 | T37: 0 | U37: 0 | V37: 0 | W37: 0 | X37: 0 | Y37: 0 | Z37: 0 | AA37: 0 | AB37: 0 | AC37: 0 | AD37: 0 | AE37: 0 | AF37: 0 | AG37: 0
C38: < Other risk - enter description > | G38: =input_dollars -> 2023-12-31 | I38: 0 | J38: 0 | K38: 0 | L38: 0 | M38: 0 | N38: 0 | O38: 0 | P38: 0 | Q38: 0 | R38: 0 | S38: 0 | T38: 0 | U38: 0 | V38: 0 | W38: 0 | X38: 0 | Y38: 0 | Z38: 0 | AA38: 0 | AB38: 0 | AC38: 0 | AD38: 0 | AE38: 0 | AF38: 0 | AG38: 0
C40: Total risk cost | I40: =SUM(I32:I38) -> 72773.99399 | J40: =SUM(J32:J38) -> 65254.31764 | K40: 5086467.77 | L40: 5296932.065 | M40: 5608146.062 | N40: 6413993.813 | O40: 7450413.782 | P40: 8102065.368 | Q40: 7998028.371 | R40: 7998028.371 | S40: 7998028.371 | T40: 7998028.371 | U40: 7998028.371 | V40: 7998028.371 | W40: 7998028.371 | X40: 7998028.371 | Y40: 7998028.371 | Z40: 7998028.371 | AA40: 7998028.371 | AB40: 7998028.371 | AC40: =SUM(AC32:AC38) -> 7998028.371 | AD40: =SUM(AD32:AD38) -> 7998028.371 | AE40: =SUM(AE32:AE38) -> 7998028.371 | AF40: =SUM(AF32:AF38) -> 7998028.371 | AG40: =SUM(AG32:AG38) -> 7998028.371
A42: OTHER BENEFITS
C45: Reduction in CO2 emissions | G45: MWh | I45: 0 | J45: 0 | K45: 0 | L45: 0 | M45: 0 | N45: 0 | O45: 0 | P45: 0 | Q45: 0 | R45: 0 | S45: 0 | T45: 0 | U45: 0 | V45: 0 | W45: 0 | X45: 0 | Y45: 0 | Z45: 0 | AA45: 0 | AB45: 0 | AC45: 0 | AD45: 0 | AE45: 0 | AF45: 0 | AG45: 0
C46: Value of reduction in CO2 emissions | G46: $ | I46: =I45*I7 -> 0 | J46: 0 | K46: 0 | L46: 0 | M46: 0 | N46: 0 | O46: 0 | P46: 0 | Q46: 0 | R46: 0 | S46: 0 | T46: 0 | U46: 0 | V46: 0 | W46: 0 | X46: 0 | Y46: 0 | Z46: 0 | AA46: 0 | AB46: 0 | AC46: 0 | AD46: 0 | AE46: 0 | AF46: 0 | AG46: 0
C49: Reliability in worst-served areas | D49: $/MWh | E49: =Assumptions!G94 -> 0 | G49: MWh | I49: 0 | J49: 0 | K49: 0 | L49: 0 | M49: 0 | N49: 0 | O49: 0 | P49: 0 | Q49: 0 | R49: 0 | S49: 0 | T49: 0 | U49: 0 | V49: 0 | W49: 0 | X49: 0 | Y49: 0 | Z49: 0 | AA49: 0 | AB49: 0 | AC49: 0 | AD49: 0 | AE49: 0 | AF49: 0 | AG49: 0
C50: Network resilience | D50: $/MWh | E50: =Assumptions!G95 -> 0 | G50: MWh | I50: 0 | J50: 0 | K50: 0 | L50: 0 | M50: 0 | N50: 0 | O50: 0 | P50: 0 | Q50: 0 | R50: 0 | S50: 0 | T50: 0 | U50: 0 | V50: 0 | W50: 0 | X50: 0 | Y50: 0 | Z50: 0 | AA50: 0 | AB50: 0 | AC50: 0 | AD50: 0 | AE50: 0 | AF50: 0 | AG50: 0
C51: Enabling solar exports | D51: $/MWh | E51: =Assumptions!G96 -> 4220.99537 | G51: MWh | I51: 0 | J51: 0 | K51: 0 | L51: 0 | M51: 0 | N51: 0 | O51: 0 | P51: 0 | Q51: 0 | R51: 0 | S51: 0 | T51: 0 | U51: 0 | V51: 0 | W51: 0 | X51: 0 | Y51: 0 | Z51: 0 | AA51: 0 | AB51: 0 | AC51: 0 | AD51: 0 | AE51: 0 | AF51: 0 | AG51: 0
C52: Aesthetics | D52: $/customer | E52: =Assumptions!G97 -> 0 | G52: customers | I52: 0 | J52: 0 | K52: 0 | L52: 0 | M52: 0 | N52: 0 | O52: 0 | P52: 0 | Q52: 0 | R52: 0 | S52: 0 | T52: 0 | U52: 0 | V52: 0 | W52: 0 | X52: 0 | Y52: 0 | Z52: 0 | AA52: 0 | AB52: 0 | AC52: 0 | AD52: 0 | AE52: 0 | AF52: 0 | AG52: 0
C53: Customer value of time (res) | D53: $/customer min | E53: =Assumptions!G98 -> 0.5476938068 | G53: mins | I53: 0 | J53: 0 | K53: 0 | L53: 0 | M53: 0 | N53: 0 | O53: 0 | P53: 0 | Q53: 0 | R53: 0 | S53: 0 | T53: 0 | U53: 0 | V53: 0 | W53: 0 | X53: 0 | Y53: 0 | Z53: 0 | AA53: 0 | AB53: 0 | AC53: 0 | AD53: 0 | AE53: 0 | AF53: 0 | AG53: 0
C54: Customer value of time (bus) | D54: $/customer min | E54: =Assumptions!G99 -> 0.5476938068 | G54: mins | I54: 0 | J54: 0 | K54: 0 | L54: 0 | M54: 0 | N54: 0 | O54: 0 | P54: 0 | Q54: 0 | R54: 0 | S54: 0 | T54: 0 | U54: 0 | V54: 0 | W54: 0 | X54: 0 | Y54: 0 | Z54: 0 | AA54: 0 | AB54: 0 | AC54: 0 | AD54: 0 | AE54: 0 | AF54: 0 | AG54: 0
C55: Communication | D55: $/customer | E55: =Assumptions!G100 -> 0 | G55: customers | I55: 0 | J55: 0 | K55: 0 | L55: 0 | M55: 0 | N55: 0 | O55: 0 | P55: 0 | Q55: 0 | R55: 0 | S55: 0 | T55: 0 | U55: 0 | V55: 0 | W55: 0 | X55: 0 | Y55: 0 | Z55: 0 | AA55: 0 | AB55: 0 | AC55: 0 | AD55: 0 | AE55: 0 | AF55: 0 | AG55: 0
C56: Information accessibility | D56: $/customer | E56: =Assumptions!G101 -> 0 | G56: customers | I56: 0 | J56: 0 | K56: 0 | L56: 0 | M56: 0 | N56: 0 | O56: 0 | P56: 0 | Q56: 0 | R56: 0 | S56: 0 | T56: 0 | U56: 0 | V56: 0 | W56: 0 | X56: 0 | Y56: 0 | Z56: 0 | AA56: 0 | AB56: 0 | AC56: 0 | AD56: 0 | AE56: 0 | AF56: 0 | AG56: 0
C58: Other benefits 1 | G58: =input_dollars -> 2023-12-31 | I58: 0 | J58: 0 | K58: 0 | L58: 0 | M58: 0 | N58: 0 | O58: 0 | P58: 0 | Q58: 0 | R58: 0 | S58: 0 | T58: 0 | U58: 0 | V58: 0 | W58: 0 | X58: 0 | Y58: 0 | Z58: 0 | AA58: 0 | AB58: 0 | AC58: 0 | AD58: 0 | AE58: 0 | AF58: 0 | AG58: 0
C59: Other benefits 2 | G59: =input_dollars -> 2023-12-31 | I59: 0 | J59: 0 | K59: 0 | L59: 0 | M59: 0 | N59: 0 | O59: 0 | P59: 0 | Q59: 0 | R59: 0 | S59: 0 | T59: 0 | U59: 0 | V59: 0 | W59: 0 | X59: 0 | Y59: 0 | Z59: 0 | AA59: 0 | AB59: 0 | AC59: 0 | AD59: 0 | AE59: 0 | AF59: 0 | AG59: 0
C61: Total other benefits | G61: =input_dollars -> 2023-12-31 | I61: =SUMPRODUCT((I$49:I$56)*($E$49:$E$56))+SUM(I58:I59)+I46 -> 0 | J61: =SUMPRODUCT((J$49:J$56)*($E$49:$E$56))+SUM(J58:J59)+J46 -> 0 | K61: =SUMPRODUCT((K$49:K$56)*($E$49:$E$56))+SUM(K58:K59)+K46 -> 0 | L61: =SUMPRODUCT((L$49:L$56)*($E$49:$E$56))+SUM(L58:L59)+L46 -> 0 | M61: =SUMPRODUCT((M$49:M$56)*($E$49:$E$56))+SUM(M58:M59)+M46 -> 0 | N61: =SUMPRODUCT((N$49:N$56)*($E$49:$E$56))+SUM(N58:N59)+N46 -> 0 | O61: =SUMPRODUCT((O$49:O$56)*($E$49:$E$56))+SUM(O58:O59)+O46 -> 0 | P61: =SUMPRODUCT((P$49:P$56)*($E$49:$E$56))+SUM(P58:P59)+P46 -> 0 | Q61: =SUMPRODUCT((Q$49:Q$56)*($E$49:$E$56))+SUM(Q58:Q59)+Q46 -> 0 | R61: =SUMPRODUCT((R$49:R$56)*($E$49:$E$56))+SUM(R58:R59)+R46 -> 0 | S61: =SUMPRODUCT((S$49:S$56)*($E$49:$E$56))+SUM(S58:S59)+S46 -> 0 | T61: =SUMPRODUCT((T$49:T$56)*($E$49:$E$56))+SUM(T58:T59)+T46 -> 0 | U61: =SUMPRODUCT((U$49:U$56)*($E$49:$E$56))+SUM(U58:U59)+U46 -> 0 | V61: =SUMPRODUCT((V$49:V$56)*($E$49:$E$56))+SUM(V58:V59)+V46 -> 0 | W61: =SUMPRODUCT((W$49:W$56)*($E$49:$E$56))+SUM(W58:W59)+W46 -> 0 | X61: =SUMPRODUCT((X$49:X$56)*($E$49:$E$56))+SUM(X58:X59)+X46 -> 0 | Y61: =SUMPRODUCT((Y$49:Y$56)*($E$49:$E$56))+SUM(Y58:Y59)+Y46 -> 0 | Z61: =SUMPRODUCT((Z$49:Z$56)*($E$49:$E$56))+SUM(Z58:Z59)+Z46 -> 0 | AA61: =SUMPRODUCT((AA$49:AA$56)*($E$49:$E$56))+SUM(AA58:AA59)+AA46 -> 0 | AB61: =SUMPRODUCT((AB$49:AB$56)*($E$49:$E$56))+SUM(AB58:AB59)+AB46 -> 0 | AC61: =SUMPRODUCT((AC$49:AC$56)*($E$49:$E$56))+SUM(AC58:AC59)+AC46 -> 0 | AD61: =SUMPRODUCT((AD$49:AD$56)*($E$49:$E$56))+SUM(AD58:AD59)+AD46 -> 0 | AE61: =SUMPRODUCT((AE$49:AE$56)*($E$49:$E$56))+SUM(AE58:AE59)+AE46 -> 0 | AF61: =SUMPRODUCT((AF$49:AF$56)*($E$49:$E$56))+SUM(AF58:AF59)+AF46 -> 0 | AG61: =SUMPRODUCT((AG$49:AG$56)*($E$49:$E$56))+SUM(AG58:AG59)+AG46 -> 0
A64: SUMMARY
C68: Risks mitigated vs base case | G68: =input_dollars -> 2023-12-31
C70: Capital expenditure
C71: =C14 -> < Enter description > | G71: =input_dollars -> 2023-12-31 | I71: =-I14 -> 0 | J71: 0 | K71: 0 | L71: 0 | M71: 0 | N71: 0 | O71: 0 | P71: 0 | Q71: 0 | R71: 0 | S71: 0 | T71: 0 | U71: 0 | V71: 0 | W71: 0 | X71: 0 | Y71: 0 | Z71: 0 | AA71: 0 | AB71: 0 | AC71: 0 | AD71: 0 | AE71: 0 | AF71: 0 | AG71: 0
C72: =C15 -> < Enter description > | G72: =input_dollars -> 2023-12-31 | I72: =-I15 -> 0 | J72: 0 | K72: 0 | L72: 0 | M72: 0 | N72: 0 | O72: 0 | P72: 0 | Q72: 0 | R72: 0 | S72: 0 | T72: 0 | U72: 0 | V72: 0 | W72: 0 | X72: 0 | Y72: 0 | Z72: 0 | AA72: 0 | AB72: 0 | AC72: 0 | AD72: 0 | AE72: 0 | AF72: 0 | AG72: 0
C73: =C16 -> < Enter description > | G73: =input_dollars -> 2023-12-31 | I73: =-I16 -> 0 | J73: 0 | K73: 0 | L73: 0 | M73: 0 | N73: 0 | O73: 0 | P73: 0 | Q73: 0 | R73: 0 | S73: 0 | T73: 0 | U73: 0 | V73: 0 | W73: 0 | X73: 0 | Y73: 0 | Z73: 0 | AA73: 0 | AB73: 0 | AC73: 0 | AD73: 0 | AE73: 0 | AF73: 0 | AG73: 0
C75: Cumulative capex
C76: =C14 -> < Enter description > | G76: =input_dollars -> 2023-12-31 | I76: =SUMPRODUCT(($I71:I71))-SUMPRODUCT(($I71:I71)*($I$6:I$6<=(I$6-$E14))) -> 0 | J76: =SUMPRODUCT(($I71:J71))-SUMPRODUCT(($I71:J71)*($I$6:J$6<=(J$6-$E14))) -> 0 | K76: =SUMPRODUCT(($I71:K71))-SUMPRODUCT(($I71:K71)*($I$6:K$6<=(K$6-$E14))) -> 0 | L76: =SUMPRODUCT(($I71:L71))-SUMPRODUCT(($I71:L71)*($I$6:L$6<=(L$6-$E14))) -> 0 | M76: =SUMPRODUCT(($I71:M71))-SUMPRODUCT(($I71:M71)*($I$6:M$6<=(M$6-$E14))) -> 0 | N76: =SUMPRODUCT(($I71:N71))-SUMPRODUCT(($I71:N71)*($I$6:N$6<=(N$6-$E14))) -> 0 | O76: =SUMPRODUCT(($I71:O71))-SUMPRODUCT(($I71:O71)*($I$6:O$6<=(O$6-$E14))) -> 0 | P76: =SUMPRODUCT(($I71:P71))-SUMPRODUCT(($I71:P71)*($I$6:P$6<=(P$6-$E14))) -> 0 | Q76: =SUMPRODUCT(($I71:Q71))-SUMPRODUCT(($I71:Q71)*($I$6:Q$6<=(Q$6-$E14))) -> 0 | R76: =SUMPRODUCT(($I71:R71))-SUMPRODUCT(($I71:R71)*($I$6:R$6<=(R$6-$E14))) -> 0 | S76: =SUMPRODUCT(($I71:S71))-SUMPRODUCT(($I71:S71)*($I$6:S$6<=(S$6-$E14))) -> 0 | T76: =SUMPRODUCT(($I71:T71))-SUMPRODUCT(($I71:T71)*($I$6:T$6<=(T$6-$E14))) -> 0 | U76: =SUMPRODUCT(($I71:U71))-SUMPRODUCT(($I71:U71)*($I$6:U$6<=(U$6-$E14))) -> 0 | V76: =SUMPRODUCT(($I71:V71))-SUMPRODUCT(($I71:V71)*($I$6:V$6<=(V$6-$E14))) -> 0 | W76: =SUMPRODUCT(($I71:W71))-SUMPRODUCT(($I71:W71)*($I$6:W$6<=(W$6-$E14))) -> 0 | X76: =SUMPRODUCT(($I71:X71))-SUMPRODUCT(($I71:X71)*($I$6:X$6<=(X$6-$E14))) -> 0 | Y76: =SUMPRODUCT(($I71:Y71))-SUMPRODUCT(($I71:Y71)*($I$6:Y$6<=(Y$6-$E14))) -> 0 | Z76: =SUMPRODUCT(($I71:Z71))-SUMPRODUCT(($I71:Z71)*($I$6:Z$6<=(Z$6-$E14))) -> 0 | AA76: =SUMPRODUCT(($I71:AA71))-SUMPRODUCT(($I71:AA71)*($I$6:AA$6<=(AA$6-$E14))) -> 0 | AB76: =SUMPRODUCT(($I71:AB71))-SUMPRODUCT(($I71:AB71)*($I$6:AB$6<=(AB$6-$E14))) -> 0 | AC76: =SUMPRODUCT(($I71:AC71))-SUMPRODUCT(($I71:AC71)*($I$6:AC$6<=(AC$6-$E14))) -> 0 | AD76: =SUMPRODUCT(($I71:AD71))-SUMPRODUCT(($I71:AD71)*($I$6:AD$6<=(AD$6-$E14))) -> 0 | AE76: =SUMPRODUCT(($I71:AE71))-SUMPRODUCT(($I71:AE71)*($I$6:AE$6<=(AE$6-$E14))) -> 0 | AF76: =SUMPRODUCT(($I71:AF71))-SUMPRODUCT(($I71:AF71)*($I$6:AF$6<=(AF$6-$E14))) -> 0 | AG76: =SUMPRODUCT(($I71:AG71))-SUMPRODUCT(($I71:AG71)*($I$6:AG$6<=(AG$6-$E14))) -> 0
C77: =C15 -> < Enter description > | G77: =input_dollars -> 2023-12-31 | I77: =SUMPRODUCT(($I72:I72))-SUMPRODUCT(($I72:I72)*($I$6:I$6<=(I$6-$E15))) -> 0 | J77: =SUMPRODUCT(($I72:J72))-SUMPRODUCT(($I72:J72)*($I$6:J$6<=(J$6-$E15))) -> 0 | K77: =SUMPRODUCT(($I72:K72))-SUMPRODUCT(($I72:K72)*($I$6:K$6<=(K$6-$E15))) -> 0 | L77: =SUMPRODUCT(($I72:L72))-SUMPRODUCT(($I72:L72)*($I$6:L$6<=(L$6-$E15))) -> 0 | M77: =SUMPRODUCT(($I72:M72))-SUMPRODUCT(($I72:M72)*($I$6:M$6<=(M$6-$E15))) -> 0 | N77: =SUMPRODUCT(($I72:N72))-SUMPRODUCT(($I72:N72)*($I$6:N$6<=(N$6-$E15))) -> 0 | O77: =SUMPRODUCT(($I72:O72))-SUMPRODUCT(($I72:O72)*($I$6:O$6<=(O$6-$E15))) -> 0 | P77: =SUMPRODUCT(($I72:P72))-SUMPRODUCT(($I72:P72)*($I$6:P$6<=(P$6-$E15))) -> 0 | Q77: =SUMPRODUCT(($I72:Q72))-SUMPRODUCT(($I72:Q72)*($I$6:Q$6<=(Q$6-$E15))) -> 0 | R77: =SUMPRODUCT(($I72:R72))-SUMPRODUCT(($I72:R72)*($I$6:R$6<=(R$6-$E15))) -> 0 | S77: =SUMPRODUCT(($I72:S72))-SUMPRODUCT(($I72:S72)*($I$6:S$6<=(S$6-$E15))) -> 0 | T77: =SUMPRODUCT(($I72:T72))-SUMPRODUCT(($I72:T72)*($I$6:T$6<=(T$6-$E15))) -> 0 | U77: =SUMPRODUCT(($I72:U72))-SUMPRODUCT(($I72:U72)*($I$6:U$6<=(U$6-$E15))) -> 0 | V77: =SUMPRODUCT(($I72:V72))-SUMPRODUCT(($I72:V72)*($I$6:V$6<=(V$6-$E15))) -> 0 | W77: =SUMPRODUCT(($I72:W72))-SUMPRODUCT(($I72:W72)*($I$6:W$6<=(W$6-$E15))) -> 0 | X77: =SUMPRODUCT(($I72:X72))-SUMPRODUCT(($I72:X72)*($I$6:X$6<=(X$6-$E15))) -> 0 | Y77: =SUMPRODUCT(($I72:Y72))-SUMPRODUCT(($I72:Y72)*($I$6:Y$6<=(Y$6-$E15))) -> 0 | Z77: =SUMPRODUCT(($I72:Z72))-SUMPRODUCT(($I72:Z72)*($I$6:Z$6<=(Z$6-$E15))) -> 0 | AA77: =SUMPRODUCT(($I72:AA72))-SUMPRODUCT(($I72:AA72)*($I$6:AA$6<=(AA$6-$E15))) -> 0 | AB77: =SUMPRODUCT(($I72:AB72))-SUMPRODUCT(($I72:AB72)*($I$6:AB$6<=(AB$6-$E15))) -> 0 | AC77: =SUMPRODUCT(($I72:AC72))-SUMPRODUCT(($I72:AC72)*($I$6:AC$6<=(AC$6-$E15))) -> 0 | AD77: =SUMPRODUCT(($I72:AD72))-SUMPRODUCT(($I72:AD72)*($I$6:AD$6<=(AD$6-$E15))) -> 0 | AE77: =SUMPRODUCT(($I72:AE72))-SUMPRODUCT(($I72:AE72)*($I$6:AE$6<=(AE$6-$E15))) -> 0 | AF77: =SUMPRODUCT(($I72:AF72))-SUMPRODUCT(($I72:AF72)*($I$6:AF$6<=(AF$6-$E15))) -> 0 | AG77: =SUMPRODUCT(($I72:AG72))-SUMPRODUCT(($I72:AG72)*($I$6:AG$6<=(AG$6-$E15))) -> 0
C78: =C16 -> < Enter description > | G78: =input_dollars -> 2023-12-31 | I78: =SUMPRODUCT(($I73:I73))-SUMPRODUCT(($I73:I73)*($I$6:I$6<=(I$6-$E16))) -> 0 | J78: =SUMPRODUCT(($I73:J73))-SUMPRODUCT(($I73:J73)*($I$6:J$6<=(J$6-$E16))) -> 0 | K78: =SUMPRODUCT(($I73:K73))-SUMPRODUCT(($I73:K73)*($I$6:K$6<=(K$6-$E16))) -> 0 | L78: =SUMPRODUCT(($I73:L73))-SUMPRODUCT(($I73:L73)*($I$6:L$6<=(L$6-$E16))) -> 0 | M78: =SUMPRODUCT(($I73:M73))-SUMPRODUCT(($I73:M73)*($I$6:M$6<=(M$6-$E16))) -> 0 | N78: =SUMPRODUCT(($I73:N73))-SUMPRODUCT(($I73:N73)*($I$6:N$6<=(N$6-$E16))) -> 0 | O78: =SUMPRODUCT(($I73:O73))-SUMPRODUCT(($I73:O73)*($I$6:O$6<=(O$6-$E16))) -> 0 | P78: =SUMPRODUCT(($I73:P73))-SUMPRODUCT(($I73:P73)*($I$6:P$6<=(P$6-$E16))) -> 0 | Q78: =SUMPRODUCT(($I73:Q73))-SUMPRODUCT(($I73:Q73)*($I$6:Q$6<=(Q$6-$E16))) -> 0 | R78: =SUMPRODUCT(($I73:R73))-SUMPRODUCT(($I73:R73)*($I$6:R$6<=(R$6-$E16))) -> 0 | S78: =SUMPRODUCT(($I73:S73))-SUMPRODUCT(($I73:S73)*($I$6:S$6<=(S$6-$E16))) -> 0 | T78: =SUMPRODUCT(($I73:T73))-SUMPRODUCT(($I73:T73)*($I$6:T$6<=(T$6-$E16))) -> 0 | U78: =SUMPRODUCT(($I73:U73))-SUMPRODUCT(($I73:U73)*($I$6:U$6<=(U$6-$E16))) -> 0 | V78: =SUMPRODUCT(($I73:V73))-SUMPRODUCT(($I73:V73)*($I$6:V$6<=(V$6-$E16))) -> 0 | W78: =SUMPRODUCT(($I73:W73))-SUMPRODUCT(($I73:W73)*($I$6:W$6<=(W$6-$E16))) -> 0 | X78: =SUMPRODUCT(($I73:X73))-SUMPRODUCT(($I73:X73)*($I$6:X$6<=(X$6-$E16))) -> 0 | Y78: =SUMPRODUCT(($I73:Y73))-SUMPRODUCT(($I73:Y73)*($I$6:Y$6<=(Y$6-$E16))) -> 0 | Z78: =SUMPRODUCT(($I73:Z73))-SUMPRODUCT(($I73:Z73)*($I$6:Z$6<=(Z$6-$E16))) -> 0 | AA78: =SUMPRODUCT(($I73:AA73))-SUMPRODUCT(($I73:AA73)*($I$6:AA$6<=(AA$6-$E16))) -> 0 | AB78: =SUMPRODUCT(($I73:AB73))-SUMPRODUCT(($I73:AB73)*($I$6:AB$6<=(AB$6-$E16))) -> 0 | AC78: =SUMPRODUCT(($I73:AC73))-SUMPRODUCT(($I73:AC73)*($I$6:AC$6<=(AC$6-$E16))) -> 0 | AD78: =SUMPRODUCT(($I73:AD73))-SUMPRODUCT(($I73:AD73)*($I$6:AD$6<=(AD$6-$E16))) -> 0 | AE78: =SUMPRODUCT(($I73:AE73))-SUMPRODUCT(($I73:AE73)*($I$6:AE$6<=(AE$6-$E16))) -> 0 | AF78: =SUMPRODUCT(($I73:AF73))-SUMPRODUCT(($I73:AF73)*($I$6:AF$6<=(AF$6-$E16))) -> 0 | AG78: =SUMPRODUCT(($I73:AG73))-SUMPRODUCT(($I73:AG73)*($I$6:AG$6<=(AG$6-$E16))) -> 0
C80: Annualised capex
C81: =$C$80&" - "&C14 -> Annualised capex - < Enter description > | G81: =input_dollars -> 2023-12-31 | I81: =IF($E14=0,0,-PMT(real_disc, $E14,H76,)) -> 0 | J81: 0 | K81: 0 | L81: 0 | M81: 0 | N81: 0 | O81: 0 | P81: 0 | Q81: 0 | R81: 0 | S81: 0 | T81: 0 | U81: 0 | V81: 0 | W81: 0 | X81: 0 | Y81: 0 | Z81: 0 | AA81: 0 | AB81: 0 | AC81: 0 | AD81: 0 | AE81: 0 | AF81: 0 | AG81: 0
C82: =$C$80&" - "&C15 -> Annualised capex - < Enter description > | G82: =input_dollars -> 2023-12-31 | I82: =IF($E15=0,0,-PMT(real_disc, $E15,H77,)) -> 0 | J82: 0 | K82: 0 | L82: 0 | M82: 0 | N82: 0 | O82: 0 | P82: 0 | Q82: 0 | R82: 0 | S82: 0 | T82: 0 | U82: 0 | V82: 0 | W82: 0 | X82: 0 | Y82: 0 | Z82: 0 | AA82: 0 | AB82: 0 | AC82: 0 | AD82: 0 | AE82: 0 | AF82: 0 | AG82: 0
C83: =$C$80&" - "&C16 -> Annualised capex - < Enter description > | G83: =input_dollars -> 2023-12-31 | I83: =IF($E16=0,0,-PMT(real_disc, $E16,H78,)) -> 0 | J83: 0 | K83: 0 | L83: 0 | M83: 0 | N83: 0 | O83: 0 | P83: 0 | Q83: 0 | R83: 0 | S83: 0 | T83: 0 | U83: 0 | V83: 0 | W83: 0 | X83: 0 | Y83: 0 | Z83: 0 | AA83: 0 | AB83: 0 | AC83: 0 | AD83: 0 | AE83: 0 | AF83: 0 | AG83: 0
C84: Total annualised capex | G84: =input_dollars -> 2023-12-31 | I84: =SUM(I81:I83) -> 0 | J84: =SUM(J81:J83) -> 0 | K84: 0 | L84: 0 | M84: 0 | N84: 0 | O84: 0 | P84: 0 | Q84: 0 | R84: 0 | S84: 0 | T84: 0 | U84: 0 | V84: 0 | W84: 0 | X84: 0 | Y84: 0 | Z84: 0 | AA84: 0 | AB84: 0 | AC84: =SUM(AC81:AC83) -> 0 | AD84: =SUM(AD81:AD83) -> 0 | AE84: =SUM(AE81:AE83) -> 0 | AF84: =SUM(AF81:AF83) -> 0 | AG84: =SUM(AG81:AG83) -> 0
C86: Annualised capex | G86: =input_dollars -> 2023-12-31 | I86: =I84 -> 0 | J86: =J84 -> 0 | K86: 0 | L86: 0 | M86: 0 | N86: 0 | O86: 0 | P86: 0 | Q86: 0 | R86: 0 | S86: 0 | T86: 0 | U86: 0 | V86: 0 | W86: 0 | X86: 0 | Y86: 0 | Z86: 0 | AA86: 0 | AB86: 0 | AC86: =AC84 -> 0 | AD86: =AD84 -> 0 | AE86: =AE84 -> 0 | AF86: =AF84 -> 0 | AG86: =AG84 -> 0
C87: Operating expenditure | G87: 2023-12-31 | I87: =-I19 -> 0 | J87: 0 | K87: 0 | L87: 0 | M87: 0 | N87: 0 | O87: 0 | P87: 0 | Q87: 0 | R87: 0 | S87: 0 | T87: 0 | U87: 0 | V87: 0 | W87: 0 | X87: 0 | Y87: 0 | Z87: 0 | AA87: 0 | AB87: 0 | AC87: 0 | AD87: 0 | AE87: 0 | AF87: 0 | AG87: 0
C88: Risk mitigated | G88: 2023-12-31 | I88: =I68 -> 0 | J88: =J68 -> 0 | K88: 0 | L88: 0 | M88: 0 | N88: 0 | O88: 0 | P88: 0 | Q88: 0 | R88: 0 | S88: 0 | T88: 0 | U88: 0 | V88: 0 | W88: 0 | X88: 0 | Y88: 0 | Z88: 0 | AA88: 0 | AB88: 0 | AC88: =AC68 -> 0 | AD88: =AD68 -> 0 | AE88: =AE68 -> 0 | AF88: =AF68 -> 0 | AG88: =AG68 -> 0
C89: Other benefits value | G89: 2023-12-31 | I89: =I61 -> 0 | J89: 0 | K89: 0 | L89: 0 | M89: 0 | N89: 0 | O89: 0 | P89: 0 | Q89: 0 | R89: 0 | S89: 0 | T89: 0 | U89: 0 | V89: 0 | W89: 0 | X89: 0 | Y89: 0 | Z89: 0 | AA89: 0 | AB89: 0 | AC89: 0 | AD89: 0 | AE89: 0 | AF89: 0 | AG89: 0
C91: Net benefits | G91: 2023-12-31 | I91: =SUM(I86:I90) -> 0 | J91: 0 | K91: 0 | L91: 0 | M91: 0 | N91: 0 | O91: 0 | P91: 0 | Q91: 0 | R91: 0 | S91: 0 | T91: 0 | U91: 0 | V91: 0 | W91: 0 | X91: 0 | Y91: 0 | Z91: 0 | AA91: 0 | AB91: 0 | AC91: =SUM(AC86:AC90) -> 0 | AD91: =SUM(AD86:AD90) -> 0 | AE91: =SUM(AE86:AE90) -> 0 | AF91: =SUM(AF86:AF90) -> 0 | AG91: =SUM(AG86:AG90) -> 0
A106: SENSITIVITIES
A110: NPV | C110: Net benefits | G110: =PROPER($A$3)&A110 -> Option 1 (Base Case)NPV | I110: =I91 -> 0 | J110: =J91 -> 0 | K110: 0 | L110: 0 | M110: 0 | N110: 0 | O110: 0 | P110: 0 | Q110: 0 | R110: 0 | S110: 0 | T110: 0 | U110: 0 | V110: 0 | W110: 0 | X110: 0 | Y110: 0 | Z110: 0 | AA110: 0 | AB110: 0 | AC110: 0 | AD110: 0 | AE110: 0 | AF110: 0 | AG110: 0
C111: Total annualised capex | I111: =I86 -> 0 | J111: =J86 -> 0 | K111: 0 | L111: 0 | M111: 0 | N111: 0 | O111: 0 | P111: 0 | Q111: 0 | R111: 0 | S111: 0 | T111: 0 | U111: 0 | V111: 0 | W111: 0 | X111: 0 | Y111: 0 | Z111: 0 | AA111: 0 | AB111: 0 | AC111: 0 | AD111: 0 | AE111: 0 | AF111: 0 | AG111: 0
C112: Total benefits | I112: =SUM(I88:I89) -> 0 | J112: =SUM(J88:J89) -> 0 | K112: 0 | L112: 0 | M112: 0 | N112: 0 | O112: 0 | P112: 0 | Q112: 0 | R112: 0 | S112: 0 | T112: 0 | U112: 0 | V112: 0 | W112: 0 | X112: 0 | Y112: 0 | Z112: 0 | AA112: 0 | AB112: 0 | AC112: 0 | AD112: 0 | AE112: 0 | AF112: 0 | AG112: 0
D113: =Assumptions!G110 -> Capex | E113: =Assumptions!H110 -> Total benefits
A114: ="sens"&Assumptions!B111 -> sens1 | C114: =Assumptions!C111 -> Capex 10% higher | D114: =Assumptions!G111 -> 0.1 | E114: =Assumptions!H111 -> 0 | G114: =PROPER($A$3)&A114 -> Option 1 (Base Case)sens1 | I114: =I$110+IF($C114<>0,SUMPRODUCT((I$111:I$112)*TRANSPOSE(($D114:$E114))),0) -> 0 | J114: =J$110+IF($C114<>0,SUMPRODUCT((J$111:J$112)*TRANSPOSE(($D114:$E114))),0) -> 0 | K114: =K$110+IF($C114<>0,SUMPRODUCT((K$111:K$112)*TRANSPOSE(($D114:$E114))),0) -> 0 | L114: =L$110+IF($C114<>0,SUMPRODUCT((L$111:L$112)*TRANSPOSE(($D114:$E114))),0) -> 0 | M114: =M$110+IF($C114<>0,SUMPRODUCT((M$111:M$112)*TRANSPOSE(($D114:$E114))),0) -> 0 | N114: =N$110+IF($C114<>0,SUMPRODUCT((N$111:N$112)*TRANSPOSE(($D114:$E114))),0) -> 0 | O114: =O$110+IF($C114<>0,SUMPRODUCT((O$111:O$112)*TRANSPOSE(($D114:$E114))),0) -> 0 | P114: =P$110+IF($C114<>0,SUMPRODUCT((P$111:P$112)*TRANSPOSE(($D114:$E114))),0) -> 0 | Q114: =Q$110+IF($C114<>0,SUMPRODUCT((Q$111:Q$112)*TRANSPOSE(($D114:$E114))),0) -> 0 | R114: =R$110+IF($C114<>0,SUMPRODUCT((R$111:R$112)*TRANSPOSE(($D114:$E114))),0) -> 0 | S114: =S$110+IF($C114<>0,SUMPRODUCT((S$111:S$112)*TRANSPOSE(($D114:$E114))),0) -> 0 | T114: =T$110+IF($C114<>0,SUMPRODUCT((T$111:T$112)*TRANSPOSE(($D114:$E114))),0) -> 0 | U114: =U$110+IF($C114<>0,SUMPRODUCT((U$111:U$112)*TRANSPOSE(($D114:$E114))),0) -> 0 | V114: =V$110+IF($C114<>0,SUMPRODUCT((V$111:V$112)*TRANSPOSE(($D114:$E114))),0) -> 0 | W114: =W$110+IF($C114<>0,SUMPRODUCT((W$111:W$112)*TRANSPOSE(($D114:$E114))),0) -> 0 | X114: =X$110+IF($C114<>0,SUMPRODUCT((X$111:X$112)*TRANSPOSE(($D114:$E114))),0) -> 0 | Y114: =Y$110+IF($C114<>0,SUMPRODUCT((Y$111:Y$112)*TRANSPOSE(($D114:$E114))),0) -> 0 | Z114: =Z$110+IF($C114<>0,SUMPRODUCT((Z$111:Z$112)*TRANSPOSE(($D114:$E114))),0) -> 0 | AA114: =AA$110+IF($C114<>0,SUMPRODUCT((AA$111:AA$112)*TRANSPOSE(($D114:$E114))),0) -> 0 | AB114: =AB$110+IF($C114<>0,SUMPRODUCT((AB$111:AB$112)*TRANSPOSE(($D114:$E114))),0) -> 0 | AC114: =AC$110+IF($C114<>0,SUMPRODUCT((AC$111:AC$112)*TRANSPOSE(($D114:$E114))),0) -> 0 | AD114: =AD$110+IF($C114<>0,SUMPRODUCT((AD$111:AD$112)*TRANSPOSE(($D114:$E114))),0) -> 0 | AE114: =AE$110+IF($C114<>0,SUMPRODUCT((AE$111:AE$112)*TRANSPOSE(($D114:$E114))),0) -> 0 | AF114: =AF$110+IF($C114<>0,SUMPRODUCT((AF$111:AF$112)*TRANSPOSE(($D114:$E114))),0) -> 0 | AG114: =AG$110+IF($C114<>0,SUMPRODUCT((AG$111:AG$112)*TRANSPOSE(($D114:$E114))),0) -> 0
A115: ="sens"&Assumptions!B112 -> sens2 | C115: =Assumptions!C112 -> Capex 10% lower | D115: =Assumptions!G112 -> -0.1 | E115: =Assumptions!H112 -> 0 | G115: =PROPER($A$3)&A115 -> Option 1 (Base Case)sens2 | I115: =I$110+IF($C115<>0,SUMPRODUCT((I$111:I$112)*TRANSPOSE(($D115:$E115))),0) -> 0 | J115: =J$110+IF($C115<>0,SUMPRODUCT((J$111:J$112)*TRANSPOSE(($D115:$E115))),0) -> 0 | K115: =K$110+IF($C115<>0,SUMPRODUCT((K$111:K$112)*TRANSPOSE(($D115:$E115))),0) -> 0 | L115: =L$110+IF($C115<>0,SUMPRODUCT((L$111:L$112)*TRANSPOSE(($D115:$E115))),0) -> 0 | M115: =M$110+IF($C115<>0,SUMPRODUCT((M$111:M$112)*TRANSPOSE(($D115:$E115))),0) -> 0 | N115: =N$110+IF($C115<>0,SUMPRODUCT((N$111:N$112)*TRANSPOSE(($D115:$E115))),0) -> 0 | O115: =O$110+IF($C115<>0,SUMPRODUCT((O$111:O$112)*TRANSPOSE(($D115:$E115))),0) -> 0 | P115: =P$110+IF($C115<>0,SUMPRODUCT((P$111:P$112)*TRANSPOSE(($D115:$E115))),0) -> 0 | Q115: =Q$110+IF($C115<>0,SUMPRODUCT((Q$111:Q$112)*TRANSPOSE(($D115:$E115))),0) -> 0 | R115: =R$110+IF($C115<>0,SUMPRODUCT((R$111:R$112)*TRANSPOSE(($D115:$E115))),0) -> 0 | S115: =S$110+IF($C115<>0,SUMPRODUCT((S$111:S$112)*TRANSPOSE(($D115:$E115))),0) -> 0 | T115: =T$110+IF($C115<>0,SUMPRODUCT((T$111:T$112)*TRANSPOSE(($D115:$E115))),0) -> 0 | U115: =U$110+IF($C115<>0,SUMPRODUCT((U$111:U$112)*TRANSPOSE(($D115:$E115))),0) -> 0 | V115: =V$110+IF($C115<>0,SUMPRODUCT((V$111:V$112)*TRANSPOSE(($D115:$E115))),0) -> 0 | W115: =W$110+IF($C115<>0,SUMPRODUCT((W$111:W$112)*TRANSPOSE(($D115:$E115))),0) -> 0 | X115: =X$110+IF($C115<>0,SUMPRODUCT((X$111:X$112)*TRANSPOSE(($D115:$E115))),0) -> 0 | Y115: =Y$110+IF($C115<>0,SUMPRODUCT((Y$111:Y$112)*TRANSPOSE(($D115:$E115))),0) -> 0 | Z115: =Z$110+IF($C115<>0,SUMPRODUCT((Z$111:Z$112)*TRANSPOSE(($D115:$E115))),0) -> 0 | AA115: =AA$110+IF($C115<>0,SUMPRODUCT((AA$111:AA$112)*TRANSPOSE(($D115:$E115))),0) -> 0 | AB115: =AB$110+IF($C115<>0,SUMPRODUCT((AB$111:AB$112)*TRANSPOSE(($D115:$E115))),0) -> 0 | AC115: =AC$110+IF($C115<>0,SUMPRODUCT((AC$111:AC$112)*TRANSPOSE(($D115:$E115))),0) -> 0 | AD115: =AD$110+IF($C115<>0,SUMPRODUCT((AD$111:AD$112)*TRANSPOSE(($D115:$E115))),0) -> 0 | AE115: =AE$110+IF($C115<>0,SUMPRODUCT((AE$111:AE$112)*TRANSPOSE(($D115:$E115))),0) -> 0 | AF115: =AF$110+IF($C115<>0,SUMPRODUCT((AF$111:AF$112)*TRANSPOSE(($D115:$E115))),0) -> 0 | AG115: =AG$110+IF($C115<>0,SUMPRODUCT((AG$111:AG$112)*TRANSPOSE(($D115:$E115))),0) -> 0
A116: ="sens"&Assumptions!B113 -> sens3 | C116: =Assumptions!C113 -> Total benefits 10% higher | D116: =Assumptions!G113 -> 0 | E116: =Assumptions!H113 -> 0.1 | G116: Option 1 (Base Case)sens3 | I116: =I$110+IF($C116<>0,SUMPRODUCT((I$111:I$112)*TRANSPOSE(($D116:$E116))),0) -> 0 | J116: =J$110+IF($C116<>0,SUMPRODUCT((J$111:J$112)*TRANSPOSE(($D116:$E116))),0) -> 0 | K116: =K$110+IF($C116<>0,SUMPRODUCT((K$111:K$112)*TRANSPOSE(($D116:$E116))),0) -> 0 | L116: =L$110+IF($C116<>0,SUMPRODUCT((L$111:L$112)*TRANSPOSE(($D116:$E116))),0) -> 0 | M116: =M$110+IF($C116<>0,SUMPRODUCT((M$111:M$112)*TRANSPOSE(($D116:$E116))),0) -> 0 | N116: =N$110+IF($C116<>0,SUMPRODUCT((N$111:N$112)*TRANSPOSE(($D116:$E116))),0) -> 0 | O116: =O$110+IF($C116<>0,SUMPRODUCT((O$111:O$112)*TRANSPOSE(($D116:$E116))),0) -> 0 | P116: =P$110+IF($C116<>0,SUMPRODUCT((P$111:P$112)*TRANSPOSE(($D116:$E116))),0) -> 0 | Q116: =Q$110+IF($C116<>0,SUMPRODUCT((Q$111:Q$112)*TRANSPOSE(($D116:$E116))),0) -> 0 | R116: =R$110+IF($C116<>0,SUMPRODUCT((R$111:R$112)*TRANSPOSE(($D116:$E116))),0) -> 0 | S116: =S$110+IF($C116<>0,SUMPRODUCT((S$111:S$112)*TRANSPOSE(($D116:$E116))),0) -> 0 | T116: =T$110+IF($C116<>0,SUMPRODUCT((T$111:T$112)*TRANSPOSE(($D116:$E116))),0) -> 0 | U116: =U$110+IF($C116<>0,SUMPRODUCT((U$111:U$112)*TRANSPOSE(($D116:$E116))),0) -> 0 | V116: =V$110+IF($C116<>0,SUMPRODUCT((V$111:V$112)*TRANSPOSE(($D116:$E116))),0) -> 0 | W116: =W$110+IF($C116<>0,SUMPRODUCT((W$111:W$112)*TRANSPOSE(($D116:$E116))),0) -> 0 | X116: =X$110+IF($C116<>0,SUMPRODUCT((X$111:X$112)*TRANSPOSE(($D116:$E116))),0) -> 0 | Y116: =Y$110+IF($C116<>0,SUMPRODUCT((Y$111:Y$112)*TRANSPOSE(($D116:$E116))),0) -> 0 | Z116: =Z$110+IF($C116<>0,SUMPRODUCT((Z$111:Z$112)*TRANSPOSE(($D116:$E116))),0) -> 0 | AA116: =AA$110+IF($C116<>0,SUMPRODUCT((AA$111:AA$112)*TRANSPOSE(($D116:$E116))),0) -> 0 | AB116: =AB$110+IF($C116<>0,SUMPRODUCT((AB$111:AB$112)*TRANSPOSE(($D116:$E116))),0) -> 0 | AC116: =AC$110+IF($C116<>0,SUMPRODUCT((AC$111:AC$112)*TRANSPOSE(($D116:$E116))),0) -> 0 | AD116: =AD$110+IF($C116<>0,SUMPRODUCT((AD$111:AD$112)*TRANSPOSE(($D116:$E116))),0) -> 0 | AE116: =AE$110+IF($C116<>0,SUMPRODUCT((AE$111:AE$112)*TRANSPOSE(($D116:$E116))),0) -> 0 | AF116: =AF$110+IF($C116<>0,SUMPRODUCT((AF$111:AF$112)*TRANSPOSE(($D116:$E116))),0) -> 0 | AG116: =AG$110+IF($C116<>0,SUMPRODUCT((AG$111:AG$112)*TRANSPOSE(($D116:$E116))),0) -> 0
A117: ="sens"&Assumptions!B114 -> sens4 | C117: =Assumptions!C114 -> Total benefits 10% lower | D117: =Assumptions!G114 -> 0 | E117: =Assumptions!H114 -> -0.1 | G117: Option 1 (Base Case)sens4 | I117: =I$110+IF($C117<>0,SUMPRODUCT((I$111:I$112)*TRANSPOSE(($D117:$E117))),0) -> 0 | J117: =J$110+IF($C117<>0,SUMPRODUCT((J$111:J$112)*TRANSPOSE(($D117:$E117))),0) -> 0 | K117: =K$110+IF($C117<>0,SUMPRODUCT((K$111:K$112)*TRANSPOSE(($D117:$E117))),0) -> 0 | L117: =L$110+IF($C117<>0,SUMPRODUCT((L$111:L$112)*TRANSPOSE(($D117:$E117))),0) -> 0 | M117: =M$110+IF($C117<>0,SUMPRODUCT((M$111:M$112)*TRANSPOSE(($D117:$E117))),0) -> 0 | N117: =N$110+IF($C117<>0,SUMPRODUCT((N$111:N$112)*TRANSPOSE(($D117:$E117))),0) -> 0 | O117: =O$110+IF($C117<>0,SUMPRODUCT((O$111:O$112)*TRANSPOSE(($D117:$E117))),0) -> 0 | P117: =P$110+IF($C117<>0,SUMPRODUCT((P$111:P$112)*TRANSPOSE(($D117:$E117))),0) -> 0 | Q117: =Q$110+IF($C117<>0,SUMPRODUCT((Q$111:Q$112)*TRANSPOSE(($D117:$E117))),0) -> 0 | R117: =R$110+IF($C117<>0,SUMPRODUCT((R$111:R$112)*TRANSPOSE(($D117:$E117))),0) -> 0 | S117: =S$110+IF($C117<>0,SUMPRODUCT((S$111:S$112)*TRANSPOSE(($D117:$E117))),0) -> 0 | T117: =T$110+IF($C117<>0,SUMPRODUCT((T$111:T$112)*TRANSPOSE(($D117:$E117))),0) -> 0 | U117: =U$110+IF($C117<>0,SUMPRODUCT((U$111:U$112)*TRANSPOSE(($D117:$E117))),0) -> 0 | V117: =V$110+IF($C117<>0,SUMPRODUCT((V$111:V$112)*TRANSPOSE(($D117:$E117))),0) -> 0 | W117: =W$110+IF($C117<>0,SUMPRODUCT((W$111:W$112)*TRANSPOSE(($D117:$E117))),0) -> 0 | X117: =X$110+IF($C117<>0,SUMPRODUCT((X$111:X$112)*TRANSPOSE(($D117:$E117))),0) -> 0 | Y117: =Y$110+IF($C117<>0,SUMPRODUCT((Y$111:Y$112)*TRANSPOSE(($D117:$E117))),0) -> 0 | Z117: =Z$110+IF($C117<>0,SUMPRODUCT((Z$111:Z$112)*TRANSPOSE(($D117:$E117))),0) -> 0 | AA117: =AA$110+IF($C117<>0,SUMPRODUCT((AA$111:AA$112)*TRANSPOSE(($D117:$E117))),0) -> 0 | AB117: =AB$110+IF($C117<>0,SUMPRODUCT((AB$111:AB$112)*TRANSPOSE(($D117:$E117))),0) -> 0 | AC117: =AC$110+IF($C117<>0,SUMPRODUCT((AC$111:AC$112)*TRANSPOSE(($D117:$E117))),0) -> 0 | AD117: =AD$110+IF($C117<>0,SUMPRODUCT((AD$111:AD$112)*TRANSPOSE(($D117:$E117))),0) -> 0 | AE117: =AE$110+IF($C117<>0,SUMPRODUCT((AE$111:AE$112)*TRANSPOSE(($D117:$E117))),0) -> 0 | AF117: =AF$110+IF($C117<>0,SUMPRODUCT((AF$111:AF$112)*TRANSPOSE(($D117:$E117))),0) -> 0 | AG117: =AG$110+IF($C117<>0,SUMPRODUCT((AG$111:AG$112)*TRANSPOSE(($D117:$E117))),0) -> 0
A118: ="sens"&Assumptions!B115 -> sens5 | C118: =Assumptions!C115 -> Capex 10% higher & Total benefits 10% lower | D118: =Assumptions!G115 -> 0.1 | E118: =Assumptions!H115 -> -0.1 | G118: Option 1 (Base Case)sens5 | I118: =I$110+IF($C118<>0,SUMPRODUCT((I$111:I$112)*TRANSPOSE(($D118:$E118))),0) -> 0 | J118: =J$110+IF($C118<>0,SUMPRODUCT((J$111:J$112)*TRANSPOSE(($D118:$E118))),0) -> 0 | K118: =K$110+IF($C118<>0,SUMPRODUCT((K$111:K$112)*TRANSPOSE(($D118:$E118))),0) -> 0 | L118: =L$110+IF($C118<>0,SUMPRODUCT((L$111:L$112)*TRANSPOSE(($D118:$E118))),0) -> 0 | M118: =M$110+IF($C118<>0,SUMPRODUCT((M$111:M$112)*TRANSPOSE(($D118:$E118))),0) -> 0 | N118: =N$110+IF($C118<>0,SUMPRODUCT((N$111:N$112)*TRANSPOSE(($D118:$E118))),0) -> 0 | O118: =O$110+IF($C118<>0,SUMPRODUCT((O$111:O$112)*TRANSPOSE(($D118:$E118))),0) -> 0 | P118: =P$110+IF($C118<>0,SUMPRODUCT((P$111:P$112)*TRANSPOSE(($D118:$E118))),0) -> 0 | Q118: =Q$110+IF($C118<>0,SUMPRODUCT((Q$111:Q$112)*TRANSPOSE(($D118:$E118))),0) -> 0 | R118: =R$110+IF($C118<>0,SUMPRODUCT((R$111:R$112)*TRANSPOSE(($D118:$E118))),0) -> 0 | S118: =S$110+IF($C118<>0,SUMPRODUCT((S$111:S$112)*TRANSPOSE(($D118:$E118))),0) -> 0 | T118: =T$110+IF($C118<>0,SUMPRODUCT((T$111:T$112)*TRANSPOSE(($D118:$E118))),0) -> 0 | U118: =U$110+IF($C118<>0,SUMPRODUCT((U$111:U$112)*TRANSPOSE(($D118:$E118))),0) -> 0 | V118: =V$110+IF($C118<>0,SUMPRODUCT((V$111:V$112)*TRANSPOSE(($D118:$E118))),0) -> 0 | W118: =W$110+IF($C118<>0,SUMPRODUCT((W$111:W$112)*TRANSPOSE(($D118:$E118))),0) -> 0 | X118: =X$110+IF($C118<>0,SUMPRODUCT((X$111:X$112)*TRANSPOSE(($D118:$E118))),0) -> 0 | Y118: =Y$110+IF($C118<>0,SUMPRODUCT((Y$111:Y$112)*TRANSPOSE(($D118:$E118))),0) -> 0 | Z118: =Z$110+IF($C118<>0,SUMPRODUCT((Z$111:Z$112)*TRANSPOSE(($D118:$E118))),0) -> 0 | AA118: =AA$110+IF($C118<>0,SUMPRODUCT((AA$111:AA$112)*TRANSPOSE(($D118:$E118))),0) -> 0 | AB118: =AB$110+IF($C118<>0,SUMPRODUCT((AB$111:AB$112)*TRANSPOSE(($D118:$E118))),0) -> 0 | AC118: =AC$110+IF($C118<>0,SUMPRODUCT((AC$111:AC$112)*TRANSPOSE(($D118:$E118))),0) -> 0 | AD118: =AD$110+IF($C118<>0,SUMPRODUCT((AD$111:AD$112)*TRANSPOSE(($D118:$E118))),0) -> 0 | AE118: =AE$110+IF($C118<>0,SUMPRODUCT((AE$111:AE$112)*TRANSPOSE(($D118:$E118))),0) -> 0 | AF118: =AF$110+IF($C118<>0,SUMPRODUCT((AF$111:AF$112)*TRANSPOSE(($D118:$E118))),0) -> 0 | AG118: =AG$110+IF($C118<>0,SUMPRODUCT((AG$111:AG$112)*TRANSPOSE(($D118:$E118))),0) -> 0
A119: ="sens"&Assumptions!B116 -> sens | C119: =Assumptions!C116 -> 0 | D119: =Assumptions!G116 -> 0 | E119: =Assumptions!H116 -> 0 | G119: Option 1 (Base Case)sens | I119: =I$110+IF($C119<>0,SUMPRODUCT((I$111:I$112)*TRANSPOSE(($D119:$E119))),0) -> 0 | J119: =J$110+IF($C119<>0,SUMPRODUCT((J$111:J$112)*TRANSPOSE(($D119:$E119))),0) -> 0 | K119: =K$110+IF($C119<>0,SUMPRODUCT((K$111:K$112)*TRANSPOSE(($D119:$E119))),0) -> 0 | L119: =L$110+IF($C119<>0,SUMPRODUCT((L$111:L$112)*TRANSPOSE(($D119:$E119))),0) -> 0 | M119: =M$110+IF($C119<>0,SUMPRODUCT((M$111:M$112)*TRANSPOSE(($D119:$E119))),0) -> 0 | N119: =N$110+IF($C119<>0,SUMPRODUCT((N$111:N$112)*TRANSPOSE(($D119:$E119))),0) -> 0 | O119: =O$110+IF($C119<>0,SUMPRODUCT((O$111:O$112)*TRANSPOSE(($D119:$E119))),0) -> 0 | P119: =P$110+IF($C119<>0,SUMPRODUCT((P$111:P$112)*TRANSPOSE(($D119:$E119))),0) -> 0 | Q119: =Q$110+IF($C119<>0,SUMPRODUCT((Q$111:Q$112)*TRANSPOSE(($D119:$E119))),0) -> 0 | R119: =R$110+IF($C119<>0,SUMPRODUCT((R$111:R$112)*TRANSPOSE(($D119:$E119))),0) -> 0 | S119: =S$110+IF($C119<>0,SUMPRODUCT((S$111:S$112)*TRANSPOSE(($D119:$E119))),0) -> 0 | T119: =T$110+IF($C119<>0,SUMPRODUCT((T$111:T$112)*TRANSPOSE(($D119:$E119))),0) -> 0 | U119: =U$110+IF($C119<>0,SUMPRODUCT((U$111:U$112)*TRANSPOSE(($D119:$E119))),0) -> 0 | V119: =V$110+IF($C119<>0,SUMPRODUCT((V$111:V$112)*TRANSPOSE(($D119:$E119))),0) -> 0 | W119: =W$110+IF($C119<>0,SUMPRODUCT((W$111:W$112)*TRANSPOSE(($D119:$E119))),0) -> 0 | X119: =X$110+IF($C119<>0,SUMPRODUCT((X$111:X$112)*TRANSPOSE(($D119:$E119))),0) -> 0 | Y119: =Y$110+IF($C119<>0,SUMPRODUCT((Y$111:Y$112)*TRANSPOSE(($D119:$E119))),0) -> 0 | Z119: =Z$110+IF($C119<>0,SUMPRODUCT((Z$111:Z$112)*TRANSPOSE(($D119:$E119))),0) -> 0 | AA119: =AA$110+IF($C119<>0,SUMPRODUCT((AA$111:AA$112)*TRANSPOSE(($D119:$E119))),0) -> 0 | AB119: =AB$110+IF($C119<>0,SUMPRODUCT((AB$111:AB$112)*TRANSPOSE(($D119:$E119))),0) -> 0 | AC119: =AC$110+IF($C119<>0,SUMPRODUCT((AC$111:AC$112)*TRANSPOSE(($D119:$E119))),0) -> 0 | AD119: =AD$110+IF($C119<>0,SUMPRODUCT((AD$111:AD$112)*TRANSPOSE(($D119:$E119))),0) -> 0 | AE119: =AE$110+IF($C119<>0,SUMPRODUCT((AE$111:AE$112)*TRANSPOSE(($D119:$E119))),0) -> 0 | AF119: =AF$110+IF($C119<>0,SUMPRODUCT((AF$111:AF$112)*TRANSPOSE(($D119:$E119))),0) -> 0 | AG119: =AG$110+IF($C119<>0,SUMPRODUCT((AG$111:AG$112)*TRANSPOSE(($D119:$E119))),0) -> 0
A120: ="sens"&Assumptions!B117 -> sens | C120: =Assumptions!C117 -> 0 | D120: =Assumptions!G117 -> 0 | E120: =Assumptions!H117 -> 0 | G120: Option 1 (Base Case)sens | I120: =I$110+IF($C120<>0,SUMPRODUCT((I$111:I$112)*TRANSPOSE(($D120:$E120))),0) -> 0 | J120: =J$110+IF($C120<>0,SUMPRODUCT((J$111:J$112)*TRANSPOSE(($D120:$E120))),0) -> 0 | K120: =K$110+IF($C120<>0,SUMPRODUCT((K$111:K$112)*TRANSPOSE(($D120:$E120))),0) -> 0 | L120: =L$110+IF($C120<>0,SUMPRODUCT((L$111:L$112)*TRANSPOSE(($D120:$E120))),0) -> 0 | M120: =M$110+IF($C120<>0,SUMPRODUCT((M$111:M$112)*TRANSPOSE(($D120:$E120))),0) -> 0 | N120: =N$110+IF($C120<>0,SUMPRODUCT((N$111:N$112)*TRANSPOSE(($D120:$E120))),0) -> 0 | O120: =O$110+IF($C120<>0,SUMPRODUCT((O$111:O$112)*TRANSPOSE(($D120:$E120))),0) -> 0 | P120: =P$110+IF($C120<>0,SUMPRODUCT((P$111:P$112)*TRANSPOSE(($D120:$E120))),0) -> 0 | Q120: =Q$110+IF($C120<>0,SUMPRODUCT((Q$111:Q$112)*TRANSPOSE(($D120:$E120))),0) -> 0 | R120: =R$110+IF($C120<>0,SUMPRODUCT((R$111:R$112)*TRANSPOSE(($D120:$E120))),0) -> 0 | S120: =S$110+IF($C120<>0,SUMPRODUCT((S$111:S$112)*TRANSPOSE(($D120:$E120))),0) -> 0 | T120: =T$110+IF($C120<>0,SUMPRODUCT((T$111:T$112)*TRANSPOSE(($D120:$E120))),0) -> 0 | U120: =U$110+IF($C120<>0,SUMPRODUCT((U$111:U$112)*TRANSPOSE(($D120:$E120))),0) -> 0 | V120: =V$110+IF($C120<>0,SUMPRODUCT((V$111:V$112)*TRANSPOSE(($D120:$E120))),0) -> 0 | W120: =W$110+IF($C120<>0,SUMPRODUCT((W$111:W$112)*TRANSPOSE(($D120:$E120))),0) -> 0 | X120: =X$110+IF($C120<>0,SUMPRODUCT((X$111:X$112)*TRANSPOSE(($D120:$E120))),0) -> 0 | Y120: =Y$110+IF($C120<>0,SUMPRODUCT((Y$111:Y$112)*TRANSPOSE(($D120:$E120))),0) -> 0 | Z120: =Z$110+IF($C120<>0,SUMPRODUCT((Z$111:Z$112)*TRANSPOSE(($D120:$E120))),0) -> 0 | AA120: =AA$110+IF($C120<>0,SUMPRODUCT((AA$111:AA$112)*TRANSPOSE(($D120:$E120))),0) -> 0 | AB120: =AB$110+IF($C120<>0,SUMPRODUCT((AB$111:AB$112)*TRANSPOSE(($D120:$E120))),0) -> 0 | AC120: =AC$110+IF($C120<>0,SUMPRODUCT((AC$111:AC$112)*TRANSPOSE(($D120:$E120))),0) -> 0 | AD120: =AD$110+IF($C120<>0,SUMPRODUCT((AD$111:AD$112)*TRANSPOSE(($D120:$E120))),0) -> 0 | AE120: =AE$110+IF($C120<>0,SUMPRODUCT((AE$111:AE$112)*TRANSPOSE(($D120:$E120))),0) -> 0 | AF120: =AF$110+IF($C120<>0,SUMPRODUCT((AF$111:AF$112)*TRANSPOSE(($D120:$E120))),0) -> 0 | AG120: =AG$110+IF($C120<>0,SUMPRODUCT((AG$111:AG$112)*TRANSPOSE(($D120:$E120))),0) -> 0
A121: ="sens"&Assumptions!B118 -> sens | C121: =Assumptions!C118 -> 0 | D121: =Assumptions!G118 -> 0 | E121: =Assumptions!H118 -> 0 | G121: Option 1 (Base Case)sens | I121: =I$110+IF($C121<>0,SUMPRODUCT((I$111:I$112)*TRANSPOSE(($D121:$E121))),0) -> 0 | J121: =J$110+IF($C121<>0,SUMPRODUCT((J$111:J$112)*TRANSPOSE(($D121:$E121))),0) -> 0 | K121: =K$110+IF($C121<>0,SUMPRODUCT((K$111:K$112)*TRANSPOSE(($D121:$E121))),0) -> 0 | L121: =L$110+IF($C121<>0,SUMPRODUCT((L$111:L$112)*TRANSPOSE(($D121:$E121))),0) -> 0 | M121: =M$110+IF($C121<>0,SUMPRODUCT((M$111:M$112)*TRANSPOSE(($D121:$E121))),0) -> 0 | N121: =N$110+IF($C121<>0,SUMPRODUCT((N$111:N$112)*TRANSPOSE(($D121:$E121))),0) -> 0 | O121: =O$110+IF($C121<>0,SUMPRODUCT((O$111:O$112)*TRANSPOSE(($D121:$E121))),0) -> 0 | P121: =P$110+IF($C121<>0,SUMPRODUCT((P$111:P$112)*TRANSPOSE(($D121:$E121))),0) -> 0 | Q121: =Q$110+IF($C121<>0,SUMPRODUCT((Q$111:Q$112)*TRANSPOSE(($D121:$E121))),0) -> 0 | R121: =R$110+IF($C121<>0,SUMPRODUCT((R$111:R$112)*TRANSPOSE(($D121:$E121))),0) -> 0 | S121: =S$110+IF($C121<>0,SUMPRODUCT((S$111:S$112)*TRANSPOSE(($D121:$E121))),0) -> 0 | T121: =T$110+IF($C121<>0,SUMPRODUCT((T$111:T$112)*TRANSPOSE(($D121:$E121))),0) -> 0 | U121: =U$110+IF($C121<>0,SUMPRODUCT((U$111:U$112)*TRANSPOSE(($D121:$E121))),0) -> 0 | V121: =V$110+IF($C121<>0,SUMPRODUCT((V$111:V$112)*TRANSPOSE(($D121:$E121))),0) -> 0 | W121: =W$110+IF($C121<>0,SUMPRODUCT((W$111:W$112)*TRANSPOSE(($D121:$E121))),0) -> 0 | X121: =X$110+IF($C121<>0,SUMPRODUCT((X$111:X$112)*TRANSPOSE(($D121:$E121))),0) -> 0 | Y121: =Y$110+IF($C121<>0,SUMPRODUCT((Y$111:Y$112)*TRANSPOSE(($D121:$E121))),0) -> 0 | Z121: =Z$110+IF($C121<>0,SUMPRODUCT((Z$111:Z$112)*TRANSPOSE(($D121:$E121))),0) -> 0 | AA121: =AA$110+IF($C121<>0,SUMPRODUCT((AA$111:AA$112)*TRANSPOSE(($D121:$E121))),0) -> 0 | AB121: =AB$110+IF($C121<>0,SUMPRODUCT((AB$111:AB$112)*TRANSPOSE(($D121:$E121))),0) -> 0 | AC121: =AC$110+IF($C121<>0,SUMPRODUCT((AC$111:AC$112)*TRANSPOSE(($D121:$E121))),0) -> 0 | AD121: =AD$110+IF($C121<>0,SUMPRODUCT((AD$111:AD$112)*TRANSPOSE(($D121:$E121))),0) -> 0 | AE121: =AE$110+IF($C121<>0,SUMPRODUCT((AE$111:AE$112)*TRANSPOSE(($D121:$E121))),0) -> 0 | AF121: =AF$110+IF($C121<>0,SUMPRODUCT((AF$111:AF$112)*TRANSPOSE(($D121:$E121))),0) -> 0 | AG121: =AG$110+IF($C121<>0,SUMPRODUCT((AG$111:AG$112)*TRANSPOSE(($D121:$E121))),0) -> 0

Sheet Option2
A1: =bus -> CitiPower
A2: =proj -> Bouverie Queensberry supply area
A3: OPTION 2 | C3: =INDEX(Assumptions!$E$14:$E$18, MATCH(A3,_xlfn.ANCHORARRAY( Assumptions!$C$14),0)) -> Install a third transformer at BQ and offload VM to BQ
A4: =(INDEX(Data!$D$9:$D$13, MATCH(A3, options,0))) -> 
A6: ='Option1 (base case)'!A6 -> Count | I6: ='Option1 (base case)'!I6 -> 1 | J6: ='Option1 (base case)'!J6 -> 2 | K6: ='Option1 (base case)'!K6 -> 3 | L6: ='Option1 (base case)'!L6 -> 4 | M6: ='Option1 (base case)'!M6 -> 5 | N6: ='Option1 (base case)'!N6 -> 6 | O6: ='Option1 (base case)'!O6 -> 7 | P6: ='Option1 (base case)'!P6 -> 8 | Q6: ='Option1 (base case)'!Q6 -> 9 | R6: ='Option1 (base case)'!R6 -> 10 | S6: ='Option1 (base case)'!S6 -> 11 | T6: ='Option1 (base case)'!T6 -> 12 | U6: ='Option1 (base case)'!U6 -> 13 | V6: ='Option1 (base case)'!V6 -> 14 | W6: ='Option1 (base case)'!W6 -> 15 | X6: ='Option1 (base case)'!X6 -> 16 | Y6: ='Option1 (base case)'!Y6 -> 17 | Z6: ='Option1 (base case)'!Z6 -> 18 | AA6: ='Option1 (base case)'!AA6 -> 19 | AB6: ='Option1 (base case)'!AB6 -> 20 | AC6: ='Option1 (base case)'!AC6 -> 21 | AD6: ='Option1 (base case)'!AD6 -> 22 | AE6: ='Option1 (base case)'!AE6 -> 23 | AF6: ='Option1 (base case)'!AF6 -> 24 | AG6: ='Option1 (base case)'!AG6 -> 25
A7: ='Option1 (base case)'!A7 -> Value of CO2 reductions | G7: $/MWh | I7: ='Option1 (base case)'!I7 -> 24.7304868 | J7: ='Option1 (base case)'!J7 -> 22.34074009 | K7: ='Option1 (base case)'!K7 -> 20.19632912 | L7: ='Option1 (base case)'!L7 -> 18.06294208 | M7: ='Option1 (base case)'!M7 -> 15.91339762 | N7: ='Option1 (base case)'!N7 -> 13.71506943 | O7: ='Option1 (base case)'!O7 -> 13.71506943 | P7: ='Option1 (base case)'!P7 -> 13.71506943 | Q7: ='Option1 (base case)'!Q7 -> 13.71506943 | R7: ='Option1 (base case)'!R7 -> 13.71506943 | S7: ='Option1 (base case)'!S7 -> 13.71506943 | T7: ='Option1 (base case)'!T7 -> 13.71506943 | U7: ='Option1 (base case)'!U7 -> 13.71506943 | V7: ='Option1 (base case)'!V7 -> 13.71506943 | W7: ='Option1 (base case)'!W7 -> 13.71506943 | X7: ='Option1 (base case)'!X7 -> 13.71506943 | Y7: ='Option1 (base case)'!Y7 -> 13.71506943 | Z7: ='Option1 (base case)'!Z7 -> 13.71506943 | AA7: ='Option1 (base case)'!AA7 -> 13.71506943 | AB7: ='Option1 (base case)'!AB7 -> 13.71506943 | AC7: ='Option1 (base case)'!AC7 -> 13.71506943 | AD7: ='Option1 (base case)'!AD7 -> 13.71506943 | AE7: ='Option1 (base case)'!AE7 -> 13.71506943 | AF7: ='Option1 (base case)'!AF7 -> 13.71506943 | AG7: ='Option1 (base case)'!AG7 -> 13.71506943
I8: =_xlfn.NUMBERVALUE(LEFT(I$9,4))+1 -> 2027 | J8: =_xlfn.NUMBERVALUE(LEFT(J$9,4))+1 -> 2028 | K8: 2029 | L8: 2030 | M8: 2031 | N8: 2032 | O8: 2033 | P8: 2034 | Q8: 2035 | R8: 2036 | S8: 2037 | T8: 2038 | U8: 2039 | V8: 2040 | W8: 2041 | X8: 2042 | Y8: 2043 | Z8: 2044 | AA8: 2045 | AB8: 2046 | AC8: 2047 | AD8: 2048 | AE8: 2049 | AF8: 2050 | AG8: 2051
G9: Units | I9: ='Option1 (base case)'!I9 -> 2026-27 | J9: ='Option1 (base case)'!J9 -> 2027-28 | K9: ='Option1 (base case)'!K9 -> 2028-29 | L9: ='Option1 (base case)'!L9 -> 2029-30 | M9: ='Option1 (base case)'!M9 -> 2030-31 | N9: ='Option1 (base case)'!N9 -> 2031-32 | O9: ='Option1 (base case)'!O9 -> 2032-33 | P9: ='Option1 (base case)'!P9 -> 2033-34 | Q9: ='Option1 (base case)'!Q9 -> 2034-35 | R9: ='Option1 (base case)'!R9 -> 2035-36 | S9: ='Option1 (base case)'!S9 -> 2036-37 | T9: ='Option1 (base case)'!T9 -> 2037-38 | U9: ='Option1 (base case)'!U9 -> 2038-39 | V9: ='Option1 (base case)'!V9 -> 2039-40 | W9: ='Option1 (base case)'!W9 -> 2040-41 | X9: ='Option1 (base case)'!X9 -> 2041-42 | Y9: ='Option1 (base case)'!Y9 -> 2042-43 | Z9: ='Option1 (base case)'!Z9 -> 2043-44 | AA9: ='Option1 (base case)'!AA9 -> 2044-45 | AB9: ='Option1 (base case)'!AB9 -> 2045-46 | AC9: ='Option1 (base case)'!AC9 -> 2046-47 | AD9: ='Option1 (base case)'!AD9 -> 2047-48 | AE9: ='Option1 (base case)'!AE9 -> 2048-49 | AF9: ='Option1 (base case)'!AF9 -> 2049-50 | AG9: ='Option1 (base case)'!AG9 -> 2050-51
A11: INVESTMENT & OPERATING COST
C13: Capex | E13: Asset life (yrs)
C14: Augment thermal rating of SK001 backbone | E14: 50 | G14: =input_dollars -> 2023-12-31 | I14: 9051294 | J14: 9051294 | K14: 0 | L14: 0 | M14: 0 | N14: 0 | O14: 0 | P14: 0 | Q14: 0 | R14: 0 | S14: 0 | T14: 0 | U14: 0 | V14: 0 | W14: 0 | X14: 0 | Y14: 0 | Z14: 0 | AA14: 0 | AB14: 0 | AC14: 0 | AD14: 0 | AE14: 0 | AF14: 0 | AG14: 0
E15: 0 | G15: =input_dollars -> 2023-12-31 | I15: 0 | J15: 0 | K15: 0 | L15: 0 | M15: 0 | N15: 0 | O15: 0 | P15: 0 | Q15: 0 | R15: 0 | S15: 0 | T15: 0 | U15: 0 | V15: 0 | W15: 0 | X15: 0 | Y15: 0 | Z15: 0 | AA15: 0 | AB15: 0 | AC15: 0 | AD15: 0 | AE15: 0 | AF15: 0 | AG15: 0
E16: 0 | G16: =input_dollars -> 2023-12-31 | I16: 0 | J16: 0 | K16: 0 | L16: 0 | M16: 0 | N16: 0 | O16: 0 | P16: 0 | Q16: 0 | R16: 0 | S16: 0 | T16: 0 | U16: 0 | V16: 0 | W16: 0 | X16: 0 | Y16: 0 | Z16: 0 | AA16: 0 | AB16: 0 | AC16: 0 | AD16: 0 | AE16: 0 | AF16: 0 | AG16: 0
C17: Capital expenditure | G17: =input_dollars -> 2023-12-31 | I17: =SUM(I14:I16) -> 9051294 | J17: 9051294 | K17: 0 | L17: 0 | M17: 0 | N17: 0 | O17: 0 | P17: 0 | Q17: 0 | R17: =SUM(R14:R16) -> 0 | S17: 0 | T17: 0 | U17: 0 | V17: 0 | W17: 0 | X17: 0 | Y17: 0 | Z17: 0 | AA17: 0 | AB17: 0 | AC17: 0 | AD17: 0 | AE17: 0 | AF17: 0 | AG17: 0
C19: Operating expenditure | G19: =input_dollars -> 2023-12-31 | I19: 0 | J19: 0 | K19: 0 | L19: 0 | M19: 0 | N19: 0 | O19: 0 | P19: 0 | Q19: 0 | R19: 0 | S19: 0 | T19: 0 | U19: 0 | V19: 0 | W19: 0 | X19: 0 | Y19: 0 | Z19: 0 | AA19: 0 | AB19: 0 | AC19: 0 | AD19: 0 | AE19: 0 | AF19: 0 | AG19: 0
A22: RISK ASSUMPTIONS
C24: PoF (major) | I24: 0 | J24: 0 | K24: 0 | L24: 0 | M24: 0 | N24: 0 | O24: 0 | P24: 0 | Q24: 0 | R24: 0 | S24: 0 | T24: 0 | U24: 0 | V24: 0 | W24: 0 | X24: 0 | Y24: 0 | Z24: 0 | AA24: 0 | AB24: 0 | AC24: 0 | AD24: 0 | AE24: 0 | AF24: 0 | AG24: 0
C25: PoF (reparable) | I25: 0 | J25: 0 | K25: 0 | L25: 0 | M25: 0 | N25: 0 | O25: 0 | P25: 0 | Q25: 0 | R25: 0 | S25: 0 | T25: 0 | U25: 0 | V25: 0 | W25: 0 | X25: 0 | Y25: 0 | Z25: 0 | AA25: 0 | AB25: 0 | AC25: 0 | AD25: 0 | AE25: 0 | AF25: 0 | AG25: 0
E27: 2028
C28: Energy at risk 10% PoE | E28: 0.3 | G28: MWh | I28: =_xlfn.IFS(I$8<=$E$27,'Option1 (base case)'!I$28,I$8>$E$27,SUM('EaR Opt2 VM'!I$15,'EaR Opt2 BQ'!I$15)) -> 4.145505979 | J28: =_xlfn.IFS(J$8<=$E$27,'Option1 (base case)'!J$28,J$8>$E$27,SUM('EaR Opt2 VM'!J$15,'EaR Opt2 BQ'!J$15)) -> 3.783998107 | K28: =_xlfn.IFS(K$8<=$E$27,'Option1 (base case)'!K$28,K$8>$E$27,SUM('EaR Opt2 VM'!K$15,'EaR Opt2 BQ'!K$15)) -> 0.05330431016 | L28: =_xlfn.IFS(L$8<=$E$27,'Option1 (base case)'!L$28,L$8>$E$27,SUM('EaR Opt2 VM'!L$15,'EaR Opt2 BQ'!L$15)) -> 0.04569767754 | M28: =_xlfn.IFS(M$8<=$E$27,'Option1 (base case)'!M$28,M$8>$E$27,SUM('EaR Opt2 VM'!M$15,'EaR Opt2 BQ'!M$15)) -> 0.05669080452 | N28: =_xlfn.IFS(N$8<=$E$27,'Option1 (base case)'!N$28,N$8>$E$27,SUM('EaR Opt2 VM'!N$15,'EaR Opt2 BQ'!N$15)) -> 0.08435212159 | O28: =_xlfn.IFS(O$8<=$E$27,'Option1 (base case)'!O$28,O$8>$E$27,SUM('EaR Opt2 VM'!O$15,'EaR Opt2 BQ'!O$15)) -> 0.1329783792 | P28: =_xlfn.IFS(P$8<=$E$27,'Option1 (base case)'!P$28,P$8>$E$27,SUM('EaR Opt2 VM'!P$15,'EaR Opt2 BQ'!P$15)) -> 0.1709786706 | Q28: =_xlfn.IFS(Q$8<=$E$27,'Option1 (base case)'!Q$28,Q$8>$E$27,SUM('EaR Opt2 VM'!Q$15,'EaR Opt2 BQ'!Q$15)) -> 0.1521928077 | R28: =_xlfn.IFS(R$8<=$E$27,'Option1 (base case)'!R$28,R$8>$E$27,SUM('EaR Opt2 VM'!R$15,'EaR Opt2 BQ'!R$15)) -> 0.1521928077 | S28: =_xlfn.IFS(S$8<=$E$27,'Option1 (base case)'!S$28,S$8>$E$27,SUM('EaR Opt2 VM'!S$15,'EaR Opt2 BQ'!S$15)) -> 0.1521928077 | T28: =_xlfn.IFS(T$8<=$E$27,'Option1 (base case)'!T$28,T$8>$E$27,SUM('EaR Opt2 VM'!T$15,'EaR Opt2 BQ'!T$15)) -> 0.1521928077 | U28: =_xlfn.IFS(U$8<=$E$27,'Option1 (base case)'!U$28,U$8>$E$27,SUM('EaR Opt2 VM'!U$15,'EaR Opt2 BQ'!U$15)) -> 0.1521928077 | V28: =_xlfn.IFS(V$8<=$E$27,'Option1 (base case)'!V$28,V$8>$E$27,SUM('EaR Opt2 VM'!V$15,'EaR Opt2 BQ'!V$15)) -> 0.1521928077 | W28: =_xlfn.IFS(W$8<=$E$27,'Option1 (base case)'!W$28,W$8>$E$27,SUM('EaR Opt2 VM'!W$15,'EaR Opt2 BQ'!W$15)) -> 0.1521928077 | X28: =_xlfn.IFS(X$8<=$E$27,'Option1 (base case)'!X$28,X$8>$E$27,SUM('EaR Opt2 VM'!X$15,'EaR Opt2 BQ'!X$15)) -> 0.1521928077 | Y28: =_xlfn.IFS(Y$8<=$E$27,'Option1 (base case)'!Y$28,Y$8>$E$27,SUM('EaR Opt2 VM'!Y$15,'EaR Opt2 BQ'!Y$15)) -> 0.1521928077 | Z28: =_xlfn.IFS(Z$8<=$E$27,'Option1 (base case)'!Z$28,Z$8>$E$27,SUM('EaR Opt2 VM'!Z$15,'EaR Opt2 BQ'!Z$15)) -> 0.1521928077 | AA28: =_xlfn.IFS(AA$8<=$E$27,'Option1 (base case)'!AA$28,AA$8>$E$27,SUM('EaR Opt2 VM'!AA$15,'EaR Opt2 BQ'!AA$15)) -> 0.1521928077 | AB28: =_xlfn.IFS(AB$8<=$E$27,'Option1 (base case)'!AB$28,AB$8>$E$27,SUM('EaR Opt2 VM'!AB$15,'EaR Opt2 BQ'!AB$15)) -> 0.1521928077 | AC28: =_xlfn.IFS(AC$8<=$E$27,'Option1 (base case)'!AC$28,AC$8>$E$27,SUM('EaR Opt2 VM'!AC$15,'EaR Opt2 BQ'!AC$15)) -> 0.1521928077 | AD28: =_xlfn.IFS(AD$8<=$E$27,'Option1 (base case)'!AD$28,AD$8>$E$27,SUM('EaR Opt2 VM'!AD$15,'EaR Opt2 BQ'!AD$15)) -> 0.1521928077 | AE28: =_xlfn.IFS(AE$8<=$E$27,'Option1 (base case)'!AE$28,AE$8>$E$27,SUM('EaR Opt2 VM'!AE$15,'EaR Opt2 BQ'!AE$15)) -> 0.1521928077 | AF28: =_xlfn.IFS(AF$8<=$E$27,'Option1 (base case)'!AF$28,AF$8>$E$27,SUM('EaR Opt2 VM'!AF$15,'EaR Opt2 BQ'!AF$15)) -> 0.1521928077 | AG28: =AF28 -> 0.1521928077
C29: Energy at risk 50% PoE | E29: 0.7 | G29: MWh | I29: =_xlfn.IFS(I$8<=$E$27,'Option1 (base case)'!I$29,I$8>$E$27,SUM('EaR Opt2 VM'!I$14,'EaR Opt2 BQ'!I$14)) -> 1.038089825 | J29: =_xlfn.IFS(J$8<=$E$27,'Option1 (base case)'!J$29,J$8>$E$27,SUM('EaR Opt2 VM'!J$14,'EaR Opt2 BQ'!J$14)) -> 0.9021775155 | K29: =_xlfn.IFS(K$8<=$E$27,'Option1 (base case)'!K$29,K$8>$E$27,SUM('EaR Opt2 VM'!K$14,'EaR Opt2 BQ'!K$14)) -> 0 | L29: =_xlfn.IFS(L$8<=$E$27,'Option1 (base case)'!L$29,L$8>$E$27,SUM('EaR Opt2 VM'!L$14,'EaR Opt2 BQ'!L$14)) -> 0 | M29: =_xlfn.IFS(M$8<=$E$27,'Option1 (base case)'!M$29,M$8>$E$27,SUM('EaR Opt2 VM'!M$14,'EaR Opt2 BQ'!M$14)) -> 0 | N29: =_xlfn.IFS(N$8<=$E$27,'Option1 (base case)'!N$29,N$8>$E$27,SUM('EaR Opt2 VM'!N$14,'EaR Opt2 BQ'!N$14)) -> 0 | O29: =_xlfn.IFS(O$8<=$E$27,'Option1 (base case)'!O$29,O$8>$E$27,SUM('EaR Opt2 VM'!O$14,'EaR Opt2 BQ'!O$14)) -> 0.0006455605359 | P29: =_xlfn.IFS(P$8<=$E$27,'Option1 (base case)'!P$29,P$8>$E$27,SUM('EaR Opt2 VM'!P$14,'EaR Opt2 BQ'!P$14)) -> 0.004509131853 | Q29: =_xlfn.IFS(Q$8<=$E$27,'Option1 (base case)'!Q$29,Q$8>$E$27,SUM('EaR Opt2 VM'!Q$14,'EaR Opt2 BQ'!Q$14)) -> 0.00228246796 | R29: =_xlfn.IFS(R$8<=$E$27,'Option1 (base case)'!R$29,R$8>$E$27,SUM('EaR Opt2 VM'!R$14,'EaR Opt2 BQ'!R$14)) -> 0.00228246796 | S29: =_xlfn.IFS(S$8<=$E$27,'Option1 (base case)'!S$29,S$8>$E$27,SUM('EaR Opt2 VM'!S$14,'EaR Opt2 BQ'!S$14)) -> 0.00228246796 | T29: =_xlfn.IFS(T$8<=$E$27,'Option1 (base case)'!T$29,T$8>$E$27,SUM('EaR Opt2 VM'!T$14,'EaR Opt2 BQ'!T$14)) -> 0.00228246796 | U29: =_xlfn.IFS(U$8<=$E$27,'Option1 (base case)'!U$29,U$8>$E$27,SUM('EaR Opt2 VM'!U$14,'EaR Opt2 BQ'!U$14)) -> 0.00228246796 | V29: =_xlfn.IFS(V$8<=$E$27,'Option1 (base case)'!V$29,V$8>$E$27,SUM('EaR Opt2 VM'!V$14,'EaR Opt2 BQ'!V$14)) -> 0.00228246796 | W29: =_xlfn.IFS(W$8<=$E$27,'Option1 (base case)'!W$29,W$8>$E$27,SUM('EaR Opt2 VM'!W$14,'EaR Opt2 BQ'!W$14)) -> 0.00228246796 | X29: =_xlfn.IFS(X$8<=$E$27,'Option1 (base case)'!X$29,X$8>$E$27,SUM('EaR Opt2 VM'!X$14,'EaR Opt2 BQ'!X$14)) -> 0.00228246796 | Y29: =_xlfn.IFS(Y$8<=$E$27,'Option1 (base case)'!Y$29,Y$8>$E$27,SUM('EaR Opt2 VM'!Y$14,'EaR Opt2 BQ'!Y$14)) -> 0.00228246796 | Z29: =_xlfn.IFS(Z$8<=$E$27,'Option1 (base case)'!Z$29,Z$8>$E$27,SUM('EaR Opt2 VM'!Z$14,'EaR Opt2 BQ'!Z$14)) -> 0.00228246796 | AA29: =_xlfn.IFS(AA$8<=$E$27,'Option1 (base case)'!AA$29,AA$8>$E$27,SUM('EaR Opt2 VM'!AA$14,'EaR Opt2 BQ'!AA$14)) -> 0.00228246796 | AB29: =_xlfn.IFS(AB$8<=$E$27,'Option1 (base case)'!AB$29,AB$8>$E$27,SUM('EaR Opt2 VM'!AB$14,'EaR Opt2 BQ'!AB$14)) -> 0.00228246796 | AC29: =_xlfn.IFS(AC$8<=$E$27,'Option1 (base case)'!AC$29,AC$8>$E$27,SUM('EaR Opt2 VM'!AC$14,'EaR Opt2 BQ'!AC$14)) -> 0.00228246796 | AD29: =_xlfn.IFS(AD$8<=$E$27,'Option1 (base case)'!AD$29,AD$8>$E$27,SUM('EaR Opt2 VM'!AD$14,'EaR Opt2 BQ'!AD$14)) -> 0.00228246796 | AE29: =_xlfn.IFS(AE$8<=$E$27,'Option1 (base case)'!AE$29,AE$8>$E$27,SUM('EaR Opt2 VM'!AE$14,'EaR Opt2 BQ'!AE$14)) -> 0.00228246796 | AF29: =_xlfn.IFS(AF$8<=$E$27,'Option1 (base case)'!AF$29,AF$8>$E$27,SUM('EaR Opt2 VM'!AF$14,'EaR Opt2 BQ'!AF$14)) -> 0.00228246796 | AG29: =AF29 -> 0.00228246796
C31: Energy at risk (weighted) | G31: MWh | I31: =SUMPRODUCT(I$28:I$29, $E$28:$E$29) -> 1.970314671 | J31: =SUMPRODUCT(J$28:J$29, $E$28:$E$29) -> 1.766723693 | K31: 0.01599129305 | L31: 0.01370930326 | M31: 0.01700724136 | N31: 0.02530563648 | O31: 0.04034540613 | P31: 0.05444999347 | Q31: 0.04725556989 | R31: 0.04725556989 | S31: 0.04725556989 | T31: 0.04725556989 | U31: 0.04725556989 | V31: 0.04725556989 | W31: 0.04725556989 | X31: 0.04725556989 | Y31: 0.04725556989 | Z31: 0.04725556989 | AA31: 0.04725556989 | AB31: 0.04725556989 | AC31: 0.04725556989 | AD31: 0.04725556989 | AE31: 0.04725556989 | AF31: 0.04725556989 | AG31: 0.04725556989
C32: Energy at risk value | D32: $/MWh | E32: =Assumptions!H41*vcr_esc -> 36935.21398 | F32: =IF(AND(SUM(I31:AG31)<>0, E32=0), "!", "") ->  | G32: =input_dollars -> 2023-12-31 | I32: =I31*$E$32 -> 72773.99399 | J32: =J31*$E$32 -> 65254.31764 | K32: 590.6418305 | L32: 506.3560495 | M32: 628.1660987 | N32: 934.6690981 | O32: 1490.166208 | P32: 2011.12216 | Q32: 1745.394585 | R32: 1745.394585 | S32: 1745.394585 | T32: 1745.394585 | U32: 1745.394585 | V32: 1745.394585 | W32: 1745.394585 | X32: 1745.394585 | Y32: 1745.394585 | Z32: 1745.394585 | AA32: 1745.394585 | AB32: 1745.394585 | AC32: 1745.394585 | AD32: 1745.394585 | AE32: 1745.394585 | AF32: 1745.394585 | AG32: 1745.394585
C34: Safety consequence | D34: (after DF) | G34: =input_dollars -> 2023-12-31 | I34: 0 | J34: 0 | K34: 0 | L34: 0 | M34: 0 | N34: 0 | O34: 0 | P34: 0 | Q34: 0 | R34: 0 | S34: 0 | T34: 0 | U34: 0 | V34: 0 | W34: 0 | X34: 0 | Y34: 0 | Z34: 0 | AA34: 0 | AB34: 0 | AC34: 0 | AD34: 0 | AE34: 0 | AF34: 0 | AG34: 0
C35: Unplanned replacements | G35: =input_dollars -> 2023-12-31 | I35: 0 | J35: 0 | K35: 0 | L35: 0 | M35: 0 | N35: 0 | O35: 0 | P35: 0 | Q35: 0 | R35: 0 | S35: 0 | T35: 0 | U35: 0 | V35: 0 | W35: 0 | X35: 0 | Y35: 0 | Z35: 0 | AA35: 0 | AB35: 0 | AC35: 0 | AD35: 0 | AE35: 0 | AF35: 0 | AG35: 0
C36: Environmental consequence | D36: (after DF) | G36: =input_dollars -> 2023-12-31 | I36: 0 | J36: 0 | K36: 0 | L36: 0 | M36: 0 | N36: 0 | O36: 0 | P36: 0 | Q36: 0 | R36: 0 | S36: 0 | T36: 0 | U36: 0 | V36: 0 | W36: 0 | X36: 0 | Y36: 0 | Z36: 0 | AA36: 0 | AB36: 0 | AC36: 0 | AD36: 0 | AE36: 0 | AF36: 0 | AG36: 0
C37: < Other risk - enter description > | G37: =input_dollars -> 2023-12-31 | I37: 0 | J37: 0 | K37: 0 | L37: 0 | M37: 0 | N37: 0 | O37: 0 | P37: 0 | Q37: 0 | R37: 0 | S37: 0 | T37: 0 | U37: 0 | V37: 0 | W37: 0 | X37: 0 | Y37: 0 | Z37: 0 | AA37: 0 | AB37: 0 | AC37: 0 | AD37: 0 | AE37: 0 | AF37: 0 | AG37: 0
C38: < Other risk - enter description > | G38: =input_dollars -> 2023-12-31 | I38: 0 | J38: 0 | K38: 0 | L38: 0 | M38: 0 | N38: 0 | O38: 0 | P38: 0 | Q38: 0 | R38: 0 | S38: 0 | T38: 0 | U38: 0 | V38: 0 | W38: 0 | X38: 0 | Y38: 0 | Z38: 0 | AA38: 0 | AB38: 0 | AC38: 0 | AD38: 0 | AE38: 0 | AF38: 0 | AG38: 0
C40: Total risk cost | I40: =SUM(I32:I38) -> 72773.99399 | J40: =SUM(J32:J38) -> 65254.31764 | K40: 590.6418305 | L40: 506.3560495 | M40: 628.1660987 | N40: 934.6690981 | O40: 1490.166208 | P40: 2011.12216 | Q40: 1745.394585 | R40: 1745.394585 | S40: 1745.394585 | T40: 1745.394585 | U40: 1745.394585 | V40: 1745.394585 | W40: 1745.394585 | X40: 1745.394585 | Y40: 1745.394585 | Z40: 1745.394585 | AA40: 1745.394585 | AB40: 1745.394585 | AC40: 1745.394585 | AD40: 1745.394585 | AE40: 1745.394585 | AF40: 1745.394585 | AG40: 1745.394585
A42: OTHER BENEFITS
C45: Reduction in CO2 emissions | G45: MWh | I45: 0 | J45: 0 | K45: 0 | L45: 0 | M45: 0 | N45: 0 | O45: 0 | P45: 0 | Q45: 0 | R45: 0 | S45: 0 | T45: 0 | U45: 0 | V45: 0 | W45: 0 | X45: 0 | Y45: 0 | Z45: 0 | AA45: 0 | AB45: 0 | AC45: 0 | AD45: 0 | AE45: 0 | AF45: 0 | AG45: 0
C46: Value of reduction in CO2 emissions | G46: $ | I46: =I45*I7 -> 0 | J46: 0 | K46: 0 | L46: 0 | M46: 0 | N46: 0 | O46: 0 | P46: 0 | Q46: 0 | R46: 0 | S46: 0 | T46: 0 | U46: 0 | V46: 0 | W46: 0 | X46: 0 | Y46: 0 | Z46: 0 | AA46: 0 | AB46: 0 | AC46: 0 | AD46: 0 | AE46: 0 | AF46: 0 | AG46: 0
C49: Reliability in worst-served areas | D49: $/MWh | E49: =Assumptions!G94 -> 0 | G49: MWh | I49: 0 | J49: 0 | K49: 0 | L49: 0 | M49: 0 | N49: 0 | O49: 0 | P49: 0 | Q49: 0 | R49: 0 | S49: 0 | T49: 0 | U49: 0 | V49: 0 | W49: 0 | X49: 0 | Y49: 0 | Z49: 0 | AA49: 0 | AB49: 0 | AC49: 0 | AD49: 0 | AE49: 0 | AF49: 0 | AG49: 0
C50: Network resilience | D50: $/MWh | E50: =Assumptions!G95 -> 0 | G50: MWh | I50: 0 | J50: 0 | K50: 0 | L50: 0 | M50: 0 | N50: 0 | O50: 0 | P50: 0 | Q50: 0 | R50: 0 | S50: 0 | T50: 0 | U50: 0 | V50: 0 | W50: 0 | X50: 0 | Y50: 0 | Z50: 0 | AA50: 0 | AB50: 0 | AC50: 0 | AD50: 0 | AE50: 0 | AF50: 0 | AG50: 0
C51: Enabling solar exports | D51: $/MWh | E51: =Assumptions!G96 -> 4220.99537 | G51: MWh | I51: 0 | J51: 0 | K51: 0 | L51: 0 | M51: 0 | N51: 0 | O51: 0 | P51: 0 | Q51: 0 | R51: 0 | S51: 0 | T51: 0 | U51: 0 | V51: 0 | W51: 0 | X51: 0 | Y51: 0 | Z51: 0 | AA51: 0 | AB51: 0 | AC51: 0 | AD51: 0 | AE51: 0 | AF51: 0 | AG51: 0
C52: Aesthetics | D52: $/customer | E52: =Assumptions!G97 -> 0 | G52: customers | I52: 0 | J52: 0 | K52: 0 | L52: 0 | M52: 0 | N52: 0 | O52: 0 | P52: 0 | Q52: 0 | R52: 0 | S52: 0 | T52: 0 | U52: 0 | V52: 0 | W52: 0 | X52: 0 | Y52: 0 | Z52: 0 | AA52: 0 | AB52: 0 | AC52: 0 | AD52: 0 | AE52: 0 | AF52: 0 | AG52: 0
C53: Customer value of time - residential | D53: $/customer min | E53: =Assumptions!G98 -> 0.5476938068 | G53: mins | I53: 0 | J53: 0 | K53: 0 | L53: 0 | M53: 0 | N53: 0 | O53: 0 | P53: 0 | Q53: 0 | R53: 0 | S53: 0 | T53: 0 | U53: 0 | V53: 0 | W53: 0 | X53: 0 | Y53: 0 | Z53: 0 | AA53: 0 | AB53: 0 | AC53: 0 | AD53: 0 | AE53: 0 | AF53: 0 | AG53: 0
C54: Customer value of time - business | D54: $/customer min | E54: =Assumptions!G99 -> 0.5476938068 | G54: mins | I54: 0 | J54: 0 | K54: 0 | L54: 0 | M54: 0 | N54: 0 | O54: 0 | P54: 0 | Q54: 0 | R54: 0 | S54: 0 | T54: 0 | U54: 0 | V54: 0 | W54: 0 | X54: 0 | Y54: 0 | Z54: 0 | AA54: 0 | AB54: 0 | AC54: 0 | AD54: 0 | AE54: 0 | AF54: 0 | AG54: 0
C56: Communication | D56: $/customer | E56: =Assumptions!G100 -> 0 | G56: customers | I56: 0 | J56: 0 | K56: 0 | L56: 0 | M56: 0 | N56: 0 | O56: 0 | P56: 0 | Q56: 0 | R56: 0 | S56: 0 | T56: 0 | U56: 0 | V56: 0 | W56: 0 | X56: 0 | Y56: 0 | Z56: 0 | AA56: 0 | AB56: 0 | AC56: 0 | AD56: 0 | AE56: 0 | AF56: 0 | AG56: 0
C57: Information accessibility | D57: $/customer | E57: =Assumptions!G101 -> 0 | G57: customers | I57: 0 | J57: 0 | K57: 0 | L57: 0 | M57: 0 | N57: 0 | O57: 0 | P57: 0 | Q57: 0 | R57: 0 | S57: 0 | T57: 0 | U57: 0 | V57: 0 | W57: 0 | X57: 0 | Y57: 0 | Z57: 0 | AA57: 0 | AB57: 0 | AC57: 0 | AD57: 0 | AE57: 0 | AF57: 0 | AG57: 0
C59: Other benefits 1 | G59: =input_dollars -> 2023-12-31 | I59: 0 | J59: 0 | K59: 0 | L59: 0 | M59: 0 | N59: 0 | O59: 0 | P59: 0 | Q59: 0 | R59: 0 | S59: 0 | T59: 0 | U59: 0 | V59: 0 | W59: 0 | X59: 0 | Y59: 0 | Z59: 0 | AA59: 0 | AB59: 0 | AC59: 0 | AD59: 0 | AE59: 0 | AF59: 0 | AG59: 0
C60: Other benefits 2 | G60: =input_dollars -> 2023-12-31 | I60: 0 | J60: 0 | K60: 0 | L60: 0 | M60: 0 | N60: 0 | O60: 0 | P60: 0 | Q60: 0 | R60: 0 | S60: 0 | T60: 0 | U60: 0 | V60: 0 | W60: 0 | X60: 0 | Y60: 0 | Z60: 0 | AA60: 0 | AB60: 0 | AC60: 0 | AD60: 0 | AE60: 0 | AF60: 0 | AG60: 0
C62: Total other benefits | G62: =input_dollars -> 2023-12-31 | I62: =SUMPRODUCT((I$49:I$57)*($E$49:$E$57))+SUM(I59:I60)+I46 -> 0 | J62: =SUMPRODUCT((J$49:J$57)*($E$49:$E$57))+SUM(J59:J60)+J46 -> 0 | K62: =SUMPRODUCT((K$49:K$57)*($E$49:$E$57))+SUM(K59:K60)+K46 -> 0 | L62: =SUMPRODUCT((L$49:L$57)*($E$49:$E$57))+SUM(L59:L60)+L46 -> 0 | M62: =SUMPRODUCT((M$49:M$57)*($E$49:$E$57))+SUM(M59:M60)+M46 -> 0 | N62: =SUMPRODUCT((N$49:N$57)*($E$49:$E$57))+SUM(N59:N60)+N46 -> 0 | O62: =SUMPRODUCT((O$49:O$57)*($E$49:$E$57))+SUM(O59:O60)+O46 -> 0 | P62: =SUMPRODUCT((P$49:P$57)*($E$49:$E$57))+SUM(P59:P60)+P46 -> 0 | Q62: =SUMPRODUCT((Q$49:Q$57)*($E$49:$E$57))+SUM(Q59:Q60)+Q46 -> 0 | R62: =SUMPRODUCT((R$49:R$57)*($E$49:$E$57))+SUM(R59:R60)+R46 -> 0 | S62: =SUMPRODUCT((S$49:S$57)*($E$49:$E$57))+SUM(S59:S60)+S46 -> 0 | T62: =SUMPRODUCT((T$49:T$57)*($E$49:$E$57))+SUM(T59:T60)+T46 -> 0 | U62: =SUMPRODUCT((U$49:U$57)*($E$49:$E$57))+SUM(U59:U60)+U46 -> 0 | V62: =SUMPRODUCT((V$49:V$57)*($E$49:$E$57))+SUM(V59:V60)+V46 -> 0 | W62: =SUMPRODUCT((W$49:W$57)*($E$49:$E$57))+SUM(W59:W60)+W46 -> 0 | X62: =SUMPRODUCT((X$49:X$57)*($E$49:$E$57))+SUM(X59:X60)+X46 -> 0 | Y62: =SUMPRODUCT((Y$49:Y$57)*($E$49:$E$57))+SUM(Y59:Y60)+Y46 -> 0 | Z62: =SUMPRODUCT((Z$49:Z$57)*($E$49:$E$57))+SUM(Z59:Z60)+Z46 -> 0 | AA62: =SUMPRODUCT((AA$49:AA$57)*($E$49:$E$57))+SUM(AA59:AA60)+AA46 -> 0 | AB62: =SUMPRODUCT((AB$49:AB$57)*($E$49:$E$57))+SUM(AB59:AB60)+AB46 -> 0 | AC62: =SUMPRODUCT((AC$49:AC$57)*($E$49:$E$57))+SUM(AC59:AC60)+AC46 -> 0 | AD62: =SUMPRODUCT((AD$49:AD$57)*($E$49:$E$57))+SUM(AD59:AD60)+AD46 -> 0 | AE62: =SUMPRODUCT((AE$49:AE$57)*($E$49:$E$57))+SUM(AE59:AE60)+AE46 -> 0 | AF62: =SUMPRODUCT((AF$49:AF$57)*($E$49:$E$57))+SUM(AF59:AF60)+AF46 -> 0 | AG62: =SUMPRODUCT((AG$49:AG$57)*($E$49:$E$57))+SUM(AG59:AG60)+AG46 -> 0
A65: SUMMARY
C69: ='Option1 (base case)'!C68 -> Risks mitigated vs base case | G69: =input_dollars -> 2023-12-31 | I69: =(1-INDEX(Data!$C$9:$C$13, MATCH($A$3, options,0)))*('Option1 (base case)'!I40-I40) -> 0 | J69: =(1-INDEX(Data!$C$9:$C$13, MATCH($A$3, options,0)))*('Option1 (base case)'!J40-J40) -> 0 | K69: =(1-INDEX(Data!$C$9:$C$13, MATCH($A$3, options,0)))*('Option1 (base case)'!K40-K40) -> 5085877.128 | L69: =(1-INDEX(Data!$C$9:$C$13, MATCH($A$3, options,0)))*('Option1 (base case)'!L40-L40) -> 5296425.709 | M69: =(1-INDEX(Data!$C$9:$C$13, MATCH($A$3, options,0)))*('Option1 (base case)'!M40-M40) -> 5607517.895 | N69: =(1-INDEX(Data!$C$9:$C$13, MATCH($A$3, options,0)))*('Option1 (base case)'!N40-N40) -> 6413059.144 | O69: =(1-INDEX(Data!$C$9:$C$13, MATCH($A$3, options,0)))*('Option1 (base case)'!O40-O40) -> 7448923.616 | P69: =(1-INDEX(Data!$C$9:$C$13, MATCH($A$3, options,0)))*('Option1 (base case)'!P40-P40) -> 8100054.246 | Q69: =(1-INDEX(Data!$C$9:$C$13, MATCH($A$3, options,0)))*('Option1 (base case)'!Q40-Q40) -> 7996282.976 | R69: =(1-INDEX(Data!$C$9:$C$13, MATCH($A$3, options,0)))*('Option1 (base case)'!R40-R40) -> 7996282.976 | S69: =(1-INDEX(Data!$C$9:$C$13, MATCH($A$3, options,0)))*('Option1 (base case)'!S40-S40) -> 7996282.976 | T69: =(1-INDEX(Data!$C$9:$C$13, MATCH($A$3, options,0)))*('Option1 (base case)'!T40-T40) -> 7996282.976 | U69: =(1-INDEX(Data!$C$9:$C$13, MATCH($A$3, options,0)))*('Option1 (base case)'!U40-U40) -> 7996282.976 | V69: =(1-INDEX(Data!$C$9:$C$13, MATCH($A$3, options,0)))*('Option1 (base case)'!V40-V40) -> 7996282.976 | W69: =(1-INDEX(Data!$C$9:$C$13, MATCH($A$3, options,0)))*('Option1 (base case)'!W40-W40) -> 7996282.976 | X69: =(1-INDEX(Data!$C$9:$C$13, MATCH($A$3, options,0)))*('Option1 (base case)'!X40-X40) -> 7996282.976 | Y69: =(1-INDEX(Data!$C$9:$C$13, MATCH($A$3, options,0)))*('Option1 (base case)'!Y40-Y40) -> 7996282.976 | Z69: =(1-INDEX(Data!$C$9:$C$13, MATCH($A$3, options,0)))*('Option1 (base case)'!Z40-Z40) -> 7996282.976 | AA69: =(1-INDEX(Data!$C$9:$C$13, MATCH($A$3, options,0)))*('Option1 (base case)'!AA40-AA40) -> 7996282.976 | AB69: =(1-INDEX(Data!$C$9:$C$13, MATCH($A$3, options,0)))*('Option1 (base case)'!AB40-AB40) -> 7996282.976 | AC69: =(1-INDEX(Data!$C$9:$C$13, MATCH($A$3, options,0)))*('Option1 (base case)'!AC40-AC40) -> 7996282.976 | AD69: =(1-INDEX(Data!$C$9:$C$13, MATCH($A$3, options,0)))*('Option1 (base case)'!AD40-AD40) -> 7996282.976 | AE69: =(1-INDEX(Data!$C$9:$C$13, MATCH($A$3, options,0)))*('Option1 (base case)'!AE40-AE40) -> 7996282.976 | AF69: =(1-INDEX(Data!$C$9:$C$13, MATCH($A$3, options,0)))*('Option1 (base case)'!AF40-AF40) -> 7996282.976 | AG69: =(1-INDEX(Data!$C$9:$C$13, MATCH($A$3, options,0)))*('Option1 (base case)'!AG40-AG40) -> 7996282.976
C71: Capital expenditure
C72: =C14 -> Augment thermal rating of SK001 backbone | G72: =input_dollars -> 2023-12-31 | I72: =-I14 -> -9051294 | J72: -9051294 | K72: 0 | L72: 0 | M72: 0 | N72: 0 | O72: 0 | P72: 0 | Q72: 0 | R72: 0 | S72: 0 | T72: 0 | U72: 0 | V72: 0 | W72: 0 | X72: 0 | Y72: 0 | Z72: 0 | AA72: 0 | AB72: 0 | AC72: 0 | AD72: 0 | AE72: 0 | AF72: 0 | AG72: 0
C73: =C15 -> 0 | G73: =input_dollars -> 2023-12-31 | I73: =-I15 -> 0 | J73: 0 | K73: 0 | L73: 0 | M73: 0 | N73: 0 | O73: 0 | P73: 0 | Q73: 0 | R73: 0 | S73: 0 | T73: 0 | U73: 0 | V73: 0 | W73: 0 | X73: 0 | Y73: 0 | Z73: 0 | AA73: 0 | AB73: 0 | AC73: 0 | AD73: 0 | AE73: 0 | AF73: 0 | AG73: 0
C74: =C16 -> 0 | G74: =input_dollars -> 2023-12-31 | I74: =-I16 -> 0 | J74: 0 | K74: 0 | L74: 0 | M74: 0 | N74: 0 | O74: 0 | P74: 0 | Q74: 0 | R74: 0 | S74: 0 | T74: 0 | U74: 0 | V74: 0 | W74: 0 | X74: 0 | Y74: 0 | Z74: 0 | AA74: 0 | AB74: 0 | AC74: 0 | AD74: 0 | AE74: 0 | AF74: 0 | AG74: 0
C76: Cumulative capex
C77: =C14 -> Augment thermal rating of SK001 backbone | G77: =input_dollars -> 2023-12-31 | I77: =SUMPRODUCT(($I72:I72))-SUMPRODUCT(($I72:I72)*($I$6:I$6<=(I$6-$E14))) -> -9051294 | J77: =SUMPRODUCT(($I72:J72))-SUMPRODUCT(($I72:J72)*($I$6:J$6<=(J$6-$E14))) -> -18102588 | K77: =SUMPRODUCT(($I72:K72))-SUMPRODUCT(($I72:K72)*($I$6:K$6<=(K$6-$E14))) -> -18102588 | L77: =SUMPRODUCT(($I72:L72))-SUMPRODUCT(($I72:L72)*($I$6:L$6<=(L$6-$E14))) -> -18102588 | M77: =SUMPRODUCT(($I72:M72))-SUMPRODUCT(($I72:M72)*($I$6:M$6<=(M$6-$E14))) -> -18102588 | N77: =SUMPRODUCT(($I72:N72))-SUMPRODUCT(($I72:N72)*($I$6:N$6<=(N$6-$E14))) -> -18102588 | O77: =SUMPRODUCT(($I72:O72))-SUMPRODUCT(($I72:O72)*($I$6:O$6<=(O$6-$E14))) -> -18102588 | P77: =SUMPRODUCT(($I72:P72))-SUMPRODUCT(($I72:P72)*($I$6:P$6<=(P$6-$E14))) -> -18102588 | Q77: =SUMPRODUCT(($I72:Q72))-SUMPRODUCT(($I72:Q72)*($I$6:Q$6<=(Q$6-$E14))) -> -18102588 | R77: =SUMPRODUCT(($I72:R72))-SUMPRODUCT(($I72:R72)*($I$6:R$6<=(R$6-$E14))) -> -18102588 | S77: =SUMPRODUCT(($I72:S72))-SUMPRODUCT(($I72:S72)*($I$6:S$6<=(S$6-$E14))) -> -18102588 | T77: =SUMPRODUCT(($I72:T72))-SUMPRODUCT(($I72:T72)*($I$6:T$6<=(T$6-$E14))) -> -18102588 | U77: =SUMPRODUCT(($I72:U72))-SUMPRODUCT(($I72:U72)*($I$6:U$6<=(U$6-$E14))) -> -18102588 | V77: =SUMPRODUCT(($I72:V72))-SUMPRODUCT(($I72:V72)*($I$6:V$6<=(V$6-$E14))) -> -18102588 | W77: =SUMPRODUCT(($I72:W72))-SUMPRODUCT(($I72:W72)*($I$6:W$6<=(W$6-$E14))) -> -18102588 | X77: =SUMPRODUCT(($I72:X72))-SUMPRODUCT(($I72:X72)*($I$6:X$6<=(X$6-$E14))) -> -18102588 | Y77: =SUMPRODUCT(($I72:Y72))-SUMPRODUCT(($I72:Y72)*($I$6:Y$6<=(Y$6-$E14))) -> -18102588 | Z77: =SUMPRODUCT(($I72:Z72))-SUMPRODUCT(($I72:Z72)*($I$6:Z$6<=(Z$6-$E14))) -> -18102588 | AA77: =SUMPRODUCT(($I72:AA72))-SUMPRODUCT(($I72:AA72)*($I$6:AA$6<=(AA$6-$E14))) -> -18102588 | AB77: =SUMPRODUCT(($I72:AB72))-SUMPRODUCT(($I72:AB72)*($I$6:AB$6<=(AB$6-$E14))) -> -18102588 | AC77: =SUMPRODUCT(($I72:AC72))-SUMPRODUCT(($I72:AC72)*($I$6:AC$6<=(AC$6-$E14))) -> -18102588 | AD77: =SUMPRODUCT(($I72:AD72))-SUMPRODUCT(($I72:AD72)*($I$6:AD$6<=(AD$6-$E14))) -> -18102588 | AE77: =SUMPRODUCT(($I72:AE72))-SUMPRODUCT(($I72:AE72)*($I$6:AE$6<=(AE$6-$E14))) -> -18102588 | AF77: =SUMPRODUCT(($I72:AF72))-SUMPRODUCT(($I72:AF72)*($I$6:AF$6<=(AF$6-$E14))) -> -18102588 | AG77: =SUMPRODUCT(($I72:AG72))-SUMPRODUCT(($I72:AG72)*($I$6:AG$6<=(AG$6-$E14))) -> -18102588
C78: =C15 -> 0 | G78: =input_dollars -> 2023-12-31 | I78: =SUMPRODUCT(($I73:I73))-SUMPRODUCT(($I73:I73)*($I$6:I$6<=(I$6-$E15))) -> 0 | J78: =SUMPRODUCT(($I73:J73))-SUMPRODUCT(($I73:J73)*($I$6:J$6<=(J$6-$E15))) -> 0 | K78: =SUMPRODUCT(($I73:K73))-SUMPRODUCT(($I73:K73)*($I$6:K$6<=(K$6-$E15))) -> 0 | L78: =SUMPRODUCT(($I73:L73))-SUMPRODUCT(($I73:L73)*($I$6:L$6<=(L$6-$E15))) -> 0 | M78: =SUMPRODUCT(($I73:M73))-SUMPRODUCT(($I73:M73)*($I$6:M$6<=(M$6-$E15))) -> 0 | N78: =SUMPRODUCT(($I73:N73))-SUMPRODUCT(($I73:N73)*($I$6:N$6<=(N$6-$E15))) -> 0 | O78: =SUMPRODUCT(($I73:O73))-SUMPRODUCT(($I73:O73)*($I$6:O$6<=(O$6-$E15))) -> 0 | P78: =SUMPRODUCT(($I73:P73))-SUMPRODUCT(($I73:P73)*($I$6:P$6<=(P$6-$E15))) -> 0 | Q78: =SUMPRODUCT(($I73:Q73))-SUMPRODUCT(($I73:Q73)*($I$6:Q$6<=(Q$6-$E15))) -> 0 | R78: =SUMPRODUCT(($I73:R73))-SUMPRODUCT(($I73:R73)*($I$6:R$6<=(R$6-$E15))) -> 0 | S78: =SUMPRODUCT(($I73:S73))-SUMPRODUCT(($I73:S73)*($I$6:S$6<=(S$6-$E15))) -> 0 | T78: =SUMPRODUCT(($I73:T73))-SUMPRODUCT(($I73:T73)*($I$6:T$6<=(T$6-$E15))) -> 0 | U78: =SUMPRODUCT(($I73:U73))-SUMPRODUCT(($I73:U73)*($I$6:U$6<=(U$6-$E15))) -> 0 | V78: =SUMPRODUCT(($I73:V73))-SUMPRODUCT(($I73:V73)*($I$6:V$6<=(V$6-$E15))) -> 0 | W78: =SUMPRODUCT(($I73:W73))-SUMPRODUCT(($I73:W73)*($I$6:W$6<=(W$6-$E15))) -> 0 | X78: =SUMPRODUCT(($I73:X73))-SUMPRODUCT(($I73:X73)*($I$6:X$6<=(X$6-$E15))) -> 0 | Y78: =SUMPRODUCT(($I73:Y73))-SUMPRODUCT(($I73:Y73)*($I$6:Y$6<=(Y$6-$E15))) -> 0 | Z78: =SUMPRODUCT(($I73:Z73))-SUMPRODUCT(($I73:Z73)*($I$6:Z$6<=(Z$6-$E15))) -> 0 | AA78: =SUMPRODUCT(($I73:AA73))-SUMPRODUCT(($I73:AA73)*($I$6:AA$6<=(AA$6-$E15))) -> 0 | AB78: =SUMPRODUCT(($I73:AB73))-SUMPRODUCT(($I73:AB73)*($I$6:AB$6<=(AB$6-$E15))) -> 0 | AC78: =SUMPRODUCT(($I73:AC73))-SUMPRODUCT(($I73:AC73)*($I$6:AC$6<=(AC$6-$E15))) -> 0 | AD78: =SUMPRODUCT(($I73:AD73))-SUMPRODUCT(($I73:AD73)*($I$6:AD$6<=(AD$6-$E15))) -> 0 | AE78: =SUMPRODUCT(($I73:AE73))-SUMPRODUCT(($I73:AE73)*($I$6:AE$6<=(AE$6-$E15))) -> 0 | AF78: =SUMPRODUCT(($I73:AF73))-SUMPRODUCT(($I73:AF73)*($I$6:AF$6<=(AF$6-$E15))) -> 0 | AG78: =SUMPRODUCT(($I73:AG73))-SUMPRODUCT(($I73:AG73)*($I$6:AG$6<=(AG$6-$E15))) -> 0
C79: =C16 -> 0 | G79: =input_dollars -> 2023-12-31 | I79: =SUMPRODUCT(($I74:I74))-SUMPRODUCT(($I74:I74)*($I$6:I$6<=(I$6-$E16))) -> 0 | J79: =SUMPRODUCT(($I74:J74))-SUMPRODUCT(($I74:J74)*($I$6:J$6<=(J$6-$E16))) -> 0 | K79: =SUMPRODUCT(($I74:K74))-SUMPRODUCT(($I74:K74)*($I$6:K$6<=(K$6-$E16))) -> 0 | L79: =SUMPRODUCT(($I74:L74))-SUMPRODUCT(($I74:L74)*($I$6:L$6<=(L$6-$E16))) -> 0 | M79: =SUMPRODUCT(($I74:M74))-SUMPRODUCT(($I74:M74)*($I$6:M$6<=(M$6-$E16))) -> 0 | N79: =SUMPRODUCT(($I74:N74))-SUMPRODUCT(($I74:N74)*($I$6:N$6<=(N$6-$E16))) -> 0 | O79: =SUMPRODUCT(($I74:O74))-SUMPRODUCT(($I74:O74)*($I$6:O$6<=(O$6-$E16))) -> 0 | P79: =SUMPRODUCT(($I74:P74))-SUMPRODUCT(($I74:P74)*($I$6:P$6<=(P$6-$E16))) -> 0 | Q79: =SUMPRODUCT(($I74:Q74))-SUMPRODUCT(($I74:Q74)*($I$6:Q$6<=(Q$6-$E16))) -> 0 | R79: =SUMPRODUCT(($I74:R74))-SUMPRODUCT(($I74:R74)*($I$6:R$6<=(R$6-$E16))) -> 0 | S79: =SUMPRODUCT(($I74:S74))-SUMPRODUCT(($I74:S74)*($I$6:S$6<=(S$6-$E16))) -> 0 | T79: =SUMPRODUCT(($I74:T74))-SUMPRODUCT(($I74:T74)*($I$6:T$6<=(T$6-$E16))) -> 0 | U79: =SUMPRODUCT(($I74:U74))-SUMPRODUCT(($I74:U74)*($I$6:U$6<=(U$6-$E16))) -> 0 | V79: =SUMPRODUCT(($I74:V74))-SUMPRODUCT(($I74:V74)*($I$6:V$6<=(V$6-$E16))) -> 0 | W79: =SUMPRODUCT(($I74:W74))-SUMPRODUCT(($I74:W74)*($I$6:W$6<=(W$6-$E16))) -> 0 | X79: =SUMPRODUCT(($I74:X74))-SUMPRODUCT(($I74:X74)*($I$6:X$6<=(X$6-$E16))) -> 0 | Y79: =SUMPRODUCT(($I74:Y74))-SUMPRODUCT(($I74:Y74)*($I$6:Y$6<=(Y$6-$E16))) -> 0 | Z79: =SUMPRODUCT(($I74:Z74))-SUMPRODUCT(($I74:Z74)*($I$6:Z$6<=(Z$6-$E16))) -> 0 | AA79: =SUMPRODUCT(($I74:AA74))-SUMPRODUCT(($I74:AA74)*($I$6:AA$6<=(AA$6-$E16))) -> 0 | AB79: =SUMPRODUCT(($I74:AB74))-SUMPRODUCT(($I74:AB74)*($I$6:AB$6<=(AB$6-$E16))) -> 0 | AC79: =SUMPRODUCT(($I74:AC74))-SUMPRODUCT(($I74:AC74)*($I$6:AC$6<=(AC$6-$E16))) -> 0 | AD79: =SUMPRODUCT(($I74:AD74))-SUMPRODUCT(($I74:AD74)*($I$6:AD$6<=(AD$6-$E16))) -> 0 | AE79: =SUMPRODUCT(($I74:AE74))-SUMPRODUCT(($I74:AE74)*($I$6:AE$6<=(AE$6-$E16))) -> 0 | AF79: =SUMPRODUCT(($I74:AF74))-SUMPRODUCT(($I74:AF74)*($I$6:AF$6<=(AF$6-$E16))) -> 0 | AG79: =SUMPRODUCT(($I74:AG74))-SUMPRODUCT(($I74:AG74)*($I$6:AG$6<=(AG$6-$E16))) -> 0
C81: Annualised capex
C82: =$C$81&" - "&C14 -> Annualised capex - Augment thermal rating of SK001 backbone | G82: =input_dollars -> 2023-12-31 | I82: =IF($E14=0,0,-PMT(real_disc, $E14,H77,)) -> 0 | J82: -385890.2396 | K82: -771780.4792 | L82: -771780.4792 | M82: -771780.4792 | N82: -771780.4792 | O82: -771780.4792 | P82: -771780.4792 | Q82: -771780.4792 | R82: -771780.4792 | S82: -771780.4792 | T82: -771780.4792 | U82: -771780.4792 | V82: -771780.4792 | W82: -771780.4792 | X82: -771780.4792 | Y82: -771780.4792 | Z82: -771780.4792 | AA82: -771780.4792 | AB82: -771780.4792 | AC82: -771780.4792 | AD82: -771780.4792 | AE82: -771780.4792 | AF82: -771780.4792 | AG82: -771780.4792
C83: =$C$81&" - "&C15 -> Annualised capex - | G83: =input_dollars -> 2023-12-31 | I83: =IF($E15=0,0,-PMT(real_disc, $E15,H78,)) -> 0 | J83: 0 | K83: 0 | L83: 0 | M83: 0 | N83: 0 | O83: 0 | P83: 0 | Q83: 0 | R83: 0 | S83: 0 | T83: 0 | U83: 0 | V83: 0 | W83: 0 | X83: 0 | Y83: 0 | Z83: 0 | AA83: 0 | AB83: 0 | AC83: 0 | AD83: 0 | AE83: 0 | AF83: 0 | AG83: 0
C84: =$C$81&" - "&C16 -> Annualised capex - | G84: =input_dollars -> 2023-12-31 | I84: =IF($E16=0,0,-PMT(real_disc, $E16,H79,)) -> 0 | J84: 0 | K84: 0 | L84: 0 | M84: 0 | N84: 0 | O84: 0 | P84: 0 | Q84: 0 | R84: 0 | S84: 0 | T84: 0 | U84: 0 | V84: 0 | W84: 0 | X84: 0 | Y84: 0 | Z84: 0 | AA84: 0 | AB84: 0 | AC84: 0 | AD84: 0 | AE84: 0 | AF84: 0 | AG84: 0
C85: Total annualised capex | G85: =input_dollars -> 2023-12-31 | I85: =SUM(I82:I84) -> 0 | J85: =SUM(J82:J84) -> -385890.2396 | K85: -771780.4792 | L85: -771780.4792 | M85: -771780.4792 | N85: -771780.4792 | O85: -771780.4792 | P85: -771780.4792 | Q85: -771780.4792 | R85: -771780.4792 | S85: -771780.4792 | T85: -771780.4792 | U85: -771780.4792 | V85: -771780.4792 | W85: -771780.4792 | X85: -771780.4792 | Y85: -771780.4792 | Z85: -771780.4792 | AA85: -771780.4792 | AB85: -771780.4792 | AC85: =SUM(AC82:AC84) -> -771780.4792 | AD85: =SUM(AD82:AD84) -> -771780.4792 | AE85: =SUM(AE82:AE84) -> -771780.4792 | AF85: =SUM(AF82:AF84) -> -771780.4792 | AG85: =SUM(AG82:AG84) -> -771780.4792
C87: Annualised capex | G87: =input_dollars -> 2023-12-31 | I87: =I85 -> 0 | J87: =J85 -> -385890.2396 | K87: -771780.4792 | L87: -771780.4792 | M87: -771780.4792 | N87: -771780.4792 | O87: -771780.4792 | P87: -771780.4792 | Q87: -771780.4792 | R87: -771780.4792 | S87: -771780.4792 | T87: -771780.4792 | U87: -771780.4792 | V87: -771780.4792 | W87: -771780.4792 | X87: -771780.4792 | Y87: -771780.4792 | Z87: -771780.4792 | AA87: -771780.4792 | AB87: -771780.4792 | AC87: =AC85 -> -771780.4792 | AD87: =AD85 -> -771780.4792 | AE87: =AE85 -> -771780.4792 | AF87: =AF85 -> -771780.4792 | AG87: =AG85 -> -771780.4792
C88: Operating expenditure | G88: 2023-12-31 | I88: =-I19 -> 0 | J88: 0 | K88: 0 | L88: 0 | M88: 0 | N88: 0 | O88: 0 | P88: 0 | Q88: 0 | R88: 0 | S88: 0 | T88: 0 | U88: 0 | V88: 0 | W88: 0 | X88: 0 | Y88: 0 | Z88: 0 | AA88: 0 | AB88: 0 | AC88: 0 | AD88: 0 | AE88: 0 | AF88: 0 | AG88: 0
C89: Risk mitigated | G89: 2023-12-31 | I89: =I69 -> 0 | J89: =J69 -> 0 | K89: 5085877.128 | L89: 5296425.709 | M89: 5607517.895 | N89: 6413059.144 | O89: 7448923.616 | P89: 8100054.246 | Q89: 7996282.976 | R89: 7996282.976 | S89: 7996282.976 | T89: 7996282.976 | U89: 7996282.976 | V89: 7996282.976 | W89: 7996282.976 | X89: 7996282.976 | Y89: 7996282.976 | Z89: 7996282.976 | AA89: 7996282.976 | AB89: 7996282.976 | AC89: =AC69 -> 7996282.976 | AD89: =AD69 -> 7996282.976 | AE89: =AE69 -> 7996282.976 | AF89: =AF69 -> 7996282.976 | AG89: =AG69 -> 7996282.976
C90: Other benefits value | G90: 2023-12-31 | I90: =I62 -> 0 | J90: 0 | K90: 0 | L90: 0 | M90: 0 | N90: 0 | O90: 0 | P90: 0 | Q90: 0 | R90: 0 | S90: 0 | T90: 0 | U90: 0 | V90: 0 | W90: 0 | X90: 0 | Y90: 0 | Z90: 0 | AA90: 0 | AB90: 0 | AC90: 0 | AD90: 0 | AE90: 0 | AF90: 0 | AG90: 0
C92: Net benefits | G92: 2023-12-31 | I92: =SUM(I87:I91) -> 0 | J92: -385890.2396 | K92: 4314096.649 | L92: 4524645.23 | M92: 4835737.416 | N92: 5641278.665 | O92: 6677143.137 | P92: 7328273.767 | Q92: 7224502.497 | R92: 7224502.497 | S92: 7224502.497 | T92: 7224502.497 | U92: 7224502.497 | V92: 7224502.497 | W92: 7224502.497 | X92: 7224502.497 | Y92: 7224502.497 | Z92: 7224502.497 | AA92: 7224502.497 | AB92: 7224502.497 | AC92: =SUM(AC87:AC91) -> 7224502.497 | AD92: =SUM(AD87:AD91) -> 7224502.497 | AE92: =SUM(AE87:AE91) -> 7224502.497 | AF92: =SUM(AF87:AF91) -> 7224502.497 | AG92: =SUM(AG87:AG91) -> 7224502.497
C95: First capex year | G95: =IF(SUM($I17:$AG17)=0,0,(INDEX(I$6:AG$6,MATCH(TRUE,INDEX($I17:$AG17<>0,),0)))) -> 1
C97: First year | G97: =IF(_xlfn.MINIFS($G$95:$G$96, $G$95:$G$96, ">"&0)=0, $A$4, _xlfn.MINIFS($G$95:$G$96, $G$95:$G$96, ">"&0)) -> 1
A107: SENSITIVITIES
A111: NPV | C111: Net benefits | G111: =PROPER($A$3)&A111 -> Option 2NPV | I111: =I92 -> 0 | J111: =J92 -> -385890.2396 | K111: 4314096.649 | L111: 4524645.23 | M111: 4835737.416 | N111: 5641278.665 | O111: 6677143.137 | P111: 7328273.767 | Q111: 7224502.497 | R111: 7224502.497 | S111: 7224502.497 | T111: 7224502.497 | U111: 7224502.497 | V111: 7224502.497 | W111: 7224502.497 | X111: 7224502.497 | Y111: 7224502.497 | Z111: 7224502.497 | AA111: 7224502.497 | AB111: 7224502.497 | AC111: 7224502.497 | AD111: 7224502.497 | AE111: 7224502.497 | AF111: 7224502.497 | AG111: 7224502.497
C112: Total annualised capex | I112: =I87 -> 0 | J112: =J87 -> -385890.2396 | K112: -771780.4792 | L112: -771780.4792 | M112: -771780.4792 | N112: -771780.4792 | O112: -771780.4792 | P112: -771780.4792 | Q112: -771780.4792 | R112: -771780.4792 | S112: -771780.4792 | T112: -771780.4792 | U112: -771780.4792 | V112: -771780.4792 | W112: -771780.4792 | X112: -771780.4792 | Y112: -771780.4792 | Z112: -771780.4792 | AA112: -771780.4792 | AB112: -771780.4792 | AC112: -771780.4792 | AD112: -771780.4792 | AE112: -771780.4792 | AF112: -771780.4792 | AG112: -771780.4792
C113: Total benefits | I113: =SUM(I89:I90) -> 0 | J113: =SUM(J89:J90) -> 0 | K113: 5085877.128 | L113: 5296425.709 | M113: 5607517.895 | N113: 6413059.144 | O113: 7448923.616 | P113: 8100054.246 | Q113: 7996282.976 | R113: 7996282.976 | S113: 7996282.976 | T113: 7996282.976 | U113: 7996282.976 | V113: 7996282.976 | W113: 7996282.976 | X113: 7996282.976 | Y113: 7996282.976 | Z113: 7996282.976 | AA113: 7996282.976 | AB113: 7996282.976 | AC113: 7996282.976 | AD113: 7996282.976 | AE113: 7996282.976 | AF113: 7996282.976 | AG113: 7996282.976
D114: =Assumptions!G110 -> Capex | E114: =Assumptions!H110 -> Total benefits
A115: ="sens"&Assumptions!B111 -> sens1 | C115: =Assumptions!C111 -> Capex 10% higher | D115: =Assumptions!G111 -> 0.1 | E115: =Assumptions!H111 -> 0 | G115: =PROPER($A$3)&A115 -> Option 2sens1 | I115: =I$111+IF($C115<>0,SUMPRODUCT((I$112:I$113)*TRANSPOSE(($D115:$E115))),0) -> 0 | J115: =J$111+IF($C115<>0,SUMPRODUCT((J$112:J$113)*TRANSPOSE(($D115:$E115))),0) -> -424479.2636 | K115: =K$111+IF($C115<>0,SUMPRODUCT((K$112:K$113)*TRANSPOSE(($D115:$E115))),0) -> 4236918.601 | L115: =L$111+IF($C115<>0,SUMPRODUCT((L$112:L$113)*TRANSPOSE(($D115:$E115))),0) -> 4447467.182 | M115: =M$111+IF($C115<>0,SUMPRODUCT((M$112:M$113)*TRANSPOSE(($D115:$E115))),0) -> 4758559.368 | N115: =N$111+IF($C115<>0,SUMPRODUCT((N$112:N$113)*TRANSPOSE(($D115:$E115))),0) -> 5564100.617 | O115: =O$111+IF($C115<>0,SUMPRODUCT((O$112:O$113)*TRANSPOSE(($D115:$E115))),0) -> 6599965.089 | P115: =P$111+IF($C115<>0,SUMPRODUCT((P$112:P$113)*TRANSPOSE(($D115:$E115))),0) -> 7251095.719 | Q115: =Q$111+IF($C115<>0,SUMPRODUCT((Q$112:Q$113)*TRANSPOSE(($D115:$E115))),0) -> 7147324.449 | R115: =R$111+IF($C115<>0,SUMPRODUCT((R$112:R$113)*TRANSPOSE(($D115:$E115))),0) -> 7147324.449 | S115: =S$111+IF($C115<>0,SUMPRODUCT((S$112:S$113)*TRANSPOSE(($D115:$E115))),0) -> 7147324.449 | T115: =T$111+IF($C115<>0,SUMPRODUCT((T$112:T$113)*TRANSPOSE(($D115:$E115))),0) -> 7147324.449 | U115: =U$111+IF($C115<>0,SUMPRODUCT((U$112:U$113)*TRANSPOSE(($D115:$E115))),0) -> 7147324.449 | V115: =V$111+IF($C115<>0,SUMPRODUCT((V$112:V$113)*TRANSPOSE(($D115:$E115))),0) -> 7147324.449 | W115: =W$111+IF($C115<>0,SUMPRODUCT((W$112:W$113)*TRANSPOSE(($D115:$E115))),0) -> 7147324.449 | X115: =X$111+IF($C115<>0,SUMPRODUCT((X$112:X$113)*TRANSPOSE(($D115:$E115))),0) -> 7147324.449 | Y115: =Y$111+IF($C115<>0,SUMPRODUCT((Y$112:Y$113)*TRANSPOSE(($D115:$E115))),0) -> 7147324.449 | Z115: =Z$111+IF($C115<>0,SUMPRODUCT((Z$112:Z$113)*TRANSPOSE(($D115:$E115))),0) -> 7147324.449 | AA115: =AA$111+IF($C115<>0,SUMPRODUCT((AA$112:AA$113)*TRANSPOSE(($D115:$E115))),0) -> 7147324.449 | AB115: =AB$111+IF($C115<>0,SUMPRODUCT((AB$112:AB$113)*TRANSPOSE(($D115:$E115))),0) -> 7147324.449 | AC115: =AC$111+IF($C115<>0,SUMPRODUCT((AC$112:AC$113)*TRANSPOSE(($D115:$E115))),0) -> 7147324.449 | AD115: =AD$111+IF($C115<>0,SUMPRODUCT((AD$112:AD$113)*TRANSPOSE(($D115:$E115))),0) -> 7147324.449 | AE115: =AE$111+IF($C115<>0,SUMPRODUCT((AE$112:AE$113)*TRANSPOSE(($D115:$E115))),0) -> 7147324.449 | AF115: =AF$111+IF($C115<>0,SUMPRODUCT((AF$112:AF$113)*TRANSPOSE(($D115:$E115))),0) -> 7147324.449 | AG115: =AG$111+IF($C115<>0,SUMPRODUCT((AG$112:AG$113)*TRANSPOSE(($D115:$E115))),0) -> 7147324.449
A116: ="sens"&Assumptions!B112 -> sens2 | C116: =Assumptions!C112 -> Capex 10% lower | D116: =Assumptions!G112 -> -0.1 | E116: =Assumptions!H112 -> 0 | G116: =PROPER($A$3)&A116 -> Option 2sens2 | I116: =I$111+IF($C116<>0,SUMPRODUCT((I$112:I$113)*TRANSPOSE(($D116:$E116))),0) -> 0 | J116: =J$111+IF($C116<>0,SUMPRODUCT((J$112:J$113)*TRANSPOSE(($D116:$E116))),0) -> -347301.2156 | K116: =K$111+IF($C116<>0,SUMPRODUCT((K$112:K$113)*TRANSPOSE(($D116:$E116))),0) -> 4391274.697 | L116: =L$111+IF($C116<>0,SUMPRODUCT((L$112:L$113)*TRANSPOSE(($D116:$E116))),0) -> 4601823.278 | M116: =M$111+IF($C116<>0,SUMPRODUCT((M$112:M$113)*TRANSPOSE(($D116:$E116))),0) -> 4912915.464 | N116: =N$111+IF($C116<>0,SUMPRODUCT((N$112:N$113)*TRANSPOSE(($D116:$E116))),0) -> 5718456.713 | O116: =O$111+IF($C116<>0,SUMPRODUCT((O$112:O$113)*TRANSPOSE(($D116:$E116))),0) -> 6754321.185 | P116: =P$111+IF($C116<>0,SUMPRODUCT((P$112:P$113)*TRANSPOSE(($D116:$E116))),0) -> 7405451.815 | Q116: =Q$111+IF($C116<>0,SUMPRODUCT((Q$112:Q$113)*TRANSPOSE(($D116:$E116))),0) -> 7301680.545 | R116: =R$111+IF($C116<>0,SUMPRODUCT((R$112:R$113)*TRANSPOSE(($D116:$E116))),0) -> 7301680.545 | S116: =S$111+IF($C116<>0,SUMPRODUCT((S$112:S$113)*TRANSPOSE(($D116:$E116))),0) -> 7301680.545 | T116: =T$111+IF($C116<>0,SUMPRODUCT((T$112:T$113)*TRANSPOSE(($D116:$E116))),0) -> 7301680.545 | U116: =U$111+IF($C116<>0,SUMPRODUCT((U$112:U$113)*TRANSPOSE(($D116:$E116))),0) -> 7301680.545 | V116: =V$111+IF($C116<>0,SUMPRODUCT((V$112:V$113)*TRANSPOSE(($D116:$E116))),0) -> 7301680.545 | W116: =W$111+IF($C116<>0,SUMPRODUCT((W$112:W$113)*TRANSPOSE(($D116:$E116))),0) -> 7301680.545 | X116: =X$111+IF($C116<>0,SUMPRODUCT((X$112:X$113)*TRANSPOSE(($D116:$E116))),0) -> 7301680.545 | Y116: =Y$111+IF($C116<>0,SUMPRODUCT((Y$112:Y$113)*TRANSPOSE(($D116:$E116))),0) -> 7301680.545 | Z116: =Z$111+IF($C116<>0,SUMPRODUCT((Z$112:Z$113)*TRANSPOSE(($D116:$E116))),0) -> 7301680.545 | AA116: =AA$111+IF($C116<>0,SUMPRODUCT((AA$112:AA$113)*TRANSPOSE(($D116:$E116))),0) -> 7301680.545 | AB116: =AB$111+IF($C116<>0,SUMPRODUCT((AB$112:AB$113)*TRANSPOSE(($D116:$E116))),0) -> 7301680.545 | AC116: =AC$111+IF($C116<>0,SUMPRODUCT((AC$112:AC$113)*TRANSPOSE(($D116:$E116))),0) -> 7301680.545 | AD116: =AD$111+IF($C116<>0,SUMPRODUCT((AD$112:AD$113)*TRANSPOSE(($D116:$E116))),0) -> 7301680.545 | AE116: =AE$111+IF($C116<>0,SUMPRODUCT((AE$112:AE$113)*TRANSPOSE(($D116:$E116))),0) -> 7301680.545 | AF116: =AF$111+IF($C116<>0,SUMPRODUCT((AF$112:AF$113)*TRANSPOSE(($D116:$E116))),0) -> 7301680.545 | AG116: =AG$111+IF($C116<>0,SUMPRODUCT((AG$112:AG$113)*TRANSPOSE(($D116:$E116))),0) -> 7301680.545
A117: ="sens"&Assumptions!B113 -> sens3 | C117: =Assumptions!C113 -> Total benefits 10% higher | D117: =Assumptions!G113 -> 0 | E117: =Assumptions!H113 -> 0.1 | G117: Option 2sens3 | I117: =I$111+IF($C117<>0,SUMPRODUCT((I$112:I$113)*TRANSPOSE(($D117:$E117))),0) -> 0 | J117: =J$111+IF($C117<>0,SUMPRODUCT((J$112:J$113)*TRANSPOSE(($D117:$E117))),0) -> -385890.2396 | K117: =K$111+IF($C117<>0,SUMPRODUCT((K$112:K$113)*TRANSPOSE(($D117:$E117))),0) -> 4822684.362 | L117: =L$111+IF($C117<>0,SUMPRODUCT((L$112:L$113)*TRANSPOSE(($D117:$E117))),0) -> 5054287.801 | M117: =M$111+IF($C117<>0,SUMPRODUCT((M$112:M$113)*TRANSPOSE(($D117:$E117))),0) -> 5396489.206 | N117: =N$111+IF($C117<>0,SUMPRODUCT((N$112:N$113)*TRANSPOSE(($D117:$E117))),0) -> 6282584.58 | O117: =O$111+IF($C117<>0,SUMPRODUCT((O$112:O$113)*TRANSPOSE(($D117:$E117))),0) -> 7422035.499 | P117: =P$111+IF($C117<>0,SUMPRODUCT((P$112:P$113)*TRANSPOSE(($D117:$E117))),0) -> 8138279.191 | Q117: =Q$111+IF($C117<>0,SUMPRODUCT((Q$112:Q$113)*TRANSPOSE(($D117:$E117))),0) -> 8024130.795 | R117: =R$111+IF($C117<>0,SUMPRODUCT((R$112:R$113)*TRANSPOSE(($D117:$E117))),0) -> 8024130.795 | S117: =S$111+IF($C117<>0,SUMPRODUCT((S$112:S$113)*TRANSPOSE(($D117:$E117))),0) -> 8024130.795 | T117: =T$111+IF($C117<>0,SUMPRODUCT((T$112:T$113)*TRANSPOSE(($D117:$E117))),0) -> 8024130.795 | U117: =U$111+IF($C117<>0,SUMPRODUCT((U$112:U$113)*TRANSPOSE(($D117:$E117))),0) -> 8024130.795 | V117: =V$111+IF($C117<>0,SUMPRODUCT((V$112:V$113)*TRANSPOSE(($D117:$E117))),0) -> 8024130.795 | W117: =W$111+IF($C117<>0,SUMPRODUCT((W$112:W$113)*TRANSPOSE(($D117:$E117))),0) -> 8024130.795 | X117: =X$111+IF($C117<>0,SUMPRODUCT((X$112:X$113)*TRANSPOSE(($D117:$E117))),0) -> 8024130.795 | Y117: =Y$111+IF($C117<>0,SUMPRODUCT((Y$112:Y$113)*TRANSPOSE(($D117:$E117))),0) -> 8024130.795 | Z117: =Z$111+IF($C117<>0,SUMPRODUCT((Z$112:Z$113)*TRANSPOSE(($D117:$E117))),0) -> 8024130.795 | AA117: =AA$111+IF($C117<>0,SUMPRODUCT((AA$112:AA$113)*TRANSPOSE(($D117:$E117))),0) -> 8024130.795 | AB117: =AB$111+IF($C117<>0,SUMPRODUCT((AB$112:AB$113)*TRANSPOSE(($D117:$E117))),0) -> 8024130.795 | AC117: =AC$111+IF($C117<>0,SUMPRODUCT((AC$112:AC$113)*TRANSPOSE(($D117:$E117))),0) -> 8024130.795 | AD117: =AD$111+IF($C117<>0,SUMPRODUCT((AD$112:AD$113)*TRANSPOSE(($D117:$E117))),0) -> 8024130.795 | AE117: =AE$111+IF($C117<>0,SUMPRODUCT((AE$112:AE$113)*TRANSPOSE(($D117:$E117))),0) -> 8024130.795 | AF117: =AF$111+IF($C117<>0,SUMPRODUCT((AF$112:AF$113)*TRANSPOSE(($D117:$E117))),0) -> 8024130.795 | AG117: =AG$111+IF($C117<>0,SUMPRODUCT((AG$112:AG$113)*TRANSPOSE(($D117:$E117))),0) -> 8024130.795
A118: ="sens"&Assumptions!B114 -> sens4 | C118: =Assumptions!C114 -> Total benefits 10% lower | D118: =Assumptions!G114 -> 0 | E118: =Assumptions!H114 -> -0.1 | G118: Option 2sens4 | I118: =I$111+IF($C118<>0,SUMPRODUCT((I$112:I$113)*TRANSPOSE(($D118:$E118))),0) -> 0 | J118: =J$111+IF($C118<>0,SUMPRODUCT((J$112:J$113)*TRANSPOSE(($D118:$E118))),0) -> -385890.2396 | K118: =K$111+IF($C118<>0,SUMPRODUCT((K$112:K$113)*TRANSPOSE(($D118:$E118))),0) -> 3805508.936 | L118: =L$111+IF($C118<>0,SUMPRODUCT((L$112:L$113)*TRANSPOSE(($D118:$E118))),0) -> 3995002.659 | M118: =M$111+IF($C118<>0,SUMPRODUCT((M$112:M$113)*TRANSPOSE(($D118:$E118))),0) -> 4274985.627 | N118: =N$111+IF($C118<>0,SUMPRODUCT((N$112:N$113)*TRANSPOSE(($D118:$E118))),0) -> 4999972.751 | O118: =O$111+IF($C118<>0,SUMPRODUCT((O$112:O$113)*TRANSPOSE(($D118:$E118))),0) -> 5932250.775 | P118: =P$111+IF($C118<>0,SUMPRODUCT((P$112:P$113)*TRANSPOSE(($D118:$E118))),0) -> 6518268.342 | Q118: =Q$111+IF($C118<>0,SUMPRODUCT((Q$112:Q$113)*TRANSPOSE(($D118:$E118))),0) -> 6424874.2 | R118: =R$111+IF($C118<>0,SUMPRODUCT((R$112:R$113)*TRANSPOSE(($D118:$E118))),0) -> 6424874.2 | S118: =S$111+IF($C118<>0,SUMPRODUCT((S$112:S$113)*TRANSPOSE(($D118:$E118))),0) -> 6424874.2 | T118: =T$111+IF($C118<>0,SUMPRODUCT((T$112:T$113)*TRANSPOSE(($D118:$E118))),0) -> 6424874.2 | U118: =U$111+IF($C118<>0,SUMPRODUCT((U$112:U$113)*TRANSPOSE(($D118:$E118))),0) -> 6424874.2 | V118: =V$111+IF($C118<>0,SUMPRODUCT((V$112:V$113)*TRANSPOSE(($D118:$E118))),0) -> 6424874.2 | W118: =W$111+IF($C118<>0,SUMPRODUCT((W$112:W$113)*TRANSPOSE(($D118:$E118))),0) -> 6424874.2 | X118: =X$111+IF($C118<>0,SUMPRODUCT((X$112:X$113)*TRANSPOSE(($D118:$E118))),0) -> 6424874.2 | Y118: =Y$111+IF($C118<>0,SUMPRODUCT((Y$112:Y$113)*TRANSPOSE(($D118:$E118))),0) -> 6424874.2 | Z118: =Z$111+IF($C118<>0,SUMPRODUCT((Z$112:Z$113)*TRANSPOSE(($D118:$E118))),0) -> 6424874.2 | AA118: =AA$111+IF($C118<>0,SUMPRODUCT((AA$112:AA$113)*TRANSPOSE(($D118:$E118))),0) -> 6424874.2 | AB118: =AB$111+IF($C118<>0,SUMPRODUCT((AB$112:AB$113)*TRANSPOSE(($D118:$E118))),0) -> 6424874.2 | AC118: =AC$111+IF($C118<>0,SUMPRODUCT((AC$112:AC$113)*TRANSPOSE(($D118:$E118))),0) -> 6424874.2 | AD118: =AD$111+IF($C118<>0,SUMPRODUCT((AD$112:AD$113)*TRANSPOSE(($D118:$E118))),0) -> 6424874.2 | AE118: =AE$111+IF($C118<>0,SUMPRODUCT((AE$112:AE$113)*TRANSPOSE(($D118:$E118))),0) -> 6424874.2 | AF118: =AF$111+IF($C118<>0,SUMPRODUCT((AF$112:AF$113)*TRANSPOSE(($D118:$E118))),0) -> 6424874.2 | AG118: =AG$111+IF($C118<>0,SUMPRODUCT((AG$112:AG$113)*TRANSPOSE(($D118:$E118))),0) -> 6424874.2
A119: ="sens"&Assumptions!B115 -> sens5 | C119: =Assumptions!C115 -> Capex 10% higher & Total benefits 10% lower | D119: =Assumptions!G115 -> 0.1 | E119: =Assumptions!H115 -> -0.1 | G119: Option 2sens5 | I119: =I$111+IF($C119<>0,SUMPRODUCT((I$112:I$113)*TRANSPOSE(($D119:$E119))),0) -> 0 | J119: =J$111+IF($C119<>0,SUMPRODUCT((J$112:J$113)*TRANSPOSE(($D119:$E119))),0) -> -424479.2636 | K119: =K$111+IF($C119<>0,SUMPRODUCT((K$112:K$113)*TRANSPOSE(($D119:$E119))),0) -> 3728330.888 | L119: =L$111+IF($C119<>0,SUMPRODUCT((L$112:L$113)*TRANSPOSE(($D119:$E119))),0) -> 3917824.611 | M119: =M$111+IF($C119<>0,SUMPRODUCT((M$112:M$113)*TRANSPOSE(($D119:$E119))),0) -> 4197807.579 | N119: =N$111+IF($C119<>0,SUMPRODUCT((N$112:N$113)*TRANSPOSE(($D119:$E119))),0) -> 4922794.703 | O119: =O$111+IF($C119<>0,SUMPRODUCT((O$112:O$113)*TRANSPOSE(($D119:$E119))),0) -> 5855072.727 | P119: =P$111+IF($C119<>0,SUMPRODUCT((P$112:P$113)*TRANSPOSE(($D119:$E119))),0) -> 6441090.294 | Q119: =Q$111+IF($C119<>0,SUMPRODUCT((Q$112:Q$113)*TRANSPOSE(($D119:$E119))),0) -> 6347696.152 | R119: =R$111+IF($C119<>0,SUMPRODUCT((R$112:R$113)*TRANSPOSE(($D119:$E119))),0) -> 6347696.152 | S119: =S$111+IF($C119<>0,SUMPRODUCT((S$112:S$113)*TRANSPOSE(($D119:$E119))),0) -> 6347696.152 | T119: =T$111+IF($C119<>0,SUMPRODUCT((T$112:T$113)*TRANSPOSE(($D119:$E119))),0) -> 6347696.152 | U119: =U$111+IF($C119<>0,SUMPRODUCT((U$112:U$113)*TRANSPOSE(($D119:$E119))),0) -> 6347696.152 | V119: =V$111+IF($C119<>0,SUMPRODUCT((V$112:V$113)*TRANSPOSE(($D119:$E119))),0) -> 6347696.152 | W119: =W$111+IF($C119<>0,SUMPRODUCT((W$112:W$113)*TRANSPOSE(($D119:$E119))),0) -> 6347696.152 | X119: =X$111+IF($C119<>0,SUMPRODUCT((X$112:X$113)*TRANSPOSE(($D119:$E119))),0) -> 6347696.152 | Y119: =Y$111+IF($C119<>0,SUMPRODUCT((Y$112:Y$113)*TRANSPOSE(($D119:$E119))),0) -> 6347696.152 | Z119: =Z$111+IF($C119<>0,SUMPRODUCT((Z$112:Z$113)*TRANSPOSE(($D119:$E119))),0) -> 6347696.152 | AA119: =AA$111+IF($C119<>0,SUMPRODUCT((AA$112:AA$113)*TRANSPOSE(($D119:$E119))),0) -> 6347696.152 | AB119: =AB$111+IF($C119<>0,SUMPRODUCT((AB$112:AB$113)*TRANSPOSE(($D119:$E119))),0) -> 6347696.152 | AC119: =AC$111+IF($C119<>0,SUMPRODUCT((AC$112:AC$113)*TRANSPOSE(($D119:$E119))),0) -> 6347696.152 | AD119: =AD$111+IF($C119<>0,SUMPRODUCT((AD$112:AD$113)*TRANSPOSE(($D119:$E119))),0) -> 6347696.152 | AE119: =AE$111+IF($C119<>0,SUMPRODUCT((AE$112:AE$113)*TRANSPOSE(($D119:$E119))),0) -> 6347696.152 | AF119: =AF$111+IF($C119<>0,SUMPRODUCT((AF$112:AF$113)*TRANSPOSE(($D119:$E119))),0) -> 6347696.152 | AG119: =AG$111+IF($C119<>0,SUMPRODUCT((AG$112:AG$113)*TRANSPOSE(($D119:$E119))),0) -> 6347696.152
A120: ="sens"&Assumptions!B116 -> sens | C120: =Assumptions!C116 -> 0 | D120: =Assumptions!G116 -> 0 | E120: =Assumptions!H116 -> 0 | G120: Option 2sens | I120: =I$111+IF($C120<>0,SUMPRODUCT((I$112:I$113)*TRANSPOSE(($D120:$E120))),0) -> 0 | J120: =J$111+IF($C120<>0,SUMPRODUCT((J$112:J$113)*TRANSPOSE(($D120:$E120))),0) -> -385890.2396 | K120: =K$111+IF($C120<>0,SUMPRODUCT((K$112:K$113)*TRANSPOSE(($D120:$E120))),0) -> 4314096.649 | L120: =L$111+IF($C120<>0,SUMPRODUCT((L$112:L$113)*TRANSPOSE(($D120:$E120))),0) -> 4524645.23 | M120: =M$111+IF($C120<>0,SUMPRODUCT((M$112:M$113)*TRANSPOSE(($D120:$E120))),0) -> 4835737.416 | N120: =N$111+IF($C120<>0,SUMPRODUCT((N$112:N$113)*TRANSPOSE(($D120:$E120))),0) -> 5641278.665 | O120: =O$111+IF($C120<>0,SUMPRODUCT((O$112:O$113)*TRANSPOSE(($D120:$E120))),0) -> 6677143.137 | P120: =P$111+IF($C120<>0,SUMPRODUCT((P$112:P$113)*TRANSPOSE(($D120:$E120))),0) -> 7328273.767 | Q120: =Q$111+IF($C120<>0,SUMPRODUCT((Q$112:Q$113)*TRANSPOSE(($D120:$E120))),0) -> 7224502.497 | R120: =R$111+IF($C120<>0,SUMPRODUCT((R$112:R$113)*TRANSPOSE(($D120:$E120))),0) -> 7224502.497 | S120: =S$111+IF($C120<>0,SUMPRODUCT((S$112:S$113)*TRANSPOSE(($D120:$E120))),0) -> 7224502.497 | T120: =T$111+IF($C120<>0,SUMPRODUCT((T$112:T$113)*TRANSPOSE(($D120:$E120))),0) -> 7224502.497 | U120: =U$111+IF($C120<>0,SUMPRODUCT((U$112:U$113)*TRANSPOSE(($D120:$E120))),0) -> 7224502.497 | V120: =V$111+IF($C120<>0,SUMPRODUCT((V$112:V$113)*TRANSPOSE(($D120:$E120))),0) -> 7224502.497 | W120: =W$111+IF($C120<>0,SUMPRODUCT((W$112:W$113)*TRANSPOSE(($D120:$E120))),0) -> 7224502.497 | X120: =X$111+IF($C120<>0,SUMPRODUCT((X$112:X$113)*TRANSPOSE(($D120:$E120))),0) -> 7224502.497 | Y120: =Y$111+IF($C120<>0,SUMPRODUCT((Y$112:Y$113)*TRANSPOSE(($D120:$E120))),0) -> 7224502.497 | Z120: =Z$111+IF($C120<>0,SUMPRODUCT((Z$112:Z$113)*TRANSPOSE(($D120:$E120))),0) -> 7224502.497 | AA120: =AA$111+IF($C120<>0,SUMPRODUCT((AA$112:AA$113)*TRANSPOSE(($D120:$E120))),0) -> 7224502.497 | AB120: =AB$111+IF($C120<>0,SUMPRODUCT((AB$112:AB$113)*TRANSPOSE(($D120:$E120))),0) -> 7224502.497 | AC120: =AC$111+IF($C120<>0,SUMPRODUCT((AC$112:AC$113)*TRANSPOSE(($D120:$E120))),0) -> 7224502.497 | AD120: =AD$111+IF($C120<>0,SUMPRODUCT((AD$112:AD$113)*TRANSPOSE(($D120:$E120))),0) -> 7224502.497 | AE120: =AE$111+IF($C120<>0,SUMPRODUCT((AE$112:AE$113)*TRANSPOSE(($D120:$E120))),0) -> 7224502.497 | AF120: =AF$111+IF($C120<>0,SUMPRODUCT((AF$112:AF$113)*TRANSPOSE(($D120:$E120))),0) -> 7224502.497 | AG120: =AG$111+IF($C120<>0,SUMPRODUCT((AG$112:AG$113)*TRANSPOSE(($D120:$E120))),0) -> 7224502.497
A121: ="sens"&Assumptions!B117 -> sens | C121: =Assumptions!C117 -> 0 | D121: =Assumptions!G117 -> 0 | E121: =Assumptions!H117 -> 0 | G121: Option 2sens | I121: =I$111+IF($C121<>0,SUMPRODUCT((I$112:I$113)*TRANSPOSE(($D121:$E121))),0) -> 0 | J121: =J$111+IF($C121<>0,SUMPRODUCT((J$112:J$113)*TRANSPOSE(($D121:$E121))),0) -> -385890.2396 | K121: =K$111+IF($C121<>0,SUMPRODUCT((K$112:K$113)*TRANSPOSE(($D121:$E121))),0) -> 4314096.649 | L121: =L$111+IF($C121<>0,SUMPRODUCT((L$112:L$113)*TRANSPOSE(($D121:$E121))),0) -> 4524645.23 | M121: =M$111+IF($C121<>0,SUMPRODUCT((M$112:M$113)*TRANSPOSE(($D121:$E121))),0) -> 4835737.416 | N121: =N$111+IF($C121<>0,SUMPRODUCT((N$112:N$113)*TRANSPOSE(($D121:$E121))),0) -> 5641278.665 | O121: =O$111+IF($C121<>0,SUMPRODUCT((O$112:O$113)*TRANSPOSE(($D121:$E121))),0) -> 6677143.137 | P121: =P$111+IF($C121<>0,SUMPRODUCT((P$112:P$113)*TRANSPOSE(($D121:$E121))),0) -> 7328273.767 | Q121: =Q$111+IF($C121<>0,SUMPRODUCT((Q$112:Q$113)*TRANSPOSE(($D121:$E121))),0) -> 7224502.497 | R121: =R$111+IF($C121<>0,SUMPRODUCT((R$112:R$113)*TRANSPOSE(($D121:$E121))),0) -> 7224502.497 | S121: =S$111+IF($C121<>0,SUMPRODUCT((S$112:S$113)*TRANSPOSE(($D121:$E121))),0) -> 7224502.497 | T121: =T$111+IF($C121<>0,SUMPRODUCT((T$112:T$113)*TRANSPOSE(($D121:$E121))),0) -> 7224502.497 | U121: =U$111+IF($C121<>0,SUMPRODUCT((U$112:U$113)*TRANSPOSE(($D121:$E121))),0) -> 7224502.497 | V121: =V$111+IF($C121<>0,SUMPRODUCT((V$112:V$113)*TRANSPOSE(($D121:$E121))),0) -> 7224502.497 | W121: =W$111+IF($C121<>0,SUMPRODUCT((W$112:W$113)*TRANSPOSE(($D121:$E121))),0) -> 7224502.497 | X121: =X$111+IF($C121<>0,SUMPRODUCT((X$112:X$113)*TRANSPOSE(($D121:$E121))),0) -> 7224502.497 | Y121: =Y$111+IF($C121<>0,SUMPRODUCT((Y$112:Y$113)*TRANSPOSE(($D121:$E121))),0) -> 7224502.497 | Z121: =Z$111+IF($C121<>0,SUMPRODUCT((Z$112:Z$113)*TRANSPOSE(($D121:$E121))),0) -> 7224502.497 | AA121: =AA$111+IF($C121<>0,SUMPRODUCT((AA$112:AA$113)*TRANSPOSE(($D121:$E121))),0) -> 7224502.497 | AB121: =AB$111+IF($C121<>0,SUMPRODUCT((AB$112:AB$113)*TRANSPOSE(($D121:$E121))),0) -> 7224502.497 | AC121: =AC$111+IF($C121<>0,SUMPRODUCT((AC$112:AC$113)*TRANSPOSE(($D121:$E121))),0) -> 7224502.497 | AD121: =AD$111+IF($C121<>0,SUMPRODUCT((AD$112:AD$113)*TRANSPOSE(($D121:$E121))),0) -> 7224502.497 | AE121: =AE$111+IF($C121<>0,SUMPRODUCT((AE$112:AE$113)*TRANSPOSE(($D121:$E121))),0) -> 7224502.497 | AF121: =AF$111+IF($C121<>0,SUMPRODUCT((AF$112:AF$113)*TRANSPOSE(($D121:$E121))),0) -> 7224502.497 | AG121: =AG$111+IF($C121<>0,SUMPRODUCT((AG$112:AG$113)*TRANSPOSE(($D121:$E121))),0) -> 7224502.497
A122: ="sens"&Assumptions!B118 -> sens | C122: =Assumptions!C118 -> 0 | D122: =Assumptions!G118 -> 0 | E122: =Assumptions!H118 -> 0 | G122: Option 2sens | I122: =I$111+IF($C122<>0,SUMPRODUCT((I$112:I$113)*TRANSPOSE(($D122:$E122))),0) -> 0 | J122: =J$111+IF($C122<>0,SUMPRODUCT((J$112:J$113)*TRANSPOSE(($D122:$E122))),0) -> -385890.2396 | K122: =K$111+IF($C122<>0,SUMPRODUCT((K$112:K$113)*TRANSPOSE(($D122:$E122))),0) -> 4314096.649 | L122: =L$111+IF($C122<>0,SUMPRODUCT((L$112:L$113)*TRANSPOSE(($D122:$E122))),0) -> 4524645.23 | M122: =M$111+IF($C122<>0,SUMPRODUCT((M$112:M$113)*TRANSPOSE(($D122:$E122))),0) -> 4835737.416 | N122: =N$111+IF($C122<>0,SUMPRODUCT((N$112:N$113)*TRANSPOSE(($D122:$E122))),0) -> 5641278.665 | O122: =O$111+IF($C122<>0,SUMPRODUCT((O$112:O$113)*TRANSPOSE(($D122:$E122))),0) -> 6677143.137 | P122: =P$111+IF($C122<>0,SUMPRODUCT((P$112:P$113)*TRANSPOSE(($D122:$E122))),0) -> 7328273.767 | Q122: =Q$111+IF($C122<>0,SUMPRODUCT((Q$112:Q$113)*TRANSPOSE(($D122:$E122))),0) -> 7224502.497 | R122: =R$111+IF($C122<>0,SUMPRODUCT((R$112:R$113)*TRANSPOSE(($D122:$E122))),0) -> 7224502.497 | S122: =S$111+IF($C122<>0,SUMPRODUCT((S$112:S$113)*TRANSPOSE(($D122:$E122))),0) -> 7224502.497 | T122: =T$111+IF($C122<>0,SUMPRODUCT((T$112:T$113)*TRANSPOSE(($D122:$E122))),0) -> 7224502.497 | U122: =U$111+IF($C122<>0,SUMPRODUCT((U$112:U$113)*TRANSPOSE(($D122:$E122))),0) -> 7224502.497 | V122: =V$111+IF($C122<>0,SUMPRODUCT((V$112:V$113)*TRANSPOSE(($D122:$E122))),0) -> 7224502.497 | W122: =W$111+IF($C122<>0,SUMPRODUCT((W$112:W$113)*TRANSPOSE(($D122:$E122))),0) -> 7224502.497 | X122: =X$111+IF($C122<>0,SUMPRODUCT((X$112:X$113)*TRANSPOSE(($D122:$E122))),0) -> 7224502.497 | Y122: =Y$111+IF($C122<>0,SUMPRODUCT((Y$112:Y$113)*TRANSPOSE(($D122:$E122))),0) -> 7224502.497 | Z122: =Z$111+IF($C122<>0,SUMPRODUCT((Z$112:Z$113)*TRANSPOSE(($D122:$E122))),0) -> 7224502.497 | AA122: =AA$111+IF($C122<>0,SUMPRODUCT((AA$112:AA$113)*TRANSPOSE(($D122:$E122))),0) -> 7224502.497 | AB122: =AB$111+IF($C122<>0,SUMPRODUCT((AB$112:AB$113)*TRANSPOSE(($D122:$E122))),0) -> 7224502.497 | AC122: =AC$111+IF($C122<>0,SUMPRODUCT((AC$112:AC$113)*TRANSPOSE(($D122:$E122))),0) -> 7224502.497 | AD122: =AD$111+IF($C122<>0,SUMPRODUCT((AD$112:AD$113)*TRANSPOSE(($D122:$E122))),0) -> 7224502.497 | AE122: =AE$111+IF($C122<>0,SUMPRODUCT((AE$112:AE$113)*TRANSPOSE(($D122:$E122))),0) -> 7224502.497 | AF122: =AF$111+IF($C122<>0,SUMPRODUCT((AF$112:AF$113)*TRANSPOSE(($D122:$E122))),0) -> 7224502.497 | AG122: =AG$111+IF($C122<>0,SUMPRODUCT((AG$112:AG$113)*TRANSPOSE(($D122:$E122))),0) -> 7224502.497

Sheet Option3
A1: =bus -> CitiPower
A2: =proj -> Bouverie Queensberry supply area
A3: OPTION 3 | C3: =INDEX(Assumptions!$E$14:$E$18, MATCH(A3,_xlfn.ANCHORARRAY( Assumptions!$C$14),0)) -> Rebuild LS to supply the Arden precinct
A4: =(INDEX(Data!$D$9:$D$13, MATCH(A3, options,0))) -> 
A6: ='Option1 (base case)'!A6 -> Count | I6: ='Option1 (base case)'!I6 -> 1 | J6: ='Option1 (base case)'!J6 -> 2 | K6: ='Option1 (base case)'!K6 -> 3 | L6: ='Option1 (base case)'!L6 -> 4 | M6: ='Option1 (base case)'!M6 -> 5 | N6: ='Option1 (base case)'!N6 -> 6 | O6: ='Option1 (base case)'!O6 -> 7 | P6: ='Option1 (base case)'!P6 -> 8 | Q6: ='Option1 (base case)'!Q6 -> 9 | R6: ='Option1 (base case)'!R6 -> 10 | S6: ='Option1 (base case)'!S6 -> 11 | T6: ='Option1 (base case)'!T6 -> 12 | U6: ='Option1 (base case)'!U6 -> 13 | V6: ='Option1 (base case)'!V6 -> 14 | W6: ='Option1 (base case)'!W6 -> 15 | X6: ='Option1 (base case)'!X6 -> 16 | Y6: ='Option1 (base case)'!Y6 -> 17 | Z6: ='Option1 (base case)'!Z6 -> 18 | AA6: ='Option1 (base case)'!AA6 -> 19 | AB6: ='Option1 (base case)'!AB6 -> 20 | AC6: ='Option1 (base case)'!AC6 -> 21 | AD6: ='Option1 (base case)'!AD6 -> 22 | AE6: ='Option1 (base case)'!AE6 -> 23 | AF6: ='Option1 (base case)'!AF6 -> 24 | AG6: ='Option1 (base case)'!AG6 -> 25
A7: ='Option1 (base case)'!A7 -> Value of CO2 reductions | G7: $/MWh | I7: ='Option1 (base case)'!I7 -> 24.7304868 | J7: ='Option1 (base case)'!J7 -> 22.34074009 | K7: ='Option1 (base case)'!K7 -> 20.19632912 | L7: ='Option1 (base case)'!L7 -> 18.06294208 | M7: ='Option1 (base case)'!M7 -> 15.91339762 | N7: ='Option1 (base case)'!N7 -> 13.71506943 | O7: ='Option1 (base case)'!O7 -> 13.71506943 | P7: ='Option1 (base case)'!P7 -> 13.71506943 | Q7: ='Option1 (base case)'!Q7 -> 13.71506943 | R7: ='Option1 (base case)'!R7 -> 13.71506943 | S7: ='Option1 (base case)'!S7 -> 13.71506943 | T7: ='Option1 (base case)'!T7 -> 13.71506943 | U7: ='Option1 (base case)'!U7 -> 13.71506943 | V7: ='Option1 (base case)'!V7 -> 13.71506943 | W7: ='Option1 (base case)'!W7 -> 13.71506943 | X7: ='Option1 (base case)'!X7 -> 13.71506943 | Y7: ='Option1 (base case)'!Y7 -> 13.71506943 | Z7: ='Option1 (base case)'!Z7 -> 13.71506943 | AA7: ='Option1 (base case)'!AA7 -> 13.71506943 | AB7: ='Option1 (base case)'!AB7 -> 13.71506943 | AC7: ='Option1 (base case)'!AC7 -> 13.71506943 | AD7: ='Option1 (base case)'!AD7 -> 13.71506943 | AE7: ='Option1 (base case)'!AE7 -> 13.71506943 | AF7: ='Option1 (base case)'!AF7 -> 13.71506943 | AG7: ='Option1 (base case)'!AG7 -> 13.71506943
I8: =_xlfn.NUMBERVALUE(LEFT(I$9,4))+1 -> 2027 | J8: =_xlfn.NUMBERVALUE(LEFT(J$9,4))+1 -> 2028 | K8: 2029 | L8: 2030 | M8: 2031 | N8: 2032 | O8: 2033 | P8: 2034 | Q8: 2035 | R8: 2036 | S8: 2037 | T8: 2038 | U8: 2039 | V8: 2040 | W8: 2041 | X8: 2042 | Y8: 2043 | Z8: 2044 | AA8: 2045 | AB8: 2046 | AC8: 2047 | AD8: 2048 | AE8: 2049 | AF8: 2050 | AG8: 2051
G9: Units | I9: ='Option1 (base case)'!I9 -> 2026-27 | J9: ='Option1 (base case)'!J9 -> 2027-28 | K9: ='Option1 (base case)'!K9 -> 2028-29 | L9: ='Option1 (base case)'!L9 -> 2029-30 | M9: ='Option1 (base case)'!M9 -> 2030-31 | N9: ='Option1 (base case)'!N9 -> 2031-32 | O9: ='Option1 (base case)'!O9 -> 2032-33 | P9: ='Option1 (base case)'!P9 -> 2033-34 | Q9: ='Option1 (base case)'!Q9 -> 2034-35 | R9: ='Option1 (base case)'!R9 -> 2035-36 | S9: ='Option1 (base case)'!S9 -> 2036-37 | T9: ='Option1 (base case)'!T9 -> 2037-38 | U9: ='Option1 (base case)'!U9 -> 2038-39 | V9: ='Option1 (base case)'!V9 -> 2039-40 | W9: ='Option1 (base case)'!W9 -> 2040-41 | X9: ='Option1 (base case)'!X9 -> 2041-42 | Y9: ='Option1 (base case)'!Y9 -> 2042-43 | Z9: ='Option1 (base case)'!Z9 -> 2043-44 | AA9: ='Option1 (base case)'!AA9 -> 2044-45 | AB9: ='Option1 (base case)'!AB9 -> 2045-46 | AC9: ='Option1 (base case)'!AC9 -> 2046-47 | AD9: ='Option1 (base case)'!AD9 -> 2047-48 | AE9: ='Option1 (base case)'!AE9 -> 2048-49 | AF9: ='Option1 (base case)'!AF9 -> 2049-50 | AG9: ='Option1 (base case)'!AG9 -> 2050-51
A11: INVESTMENT & OPERATING COST
C13: Capex | E13: Asset life (yrs)
C14: < Enter description > | E14: 50 | G14: =input_dollars -> 2023-12-31 | I14: 31468750 | J14: 31468750 | K14: 0 | L14: 0 | M14: 0 | N14: 0 | O14: 0 | P14: 0 | Q14: 0 | R14: 0 | S14: 0 | T14: 0 | U14: 0 | V14: 0 | W14: 0 | X14: 0 | Y14: 0 | Z14: 0 | AA14: 0 | AB14: 0 | AC14: 0 | AD14: 0 | AE14: 0 | AF14: 0 | AG14: 0
C15: < Enter description > | E15: 0 | G15: =input_dollars -> 2023-12-31 | I15: 0 | J15: 0 | K15: 0 | L15: 0 | M15: 0 | N15: 0 | O15: 0 | P15: 0 | Q15: 0 | R15: 0 | S15: 0 | T15: 0 | U15: 0 | V15: 0 | W15: 0 | X15: 0 | Y15: 0 | Z15: 0 | AA15: 0 | AB15: 0 | AC15: 0 | AD15: 0 | AE15: 0 | AF15: 0 | AG15: 0
C16: < Enter description > | E16: 0 | G16: =input_dollars -> 2023-12-31 | I16: 0 | J16: 0 | K16: 0 | L16: 0 | M16: 0 | N16: 0 | O16: 0 | P16: 0 | Q16: 0 | R16: 0 | S16: 0 | T16: 0 | U16: 0 | V16: 0 | W16: 0 | X16: 0 | Y16: 0 | Z16: 0 | AA16: 0 | AB16: 0 | AC16: 0 | AD16: 0 | AE16: 0 | AF16: 0 | AG16: 0
C17: Capital expenditure | G17: =input_dollars -> 2023-12-31 | I17: =SUM(I14:I16) -> 31468750 | J17: 31468750 | K17: 0 | L17: 0 | M17: 0 | N17: 0 | O17: 0 | P17: 0 | Q17: 0 | R17: =SUM(R14:R16) -> 0 | S17: 0 | T17: 0 | U17: 0 | V17: 0 | W17: 0 | X17: 0 | Y17: 0 | Z17: 0 | AA17: 0 | AB17: 0 | AC17: =SUM(AC14:AC16) -> 0 | AD17: =SUM(AD14:AD16) -> 0 | AE17: =SUM(AE14:AE16) -> 0 | AF17: =SUM(AF14:AF16) -> 0 | AG17: =SUM(AG14:AG16) -> 0
C19: Operating expenditure | G19: =input_dollars -> 2023-12-31 | I19: 0 | J19: 0 | K19: 0 | L19: 0 | M19: 0 | N19: 0 | O19: 0 | P19: 0 | Q19: 0 | R19: 0 | S19: 0 | T19: 0 | U19: 0 | V19: 0 | W19: 0 | X19: 0 | Y19: 0 | Z19: 0 | AA19: 0 | AB19: 0 | AC19: 0 | AD19: 0 | AE19: 0 | AF19: 0 | AG19: 0
A22: RISK ASSUMPTIONS
C24: PoF (major) | I24: 0 | J24: 0 | K24: 0 | L24: 0 | M24: 0 | N24: 0 | O24: 0 | P24: 0 | Q24: 0 | R24: 0 | S24: 0 | T24: 0 | U24: 0 | V24: 0 | W24: 0 | X24: 0 | Y24: 0 | Z24: 0 | AA24: 0 | AB24: 0 | AC24: 0 | AD24: 0 | AE24: 0 | AF24: 0 | AG24: 0
C25: PoF (reparable) | I25: 0 | J25: 0 | K25: 0 | L25: 0 | M25: 0 | N25: 0 | O25: 0 | P25: 0 | Q25: 0 | R25: 0 | S25: 0 | T25: 0 | U25: 0 | V25: 0 | W25: 0 | X25: 0 | Y25: 0 | Z25: 0 | AA25: 0 | AB25: 0 | AC25: 0 | AD25: 0 | AE25: 0 | AF25: 0 | AG25: 0
C27: Const end date | E27: 2028
C28: Energy at risk 10% PoE | E28: 0.3 | G28: MWh | I28: =_xlfn.IFS(I$8<=$E$27,'Option1 (base case)'!I$28,I$8>$E$27,SUM('EaR Opt3 LS'!I$15,'EaR Opt3 BQ'!I$15,'EaR Opt3 VM'!I$15)) -> 4.145505979 | J28: =_xlfn.IFS(J$8<=$E$27,'Option1 (base case)'!J$28,J$8>$E$27,SUM('EaR Opt3 LS'!J$15,'EaR Opt3 BQ'!J$15,'EaR Opt3 VM'!J$15)) -> 3.783998107 | K28: =_xlfn.IFS(K$8<=$E$27,'Option1 (base case)'!K$28,K$8>$E$27,SUM('EaR Opt3 LS'!K$15,'EaR Opt3 BQ'!K$15,'EaR Opt3 VM'!K$15)) -> 3.293892475 | L28: =_xlfn.IFS(L$8<=$E$27,'Option1 (base case)'!L$28,L$8>$E$27,SUM('EaR Opt3 LS'!L$15,'EaR Opt3 BQ'!L$15,'EaR Opt3 VM'!L$15)) -> 2.783125344 | M28: =_xlfn.IFS(M$8<=$E$27,'Option1 (base case)'!M$28,M$8>$E$27,SUM('EaR Opt3 LS'!M$15,'EaR Opt3 BQ'!M$15,'EaR Opt3 VM'!M$15)) -> 2.658085877 | N28: =_xlfn.IFS(N$8<=$E$27,'Option1 (base case)'!N$28,N$8>$E$27,SUM('EaR Opt3 LS'!N$15,'EaR Opt3 BQ'!N$15,'EaR Opt3 VM'!N$15)) -> 2.965786946 | O28: =_xlfn.IFS(O$8<=$E$27,'Option1 (base case)'!O$28,O$8>$E$27,SUM('EaR Opt3 LS'!O$15,'EaR Opt3 BQ'!O$15,'EaR Opt3 VM'!O$15)) -> 3.483885237 | P28: =_xlfn.IFS(P$8<=$E$27,'Option1 (base case)'!P$28,P$8>$E$27,SUM('EaR Opt3 LS'!P$15,'EaR Opt3 BQ'!P$15,'EaR Opt3 VM'!P$15)) -> 3.550888159 | Q28: =_xlfn.IFS(Q$8<=$E$27,'Option1 (base case)'!Q$28,Q$8>$E$27,SUM('EaR Opt3 LS'!Q$15,'EaR Opt3 BQ'!Q$15,'EaR Opt3 VM'!Q$15)) -> 3.289315358 | R28: =_xlfn.IFS(R$8<=$E$27,'Option1 (base case)'!R$28,R$8>$E$27,SUM('EaR Opt3 LS'!R$15,'EaR Opt3 BQ'!R$15,'EaR Opt3 VM'!R$15)) -> 3.289315358 | S28: =_xlfn.IFS(S$8<=$E$27,'Option1 (base case)'!S$28,S$8>$E$27,SUM('EaR Opt3 LS'!S$15,'EaR Opt3 BQ'!S$15,'EaR Opt3 VM'!S$15)) -> 3.289315358 | T28: =_xlfn.IFS(T$8<=$E$27,'Option1 (base case)'!T$28,T$8>$E$27,SUM('EaR Opt3 LS'!T$15,'EaR Opt3 BQ'!T$15,'EaR Opt3 VM'!T$15)) -> 3.289315358 | U28: =_xlfn.IFS(U$8<=$E$27,'Option1 (base case)'!U$28,U$8>$E$27,SUM('EaR Opt3 LS'!U$15,'EaR Opt3 BQ'!U$15,'EaR Opt3 VM'!U$15)) -> 3.289315358 | V28: =_xlfn.IFS(V$8<=$E$27,'Option1 (base case)'!V$28,V$8>$E$27,SUM('EaR Opt3 LS'!V$15,'EaR Opt3 BQ'!V$15,'EaR Opt3 VM'!V$15)) -> 3.289315358 | W28: =_xlfn.IFS(W$8<=$E$27,'Option1 (base case)'!W$28,W$8>$E$27,SUM('EaR Opt3 LS'!W$15,'EaR Opt3 BQ'!W$15,'EaR Opt3 VM'!W$15)) -> 3.289315358 | X28: =_xlfn.IFS(X$8<=$E$27,'Option1 (base case)'!X$28,X$8>$E$27,SUM('EaR Opt3 LS'!X$15,'EaR Opt3 BQ'!X$15,'EaR Opt3 VM'!X$15)) -> 3.289315358 | Y28: =_xlfn.IFS(Y$8<=$E$27,'Option1 (base case)'!Y$28,Y$8>$E$27,SUM('EaR Opt3 LS'!Y$15,'EaR Opt3 BQ'!Y$15,'EaR Opt3 VM'!Y$15)) -> 3.289315358 | Z28: =_xlfn.IFS(Z$8<=$E$27,'Option1 (base case)'!Z$28,Z$8>$E$27,SUM('EaR Opt3 LS'!Z$15,'EaR Opt3 BQ'!Z$15,'EaR Opt3 VM'!Z$15)) -> 3.289315358 | AA28: =_xlfn.IFS(AA$8<=$E$27,'Option1 (base case)'!AA$28,AA$8>$E$27,SUM('EaR Opt3 LS'!AA$15,'EaR Opt3 BQ'!AA$15,'EaR Opt3 VM'!AA$15)) -> 3.289315358 | AB28: =_xlfn.IFS(AB$8<=$E$27,'Option1 (base case)'!AB$28,AB$8>$E$27,SUM('EaR Opt3 LS'!AB$15,'EaR Opt3 BQ'!AB$15,'EaR Opt3 VM'!AB$15)) -> 3.289315358 | AC28: =_xlfn.IFS(AC$8<=$E$27,'Option1 (base case)'!AC$28,AC$8>$E$27,SUM('EaR Opt3 LS'!AC$15,'EaR Opt3 BQ'!AC$15,'EaR Opt3 VM'!AC$15)) -> 3.289315358 | AD28: =_xlfn.IFS(AD$8<=$E$27,'Option1 (base case)'!AD$28,AD$8>$E$27,SUM('EaR Opt3 LS'!AD$15,'EaR Opt3 BQ'!AD$15,'EaR Opt3 VM'!AD$15)) -> 3.289315358 | AE28: =_xlfn.IFS(AE$8<=$E$27,'Option1 (base case)'!AE$28,AE$8>$E$27,SUM('EaR Opt3 LS'!AE$15,'EaR Opt3 BQ'!AE$15,'EaR Opt3 VM'!AE$15)) -> 3.289315358 | AF28: =_xlfn.IFS(AF$8<=$E$27,'Option1 (base case)'!AF$28,AF$8>$E$27,SUM('EaR Opt3 LS'!AF$15,'EaR Opt3 BQ'!AF$15,'EaR Opt3 VM'!AF$15)) -> 3.289315358 | AG28: =AF28 -> 3.289315358
C29: Energy at risk 50% PoE | E29: 0.7 | G29: MWh | I29: =_xlfn.IFS(I$8<=$E$27,'Option1 (base case)'!I$29,I$8>$E$27,SUM('EaR Opt3 LS'!I$14,'EaR Opt3 BQ'!I$14,'EaR Opt3 VM'!I$14)) -> 1.038089825 | J29: =_xlfn.IFS(J$8<=$E$27,'Option1 (base case)'!J$29,J$8>$E$27,SUM('EaR Opt3 LS'!J$14,'EaR Opt3 BQ'!J$14,'EaR Opt3 VM'!J$14)) -> 0.9021775155 | K29: =_xlfn.IFS(K$8<=$E$27,'Option1 (base case)'!K$29,K$8>$E$27,SUM('EaR Opt3 LS'!K$14,'EaR Opt3 BQ'!K$14,'EaR Opt3 VM'!K$14)) -> 0.7362184606 | L29: =_xlfn.IFS(L$8<=$E$27,'Option1 (base case)'!L$29,L$8>$E$27,SUM('EaR Opt3 LS'!L$14,'EaR Opt3 BQ'!L$14,'EaR Opt3 VM'!L$14)) -> 0.5765826054 | M29: =_xlfn.IFS(M$8<=$E$27,'Option1 (base case)'!M$29,M$8>$E$27,SUM('EaR Opt3 LS'!M$14,'EaR Opt3 BQ'!M$14,'EaR Opt3 VM'!M$14)) -> 0.5330164916 | N29: =_xlfn.IFS(N$8<=$E$27,'Option1 (base case)'!N$29,N$8>$E$27,SUM('EaR Opt3 LS'!N$14,'EaR Opt3 BQ'!N$14,'EaR Opt3 VM'!N$14)) -> 0.6048463495 | O29: =_xlfn.IFS(O$8<=$E$27,'Option1 (base case)'!O$29,O$8>$E$27,SUM('EaR Opt3 LS'!O$14,'EaR Opt3 BQ'!O$14,'EaR Opt3 VM'!O$14)) -> 0.745263897 | P29: =_xlfn.IFS(P$8<=$E$27,'Option1 (base case)'!P$29,P$8>$E$27,SUM('EaR Opt3 LS'!P$14,'EaR Opt3 BQ'!P$14,'EaR Opt3 VM'!P$14)) -> 0.7639203922 | Q29: =_xlfn.IFS(Q$8<=$E$27,'Option1 (base case)'!Q$29,Q$8>$E$27,SUM('EaR Opt3 LS'!Q$14,'EaR Opt3 BQ'!Q$14,'EaR Opt3 VM'!Q$14)) -> 0.6896441153 | R29: =_xlfn.IFS(R$8<=$E$27,'Option1 (base case)'!R$29,R$8>$E$27,SUM('EaR Opt3 LS'!R$14,'EaR Opt3 BQ'!R$14,'EaR Opt3 VM'!R$14)) -> 0.6896441153 | S29: =_xlfn.IFS(S$8<=$E$27,'Option1 (base case)'!S$29,S$8>$E$27,SUM('EaR Opt3 LS'!S$14,'EaR Opt3 BQ'!S$14,'EaR Opt3 VM'!S$14)) -> 0.6896441153 | T29: =_xlfn.IFS(T$8<=$E$27,'Option1 (base case)'!T$29,T$8>$E$27,SUM('EaR Opt3 LS'!T$14,'EaR Opt3 BQ'!T$14,'EaR Opt3 VM'!T$14)) -> 0.6896441153 | U29: =_xlfn.IFS(U$8<=$E$27,'Option1 (base case)'!U$29,U$8>$E$27,SUM('EaR Opt3 LS'!U$14,'EaR Opt3 BQ'!U$14,'EaR Opt3 VM'!U$14)) -> 0.6896441153 | V29: =_xlfn.IFS(V$8<=$E$27,'Option1 (base case)'!V$29,V$8>$E$27,SUM('EaR Opt3 LS'!V$14,'EaR Opt3 BQ'!V$14,'EaR Opt3 VM'!V$14)) -> 0.6896441153 | W29: =_xlfn.IFS(W$8<=$E$27,'Option1 (base case)'!W$29,W$8>$E$27,SUM('EaR Opt3 LS'!W$14,'EaR Opt3 BQ'!W$14,'EaR Opt3 VM'!W$14)) -> 0.6896441153 | X29: =_xlfn.IFS(X$8<=$E$27,'Option1 (base case)'!X$29,X$8>$E$27,SUM('EaR Opt3 LS'!X$14,'EaR Opt3 BQ'!X$14,'EaR Opt3 VM'!X$14)) -> 0.6896441153 | Y29: =_xlfn.IFS(Y$8<=$E$27,'Option1 (base case)'!Y$29,Y$8>$E$27,SUM('EaR Opt3 LS'!Y$14,'EaR Opt3 BQ'!Y$14,'EaR Opt3 VM'!Y$14)) -> 0.6896441153 | Z29: =_xlfn.IFS(Z$8<=$E$27,'Option1 (base case)'!Z$29,Z$8>$E$27,SUM('EaR Opt3 LS'!Z$14,'EaR Opt3 BQ'!Z$14,'EaR Opt3 VM'!Z$14)) -> 0.6896441153 | AA29: =_xlfn.IFS(AA$8<=$E$27,'Option1 (base case)'!AA$29,AA$8>$E$27,SUM('EaR Opt3 LS'!AA$14,'EaR Opt3 BQ'!AA$14,'EaR Opt3 VM'!AA$14)) -> 0.6896441153 | AB29: =_xlfn.IFS(AB$8<=$E$27,'Option1 (base case)'!AB$29,AB$8>$E$27,SUM('EaR Opt3 LS'!AB$14,'EaR Opt3 BQ'!AB$14,'EaR Opt3 VM'!AB$14)) -> 0.6896441153 | AC29: =_xlfn.IFS(AC$8<=$E$27,'Option1 (base case)'!AC$29,AC$8>$E$27,SUM('EaR Opt3 LS'!AC$14,'EaR Opt3 BQ'!AC$14,'EaR Opt3 VM'!AC$14)) -> 0.6896441153 | AD29: =_xlfn.IFS(AD$8<=$E$27,'Option1 (base case)'!AD$29,AD$8>$E$27,SUM('EaR Opt3 LS'!AD$14,'EaR Opt3 BQ'!AD$14,'EaR Opt3 VM'!AD$14)) -> 0.6896441153 | AE29: =_xlfn.IFS(AE$8<=$E$27,'Option1 (base case)'!AE$29,AE$8>$E$27,SUM('EaR Opt3 LS'!AE$14,'EaR Opt3 BQ'!AE$14,'EaR Opt3 VM'!AE$14)) -> 0.6896441153 | AF29: =_xlfn.IFS(AF$8<=$E$27,'Option1 (base case)'!AF$29,AF$8>$E$27,SUM('EaR Opt3 LS'!AF$14,'EaR Opt3 BQ'!AF$14,'EaR Opt3 VM'!AF$14)) -> 0.6896441153 | AG29: =AF29 -> 0.6896441153
C31: Energy at risk (weighted) | G31: MWh | I31: =SUMPRODUCT(I$28:I$29, $E$28:$E$29) -> 1.970314671 | J31: =SUMPRODUCT(J$28:J$29, $E$28:$E$29) -> 1.766723693 | K31: 1.503520665 | L31: 1.238545427 | M31: 1.170537307 | N31: 1.313128528 | O31: 1.566850299 | P31: 1.600010722 | Q31: 1.469545488 | R31: 1.469545488 | S31: 1.469545488 | T31: 1.469545488 | U31: 1.469545488 | V31: 1.469545488 | W31: 1.469545488 | X31: 1.469545488 | Y31: 1.469545488 | Z31: 1.469545488 | AA31: 1.469545488 | AB31: 1.469545488 | AC31: 1.469545488 | AD31: 1.469545488 | AE31: 1.469545488 | AF31: 1.469545488 | AG31: 1.469545488
C32: Energy at risk value | D32: $/MWh | E32: =Assumptions!H41*vcr_esc -> 36935.21398 | F32: =IF(AND(SUM(I31:AG31)<>0, E32=0), "!", "") ->  | G32: =input_dollars -> 2023-12-31 | I32: =I31*$E$32 -> 72773.99399 | J32: =J31*$E$32 -> 65254.31764 | K32: 55532.85748 | L32: 45745.94037 | M32: 43234.04591 | N32: 48500.68317 | O32: 57871.95106 | P32: 59096.73839 | Q32: 54277.97705 | R32: 54277.97705 | S32: 54277.97705 | T32: 54277.97705 | U32: 54277.97705 | V32: 54277.97705 | W32: 54277.97705 | X32: 54277.97705 | Y32: 54277.97705 | Z32: 54277.97705 | AA32: 54277.97705 | AB32: 54277.97705 | AC32: 54277.97705 | AD32: 54277.97705 | AE32: 54277.97705 | AF32: 54277.97705 | AG32: 54277.97705
C34: Safety consequence | D34: (after DF) | G34: =input_dollars -> 2023-12-31 | I34: 0 | J34: 0 | K34: 0 | L34: 0 | M34: 0 | N34: 0 | O34: 0 | P34: 0 | Q34: 0 | R34: 0 | S34: 0 | T34: 0 | U34: 0 | V34: 0 | W34: 0 | X34: 0 | Y34: 0 | Z34: 0 | AA34: 0 | AB34: 0 | AC34: 0 | AD34: 0 | AE34: 0 | AF34: 0 | AG34: 0
C35: Unplanned replacements | G35: =input_dollars -> 2023-12-31 | I35: 0 | J35: 0 | K35: 0 | L35: 0 | M35: 0 | N35: 0 | O35: 0 | P35: 0 | Q35: 0 | R35: 0 | S35: 0 | T35: 0 | U35: 0 | V35: 0 | W35: 0 | X35: 0 | Y35: 0 | Z35: 0 | AA35: 0 | AB35: 0 | AC35: 0 | AD35: 0 | AE35: 0 | AF35: 0 | AG35: 0
C36: Environmental consequence | D36: (after DF) | G36: =input_dollars -> 2023-12-31 | I36: 0 | J36: 0 | K36: 0 | L36: 0 | M36: 0 | N36: 0 | O36: 0 | P36: 0 | Q36: 0 | R36: 0 | S36: 0 | T36: 0 | U36: 0 | V36: 0 | W36: 0 | X36: 0 | Y36: 0 | Z36: 0 | AA36: 0 | AB36: 0 | AC36: 0 | AD36: 0 | AE36: 0 | AF36: 0 | AG36: 0
C37: < Other risk - enter description > | G37: =input_dollars -> 2023-12-31 | I37: 0 | J37: 0 | K37: 0 | L37: 0 | M37: 0 | N37: 0 | O37: 0 | P37: 0 | Q37: 0 | R37: 0 | S37: 0 | T37: 0 | U37: 0 | V37: 0 | W37: 0 | X37: 0 | Y37: 0 | Z37: 0 | AA37: 0 | AB37: 0 | AC37: 0 | AD37: 0 | AE37: 0 | AF37: 0 | AG37: 0
C38: < Other risk - enter description > | G38: =input_dollars -> 2023-12-31 | I38: 0 | J38: 0 | K38: 0 | L38: 0 | M38: 0 | N38: 0 | O38: 0 | P38: 0 | Q38: 0 | R38: 0 | S38: 0 | T38: 0 | U38: 0 | V38: 0 | W38: 0 | X38: 0 | Y38: 0 | Z38: 0 | AA38: 0 | AB38: 0 | AC38: 0 | AD38: 0 | AE38: 0 | AF38: 0 | AG38: 0
C40: Total risk cost | I40: =SUM(I32:I38) -> 72773.99399 | J40: =SUM(J32:J38) -> 65254.31764 | K40: 55532.85748 | L40: 45745.94037 | M40: 43234.04591 | N40: 48500.68317 | O40: 57871.95106 | P40: 59096.73839 | Q40: 54277.97705 | R40: 54277.97705 | S40: 54277.97705 | T40: 54277.97705 | U40: 54277.97705 | V40: 54277.97705 | W40: 54277.97705 | X40: 54277.97705 | Y40: 54277.97705 | Z40: 54277.97705 | AA40: 54277.97705 | AB40: 54277.97705 | AC40: =SUM(AC32:AC38) -> 54277.97705 | AD40: =SUM(AD32:AD38) -> 54277.97705 | AE40: =SUM(AE32:AE38) -> 54277.97705 | AF40: =SUM(AF32:AF38) -> 54277.97705 | AG40: =SUM(AG32:AG38) -> 54277.97705
A42: OTHER BENEFITS
C45: Reduction in CO2 emissions | G45: MWh | I45: 0 | J45: 0 | K45: 0 | L45: 0 | M45: 0 | N45: 0 | O45: 0 | P45: 0 | Q45: 0 | R45: 0 | S45: 0 | T45: 0 | U45: 0 | V45: 0 | W45: 0 | X45: 0 | Y45: 0 | Z45: 0 | AA45: 0 | AB45: 0 | AC45: 0 | AD45: 0 | AE45: 0 | AF45: 0 | AG45: 0
C46: Value of reduction in CO2 emissions | G46: $ | I46: =I45*I7 -> 0 | J46: 0 | K46: 0 | L46: 0 | M46: 0 | N46: 0 | O46: 0 | P46: 0 | Q46: 0 | R46: 0 | S46: 0 | T46: 0 | U46: 0 | V46: 0 | W46: 0 | X46: 0 | Y46: 0 | Z46: 0 | AA46: 0 | AB46: 0 | AC46: 0 | AD46: 0 | AE46: 0 | AF46: 0 | AG46: 0
C49: Reliability in worst-served areas | D49: $/MWh | E49: =Assumptions!G94 -> 0 | G49: MWh | I49: 0 | J49: 0 | K49: 0 | L49: 0 | M49: 0 | N49: 0 | O49: 0 | P49: 0 | Q49: 0 | R49: 0 | S49: 0 | T49: 0 | U49: 0 | V49: 0 | W49: 0 | X49: 0 | Y49: 0 | Z49: 0 | AA49: 0 | AB49: 0 | AC49: 0 | AD49: 0 | AE49: 0 | AF49: 0 | AG49: 0
C50: Network resilience | D50: $/MWh | E50: =Assumptions!G95 -> 0 | G50: MWh | I50: 0 | J50: 0 | K50: 0 | L50: 0 | M50: 0 | N50: 0 | O50: 0 | P50: 0 | Q50: 0 | R50: 0 | S50: 0 | T50: 0 | U50: 0 | V50: 0 | W50: 0 | X50: 0 | Y50: 0 | Z50: 0 | AA50: 0 | AB50: 0 | AC50: 0 | AD50: 0 | AE50: 0 | AF50: 0 | AG50: 0
C51: Enabling solar exports | D51: $/MWh | E51: =Assumptions!G96 -> 4220.99537 | G51: MWh | I51: 0 | J51: 0 | K51: 0 | L51: 0 | M51: 0 | N51: 0 | O51: 0 | P51: 0 | Q51: 0 | R51: 0 | S51: 0 | T51: 0 | U51: 0 | V51: 0 | W51: 0 | X51: 0 | Y51: 0 | Z51: 0 | AA51: 0 | AB51: 0 | AC51: 0 | AD51: 0 | AE51: 0 | AF51: 0 | AG51: 0
C52: Aesthetics | D52: $/customer | E52: =Assumptions!G97 -> 0 | G52: customers | I52: 0 | J52: 0 | K52: 0 | L52: 0 | M52: 0 | N52: 0 | O52: 0 | P52: 0 | Q52: 0 | R52: 0 | S52: 0 | T52: 0 | U52: 0 | V52: 0 | W52: 0 | X52: 0 | Y52: 0 | Z52: 0 | AA52: 0 | AB52: 0 | AC52: 0 | AD52: 0 | AE52: 0 | AF52: 0 | AG52: 0
C53: Customer value of time (res) | D53: $/customer min | E53: =Assumptions!G98 -> 0.5476938068 | G53: mins | I53: 0 | J53: 0 | K53: 0 | L53: 0 | M53: 0 | N53: 0 | O53: 0 | P53: 0 | Q53: 0 | R53: 0 | S53: 0 | T53: 0 | U53: 0 | V53: 0 | W53: 0 | X53: 0 | Y53: 0 | Z53: 0 | AA53: 0 | AB53: 0 | AC53: 0 | AD53: 0 | AE53: 0 | AF53: 0 | AG53: 0
C54: Customer value of time (bus) | D54: $/customer min | E54: =Assumptions!G99 -> 0.5476938068 | G54: mins | I54: 0 | J54: 0 | K54: 0 | L54: 0 | M54: 0 | N54: 0 | O54: 0 | P54: 0 | Q54: 0 | R54: 0 | S54: 0 | T54: 0 | U54: 0 | V54: 0 | W54: 0 | X54: 0 | Y54: 0 | Z54: 0 | AA54: 0 | AB54: 0 | AC54: 0 | AD54: 0 | AE54: 0 | AF54: 0 | AG54: 0
C55: Communication | D55: $/customer | E55: =Assumptions!G100 -> 0 | G55: customers | I55: 0 | J55: 0 | K55: 0 | L55: 0 | M55: 0 | N55: 0 | O55: 0 | P55: 0 | Q55: 0 | R55: 0 | S55: 0 | T55: 0 | U55: 0 | V55: 0 | W55: 0 | X55: 0 | Y55: 0 | Z55: 0 | AA55: 0 | AB55: 0 | AC55: 0 | AD55: 0 | AE55: 0 | AF55: 0 | AG55: 0
C56: Information accessibility | D56: $/customer | E56: =Assumptions!G101 -> 0 | G56: customers | I56: 0 | J56: 0 | K56: 0 | L56: 0 | M56: 0 | N56: 0 | O56: 0 | P56: 0 | Q56: 0 | R56: 0 | S56: 0 | T56: 0 | U56: 0 | V56: 0 | W56: 0 | X56: 0 | Y56: 0 | Z56: 0 | AA56: 0 | AB56: 0 | AC56: 0 | AD56: 0 | AE56: 0 | AF56: 0 | AG56: 0
C58: Other benefits 1 | G58: =input_dollars -> 2023-12-31 | I58: 0 | J58: 0 | K58: 0 | L58: 0 | M58: 0 | N58: 0 | O58: 0 | P58: 0 | Q58: 0 | R58: 0 | S58: 0 | T58: 0 | U58: 0 | V58: 0 | W58: 0 | X58: 0 | Y58: 0 | Z58: 0 | AA58: 0 | AB58: 0 | AC58: 0 | AD58: 0 | AE58: 0 | AF58: 0 | AG58: 0
C59: Other benefits 2 | G59: =input_dollars -> 2023-12-31 | I59: 0 | J59: 0 | K59: 0 | L59: 0 | M59: 0 | N59: 0 | O59: 0 | P59: 0 | Q59: 0 | R59: 0 | S59: 0 | T59: 0 | U59: 0 | V59: 0 | W59: 0 | X59: 0 | Y59: 0 | Z59: 0 | AA59: 0 | AB59: 0 | AC59: 0 | AD59: 0 | AE59: 0 | AF59: 0 | AG59: 0
C61: Total other benefits | G61: =input_dollars -> 2023-12-31 | I61: =SUMPRODUCT((I$49:I$56)*($E$49:$E$56))+SUM(I58:I59)+I46 -> 0 | J61: =SUMPRODUCT((J$49:J$56)*($E$49:$E$56))+SUM(J58:J59)+J46 -> 0 | K61: =SUMPRODUCT((K$49:K$56)*($E$49:$E$56))+SUM(K58:K59)+K46 -> 0 | L61: =SUMPRODUCT((L$49:L$56)*($E$49:$E$56))+SUM(L58:L59)+L46 -> 0 | M61: =SUMPRODUCT((M$49:M$56)*($E$49:$E$56))+SUM(M58:M59)+M46 -> 0 | N61: =SUMPRODUCT((N$49:N$56)*($E$49:$E$56))+SUM(N58:N59)+N46 -> 0 | O61: =SUMPRODUCT((O$49:O$56)*($E$49:$E$56))+SUM(O58:O59)+O46 -> 0 | P61: =SUMPRODUCT((P$49:P$56)*($E$49:$E$56))+SUM(P58:P59)+P46 -> 0 | Q61: =SUMPRODUCT((Q$49:Q$56)*($E$49:$E$56))+SUM(Q58:Q59)+Q46 -> 0 | R61: =SUMPRODUCT((R$49:R$56)*($E$49:$E$56))+SUM(R58:R59)+R46 -> 0 | S61: =SUMPRODUCT((S$49:S$56)*($E$49:$E$56))+SUM(S58:S59)+S46 -> 0 | T61: =SUMPRODUCT((T$49:T$56)*($E$49:$E$56))+SUM(T58:T59)+T46 -> 0 | U61: =SUMPRODUCT((U$49:U$56)*($E$49:$E$56))+SUM(U58:U59)+U46 -> 0 | V61: =SUMPRODUCT((V$49:V$56)*($E$49:$E$56))+SUM(V58:V59)+V46 -> 0 | W61: =SUMPRODUCT((W$49:W$56)*($E$49:$E$56))+SUM(W58:W59)+W46 -> 0 | X61: =SUMPRODUCT((X$49:X$56)*($E$49:$E$56))+SUM(X58:X59)+X46 -> 0 | Y61: =SUMPRODUCT((Y$49:Y$56)*($E$49:$E$56))+SUM(Y58:Y59)+Y46 -> 0 | Z61: =SUMPRODUCT((Z$49:Z$56)*($E$49:$E$56))+SUM(Z58:Z59)+Z46 -> 0 | AA61: =SUMPRODUCT((AA$49:AA$56)*($E$49:$E$56))+SUM(AA58:AA59)+AA46 -> 0 | AB61: =SUMPRODUCT((AB$49:AB$56)*($E$49:$E$56))+SUM(AB58:AB59)+AB46 -> 0 | AC61: =SUMPRODUCT((AC$49:AC$56)*($E$49:$E$56))+SUM(AC58:AC59)+AC46 -> 0 | AD61: =SUMPRODUCT((AD$49:AD$56)*($E$49:$E$56))+SUM(AD58:AD59)+AD46 -> 0 | AE61: =SUMPRODUCT((AE$49:AE$56)*($E$49:$E$56))+SUM(AE58:AE59)+AE46 -> 0 | AF61: =SUMPRODUCT((AF$49:AF$56)*($E$49:$E$56))+SUM(AF58:AF59)+AF46 -> 0 | AG61: =SUMPRODUCT((AG$49:AG$56)*($E$49:$E$56))+SUM(AG58:AG59)+AG46 -> 0
A64: SUMMARY
C68: ='Option1 (base case)'!C68 -> Risks mitigated vs base case | G68: =input_dollars -> 2023-12-31 | I68: =(1-INDEX(Data!$C$9:$C$13, MATCH($A$3, options,0)))*('Option1 (base case)'!I40-I40) -> 0 | J68: =(1-INDEX(Data!$C$9:$C$13, MATCH($A$3, options,0)))*('Option1 (base case)'!J40-J40) -> 0 | K68: =(1-INDEX(Data!$C$9:$C$13, MATCH($A$3, options,0)))*('Option1 (base case)'!K40-K40) -> 5030934.912 | L68: =(1-INDEX(Data!$C$9:$C$13, MATCH($A$3, options,0)))*('Option1 (base case)'!L40-L40) -> 5251186.125 | M68: =(1-INDEX(Data!$C$9:$C$13, MATCH($A$3, options,0)))*('Option1 (base case)'!M40-M40) -> 5564912.016 | N68: =(1-INDEX(Data!$C$9:$C$13, MATCH($A$3, options,0)))*('Option1 (base case)'!N40-N40) -> 6365493.13 | O68: =(1-INDEX(Data!$C$9:$C$13, MATCH($A$3, options,0)))*('Option1 (base case)'!O40-O40) -> 7392541.831 | P68: =(1-INDEX(Data!$C$9:$C$13, MATCH($A$3, options,0)))*('Option1 (base case)'!P40-P40) -> 8042968.63 | Q68: =(1-INDEX(Data!$C$9:$C$13, MATCH($A$3, options,0)))*('Option1 (base case)'!Q40-Q40) -> 7943750.394 | R68: =(1-INDEX(Data!$C$9:$C$13, MATCH($A$3, options,0)))*('Option1 (base case)'!R40-R40) -> 7943750.394 | S68: =(1-INDEX(Data!$C$9:$C$13, MATCH($A$3, options,0)))*('Option1 (base case)'!S40-S40) -> 7943750.394 | T68: =(1-INDEX(Data!$C$9:$C$13, MATCH($A$3, options,0)))*('Option1 (base case)'!T40-T40) -> 7943750.394 | U68: =(1-INDEX(Data!$C$9:$C$13, MATCH($A$3, options,0)))*('Option1 (base case)'!U40-U40) -> 7943750.394 | V68: =(1-INDEX(Data!$C$9:$C$13, MATCH($A$3, options,0)))*('Option1 (base case)'!V40-V40) -> 7943750.394 | W68: =(1-INDEX(Data!$C$9:$C$13, MATCH($A$3, options,0)))*('Option1 (base case)'!W40-W40) -> 7943750.394 | X68: =(1-INDEX(Data!$C$9:$C$13, MATCH($A$3, options,0)))*('Option1 (base case)'!X40-X40) -> 7943750.394 | Y68: =(1-INDEX(Data!$C$9:$C$13, MATCH($A$3, options,0)))*('Option1 (base case)'!Y40-Y40) -> 7943750.394 | Z68: =(1-INDEX(Data!$C$9:$C$13, MATCH($A$3, options,0)))*('Option1 (base case)'!Z40-Z40) -> 7943750.394 | AA68: =(1-INDEX(Data!$C$9:$C$13, MATCH($A$3, options,0)))*('Option1 (base case)'!AA40-AA40) -> 7943750.394 | AB68: =(1-INDEX(Data!$C$9:$C$13, MATCH($A$3, options,0)))*('Option1 (base case)'!AB40-AB40) -> 7943750.394 | AC68: =(1-INDEX(Data!$C$9:$C$13, MATCH($A$3, options,0)))*('Option1 (base case)'!AC40-AC40) -> 7943750.394 | AD68: =(1-INDEX(Data!$C$9:$C$13, MATCH($A$3, options,0)))*('Option1 (base case)'!AD40-AD40) -> 7943750.394 | AE68: =(1-INDEX(Data!$C$9:$C$13, MATCH($A$3, options,0)))*('Option1 (base case)'!AE40-AE40) -> 7943750.394 | AF68: =(1-INDEX(Data!$C$9:$C$13, MATCH($A$3, options,0)))*('Option1 (base case)'!AF40-AF40) -> 7943750.394 | AG68: =(1-INDEX(Data!$C$9:$C$13, MATCH($A$3, options,0)))*('Option1 (base case)'!AG40-AG40) -> 7943750.394
C70: Capital expenditure
C71: =C14 -> < Enter description > | G71: =input_dollars -> 2023-12-31 | I71: =-I14 -> -31468750 | J71: -31468750 | K71: 0 | L71: 0 | M71: 0 | N71: 0 | O71: 0 | P71: 0 | Q71: 0 | R71: 0 | S71: 0 | T71: 0 | U71: 0 | V71: 0 | W71: 0 | X71: 0 | Y71: 0 | Z71: 0 | AA71: 0 | AB71: 0 | AC71: 0 | AD71: 0 | AE71: 0 | AF71: 0 | AG71: 0
C72: =C15 -> < Enter description > | G72: =input_dollars -> 2023-12-31 | I72: =-I15 -> 0 | J72: 0 | K72: 0 | L72: 0 | M72: 0 | N72: 0 | O72: 0 | P72: 0 | Q72: 0 | R72: 0 | S72: 0 | T72: 0 | U72: 0 | V72: 0 | W72: 0 | X72: 0 | Y72: 0 | Z72: 0 | AA72: 0 | AB72: 0 | AC72: 0 | AD72: 0 | AE72: 0 | AF72: 0 | AG72: 0
C73: =C16 -> < Enter description > | G73: =input_dollars -> 2023-12-31 | I73: =-I16 -> 0 | J73: 0 | K73: 0 | L73: 0 | M73: 0 | N73: 0 | O73: 0 | P73: 0 | Q73: 0 | R73: 0 | S73: 0 | T73: 0 | U73: 0 | V73: 0 | W73: 0 | X73: 0 | Y73: 0 | Z73: 0 | AA73: 0 | AB73: 0 | AC73: 0 | AD73: 0 | AE73: 0 | AF73: 0 | AG73: 0
C75: Cumulative capex
C76: =C14 -> < Enter description > | G76: =input_dollars -> 2023-12-31 | I76: =SUMPRODUCT(($I71:I71))-SUMPRODUCT(($I71:I71)*($I$6:I$6<=(I$6-$E14))) -> -31468750 | J76: =SUMPRODUCT(($I71:J71))-SUMPRODUCT(($I71:J71)*($I$6:J$6<=(J$6-$E14))) -> -62937500 | K76: =SUMPRODUCT(($I71:K71))-SUMPRODUCT(($I71:K71)*($I$6:K$6<=(K$6-$E14))) -> -62937500 | L76: =SUMPRODUCT(($I71:L71))-SUMPRODUCT(($I71:L71)*($I$6:L$6<=(L$6-$E14))) -> -62937500 | M76: =SUMPRODUCT(($I71:M71))-SUMPRODUCT(($I71:M71)*($I$6:M$6<=(M$6-$E14))) -> -62937500 | N76: =SUMPRODUCT(($I71:N71))-SUMPRODUCT(($I71:N71)*($I$6:N$6<=(N$6-$E14))) -> -62937500 | O76: =SUMPRODUCT(($I71:O71))-SUMPRODUCT(($I71:O71)*($I$6:O$6<=(O$6-$E14))) -> -62937500 | P76: =SUMPRODUCT(($I71:P71))-SUMPRODUCT(($I71:P71)*($I$6:P$6<=(P$6-$E14))) -> -62937500 | Q76: =SUMPRODUCT(($I71:Q71))-SUMPRODUCT(($I71:Q71)*($I$6:Q$6<=(Q$6-$E14))) -> -62937500 | R76: =SUMPRODUCT(($I71:R71))-SUMPRODUCT(($I71:R71)*($I$6:R$6<=(R$6-$E14))) -> -62937500 | S76: =SUMPRODUCT(($I71:S71))-SUMPRODUCT(($I71:S71)*($I$6:S$6<=(S$6-$E14))) -> -62937500 | T76: =SUMPRODUCT(($I71:T71))-SUMPRODUCT(($I71:T71)*($I$6:T$6<=(T$6-$E14))) -> -62937500 | U76: =SUMPRODUCT(($I71:U71))-SUMPRODUCT(($I71:U71)*($I$6:U$6<=(U$6-$E14))) -> -62937500 | V76: =SUMPRODUCT(($I71:V71))-SUMPRODUCT(($I71:V71)*($I$6:V$6<=(V$6-$E14))) -> -62937500 | W76: =SUMPRODUCT(($I71:W71))-SUMPRODUCT(($I71:W71)*($I$6:W$6<=(W$6-$E14))) -> -62937500 | X76: =SUMPRODUCT(($I71:X71))-SUMPRODUCT(($I71:X71)*($I$6:X$6<=(X$6-$E14))) -> -62937500 | Y76: =SUMPRODUCT(($I71:Y71))-SUMPRODUCT(($I71:Y71)*($I$6:Y$6<=(Y$6-$E14))) -> -62937500 | Z76: =SUMPRODUCT(($I71:Z71))-SUMPRODUCT(($I71:Z71)*($I$6:Z$6<=(Z$6-$E14))) -> -62937500 | AA76: =SUMPRODUCT(($I71:AA71))-SUMPRODUCT(($I71:AA71)*($I$6:AA$6<=(AA$6-$E14))) -> -62937500 | AB76: =SUMPRODUCT(($I71:AB71))-SUMPRODUCT(($I71:AB71)*($I$6:AB$6<=(AB$6-$E14))) -> -62937500 | AC76: =SUMPRODUCT(($I71:AC71))-SUMPRODUCT(($I71:AC71)*($I$6:AC$6<=(AC$6-$E14))) -> -62937500 | AD76: =SUMPRODUCT(($I71:AD71))-SUMPRODUCT(($I71:AD71)*($I$6:AD$6<=(AD$6-$E14))) -> -62937500 | AE76: =SUMPRODUCT(($I71:AE71))-SUMPRODUCT(($I71:AE71)*($I$6:AE$6<=(AE$6-$E14))) -> -62937500 | AF76: =SUMPRODUCT(($I71:AF71))-SUMPRODUCT(($I71:AF71)*($I$6:AF$6<=(AF$6-$E14))) -> -62937500 | AG76: =SUMPRODUCT(($I71:AG71))-SUMPRODUCT(($I71:AG71)*($I$6:AG$6<=(AG$6-$E14))) -> -62937500
C77: =C15 -> < Enter description > | G77: =input_dollars -> 2023-12-31 | I77: =SUMPRODUCT(($I72:I72))-SUMPRODUCT(($I72:I72)*($I$6:I$6<=(I$6-$E15))) -> 0 | J77: =SUMPRODUCT(($I72:J72))-SUMPRODUCT(($I72:J72)*($I$6:J$6<=(J$6-$E15))) -> 0 | K77: =SUMPRODUCT(($I72:K72))-SUMPRODUCT(($I72:K72)*($I$6:K$6<=(K$6-$E15))) -> 0 | L77: =SUMPRODUCT(($I72:L72))-SUMPRODUCT(($I72:L72)*($I$6:L$6<=(L$6-$E15))) -> 0 | M77: =SUMPRODUCT(($I72:M72))-SUMPRODUCT(($I72:M72)*($I$6:M$6<=(M$6-$E15))) -> 0 | N77: =SUMPRODUCT(($I72:N72))-SUMPRODUCT(($I72:N72)*($I$6:N$6<=(N$6-$E15))) -> 0 | O77: =SUMPRODUCT(($I72:O72))-SUMPRODUCT(($I72:O72)*($I$6:O$6<=(O$6-$E15))) -> 0 | P77: =SUMPRODUCT(($I72:P72))-SUMPRODUCT(($I72:P72)*($I$6:P$6<=(P$6-$E15))) -> 0 | Q77: =SUMPRODUCT(($I72:Q72))-SUMPRODUCT(($I72:Q72)*($I$6:Q$6<=(Q$6-$E15))) -> 0 | R77: =SUMPRODUCT(($I72:R72))-SUMPRODUCT(($I72:R72)*($I$6:R$6<=(R$6-$E15))) -> 0 | S77: =SUMPRODUCT(($I72:S72))-SUMPRODUCT(($I72:S72)*($I$6:S$6<=(S$6-$E15))) -> 0 | T77: =SUMPRODUCT(($I72:T72))-SUMPRODUCT(($I72:T72)*($I$6:T$6<=(T$6-$E15))) -> 0 | U77: =SUMPRODUCT(($I72:U72))-SUMPRODUCT(($I72:U72)*($I$6:U$6<=(U$6-$E15))) -> 0 | V77: =SUMPRODUCT(($I72:V72))-SUMPRODUCT(($I72:V72)*($I$6:V$6<=(V$6-$E15))) -> 0 | W77: =SUMPRODUCT(($I72:W72))-SUMPRODUCT(($I72:W72)*($I$6:W$6<=(W$6-$E15))) -> 0 | X77: =SUMPRODUCT(($I72:X72))-SUMPRODUCT(($I72:X72)*($I$6:X$6<=(X$6-$E15))) -> 0 | Y77: =SUMPRODUCT(($I72:Y72))-SUMPRODUCT(($I72:Y72)*($I$6:Y$6<=(Y$6-$E15))) -> 0 | Z77: =SUMPRODUCT(($I72:Z72))-SUMPRODUCT(($I72:Z72)*($I$6:Z$6<=(Z$6-$E15))) -> 0 | AA77: =SUMPRODUCT(($I72:AA72))-SUMPRODUCT(($I72:AA72)*($I$6:AA$6<=(AA$6-$E15))) -> 0 | AB77: =SUMPRODUCT(($I72:AB72))-SUMPRODUCT(($I72:AB72)*($I$6:AB$6<=(AB$6-$E15))) -> 0 | AC77: =SUMPRODUCT(($I72:AC72))-SUMPRODUCT(($I72:AC72)*($I$6:AC$6<=(AC$6-$E15))) -> 0 | AD77: =SUMPRODUCT(($I72:AD72))-SUMPRODUCT(($I72:AD72)*($I$6:AD$6<=(AD$6-$E15))) -> 0 | AE77: =SUMPRODUCT(($I72:AE72))-SUMPRODUCT(($I72:AE72)*($I$6:AE$6<=(AE$6-$E15))) -> 0 | AF77: =SUMPRODUCT(($I72:AF72))-SUMPRODUCT(($I72:AF72)*($I$6:AF$6<=(AF$6-$E15))) -> 0 | AG77: =SUMPRODUCT(($I72:AG72))-SUMPRODUCT(($I72:AG72)*($I$6:AG$6<=(AG$6-$E15))) -> 0
C78: =C16 -> < Enter description > | G78: =input_dollars -> 2023-12-31 | I78: =SUMPRODUCT(($I73:I73))-SUMPRODUCT(($I73:I73)*($I$6:I$6<=(I$6-$E16))) -> 0 | J78: =SUMPRODUCT(($I73:J73))-SUMPRODUCT(($I73:J73)*($I$6:J$6<=(J$6-$E16))) -> 0 | K78: =SUMPRODUCT(($I73:K73))-SUMPRODUCT(($I73:K73)*($I$6:K$6<=(K$6-$E16))) -> 0 | L78: =SUMPRODUCT(($I73:L73))-SUMPRODUCT(($I73:L73)*($I$6:L$6<=(L$6-$E16))) -> 0 | M78: =SUMPRODUCT(($I73:M73))-SUMPRODUCT(($I73:M73)*($I$6:M$6<=(M$6-$E16))) -> 0 | N78: =SUMPRODUCT(($I73:N73))-SUMPRODUCT(($I73:N73)*($I$6:N$6<=(N$6-$E16))) -> 0 | O78: =SUMPRODUCT(($I73:O73))-SUMPRODUCT(($I73:O73)*($I$6:O$6<=(O$6-$E16))) -> 0 | P78: =SUMPRODUCT(($I73:P73))-SUMPRODUCT(($I73:P73)*($I$6:P$6<=(P$6-$E16))) -> 0 | Q78: =SUMPRODUCT(($I73:Q73))-SUMPRODUCT(($I73:Q73)*($I$6:Q$6<=(Q$6-$E16))) -> 0 | R78: =SUMPRODUCT(($I73:R73))-SUMPRODUCT(($I73:R73)*($I$6:R$6<=(R$6-$E16))) -> 0 | S78: =SUMPRODUCT(($I73:S73))-SUMPRODUCT(($I73:S73)*($I$6:S$6<=(S$6-$E16))) -> 0 | T78: =SUMPRODUCT(($I73:T73))-SUMPRODUCT(($I73:T73)*($I$6:T$6<=(T$6-$E16))) -> 0 | U78: =SUMPRODUCT(($I73:U73))-SUMPRODUCT(($I73:U73)*($I$6:U$6<=(U$6-$E16))) -> 0 | V78: =SUMPRODUCT(($I73:V73))-SUMPRODUCT(($I73:V73)*($I$6:V$6<=(V$6-$E16))) -> 0 | W78: =SUMPRODUCT(($I73:W73))-SUMPRODUCT(($I73:W73)*($I$6:W$6<=(W$6-$E16))) -> 0 | X78: =SUMPRODUCT(($I73:X73))-SUMPRODUCT(($I73:X73)*($I$6:X$6<=(X$6-$E16))) -> 0 | Y78: =SUMPRODUCT(($I73:Y73))-SUMPRODUCT(($I73:Y73)*($I$6:Y$6<=(Y$6-$E16))) -> 0 | Z78: =SUMPRODUCT(($I73:Z73))-SUMPRODUCT(($I73:Z73)*($I$6:Z$6<=(Z$6-$E16))) -> 0 | AA78: =SUMPRODUCT(($I73:AA73))-SUMPRODUCT(($I73:AA73)*($I$6:AA$6<=(AA$6-$E16))) -> 0 | AB78: =SUMPRODUCT(($I73:AB73))-SUMPRODUCT(($I73:AB73)*($I$6:AB$6<=(AB$6-$E16))) -> 0 | AC78: =SUMPRODUCT(($I73:AC73))-SUMPRODUCT(($I73:AC73)*($I$6:AC$6<=(AC$6-$E16))) -> 0 | AD78: =SUMPRODUCT(($I73:AD73))-SUMPRODUCT(($I73:AD73)*($I$6:AD$6<=(AD$6-$E16))) -> 0 | AE78: =SUMPRODUCT(($I73:AE73))-SUMPRODUCT(($I73:AE73)*($I$6:AE$6<=(AE$6-$E16))) -> 0 | AF78: =SUMPRODUCT(($I73:AF73))-SUMPRODUCT(($I73:AF73)*($I$6:AF$6<=(AF$6-$E16))) -> 0 | AG78: =SUMPRODUCT(($I73:AG73))-SUMPRODUCT(($I73:AG73)*($I$6:AG$6<=(AG$6-$E16))) -> 0
C80: Annualised capex
C81: =$C$80&" - "&C14 -> Annualised capex - < Enter description > | G81: =input_dollars -> 2023-12-31 | I81: =IF($E14=0,0,-PMT(real_disc, $E14,H76,)) -> 0 | J81: -1341629.548 | K81: -2683259.096 | L81: -2683259.096 | M81: -2683259.096 | N81: -2683259.096 | O81: -2683259.096 | P81: -2683259.096 | Q81: -2683259.096 | R81: -2683259.096 | S81: -2683259.096 | T81: -2683259.096 | U81: -2683259.096 | V81: -2683259.096 | W81: -2683259.096 | X81: -2683259.096 | Y81: -2683259.096 | Z81: -2683259.096 | AA81: -2683259.096 | AB81: -2683259.096 | AC81: -2683259.096 | AD81: -2683259.096 | AE81: -2683259.096 | AF81: -2683259.096 | AG81: -2683259.096
C82: =$C$80&" - "&C15 -> Annualised capex - < Enter description > | G82: =input_dollars -> 2023-12-31 | I82: =IF($E15=0,0,-PMT(real_disc, $E15,H77,)) -> 0 | J82: 0 | K82: 0 | L82: 0 | M82: 0 | N82: 0 | O82: 0 | P82: 0 | Q82: 0 | R82: 0 | S82: 0 | T82: 0 | U82: 0 | V82: 0 | W82: 0 | X82: 0 | Y82: 0 | Z82: 0 | AA82: 0 | AB82: 0 | AC82: 0 | AD82: 0 | AE82: 0 | AF82: 0 | AG82: 0
C83: =$C$80&" - "&C16 -> Annualised capex - < Enter description > | G83: =input_dollars -> 2023-12-31 | I83: =IF($E16=0,0,-PMT(real_disc, $E16,H78,)) -> 0 | J83: 0 | K83: 0 | L83: 0 | M83: 0 | N83: 0 | O83: 0 | P83: 0 | Q83: 0 | R83: 0 | S83: 0 | T83: 0 | U83: 0 | V83: 0 | W83: 0 | X83: 0 | Y83: 0 | Z83: 0 | AA83: 0 | AB83: 0 | AC83: 0 | AD83: 0 | AE83: 0 | AF83: 0 | AG83: 0
C84: Total annualised capex | G84: =input_dollars -> 2023-12-31 | I84: =SUM(I81:I83) -> 0 | J84: =SUM(J81:J83) -> -1341629.548 | K84: -2683259.096 | L84: -2683259.096 | M84: -2683259.096 | N84: -2683259.096 | O84: -2683259.096 | P84: -2683259.096 | Q84: -2683259.096 | R84: -2683259.096 | S84: -2683259.096 | T84: -2683259.096 | U84: -2683259.096 | V84: -2683259.096 | W84: -2683259.096 | X84: -2683259.096 | Y84: -2683259.096 | Z84: -2683259.096 | AA84: -2683259.096 | AB84: -2683259.096 | AC84: =SUM(AC81:AC83) -> -2683259.096 | AD84: =SUM(AD81:AD83) -> -2683259.096 | AE84: =SUM(AE81:AE83) -> -2683259.096 | AF84: =SUM(AF81:AF83) -> -2683259.096 | AG84: =SUM(AG81:AG83) -> -2683259.096
C86: Annualised capex | G86: =input_dollars -> 2023-12-31 | I86: =I84 -> 0 | J86: =J84 -> -1341629.548 | K86: -2683259.096 | L86: -2683259.096 | M86: -2683259.096 | N86: -2683259.096 | O86: -2683259.096 | P86: -2683259.096 | Q86: -2683259.096 | R86: -2683259.096 | S86: -2683259.096 | T86: -2683259.096 | U86: -2683259.096 | V86: -2683259.096 | W86: -2683259.096 | X86: -2683259.096 | Y86: -2683259.096 | Z86: -2683259.096 | AA86: -2683259.096 | AB86: -2683259.096 | AC86: =AC84 -> -2683259.096 | AD86: =AD84 -> -2683259.096 | AE86: =AE84 -> -2683259.096 | AF86: =AF84 -> -2683259.096 | AG86: =AG84 -> -2683259.096
C87: Operating expenditure | G87: 2023-12-31 | I87: =-I19 -> 0 | J87: 0 | K87: 0 | L87: 0 | M87: 0 | N87: 0 | O87: 0 | P87: 0 | Q87: 0 | R87: 0 | S87: 0 | T87: 0 | U87: 0 | V87: 0 | W87: 0 | X87: 0 | Y87: 0 | Z87: 0 | AA87: 0 | AB87: 0 | AC87: 0 | AD87: 0 | AE87: 0 | AF87: 0 | AG87: 0
C88: Risk mitigated | G88: 2023-12-31 | I88: =I68 -> 0 | J88: 0 | K88: 5030934.912 | L88: 5251186.125 | M88: 5564912.016 | N88: 6365493.13 | O88: 7392541.831 | P88: 8042968.63 | Q88: 7943750.394 | R88: 7943750.394 | S88: 7943750.394 | T88: 7943750.394 | U88: 7943750.394 | V88: 7943750.394 | W88: 7943750.394 | X88: 7943750.394 | Y88: 7943750.394 | Z88: 7943750.394 | AA88: 7943750.394 | AB88: 7943750.394 | AC88: 7943750.394 | AD88: 7943750.394 | AE88: 7943750.394 | AF88: 7943750.394 | AG88: 7943750.394
C89: Other benefits value | G89: 2023-12-31 | I89: =I61 -> 0 | J89: 0 | K89: 0 | L89: 0 | M89: 0 | N89: 0 | O89: 0 | P89: 0 | Q89: 0 | R89: 0 | S89: 0 | T89: 0 | U89: 0 | V89: 0 | W89: 0 | X89: 0 | Y89: 0 | Z89: 0 | AA89: 0 | AB89: 0 | AC89: 0 | AD89: 0 | AE89: 0 | AF89: 0 | AG89: 0
C91: Net benefits | G91: 2023-12-31 | I91: =SUM(I86:I90) -> 0 | J91: -1341629.548 | K91: 2347675.817 | L91: 2567927.029 | M91: 2881652.92 | N91: 3682234.034 | O91: 4709282.735 | P91: 5359709.534 | Q91: 5260491.298 | R91: 5260491.298 | S91: 5260491.298 | T91: 5260491.298 | U91: 5260491.298 | V91: 5260491.298 | W91: 5260491.298 | X91: 5260491.298 | Y91: 5260491.298 | Z91: 5260491.298 | AA91: 5260491.298 | AB91: 5260491.298 | AC91: =SUM(AC86:AC90) -> 5260491.298 | AD91: =SUM(AD86:AD90) -> 5260491.298 | AE91: =SUM(AE86:AE90) -> 5260491.298 | AF91: =SUM(AF86:AF90) -> 5260491.298 | AG91: =SUM(AG86:AG90) -> 5260491.298
C94: First capex year | G94: =IF(SUM($I17:$AG17)=0,0,(INDEX(I$6:AG$6,MATCH(TRUE,INDEX($I17:$AG17<>0,),0)))) -> 1
C96: First year | G96: =IF(_xlfn.MINIFS($G$94:$G$95, $G$94:$G$95, ">"&0)=0, $A$4, _xlfn.MINIFS($G$94:$G$95, $G$94:$G$95, ">"&0)) -> 1
A106: SENSITIVITIES
A110: NPV | C110: Net benefits | G110: =PROPER($A$3)&A110 -> Option 3NPV | I110: =I91 -> 0 | J110: =J91 -> -1341629.548 | K110: 2347675.817 | L110: 2567927.029 | M110: 2881652.92 | N110: 3682234.034 | O110: 4709282.735 | P110: 5359709.534 | Q110: 5260491.298 | R110: 5260491.298 | S110: 5260491.298 | T110: 5260491.298 | U110: 5260491.298 | V110: 5260491.298 | W110: 5260491.298 | X110: 5260491.298 | Y110: 5260491.298 | Z110: 5260491.298 | AA110: 5260491.298 | AB110: 5260491.298 | AC110: 5260491.298 | AD110: 5260491.298 | AE110: 5260491.298 | AF110: 5260491.298 | AG110: 5260491.298
C111: Total annualised capex | I111: =I86 -> 0 | J111: =J86 -> -1341629.548 | K111: -2683259.096 | L111: -2683259.096 | M111: -2683259.096 | N111: -2683259.096 | O111: -2683259.096 | P111: -2683259.096 | Q111: -2683259.096 | R111: -2683259.096 | S111: -2683259.096 | T111: -2683259.096 | U111: -2683259.096 | V111: -2683259.096 | W111: -2683259.096 | X111: -2683259.096 | Y111: -2683259.096 | Z111: -2683259.096 | AA111: -2683259.096 | AB111: -2683259.096 | AC111: -2683259.096 | AD111: -2683259.096 | AE111: -2683259.096 | AF111: -2683259.096 | AG111: -2683259.096
C112: Total benefits | I112: =SUM(I88:I89) -> 0 | J112: =SUM(J88:J89) -> 0 | K112: 5030934.912 | L112: 5251186.125 | M112: 5564912.016 | N112: 6365493.13 | O112: 7392541.831 | P112: 8042968.63 | Q112: 7943750.394 | R112: 7943750.394 | S112: 7943750.394 | T112: 7943750.394 | U112: 7943750.394 | V112: 7943750.394 | W112: 7943750.394 | X112: 7943750.394 | Y112: 7943750.394 | Z112: 7943750.394 | AA112: 7943750.394 | AB112: 7943750.394 | AC112: 7943750.394 | AD112: 7943750.394 | AE112: 7943750.394 | AF112: 7943750.394 | AG112: 7943750.394
D113: =Assumptions!G110 -> Capex | E113: =Assumptions!H110 -> Total benefits
A114: ="sens"&Assumptions!B111 -> sens1 | C114: =Assumptions!C111 -> Capex 10% higher | D114: =Assumptions!G111 -> 0.1 | E114: =Assumptions!H111 -> 0 | G114: =PROPER($A$3)&A114 -> Option 3sens1 | I114: =I$110+IF($C114<>0,SUMPRODUCT((I$111:I$112)*TRANSPOSE(($D114:$E114))),0) -> 0 | J114: =J$110+IF($C114<>0,SUMPRODUCT((J$111:J$112)*TRANSPOSE(($D114:$E114))),0) -> -1475792.503 | K114: =K$110+IF($C114<>0,SUMPRODUCT((K$111:K$112)*TRANSPOSE(($D114:$E114))),0) -> 2079349.907 | L114: =L$110+IF($C114<>0,SUMPRODUCT((L$111:L$112)*TRANSPOSE(($D114:$E114))),0) -> 2299601.12 | M114: =M$110+IF($C114<>0,SUMPRODUCT((M$111:M$112)*TRANSPOSE(($D114:$E114))),0) -> 2613327.01 | N114: =N$110+IF($C114<>0,SUMPRODUCT((N$111:N$112)*TRANSPOSE(($D114:$E114))),0) -> 3413908.125 | O114: =O$110+IF($C114<>0,SUMPRODUCT((O$111:O$112)*TRANSPOSE(($D114:$E114))),0) -> 4440956.826 | P114: =P$110+IF($C114<>0,SUMPRODUCT((P$111:P$112)*TRANSPOSE(($D114:$E114))),0) -> 5091383.624 | Q114: =Q$110+IF($C114<>0,SUMPRODUCT((Q$111:Q$112)*TRANSPOSE(($D114:$E114))),0) -> 4992165.388 | R114: =R$110+IF($C114<>0,SUMPRODUCT((R$111:R$112)*TRANSPOSE(($D114:$E114))),0) -> 4992165.388 | S114: =S$110+IF($C114<>0,SUMPRODUCT((S$111:S$112)*TRANSPOSE(($D114:$E114))),0) -> 4992165.388 | T114: =T$110+IF($C114<>0,SUMPRODUCT((T$111:T$112)*TRANSPOSE(($D114:$E114))),0) -> 4992165.388 | U114: =U$110+IF($C114<>0,SUMPRODUCT((U$111:U$112)*TRANSPOSE(($D114:$E114))),0) -> 4992165.388 | V114: =V$110+IF($C114<>0,SUMPRODUCT((V$111:V$112)*TRANSPOSE(($D114:$E114))),0) -> 4992165.388 | W114: =W$110+IF($C114<>0,SUMPRODUCT((W$111:W$112)*TRANSPOSE(($D114:$E114))),0) -> 4992165.388 | X114: =X$110+IF($C114<>0,SUMPRODUCT((X$111:X$112)*TRANSPOSE(($D114:$E114))),0) -> 4992165.388 | Y114: =Y$110+IF($C114<>0,SUMPRODUCT((Y$111:Y$112)*TRANSPOSE(($D114:$E114))),0) -> 4992165.388 | Z114: =Z$110+IF($C114<>0,SUMPRODUCT((Z$111:Z$112)*TRANSPOSE(($D114:$E114))),0) -> 4992165.388 | AA114: =AA$110+IF($C114<>0,SUMPRODUCT((AA$111:AA$112)*TRANSPOSE(($D114:$E114))),0) -> 4992165.388 | AB114: =AB$110+IF($C114<>0,SUMPRODUCT((AB$111:AB$112)*TRANSPOSE(($D114:$E114))),0) -> 4992165.388 | AC114: =AC$110+IF($C114<>0,SUMPRODUCT((AC$111:AC$112)*TRANSPOSE(($D114:$E114))),0) -> 4992165.388 | AD114: =AD$110+IF($C114<>0,SUMPRODUCT((AD$111:AD$112)*TRANSPOSE(($D114:$E114))),0) -> 4992165.388 | AE114: =AE$110+IF($C114<>0,SUMPRODUCT((AE$111:AE$112)*TRANSPOSE(($D114:$E114))),0) -> 4992165.388 | AF114: =AF$110+IF($C114<>0,SUMPRODUCT((AF$111:AF$112)*TRANSPOSE(($D114:$E114))),0) -> 4992165.388 | AG114: =AG$110+IF($C114<>0,SUMPRODUCT((AG$111:AG$112)*TRANSPOSE(($D114:$E114))),0) -> 4992165.388
A115: ="sens"&Assumptions!B112 -> sens2 | C115: =Assumptions!C112 -> Capex 10% lower | D115: =Assumptions!G112 -> -0.1 | E115: =Assumptions!H112 -> 0 | G115: =PROPER($A$3)&A115 -> Option 3sens2 | I115: =I$110+IF($C115<>0,SUMPRODUCT((I$111:I$112)*TRANSPOSE(($D115:$E115))),0) -> 0 | J115: =J$110+IF($C115<>0,SUMPRODUCT((J$111:J$112)*TRANSPOSE(($D115:$E115))),0) -> -1207466.593 | K115: =K$110+IF($C115<>0,SUMPRODUCT((K$111:K$112)*TRANSPOSE(($D115:$E115))),0) -> 2616001.726 | L115: =L$110+IF($C115<>0,SUMPRODUCT((L$111:L$112)*TRANSPOSE(($D115:$E115))),0) -> 2836252.939 | M115: =M$110+IF($C115<>0,SUMPRODUCT((M$111:M$112)*TRANSPOSE(($D115:$E115))),0) -> 3149978.829 | N115: =N$110+IF($C115<>0,SUMPRODUCT((N$111:N$112)*TRANSPOSE(($D115:$E115))),0) -> 3950559.944 | O115: =O$110+IF($C115<>0,SUMPRODUCT((O$111:O$112)*TRANSPOSE(($D115:$E115))),0) -> 4977608.645 | P115: =P$110+IF($C115<>0,SUMPRODUCT((P$111:P$112)*TRANSPOSE(($D115:$E115))),0) -> 5628035.444 | Q115: =Q$110+IF($C115<>0,SUMPRODUCT((Q$111:Q$112)*TRANSPOSE(($D115:$E115))),0) -> 5528817.208 | R115: =R$110+IF($C115<>0,SUMPRODUCT((R$111:R$112)*TRANSPOSE(($D115:$E115))),0) -> 5528817.208 | S115: =S$110+IF($C115<>0,SUMPRODUCT((S$111:S$112)*TRANSPOSE(($D115:$E115))),0) -> 5528817.208 | T115: =T$110+IF($C115<>0,SUMPRODUCT((T$111:T$112)*TRANSPOSE(($D115:$E115))),0) -> 5528817.208 | U115: =U$110+IF($C115<>0,SUMPRODUCT((U$111:U$112)*TRANSPOSE(($D115:$E115))),0) -> 5528817.208 | V115: =V$110+IF($C115<>0,SUMPRODUCT((V$111:V$112)*TRANSPOSE(($D115:$E115))),0) -> 5528817.208 | W115: =W$110+IF($C115<>0,SUMPRODUCT((W$111:W$112)*TRANSPOSE(($D115:$E115))),0) -> 5528817.208 | X115: =X$110+IF($C115<>0,SUMPRODUCT((X$111:X$112)*TRANSPOSE(($D115:$E115))),0) -> 5528817.208 | Y115: =Y$110+IF($C115<>0,SUMPRODUCT((Y$111:Y$112)*TRANSPOSE(($D115:$E115))),0) -> 5528817.208 | Z115: =Z$110+IF($C115<>0,SUMPRODUCT((Z$111:Z$112)*TRANSPOSE(($D115:$E115))),0) -> 5528817.208 | AA115: =AA$110+IF($C115<>0,SUMPRODUCT((AA$111:AA$112)*TRANSPOSE(($D115:$E115))),0) -> 5528817.208 | AB115: =AB$110+IF($C115<>0,SUMPRODUCT((AB$111:AB$112)*TRANSPOSE(($D115:$E115))),0) -> 5528817.208 | AC115: =AC$110+IF($C115<>0,SUMPRODUCT((AC$111:AC$112)*TRANSPOSE(($D115:$E115))),0) -> 5528817.208 | AD115: =AD$110+IF($C115<>0,SUMPRODUCT((AD$111:AD$112)*TRANSPOSE(($D115:$E115))),0) -> 5528817.208 | AE115: =AE$110+IF($C115<>0,SUMPRODUCT((AE$111:AE$112)*TRANSPOSE(($D115:$E115))),0) -> 5528817.208 | AF115: =AF$110+IF($C115<>0,SUMPRODUCT((AF$111:AF$112)*TRANSPOSE(($D115:$E115))),0) -> 5528817.208 | AG115: =AG$110+IF($C115<>0,SUMPRODUCT((AG$111:AG$112)*TRANSPOSE(($D115:$E115))),0) -> 5528817.208
A116: ="sens"&Assumptions!B113 -> sens3 | C116: =Assumptions!C113 -> Total benefits 10% higher | D116: =Assumptions!G113 -> 0 | E116: =Assumptions!H113 -> 0.1 | G116: Option 3sens3 | I116: =I$110+IF($C116<>0,SUMPRODUCT((I$111:I$112)*TRANSPOSE(($D116:$E116))),0) -> 0 | J116: =J$110+IF($C116<>0,SUMPRODUCT((J$111:J$112)*TRANSPOSE(($D116:$E116))),0) -> -1341629.548 | K116: =K$110+IF($C116<>0,SUMPRODUCT((K$111:K$112)*TRANSPOSE(($D116:$E116))),0) -> 2850769.308 | L116: =L$110+IF($C116<>0,SUMPRODUCT((L$111:L$112)*TRANSPOSE(($D116:$E116))),0) -> 3093045.642 | M116: =M$110+IF($C116<>0,SUMPRODUCT((M$111:M$112)*TRANSPOSE(($D116:$E116))),0) -> 3438144.121 | N116: =N$110+IF($C116<>0,SUMPRODUCT((N$111:N$112)*TRANSPOSE(($D116:$E116))),0) -> 4318783.347 | O116: =O$110+IF($C116<>0,SUMPRODUCT((O$111:O$112)*TRANSPOSE(($D116:$E116))),0) -> 5448536.919 | P116: =P$110+IF($C116<>0,SUMPRODUCT((P$111:P$112)*TRANSPOSE(($D116:$E116))),0) -> 6164006.397 | Q116: =Q$110+IF($C116<>0,SUMPRODUCT((Q$111:Q$112)*TRANSPOSE(($D116:$E116))),0) -> 6054866.337 | R116: =R$110+IF($C116<>0,SUMPRODUCT((R$111:R$112)*TRANSPOSE(($D116:$E116))),0) -> 6054866.337 | S116: =S$110+IF($C116<>0,SUMPRODUCT((S$111:S$112)*TRANSPOSE(($D116:$E116))),0) -> 6054866.337 | T116: =T$110+IF($C116<>0,SUMPRODUCT((T$111:T$112)*TRANSPOSE(($D116:$E116))),0) -> 6054866.337 | U116: =U$110+IF($C116<>0,SUMPRODUCT((U$111:U$112)*TRANSPOSE(($D116:$E116))),0) -> 6054866.337 | V116: =V$110+IF($C116<>0,SUMPRODUCT((V$111:V$112)*TRANSPOSE(($D116:$E116))),0) -> 6054866.337 | W116: =W$110+IF($C116<>0,SUMPRODUCT((W$111:W$112)*TRANSPOSE(($D116:$E116))),0) -> 6054866.337 | X116: =X$110+IF($C116<>0,SUMPRODUCT((X$111:X$112)*TRANSPOSE(($D116:$E116))),0) -> 6054866.337 | Y116: =Y$110+IF($C116<>0,SUMPRODUCT((Y$111:Y$112)*TRANSPOSE(($D116:$E116))),0) -> 6054866.337 | Z116: =Z$110+IF($C116<>0,SUMPRODUCT((Z$111:Z$112)*TRANSPOSE(($D116:$E116))),0) -> 6054866.337 | AA116: =AA$110+IF($C116<>0,SUMPRODUCT((AA$111:AA$112)*TRANSPOSE(($D116:$E116))),0) -> 6054866.337 | AB116: =AB$110+IF($C116<>0,SUMPRODUCT((AB$111:AB$112)*TRANSPOSE(($D116:$E116))),0) -> 6054866.337 | AC116: =AC$110+IF($C116<>0,SUMPRODUCT((AC$111:AC$112)*TRANSPOSE(($D116:$E116))),0) -> 6054866.337 | AD116: =AD$110+IF($C116<>0,SUMPRODUCT((AD$111:AD$112)*TRANSPOSE(($D116:$E116))),0) -> 6054866.337 | AE116: =AE$110+IF($C116<>0,SUMPRODUCT((AE$111:AE$112)*TRANSPOSE(($D116:$E116))),0) -> 6054866.337 | AF116: =AF$110+IF($C116<>0,SUMPRODUCT((AF$111:AF$112)*TRANSPOSE(($D116:$E116))),0) -> 6054866.337 | AG116: =AG$110+IF($C116<>0,SUMPRODUCT((AG$111:AG$112)*TRANSPOSE(($D116:$E116))),0) -> 6054866.337
A117: ="sens"&Assumptions!B114 -> sens4 | C117: =Assumptions!C114 -> Total benefits 10% lower | D117: =Assumptions!G114 -> 0 | E117: =Assumptions!H114 -> -0.1 | G117: Option 3sens4 | I117: =I$110+IF($C117<>0,SUMPRODUCT((I$111:I$112)*TRANSPOSE(($D117:$E117))),0) -> 0 | J117: =J$110+IF($C117<>0,SUMPRODUCT((J$111:J$112)*TRANSPOSE(($D117:$E117))),0) -> -1341629.548 | K117: =K$110+IF($C117<>0,SUMPRODUCT((K$111:K$112)*TRANSPOSE(($D117:$E117))),0) -> 1844582.325 | L117: =L$110+IF($C117<>0,SUMPRODUCT((L$111:L$112)*TRANSPOSE(($D117:$E117))),0) -> 2042808.417 | M117: =M$110+IF($C117<>0,SUMPRODUCT((M$111:M$112)*TRANSPOSE(($D117:$E117))),0) -> 2325161.718 | N117: =N$110+IF($C117<>0,SUMPRODUCT((N$111:N$112)*TRANSPOSE(($D117:$E117))),0) -> 3045684.721 | O117: =O$110+IF($C117<>0,SUMPRODUCT((O$111:O$112)*TRANSPOSE(($D117:$E117))),0) -> 3970028.552 | P117: =P$110+IF($C117<>0,SUMPRODUCT((P$111:P$112)*TRANSPOSE(($D117:$E117))),0) -> 4555412.671 | Q117: =Q$110+IF($C117<>0,SUMPRODUCT((Q$111:Q$112)*TRANSPOSE(($D117:$E117))),0) -> 4466116.259 | R117: =R$110+IF($C117<>0,SUMPRODUCT((R$111:R$112)*TRANSPOSE(($D117:$E117))),0) -> 4466116.259 | S117: =S$110+IF($C117<>0,SUMPRODUCT((S$111:S$112)*TRANSPOSE(($D117:$E117))),0) -> 4466116.259 | T117: =T$110+IF($C117<>0,SUMPRODUCT((T$111:T$112)*TRANSPOSE(($D117:$E117))),0) -> 4466116.259 | U117: =U$110+IF($C117<>0,SUMPRODUCT((U$111:U$112)*TRANSPOSE(($D117:$E117))),0) -> 4466116.259 | V117: =V$110+IF($C117<>0,SUMPRODUCT((V$111:V$112)*TRANSPOSE(($D117:$E117))),0) -> 4466116.259 | W117: =W$110+IF($C117<>0,SUMPRODUCT((W$111:W$112)*TRANSPOSE(($D117:$E117))),0) -> 4466116.259 | X117: =X$110+IF($C117<>0,SUMPRODUCT((X$111:X$112)*TRANSPOSE(($D117:$E117))),0) -> 4466116.259 | Y117: =Y$110+IF($C117<>0,SUMPRODUCT((Y$111:Y$112)*TRANSPOSE(($D117:$E117))),0) -> 4466116.259 | Z117: =Z$110+IF($C117<>0,SUMPRODUCT((Z$111:Z$112)*TRANSPOSE(($D117:$E117))),0) -> 4466116.259 | AA117: =AA$110+IF($C117<>0,SUMPRODUCT((AA$111:AA$112)*TRANSPOSE(($D117:$E117))),0) -> 4466116.259 | AB117: =AB$110+IF($C117<>0,SUMPRODUCT((AB$111:AB$112)*TRANSPOSE(($D117:$E117))),0) -> 4466116.259 | AC117: =AC$110+IF($C117<>0,SUMPRODUCT((AC$111:AC$112)*TRANSPOSE(($D117:$E117))),0) -> 4466116.259 | AD117: =AD$110+IF($C117<>0,SUMPRODUCT((AD$111:AD$112)*TRANSPOSE(($D117:$E117))),0) -> 4466116.259 | AE117: =AE$110+IF($C117<>0,SUMPRODUCT((AE$111:AE$112)*TRANSPOSE(($D117:$E117))),0) -> 4466116.259 | AF117: =AF$110+IF($C117<>0,SUMPRODUCT((AF$111:AF$112)*TRANSPOSE(($D117:$E117))),0) -> 4466116.259 | AG117: =AG$110+IF($C117<>0,SUMPRODUCT((AG$111:AG$112)*TRANSPOSE(($D117:$E117))),0) -> 4466116.259
A118: ="sens"&Assumptions!B115 -> sens5 | C118: =Assumptions!C115 -> Capex 10% higher & Total benefits 10% lower | D118: =Assumptions!G115 -> 0.1 | E118: =Assumptions!H115 -> -0.1 | G118: Option 3sens5 | I118: =I$110+IF($C118<>0,SUMPRODUCT((I$111:I$112)*TRANSPOSE(($D118:$E118))),0) -> 0 | J118: =J$110+IF($C118<>0,SUMPRODUCT((J$111:J$112)*TRANSPOSE(($D118:$E118))),0) -> -1475792.503 | K118: =K$110+IF($C118<>0,SUMPRODUCT((K$111:K$112)*TRANSPOSE(($D118:$E118))),0) -> 1576256.416 | L118: =L$110+IF($C118<>0,SUMPRODUCT((L$111:L$112)*TRANSPOSE(($D118:$E118))),0) -> 1774482.507 | M118: =M$110+IF($C118<>0,SUMPRODUCT((M$111:M$112)*TRANSPOSE(($D118:$E118))),0) -> 2056835.809 | N118: =N$110+IF($C118<>0,SUMPRODUCT((N$111:N$112)*TRANSPOSE(($D118:$E118))),0) -> 2777358.812 | O118: =O$110+IF($C118<>0,SUMPRODUCT((O$111:O$112)*TRANSPOSE(($D118:$E118))),0) -> 3701702.643 | P118: =P$110+IF($C118<>0,SUMPRODUCT((P$111:P$112)*TRANSPOSE(($D118:$E118))),0) -> 4287086.761 | Q118: =Q$110+IF($C118<>0,SUMPRODUCT((Q$111:Q$112)*TRANSPOSE(($D118:$E118))),0) -> 4197790.349 | R118: =R$110+IF($C118<>0,SUMPRODUCT((R$111:R$112)*TRANSPOSE(($D118:$E118))),0) -> 4197790.349 | S118: =S$110+IF($C118<>0,SUMPRODUCT((S$111:S$112)*TRANSPOSE(($D118:$E118))),0) -> 4197790.349 | T118: =T$110+IF($C118<>0,SUMPRODUCT((T$111:T$112)*TRANSPOSE(($D118:$E118))),0) -> 4197790.349 | U118: =U$110+IF($C118<>0,SUMPRODUCT((U$111:U$112)*TRANSPOSE(($D118:$E118))),0) -> 4197790.349 | V118: =V$110+IF($C118<>0,SUMPRODUCT((V$111:V$112)*TRANSPOSE(($D118:$E118))),0) -> 4197790.349 | W118: =W$110+IF($C118<>0,SUMPRODUCT((W$111:W$112)*TRANSPOSE(($D118:$E118))),0) -> 4197790.349 | X118: =X$110+IF($C118<>0,SUMPRODUCT((X$111:X$112)*TRANSPOSE(($D118:$E118))),0) -> 4197790.349 | Y118: =Y$110+IF($C118<>0,SUMPRODUCT((Y$111:Y$112)*TRANSPOSE(($D118:$E118))),0) -> 4197790.349 | Z118: =Z$110+IF($C118<>0,SUMPRODUCT((Z$111:Z$112)*TRANSPOSE(($D118:$E118))),0) -> 4197790.349 | AA118: =AA$110+IF($C118<>0,SUMPRODUCT((AA$111:AA$112)*TRANSPOSE(($D118:$E118))),0) -> 4197790.349 | AB118: =AB$110+IF($C118<>0,SUMPRODUCT((AB$111:AB$112)*TRANSPOSE(($D118:$E118))),0) -> 4197790.349 | AC118: =AC$110+IF($C118<>0,SUMPRODUCT((AC$111:AC$112)*TRANSPOSE(($D118:$E118))),0) -> 4197790.349 | AD118: =AD$110+IF($C118<>0,SUMPRODUCT((AD$111:AD$112)*TRANSPOSE(($D118:$E118))),0) -> 4197790.349 | AE118: =AE$110+IF($C118<>0,SUMPRODUCT((AE$111:AE$112)*TRANSPOSE(($D118:$E118))),0) -> 4197790.349 | AF118: =AF$110+IF($C118<>0,SUMPRODUCT((AF$111:AF$112)*TRANSPOSE(($D118:$E118))),0) -> 4197790.349 | AG118: =AG$110+IF($C118<>0,SUMPRODUCT((AG$111:AG$112)*TRANSPOSE(($D118:$E118))),0) -> 4197790.349
A119: ="sens"&Assumptions!B116 -> sens | C119: =Assumptions!C116 -> 0 | D119: =Assumptions!G116 -> 0 | E119: =Assumptions!H116 -> 0 | G119: Option 3sens | I119: =I$110+IF($C119<>0,SUMPRODUCT((I$111:I$112)*TRANSPOSE(($D119:$E119))),0) -> 0 | J119: =J$110+IF($C119<>0,SUMPRODUCT((J$111:J$112)*TRANSPOSE(($D119:$E119))),0) -> -1341629.548 | K119: =K$110+IF($C119<>0,SUMPRODUCT((K$111:K$112)*TRANSPOSE(($D119:$E119))),0) -> 2347675.817 | L119: =L$110+IF($C119<>0,SUMPRODUCT((L$111:L$112)*TRANSPOSE(($D119:$E119))),0) -> 2567927.029 | M119: =M$110+IF($C119<>0,SUMPRODUCT((M$111:M$112)*TRANSPOSE(($D119:$E119))),0) -> 2881652.92 | N119: =N$110+IF($C119<>0,SUMPRODUCT((N$111:N$112)*TRANSPOSE(($D119:$E119))),0) -> 3682234.034 | O119: =O$110+IF($C119<>0,SUMPRODUCT((O$111:O$112)*TRANSPOSE(($D119:$E119))),0) -> 4709282.735 | P119: =P$110+IF($C119<>0,SUMPRODUCT((P$111:P$112)*TRANSPOSE(($D119:$E119))),0) -> 5359709.534 | Q119: =Q$110+IF($C119<>0,SUMPRODUCT((Q$111:Q$112)*TRANSPOSE(($D119:$E119))),0) -> 5260491.298 | R119: =R$110+IF($C119<>0,SUMPRODUCT((R$111:R$112)*TRANSPOSE(($D119:$E119))),0) -> 5260491.298 | S119: =S$110+IF($C119<>0,SUMPRODUCT((S$111:S$112)*TRANSPOSE(($D119:$E119))),0) -> 5260491.298 | T119: =T$110+IF($C119<>0,SUMPRODUCT((T$111:T$112)*TRANSPOSE(($D119:$E119))),0) -> 5260491.298 | U119: =U$110+IF($C119<>0,SUMPRODUCT((U$111:U$112)*TRANSPOSE(($D119:$E119))),0) -> 5260491.298 | V119: =V$110+IF($C119<>0,SUMPRODUCT((V$111:V$112)*TRANSPOSE(($D119:$E119))),0) -> 5260491.298 | W119: =W$110+IF($C119<>0,SUMPRODUCT((W$111:W$112)*TRANSPOSE(($D119:$E119))),0) -> 5260491.298 | X119: =X$110+IF($C119<>0,SUMPRODUCT((X$111:X$112)*TRANSPOSE(($D119:$E119))),0) -> 5260491.298 | Y119: =Y$110+IF($C119<>0,SUMPRODUCT((Y$111:Y$112)*TRANSPOSE(($D119:$E119))),0) -> 5260491.298 | Z119: =Z$110+IF($C119<>0,SUMPRODUCT((Z$111:Z$112)*TRANSPOSE(($D119:$E119))),0) -> 5260491.298 | AA119: =AA$110+IF($C119<>0,SUMPRODUCT((AA$111:AA$112)*TRANSPOSE(($D119:$E119))),0) -> 5260491.298 | AB119: =AB$110+IF($C119<>0,SUMPRODUCT((AB$111:AB$112)*TRANSPOSE(($D119:$E119))),0) -> 5260491.298 | AC119: =AC$110+IF($C119<>0,SUMPRODUCT((AC$111:AC$112)*TRANSPOSE(($D119:$E119))),0) -> 5260491.298 | AD119: =AD$110+IF($C119<>0,SUMPRODUCT((AD$111:AD$112)*TRANSPOSE(($D119:$E119))),0) -> 5260491.298 | AE119: =AE$110+IF($C119<>0,SUMPRODUCT((AE$111:AE$112)*TRANSPOSE(($D119:$E119))),0) -> 5260491.298 | AF119: =AF$110+IF($C119<>0,SUMPRODUCT((AF$111:AF$112)*TRANSPOSE(($D119:$E119))),0) -> 5260491.298 | AG119: =AG$110+IF($C119<>0,SUMPRODUCT((AG$111:AG$112)*TRANSPOSE(($D119:$E119))),0) -> 5260491.298
A120: ="sens"&Assumptions!B117 -> sens | C120: =Assumptions!C117 -> 0 | D120: =Assumptions!G117 -> 0 | E120: =Assumptions!H117 -> 0 | G120: Option 3sens | I120: =I$110+IF($C120<>0,SUMPRODUCT((I$111:I$112)*TRANSPOSE(($D120:$E120))),0) -> 0 | J120: =J$110+IF($C120<>0,SUMPRODUCT((J$111:J$112)*TRANSPOSE(($D120:$E120))),0) -> -1341629.548 | K120: =K$110+IF($C120<>0,SUMPRODUCT((K$111:K$112)*TRANSPOSE(($D120:$E120))),0) -> 2347675.817 | L120: =L$110+IF($C120<>0,SUMPRODUCT((L$111:L$112)*TRANSPOSE(($D120:$E120))),0) -> 2567927.029 | M120: =M$110+IF($C120<>0,SUMPRODUCT((M$111:M$112)*TRANSPOSE(($D120:$E120))),0) -> 2881652.92 | N120: =N$110+IF($C120<>0,SUMPRODUCT((N$111:N$112)*TRANSPOSE(($D120:$E120))),0) -> 3682234.034 | O120: =O$110+IF($C120<>0,SUMPRODUCT((O$111:O$112)*TRANSPOSE(($D120:$E120))),0) -> 4709282.735 | P120: =P$110+IF($C120<>0,SUMPRODUCT((P$111:P$112)*TRANSPOSE(($D120:$E120))),0) -> 5359709.534 | Q120: =Q$110+IF($C120<>0,SUMPRODUCT((Q$111:Q$112)*TRANSPOSE(($D120:$E120))),0) -> 5260491.298 | R120: =R$110+IF($C120<>0,SUMPRODUCT((R$111:R$112)*TRANSPOSE(($D120:$E120))),0) -> 5260491.298 | S120: =S$110+IF($C120<>0,SUMPRODUCT((S$111:S$112)*TRANSPOSE(($D120:$E120))),0) -> 5260491.298 | T120: =T$110+IF($C120<>0,SUMPRODUCT((T$111:T$112)*TRANSPOSE(($D120:$E120))),0) -> 5260491.298 | U120: =U$110+IF($C120<>0,SUMPRODUCT((U$111:U$112)*TRANSPOSE(($D120:$E120))),0) -> 5260491.298 | V120: =V$110+IF($C120<>0,SUMPRODUCT((V$111:V$112)*TRANSPOSE(($D120:$E120))),0) -> 5260491.298 | W120: =W$110+IF($C120<>0,SUMPRODUCT((W$111:W$112)*TRANSPOSE(($D120:$E120))),0) -> 5260491.298 | X120: =X$110+IF($C120<>0,SUMPRODUCT((X$111:X$112)*TRANSPOSE(($D120:$E120))),0) -> 5260491.298 | Y120: =Y$110+IF($C120<>0,SUMPRODUCT((Y$111:Y$112)*TRANSPOSE(($D120:$E120))),0) -> 5260491.298 | Z120: =Z$110+IF($C120<>0,SUMPRODUCT((Z$111:Z$112)*TRANSPOSE(($D120:$E120))),0) -> 5260491.298 | AA120: =AA$110+IF($C120<>0,SUMPRODUCT((AA$111:AA$112)*TRANSPOSE(($D120:$E120))),0) -> 5260491.298 | AB120: =AB$110+IF($C120<>0,SUMPRODUCT((AB$111:AB$112)*TRANSPOSE(($D120:$E120))),0) -> 5260491.298 | AC120: =AC$110+IF($C120<>0,SUMPRODUCT((AC$111:AC$112)*TRANSPOSE(($D120:$E120))),0) -> 5260491.298 | AD120: =AD$110+IF($C120<>0,SUMPRODUCT((AD$111:AD$112)*TRANSPOSE(($D120:$E120))),0) -> 5260491.298 | AE120: =AE$110+IF($C120<>0,SUMPRODUCT((AE$111:AE$112)*TRANSPOSE(($D120:$E120))),0) -> 5260491.298 | AF120: =AF$110+IF($C120<>0,SUMPRODUCT((AF$111:AF$112)*TRANSPOSE(($D120:$E120))),0) -> 5260491.298 | AG120: =AG$110+IF($C120<>0,SUMPRODUCT((AG$111:AG$112)*TRANSPOSE(($D120:$E120))),0) -> 5260491.298
A121: ="sens"&Assumptions!B118 -> sens | C121: =Assumptions!C118 -> 0 | D121: =Assumptions!G118 -> 0 | E121: =Assumptions!H118 -> 0 | G121: Option 3sens | I121: =I$110+IF($C121<>0,SUMPRODUCT((I$111:I$112)*TRANSPOSE(($D121:$E121))),0) -> 0 | J121: =J$110+IF($C121<>0,SUMPRODUCT((J$111:J$112)*TRANSPOSE(($D121:$E121))),0) -> -1341629.548 | K121: =K$110+IF($C121<>0,SUMPRODUCT((K$111:K$112)*TRANSPOSE(($D121:$E121))),0) -> 2347675.817 | L121: =L$110+IF($C121<>0,SUMPRODUCT((L$111:L$112)*TRANSPOSE(($D121:$E121))),0) -> 2567927.029 | M121: =M$110+IF($C121<>0,SUMPRODUCT((M$111:M$112)*TRANSPOSE(($D121:$E121))),0) -> 2881652.92 | N121: =N$110+IF($C121<>0,SUMPRODUCT((N$111:N$112)*TRANSPOSE(($D121:$E121))),0) -> 3682234.034 | O121: =O$110+IF($C121<>0,SUMPRODUCT((O$111:O$112)*TRANSPOSE(($D121:$E121))),0) -> 4709282.735 | P121: =P$110+IF($C121<>0,SUMPRODUCT((P$111:P$112)*TRANSPOSE(($D121:$E121))),0) -> 5359709.534 | Q121: =Q$110+IF($C121<>0,SUMPRODUCT((Q$111:Q$112)*TRANSPOSE(($D121:$E121))),0) -> 5260491.298 | R121: =R$110+IF($C121<>0,SUMPRODUCT((R$111:R$112)*TRANSPOSE(($D121:$E121))),0) -> 5260491.298 | S121: =S$110+IF($C121<>0,SUMPRODUCT((S$111:S$112)*TRANSPOSE(($D121:$E121))),0) -> 5260491.298 | T121: =T$110+IF($C121<>0,SUMPRODUCT((T$111:T$112)*TRANSPOSE(($D121:$E121))),0) -> 5260491.298 | U121: =U$110+IF($C121<>0,SUMPRODUCT((U$111:U$112)*TRANSPOSE(($D121:$E121))),0) -> 5260491.298 | V121: =V$110+IF($C121<>0,SUMPRODUCT((V$111:V$112)*TRANSPOSE(($D121:$E121))),0) -> 5260491.298 | W121: =W$110+IF($C121<>0,SUMPRODUCT((W$111:W$112)*TRANSPOSE(($D121:$E121))),0) -> 5260491.298 | X121: =X$110+IF($C121<>0,SUMPRODUCT((X$111:X$112)*TRANSPOSE(($D121:$E121))),0) -> 5260491.298 | Y121: =Y$110+IF($C121<>0,SUMPRODUCT((Y$111:Y$112)*TRANSPOSE(($D121:$E121))),0) -> 5260491.298 | Z121: =Z$110+IF($C121<>0,SUMPRODUCT((Z$111:Z$112)*TRANSPOSE(($D121:$E121))),0) -> 5260491.298 | AA121: =AA$110+IF($C121<>0,SUMPRODUCT((AA$111:AA$112)*TRANSPOSE(($D121:$E121))),0) -> 5260491.298 | AB121: =AB$110+IF($C121<>0,SUMPRODUCT((AB$111:AB$112)*TRANSPOSE(($D121:$E121))),0) -> 5260491.298 | AC121: =AC$110+IF($C121<>0,SUMPRODUCT((AC$111:AC$112)*TRANSPOSE(($D121:$E121))),0) -> 5260491.298 | AD121: =AD$110+IF($C121<>0,SUMPRODUCT((AD$111:AD$112)*TRANSPOSE(($D121:$E121))),0) -> 5260491.298 | AE121: =AE$110+IF($C121<>0,SUMPRODUCT((AE$111:AE$112)*TRANSPOSE(($D121:$E121))),0) -> 5260491.298 | AF121: =AF$110+IF($C121<>0,SUMPRODUCT((AF$111:AF$112)*TRANSPOSE(($D121:$E121))),0) -> 5260491.298 | AG121: =AG$110+IF($C121<>0,SUMPRODUCT((AG$111:AG$112)*TRANSPOSE(($D121:$E121))),0) -> 5260491.298

Sheet Option4
A1: =bus -> CitiPower
A2: =proj -> Bouverie Queensberry supply area
A3: OPTION 4 | C3: =INDEX(Assumptions!$E$14:$E$18, MATCH(A3,_xlfn.ANCHORARRAY( Assumptions!$C$14),0)) -> Rebuild LS and offload BQ and VM to LS
A4: =(INDEX(Data!$D$9:$D$13, MATCH(A3, options,0))) -> 
A6: ='Option1 (base case)'!A6 -> Count | I6: ='Option1 (base case)'!I6 -> 1 | J6: ='Option1 (base case)'!J6 -> 2 | K6: ='Option1 (base case)'!K6 -> 3 | L6: ='Option1 (base case)'!L6 -> 4 | M6: ='Option1 (base case)'!M6 -> 5 | N6: ='Option1 (base case)'!N6 -> 6 | O6: ='Option1 (base case)'!O6 -> 7 | P6: ='Option1 (base case)'!P6 -> 8 | Q6: ='Option1 (base case)'!Q6 -> 9 | R6: ='Option1 (base case)'!R6 -> 10 | S6: ='Option1 (base case)'!S6 -> 11 | T6: ='Option1 (base case)'!T6 -> 12 | U6: ='Option1 (base case)'!U6 -> 13 | V6: ='Option1 (base case)'!V6 -> 14 | W6: ='Option1 (base case)'!W6 -> 15 | X6: ='Option1 (base case)'!X6 -> 16 | Y6: ='Option1 (base case)'!Y6 -> 17 | Z6: ='Option1 (base case)'!Z6 -> 18 | AA6: ='Option1 (base case)'!AA6 -> 19 | AB6: ='Option1 (base case)'!AB6 -> 20 | AC6: ='Option1 (base case)'!AC6 -> 21 | AD6: ='Option1 (base case)'!AD6 -> 22 | AE6: ='Option1 (base case)'!AE6 -> 23 | AF6: ='Option1 (base case)'!AF6 -> 24 | AG6: ='Option1 (base case)'!AG6 -> 25
A7: ='Option1 (base case)'!A7 -> Value of CO2 reductions | G7: $/MWh | I7: ='Option1 (base case)'!I7 -> 24.7304868 | J7: ='Option1 (base case)'!J7 -> 22.34074009 | K7: ='Option1 (base case)'!K7 -> 20.19632912 | L7: ='Option1 (base case)'!L7 -> 18.06294208 | M7: ='Option1 (base case)'!M7 -> 15.91339762 | N7: ='Option1 (base case)'!N7 -> 13.71506943 | O7: ='Option1 (base case)'!O7 -> 13.71506943 | P7: ='Option1 (base case)'!P7 -> 13.71506943 | Q7: ='Option1 (base case)'!Q7 -> 13.71506943 | R7: ='Option1 (base case)'!R7 -> 13.71506943 | S7: ='Option1 (base case)'!S7 -> 13.71506943 | T7: ='Option1 (base case)'!T7 -> 13.71506943 | U7: ='Option1 (base case)'!U7 -> 13.71506943 | V7: ='Option1 (base case)'!V7 -> 13.71506943 | W7: ='Option1 (base case)'!W7 -> 13.71506943 | X7: ='Option1 (base case)'!X7 -> 13.71506943 | Y7: ='Option1 (base case)'!Y7 -> 13.71506943 | Z7: ='Option1 (base case)'!Z7 -> 13.71506943 | AA7: ='Option1 (base case)'!AA7 -> 13.71506943 | AB7: ='Option1 (base case)'!AB7 -> 13.71506943 | AC7: ='Option1 (base case)'!AC7 -> 13.71506943 | AD7: ='Option1 (base case)'!AD7 -> 13.71506943 | AE7: ='Option1 (base case)'!AE7 -> 13.71506943 | AF7: ='Option1 (base case)'!AF7 -> 13.71506943 | AG7: ='Option1 (base case)'!AG7 -> 13.71506943
I8: =_xlfn.NUMBERVALUE(LEFT(I$9,4))+1 -> 2027 | J8: =_xlfn.NUMBERVALUE(LEFT(J$9,4))+1 -> 2028 | K8: 2029 | L8: 2030 | M8: 2031 | N8: 2032 | O8: 2033 | P8: 2034 | Q8: 2035 | R8: 2036 | S8: 2037 | T8: 2038 | U8: 2039 | V8: 2040 | W8: 2041 | X8: 2042 | Y8: 2043 | Z8: 2044 | AA8: 2045 | AB8: 2046 | AC8: 2047 | AD8: 2048 | AE8: 2049 | AF8: 2050 | AG8: 2051
G9: Units | I9: ='Option1 (base case)'!I9 -> 2026-27 | J9: ='Option1 (base case)'!J9 -> 2027-28 | K9: ='Option1 (base case)'!K9 -> 2028-29 | L9: ='Option1 (base case)'!L9 -> 2029-30 | M9: ='Option1 (base case)'!M9 -> 2030-31 | N9: ='Option1 (base case)'!N9 -> 2031-32 | O9: ='Option1 (base case)'!O9 -> 2032-33 | P9: ='Option1 (base case)'!P9 -> 2033-34 | Q9: ='Option1 (base case)'!Q9 -> 2034-35 | R9: ='Option1 (base case)'!R9 -> 2035-36 | S9: ='Option1 (base case)'!S9 -> 2036-37 | T9: ='Option1 (base case)'!T9 -> 2037-38 | U9: ='Option1 (base case)'!U9 -> 2038-39 | V9: ='Option1 (base case)'!V9 -> 2039-40 | W9: ='Option1 (base case)'!W9 -> 2040-41 | X9: ='Option1 (base case)'!X9 -> 2041-42 | Y9: ='Option1 (base case)'!Y9 -> 2042-43 | Z9: ='Option1 (base case)'!Z9 -> 2043-44 | AA9: ='Option1 (base case)'!AA9 -> 2044-45 | AB9: ='Option1 (base case)'!AB9 -> 2045-46 | AC9: ='Option1 (base case)'!AC9 -> 2046-47 | AD9: ='Option1 (base case)'!AD9 -> 2047-48 | AE9: ='Option1 (base case)'!AE9 -> 2048-49 | AF9: ='Option1 (base case)'!AF9 -> 2049-50 | AG9: ='Option1 (base case)'!AG9 -> 2050-51
A11: INVESTMENT & OPERATING COST
C13: Capex | E13: Asset life (yrs)
C14: < Enter description > | E14: 50 | G14: =input_dollars -> 2023-12-31 | I14: 43708350 | J14: 43708350 | K14: 0 | L14: 0 | M14: 0 | N14: 0 | O14: 0 | P14: 0 | Q14: 0 | R14: 0 | S14: 0 | T14: 0 | U14: 0 | V14: 0 | W14: 0 | X14: 0 | Y14: 0 | Z14: 0 | AA14: 0 | AB14: 0 | AC14: 0 | AD14: 0 | AE14: 0 | AF14: 0 | AG14: 0
C15: < Enter description > | E15: 0 | G15: =input_dollars -> 2023-12-31 | I15: 0 | J15: 0 | K15: 0 | L15: 0 | M15: 0 | N15: 0 | O15: 0 | P15: 0 | Q15: 0 | R15: 0 | S15: 0 | T15: 0 | U15: 0 | V15: 0 | W15: 0 | X15: 0 | Y15: 0 | Z15: 0 | AA15: 0 | AB15: 0 | AC15: 0 | AD15: 0 | AE15: 0 | AF15: 0 | AG15: 0
C16: < Enter description > | E16: 0 | G16: =input_dollars -> 2023-12-31 | I16: 0 | J16: 0 | K16: 0 | L16: 0 | M16: 0 | N16: 0 | O16: 0 | P16: 0 | Q16: 0 | R16: 0 | S16: 0 | T16: 0 | U16: 0 | V16: 0 | W16: 0 | X16: 0 | Y16: 0 | Z16: 0 | AA16: 0 | AB16: 0 | AC16: 0 | AD16: 0 | AE16: 0 | AF16: 0 | AG16: 0
C17: Capital expenditure | G17: =input_dollars -> 2023-12-31 | I17: =SUM(I14:I16) -> 43708350 | J17: 43708350 | K17: 0 | L17: 0 | M17: 0 | N17: 0 | O17: 0 | P17: 0 | Q17: 0 | R17: =SUM(R14:R16) -> 0 | S17: 0 | T17: 0 | U17: 0 | V17: 0 | W17: 0 | X17: 0 | Y17: 0 | Z17: 0 | AA17: 0 | AB17: 0 | AC17: 0 | AD17: 0 | AE17: 0 | AF17: 0 | AG17: 0
C19: Operating expenditure | G19: =input_dollars -> 2023-12-31 | I19: 0 | J19: 0 | K19: 0 | L19: 0 | M19: 0 | N19: 0 | O19: 0 | P19: 0 | Q19: 0 | R19: 0 | S19: 0 | T19: 0 | U19: 0 | V19: 0 | W19: 0 | X19: 0 | Y19: 0 | Z19: 0 | AA19: 0 | AB19: 0 | AC19: 0 | AD19: 0 | AE19: 0 | AF19: 0 | AG19: 0
A22: RISK ASSUMPTIONS
C24: PoF (major) | I24: 0 | J24: 0 | K24: 0 | L24: 0 | M24: 0 | N24: 0 | O24: 0 | P24: 0 | Q24: 0 | R24: 0 | S24: 0 | T24: 0 | U24: 0 | V24: 0 | W24: 0 | X24: 0 | Y24: 0 | Z24: 0 | AA24: 0 | AB24: 0 | AC24: 0 | AD24: 0 | AE24: 0 | AF24: 0 | AG24: 0
C25: PoF (reparable) | I25: 0 | J25: 0 | K25: 0 | L25: 0 | M25: 0 | N25: 0 | O25: 0 | P25: 0 | Q25: 0 | R25: 0 | S25: 0 | T25: 0 | U25: 0 | V25: 0 | W25: 0 | X25: 0 | Y25: 0 | Z25: 0 | AA25: 0 | AB25: 0 | AC25: 0 | AD25: 0 | AE25: 0 | AF25: 0 | AG25: 0
C27: Const end date | E27: 2028
C28: Energy at risk 10% PoE | E28: 0.3 | G28: MWh | I28: =_xlfn.IFS(I$8<=$E$27,'Option1 (base case)'!I$28,I$8>$E$27,SUM('EaR Opt4 BQ'!I$15,'EaR Opt4 VM'!I$15,'EaR Opt4 LS'!I$15)) -> 4.145505979 | J28: =_xlfn.IFS(J$8<=$E$27,'Option1 (base case)'!J$28,J$8>$E$27,SUM('EaR Opt4 BQ'!J$15,'EaR Opt4 VM'!J$15,'EaR Opt4 LS'!J$15)) -> 3.783998107 | K28: =_xlfn.IFS(K$8<=$E$27,'Option1 (base case)'!K$28,K$8>$E$27,SUM('EaR Opt4 BQ'!K$15,'EaR Opt4 VM'!K$15,'EaR Opt4 LS'!K$15)) -> 0.3090703037 | L28: =_xlfn.IFS(L$8<=$E$27,'Option1 (base case)'!L$28,L$8>$E$27,SUM('EaR Opt4 BQ'!L$15,'EaR Opt4 VM'!L$15,'EaR Opt4 LS'!L$15)) -> 0.1996537469 | M28: =_xlfn.IFS(M$8<=$E$27,'Option1 (base case)'!M$28,M$8>$E$27,SUM('EaR Opt4 BQ'!M$15,'EaR Opt4 VM'!M$15,'EaR Opt4 LS'!M$15)) -> 0.1703373586 | N28: =_xlfn.IFS(N$8<=$E$27,'Option1 (base case)'!N$28,N$8>$E$27,SUM('EaR Opt4 BQ'!N$15,'EaR Opt4 VM'!N$15,'EaR Opt4 LS'!N$15)) -> 0.2434091665 | O28: =_xlfn.IFS(O$8<=$E$27,'Option1 (base case)'!O$28,O$8>$E$27,SUM('EaR Opt4 BQ'!O$15,'EaR Opt4 VM'!O$15,'EaR Opt4 LS'!O$15)) -> 0.516288372 | P28: =_xlfn.IFS(P$8<=$E$27,'Option1 (base case)'!P$28,P$8>$E$27,SUM('EaR Opt4 BQ'!P$15,'EaR Opt4 VM'!P$15,'EaR Opt4 LS'!P$15)) -> 0.892486676 | Q28: =_xlfn.IFS(Q$8<=$E$27,'Option1 (base case)'!Q$28,Q$8>$E$27,SUM('EaR Opt4 BQ'!Q$15,'EaR Opt4 VM'!Q$15,'EaR Opt4 LS'!Q$15)) -> 0.8683085201 | R28: =_xlfn.IFS(R$8<=$E$27,'Option1 (base case)'!R$28,R$8>$E$27,SUM('EaR Opt4 BQ'!R$15,'EaR Opt4 VM'!R$15,'EaR Opt4 LS'!R$15)) -> 0.8683085201 | S28: =_xlfn.IFS(S$8<=$E$27,'Option1 (base case)'!S$28,S$8>$E$27,SUM('EaR Opt4 BQ'!S$15,'EaR Opt4 VM'!S$15,'EaR Opt4 LS'!S$15)) -> 0.8683085201 | T28: =_xlfn.IFS(T$8<=$E$27,'Option1 (base case)'!T$28,T$8>$E$27,SUM('EaR Opt4 BQ'!T$15,'EaR Opt4 VM'!T$15,'EaR Opt4 LS'!T$15)) -> 0.8683085201 | U28: =_xlfn.IFS(U$8<=$E$27,'Option1 (base case)'!U$28,U$8>$E$27,SUM('EaR Opt4 BQ'!U$15,'EaR Opt4 VM'!U$15,'EaR Opt4 LS'!U$15)) -> 0.8683085201 | V28: =_xlfn.IFS(V$8<=$E$27,'Option1 (base case)'!V$28,V$8>$E$27,SUM('EaR Opt4 BQ'!V$15,'EaR Opt4 VM'!V$15,'EaR Opt4 LS'!V$15)) -> 0.8683085201 | W28: =_xlfn.IFS(W$8<=$E$27,'Option1 (base case)'!W$28,W$8>$E$27,SUM('EaR Opt4 BQ'!W$15,'EaR Opt4 VM'!W$15,'EaR Opt4 LS'!W$15)) -> 0.8683085201 | X28: =_xlfn.IFS(X$8<=$E$27,'Option1 (base case)'!X$28,X$8>$E$27,SUM('EaR Opt4 BQ'!X$15,'EaR Opt4 VM'!X$15,'EaR Opt4 LS'!X$15)) -> 0.8683085201 | Y28: =_xlfn.IFS(Y$8<=$E$27,'Option1 (base case)'!Y$28,Y$8>$E$27,SUM('EaR Opt4 BQ'!Y$15,'EaR Opt4 VM'!Y$15,'EaR Opt4 LS'!Y$15)) -> 0.8683085201 | Z28: =_xlfn.IFS(Z$8<=$E$27,'Option1 (base case)'!Z$28,Z$8>$E$27,SUM('EaR Opt4 BQ'!Z$15,'EaR Opt4 VM'!Z$15,'EaR Opt4 LS'!Z$15)) -> 0.8683085201 | AA28: =_xlfn.IFS(AA$8<=$E$27,'Option1 (base case)'!AA$28,AA$8>$E$27,SUM('EaR Opt4 BQ'!AA$15,'EaR Opt4 VM'!AA$15,'EaR Opt4 LS'!AA$15)) -> 0.8683085201 | AB28: =_xlfn.IFS(AB$8<=$E$27,'Option1 (base case)'!AB$28,AB$8>$E$27,SUM('EaR Opt4 BQ'!AB$15,'EaR Opt4 VM'!AB$15,'EaR Opt4 LS'!AB$15)) -> 0.8683085201 | AC28: =_xlfn.IFS(AC$8<=$E$27,'Option1 (base case)'!AC$28,AC$8>$E$27,SUM('EaR Opt4 BQ'!AC$15,'EaR Opt4 VM'!AC$15,'EaR Opt4 LS'!AC$15)) -> 0.8683085201 | AD28: =_xlfn.IFS(AD$8<=$E$27,'Option1 (base case)'!AD$28,AD$8>$E$27,SUM('EaR Opt4 BQ'!AD$15,'EaR Opt4 VM'!AD$15,'EaR Opt4 LS'!AD$15)) -> 0.8683085201 | AE28: =_xlfn.IFS(AE$8<=$E$27,'Option1 (base case)'!AE$28,AE$8>$E$27,SUM('EaR Opt4 BQ'!AE$15,'EaR Opt4 VM'!AE$15,'EaR Opt4 LS'!AE$15)) -> 0.8683085201 | AF28: =_xlfn.IFS(AF$8<=$E$27,'Option1 (base case)'!AF$28,AF$8>$E$27,SUM('EaR Opt4 BQ'!AF$15,'EaR Opt4 VM'!AF$15,'EaR Opt4 LS'!AF$15)) -> 0.8683085201 | AG28: =AF28 -> 0.8683085201
C29: Energy at risk 50% PoE | E29: 0.7 | G29: MWh | I29: =_xlfn.IFS(I$8<=$E$27,'Option1 (base case)'!I$29,I$8>$E$27,SUM('EaR Opt4 BQ'!I$14,'EaR Opt4 VM'!I$14,'EaR Opt4 LS'!I$14)) -> 1.038089825 | J29: =_xlfn.IFS(J$8<=$E$27,'Option1 (base case)'!J$29,J$8>$E$27,SUM('EaR Opt4 BQ'!J$14,'EaR Opt4 VM'!J$14,'EaR Opt4 LS'!J$14)) -> 0.9021775155 | K29: =_xlfn.IFS(K$8<=$E$27,'Option1 (base case)'!K$29,K$8>$E$27,SUM('EaR Opt4 BQ'!K$14,'EaR Opt4 VM'!K$14,'EaR Opt4 LS'!K$14)) -> 0.04131216833 | L29: =_xlfn.IFS(L$8<=$E$27,'Option1 (base case)'!L$29,L$8>$E$27,SUM('EaR Opt4 BQ'!L$14,'EaR Opt4 VM'!L$14,'EaR Opt4 LS'!L$14)) -> 0.02205177696 | M29: =_xlfn.IFS(M$8<=$E$27,'Option1 (base case)'!M$29,M$8>$E$27,SUM('EaR Opt4 BQ'!M$14,'EaR Opt4 VM'!M$14,'EaR Opt4 LS'!M$14)) -> 0.01372637195 | N29: =_xlfn.IFS(N$8<=$E$27,'Option1 (base case)'!N$29,N$8>$E$27,SUM('EaR Opt4 BQ'!N$14,'EaR Opt4 VM'!N$14,'EaR Opt4 LS'!N$14)) -> 0.01173506614 | O29: =_xlfn.IFS(O$8<=$E$27,'Option1 (base case)'!O$29,O$8>$E$27,SUM('EaR Opt4 BQ'!O$14,'EaR Opt4 VM'!O$14,'EaR Opt4 LS'!O$14)) -> 0.01324500119 | P29: =_xlfn.IFS(P$8<=$E$27,'Option1 (base case)'!P$29,P$8>$E$27,SUM('EaR Opt4 BQ'!P$14,'EaR Opt4 VM'!P$14,'EaR Opt4 LS'!P$14)) -> 0.00796902215 | Q29: =_xlfn.IFS(Q$8<=$E$27,'Option1 (base case)'!Q$29,Q$8>$E$27,SUM('EaR Opt4 BQ'!Q$14,'EaR Opt4 VM'!Q$14,'EaR Opt4 LS'!Q$14)) -> 0.003973591992 | R29: =_xlfn.IFS(R$8<=$E$27,'Option1 (base case)'!R$29,R$8>$E$27,SUM('EaR Opt4 BQ'!R$14,'EaR Opt4 VM'!R$14,'EaR Opt4 LS'!R$14)) -> 0.003973591992 | S29: =_xlfn.IFS(S$8<=$E$27,'Option1 (base case)'!S$29,S$8>$E$27,SUM('EaR Opt4 BQ'!S$14,'EaR Opt4 VM'!S$14,'EaR Opt4 LS'!S$14)) -> 0.003973591992 | T29: =_xlfn.IFS(T$8<=$E$27,'Option1 (base case)'!T$29,T$8>$E$27,SUM('EaR Opt4 BQ'!T$14,'EaR Opt4 VM'!T$14,'EaR Opt4 LS'!T$14)) -> 0.003973591992 | U29: =_xlfn.IFS(U$8<=$E$27,'Option1 (base case)'!U$29,U$8>$E$27,SUM('EaR Opt4 BQ'!U$14,'EaR Opt4 VM'!U$14,'EaR Opt4 LS'!U$14)) -> 0.003973591992 | V29: =_xlfn.IFS(V$8<=$E$27,'Option1 (base case)'!V$29,V$8>$E$27,SUM('EaR Opt4 BQ'!V$14,'EaR Opt4 VM'!V$14,'EaR Opt4 LS'!V$14)) -> 0.003973591992 | W29: =_xlfn.IFS(W$8<=$E$27,'Option1 (base case)'!W$29,W$8>$E$27,SUM('EaR Opt4 BQ'!W$14,'EaR Opt4 VM'!W$14,'EaR Opt4 LS'!W$14)) -> 0.003973591992 | X29: =_xlfn.IFS(X$8<=$E$27,'Option1 (base case)'!X$29,X$8>$E$27,SUM('EaR Opt4 BQ'!X$14,'EaR Opt4 VM'!X$14,'EaR Opt4 LS'!X$14)) -> 0.003973591992 | Y29: =_xlfn.IFS(Y$8<=$E$27,'Option1 (base case)'!Y$29,Y$8>$E$27,SUM('EaR Opt4 BQ'!Y$14,'EaR Opt4 VM'!Y$14,'EaR Opt4 LS'!Y$14)) -> 0.003973591992 | Z29: =_xlfn.IFS(Z$8<=$E$27,'Option1 (base case)'!Z$29,Z$8>$E$27,SUM('EaR Opt4 BQ'!Z$14,'EaR Opt4 VM'!Z$14,'EaR Opt4 LS'!Z$14)) -> 0.003973591992 | AA29: =_xlfn.IFS(AA$8<=$E$27,'Option1 (base case)'!AA$29,AA$8>$E$27,SUM('EaR Opt4 BQ'!AA$14,'EaR Opt4 VM'!AA$14,'EaR Opt4 LS'!AA$14)) -> 0.003973591992 | AB29: =_xlfn.IFS(AB$8<=$E$27,'Option1 (base case)'!AB$29,AB$8>$E$27,SUM('EaR Opt4 BQ'!AB$14,'EaR Opt4 VM'!AB$14,'EaR Opt4 LS'!AB$14)) -> 0.003973591992 | AC29: =_xlfn.IFS(AC$8<=$E$27,'Option1 (base case)'!AC$29,AC$8>$E$27,SUM('EaR Opt4 BQ'!AC$14,'EaR Opt4 VM'!AC$14,'EaR Opt4 LS'!AC$14)) -> 0.003973591992 | AD29: =_xlfn.IFS(AD$8<=$E$27,'Option1 (base case)'!AD$29,AD$8>$E$27,SUM('EaR Opt4 BQ'!AD$14,'EaR Opt4 VM'!AD$14,'EaR Opt4 LS'!AD$14)) -> 0.003973591992 | AE29: =_xlfn.IFS(AE$8<=$E$27,'Option1 (base case)'!AE$29,AE$8>$E$27,SUM('EaR Opt4 BQ'!AE$14,'EaR Opt4 VM'!AE$14,'EaR Opt4 LS'!AE$14)) -> 0.003973591992 | AF29: =_xlfn.IFS(AF$8<=$E$27,'Option1 (base case)'!AF$29,AF$8>$E$27,SUM('EaR Opt4 BQ'!AF$14,'EaR Opt4 VM'!AF$14,'EaR Opt4 LS'!AF$14)) -> 0.003973591992 | AG29: =AF29 -> 0.003973591992
C31: Energy at risk (weighted) | G31: MWh | I31: =SUMPRODUCT(I$28:I$29, $E$28:$E$29) -> 1.970314671 | J31: =SUMPRODUCT(J$28:J$29, $E$28:$E$29) -> 1.766723693 | K31: 0.1216396089 | L31: 0.07533236793 | M31: 0.06070966795 | N31: 0.08123729624 | O31: 0.1641580124 | P31: 0.2733243183 | Q31: 0.2632740704 | R31: 0.2632740704 | S31: 0.2632740704 | T31: 0.2632740704 | U31: 0.2632740704 | V31: 0.2632740704 | W31: 0.2632740704 | X31: 0.2632740704 | Y31: 0.2632740704 | Z31: 0.2632740704 | AA31: 0.2632740704 | AB31: 0.2632740704 | AC31: 0.2632740704 | AD31: 0.2632740704 | AE31: 0.2632740704 | AF31: 0.2632740704 | AG31: 0.2632740704
C32: Energy at risk value | D32: $/MWh | E32: =Assumptions!H41*vcr_esc -> 36935.21398 | F32: =IF(AND(SUM(I31:AG31)<>0, E32=0), "!", "") ->  | G32: =input_dollars -> 2023-12-31 | I32: =I31*$E$32 -> 72773.99399 | J32: =J31*$E$32 -> 65254.31764 | K32: 4492.784984 | L32: 2782.417129 | M32: 2242.324576 | N32: 3000.51692 | O32: 6063.211315 | P32: 10095.29218 | Q32: 9724.084126 | R32: 9724.084126 | S32: 9724.084126 | T32: 9724.084126 | U32: 9724.084126 | V32: 9724.084126 | W32: 9724.084126 | X32: 9724.084126 | Y32: 9724.084126 | Z32: 9724.084126 | AA32: 9724.084126 | AB32: 9724.084126 | AC32: 9724.084126 | AD32: 9724.084126 | AE32: 9724.084126 | AF32: 9724.084126 | AG32: 9724.084126
C34: Safety consequence | D34: (after DF) | G34: =input_dollars -> 2023-12-31 | I34: =SUMPRODUCT((Assumptions!$H$70:$H$71)*(Assumptions!$G$70:$G$71)*(Assumptions!$I$70:$I$71)*(I$24:I$25)) -> 0 | J34: =SUMPRODUCT((Assumptions!$H$70:$H$71)*(Assumptions!$G$70:$G$71)*(Assumptions!$I$70:$I$71)*(J$24:J$25)) -> 0 | K34: =SUMPRODUCT((Assumptions!$H$70:$H$71)*(Assumptions!$G$70:$G$71)*(Assumptions!$I$70:$I$71)*(K$24:K$25)) -> 0 | L34: =SUMPRODUCT((Assumptions!$H$70:$H$71)*(Assumptions!$G$70:$G$71)*(Assumptions!$I$70:$I$71)*(L$24:L$25)) -> 0 | M34: =SUMPRODUCT((Assumptions!$H$70:$H$71)*(Assumptions!$G$70:$G$71)*(Assumptions!$I$70:$I$71)*(M$24:M$25)) -> 0 | N34: =SUMPRODUCT((Assumptions!$H$70:$H$71)*(Assumptions!$G$70:$G$71)*(Assumptions!$I$70:$I$71)*(N$24:N$25)) -> 0 | O34: =SUMPRODUCT((Assumptions!$H$70:$H$71)*(Assumptions!$G$70:$G$71)*(Assumptions!$I$70:$I$71)*(O$24:O$25)) -> 0 | P34: =SUMPRODUCT((Assumptions!$H$70:$H$71)*(Assumptions!$G$70:$G$71)*(Assumptions!$I$70:$I$71)*(P$24:P$25)) -> 0 | Q34: =SUMPRODUCT((Assumptions!$H$70:$H$71)*(Assumptions!$G$70:$G$71)*(Assumptions!$I$70:$I$71)*(Q$24:Q$25)) -> 0 | R34: =SUMPRODUCT((Assumptions!$H$70:$H$71)*(Assumptions!$G$70:$G$71)*(Assumptions!$I$70:$I$71)*(R$24:R$25)) -> 0 | S34: =SUMPRODUCT((Assumptions!$H$70:$H$71)*(Assumptions!$G$70:$G$71)*(Assumptions!$I$70:$I$71)*(S$24:S$25)) -> 0 | T34: =SUMPRODUCT((Assumptions!$H$70:$H$71)*(Assumptions!$G$70:$G$71)*(Assumptions!$I$70:$I$71)*(T$24:T$25)) -> 0 | U34: =SUMPRODUCT((Assumptions!$H$70:$H$71)*(Assumptions!$G$70:$G$71)*(Assumptions!$I$70:$I$71)*(U$24:U$25)) -> 0 | V34: =SUMPRODUCT((Assumptions!$H$70:$H$71)*(Assumptions!$G$70:$G$71)*(Assumptions!$I$70:$I$71)*(V$24:V$25)) -> 0 | W34: =SUMPRODUCT((Assumptions!$H$70:$H$71)*(Assumptions!$G$70:$G$71)*(Assumptions!$I$70:$I$71)*(W$24:W$25)) -> 0 | X34: =SUMPRODUCT((Assumptions!$H$70:$H$71)*(Assumptions!$G$70:$G$71)*(Assumptions!$I$70:$I$71)*(X$24:X$25)) -> 0 | Y34: =SUMPRODUCT((Assumptions!$H$70:$H$71)*(Assumptions!$G$70:$G$71)*(Assumptions!$I$70:$I$71)*(Y$24:Y$25)) -> 0 | Z34: =SUMPRODUCT((Assumptions!$H$70:$H$71)*(Assumptions!$G$70:$G$71)*(Assumptions!$I$70:$I$71)*(Z$24:Z$25)) -> 0 | AA34: =SUMPRODUCT((Assumptions!$H$70:$H$71)*(Assumptions!$G$70:$G$71)*(Assumptions!$I$70:$I$71)*(AA$24:AA$25)) -> 0 | AB34: =SUMPRODUCT((Assumptions!$H$70:$H$71)*(Assumptions!$G$70:$G$71)*(Assumptions!$I$70:$I$71)*(AB$24:AB$25)) -> 0 | AC34: =SUMPRODUCT((Assumptions!$H$70:$H$71)*(Assumptions!$G$70:$G$71)*(Assumptions!$I$70:$I$71)*(AC$24:AC$25)) -> 0 | AD34: =SUMPRODUCT((Assumptions!$H$70:$H$71)*(Assumptions!$G$70:$G$71)*(Assumptions!$I$70:$I$71)*(AD$24:AD$25)) -> 0 | AE34: =SUMPRODUCT((Assumptions!$H$70:$H$71)*(Assumptions!$G$70:$G$71)*(Assumptions!$I$70:$I$71)*(AE$24:AE$25)) -> 0 | AF34: =SUMPRODUCT((Assumptions!$H$70:$H$71)*(Assumptions!$G$70:$G$71)*(Assumptions!$I$70:$I$71)*(AF$24:AF$25)) -> 0 | AG34: =SUMPRODUCT((Assumptions!$H$70:$H$71)*(Assumptions!$G$70:$G$71)*(Assumptions!$I$70:$I$71)*(AG$24:AG$25)) -> 0
C35: Unplanned replacements | G35: =input_dollars -> 2023-12-31 | I35: =(1+Assumptions!$G$81)*SUMPRODUCT((Assumptions!$G$78:$G$79)*(I$24:I$25)) -> 0 | J35: =(1+Assumptions!$G$81)*SUMPRODUCT((Assumptions!$G$78:$G$79)*(J$24:J$25)) -> 0 | K35: =(1+Assumptions!$G$81)*SUMPRODUCT((Assumptions!$G$78:$G$79)*(K$24:K$25)) -> 0 | L35: =(1+Assumptions!$G$81)*SUMPRODUCT((Assumptions!$G$78:$G$79)*(L$24:L$25)) -> 0 | M35: =(1+Assumptions!$G$81)*SUMPRODUCT((Assumptions!$G$78:$G$79)*(M$24:M$25)) -> 0 | N35: =(1+Assumptions!$G$81)*SUMPRODUCT((Assumptions!$G$78:$G$79)*(N$24:N$25)) -> 0 | O35: =(1+Assumptions!$G$81)*SUMPRODUCT((Assumptions!$G$78:$G$79)*(O$24:O$25)) -> 0 | P35: =(1+Assumptions!$G$81)*SUMPRODUCT((Assumptions!$G$78:$G$79)*(P$24:P$25)) -> 0 | Q35: =(1+Assumptions!$G$81)*SUMPRODUCT((Assumptions!$G$78:$G$79)*(Q$24:Q$25)) -> 0 | R35: =(1+Assumptions!$G$81)*SUMPRODUCT((Assumptions!$G$78:$G$79)*(R$24:R$25)) -> 0 | S35: =(1+Assumptions!$G$81)*SUMPRODUCT((Assumptions!$G$78:$G$79)*(S$24:S$25)) -> 0 | T35: =(1+Assumptions!$G$81)*SUMPRODUCT((Assumptions!$G$78:$G$79)*(T$24:T$25)) -> 0 | U35: =(1+Assumptions!$G$81)*SUMPRODUCT((Assumptions!$G$78:$G$79)*(U$24:U$25)) -> 0 | V35: =(1+Assumptions!$G$81)*SUMPRODUCT((Assumptions!$G$78:$G$79)*(V$24:V$25)) -> 0 | W35: =(1+Assumptions!$G$81)*SUMPRODUCT((Assumptions!$G$78:$G$79)*(W$24:W$25)) -> 0 | X35: =(1+Assumptions!$G$81)*SUMPRODUCT((Assumptions!$G$78:$G$79)*(X$24:X$25)) -> 0 | Y35: =(1+Assumptions!$G$81)*SUMPRODUCT((Assumptions!$G$78:$G$79)*(Y$24:Y$25)) -> 0 | Z35: =(1+Assumptions!$G$81)*SUMPRODUCT((Assumptions!$G$78:$G$79)*(Z$24:Z$25)) -> 0 | AA35: =(1+Assumptions!$G$81)*SUMPRODUCT((Assumptions!$G$78:$G$79)*(AA$24:AA$25)) -> 0 | AB35: =(1+Assumptions!$G$81)*SUMPRODUCT((Assumptions!$G$78:$G$79)*(AB$24:AB$25)) -> 0 | AC35: =(1+Assumptions!$G$81)*SUMPRODUCT((Assumptions!$G$78:$G$79)*(AC$24:AC$25)) -> 0 | AD35: =(1+Assumptions!$G$81)*SUMPRODUCT((Assumptions!$G$78:$G$79)*(AD$24:AD$25)) -> 0 | AE35: =(1+Assumptions!$G$81)*SUMPRODUCT((Assumptions!$G$78:$G$79)*(AE$24:AE$25)) -> 0 | AF35: =(1+Assumptions!$G$81)*SUMPRODUCT((Assumptions!$G$78:$G$79)*(AF$24:AF$25)) -> 0 | AG35: =(1+Assumptions!$G$81)*SUMPRODUCT((Assumptions!$G$78:$G$79)*(AG$24:AG$25)) -> 0
C36: Environmental consequence | D36: (after DF) | G36: =input_dollars -> 2023-12-31 | I36: 0 | J36: 0 | K36: 0 | L36: 0 | M36: 0 | N36: 0 | O36: 0 | P36: 0 | Q36: 0 | R36: 0 | S36: 0 | T36: 0 | U36: 0 | V36: 0 | W36: 0 | X36: 0 | Y36: 0 | Z36: 0 | AA36: 0 | AB36: 0 | AC36: 0 | AD36: 0 | AE36: 0 | AF36: 0 | AG36: 0
C37: < Other risk - enter description > | G37: =input_dollars -> 2023-12-31 | I37: 0 | J37: 0 | K37: 0 | L37: 0 | M37: 0 | N37: 0 | O37: 0 | P37: 0 | Q37: 0 | R37: 0 | S37: 0 | T37: 0 | U37: 0 | V37: 0 | W37: 0 | X37: 0 | Y37: 0 | Z37: 0 | AA37: 0 | AB37: 0 | AC37: 0 | AD37: 0 | AE37: 0 | AF37: 0 | AG37: 0
C38: < Other risk - enter description > | G38: =input_dollars -> 2023-12-31 | I38: 0 | J38: 0 | K38: 0 | L38: 0 | M38: 0 | N38: 0 | O38: 0 | P38: 0 | Q38: 0 | R38: 0 | S38: 0 | T38: 0 | U38: 0 | V38: 0 | W38: 0 | X38: 0 | Y38: 0 | Z38: 0 | AA38: 0 | AB38: 0 | AC38: 0 | AD38: 0 | AE38: 0 | AF38: 0 | AG38: 0
C40: Total risk cost | I40: =SUM(I32:I38) -> 72773.99399 | J40: =SUM(J32:J38) -> 65254.31764 | K40: 4492.784984 | L40: 2782.417129 | M40: 2242.324576 | N40: 3000.51692 | O40: 6063.211315 | P40: 10095.29218 | Q40: 9724.084126 | R40: 9724.084126 | S40: 9724.084126 | T40: 9724.084126 | U40: 9724.084126 | V40: 9724.084126 | W40: 9724.084126 | X40: 9724.084126 | Y40: 9724.084126 | Z40: 9724.084126 | AA40: 9724.084126 | AB40: 9724.084126 | AC40: 9724.084126 | AD40: 9724.084126 | AE40: 9724.084126 | AF40: 9724.084126 | AG40: 9724.084126
A42: OTHER BENEFITS
C45: Reduction in CO2 emissions | G45: MWh | I45: 0 | J45: 0 | K45: 0 | L45: 0 | M45: 0 | N45: 0 | O45: 0 | P45: 0 | Q45: 0 | R45: 0 | S45: 0 | T45: 0 | U45: 0 | V45: 0 | W45: 0 | X45: 0 | Y45: 0 | Z45: 0 | AA45: 0 | AB45: 0 | AC45: 0 | AD45: 0 | AE45: 0 | AF45: 0 | AG45: 0
C46: Value of reduction in CO2 emissions | G46: $ | I46: =I45*I7 -> 0 | J46: 0 | K46: 0 | L46: 0 | M46: 0 | N46: 0 | O46: 0 | P46: 0 | Q46: 0 | R46: 0 | S46: 0 | T46: 0 | U46: 0 | V46: 0 | W46: 0 | X46: 0 | Y46: 0 | Z46: 0 | AA46: 0 | AB46: 0 | AC46: 0 | AD46: 0 | AE46: 0 | AF46: 0 | AG46: 0
C49: Reliability in worst-served areas | D49: $/MWh | E49: =Assumptions!G94 -> 0 | G49: MWh | I49: 0 | J49: 0 | K49: 0 | L49: 0 | M49: 0 | N49: 0 | O49: 0 | P49: 0 | Q49: 0 | R49: 0 | S49: 0 | T49: 0 | U49: 0 | V49: 0 | W49: 0 | X49: 0 | Y49: 0 | Z49: 0 | AA49: 0 | AB49: 0 | AC49: 0 | AD49: 0 | AE49: 0 | AF49: 0 | AG49: 0
C50: Network resilience | D50: $/MWh | E50: =Assumptions!G95 -> 0 | G50: MWh | I50: 0 | J50: 0 | K50: 0 | L50: 0 | M50: 0 | N50: 0 | O50: 0 | P50: 0 | Q50: 0 | R50: 0 | S50: 0 | T50: 0 | U50: 0 | V50: 0 | W50: 0 | X50: 0 | Y50: 0 | Z50: 0 | AA50: 0 | AB50: 0 | AC50: 0 | AD50: 0 | AE50: 0 | AF50: 0 | AG50: 0
C51: Enabling solar exports | D51: $/MWh | E51: =Assumptions!G96 -> 4220.99537 | G51: MWh | I51: 0 | J51: 0 | K51: 0 | L51: 0 | M51: 0 | N51: 0 | O51: 0 | P51: 0 | Q51: 0 | R51: 0 | S51: 0 | T51: 0 | U51: 0 | V51: 0 | W51: 0 | X51: 0 | Y51: 0 | Z51: 0 | AA51: 0 | AB51: 0 | AC51: 0 | AD51: 0 | AE51: 0 | AF51: 0 | AG51: 0
C52: Aesthetics | D52: $/customer | E52: =Assumptions!G97 -> 0 | G52: customers | I52: 0 | J52: 0 | K52: 0 | L52: 0 | M52: 0 | N52: 0 | O52: 0 | P52: 0 | Q52: 0 | R52: 0 | S52: 0 | T52: 0 | U52: 0 | V52: 0 | W52: 0 | X52: 0 | Y52: 0 | Z52: 0 | AA52: 0 | AB52: 0 | AC52: 0 | AD52: 0 | AE52: 0 | AF52: 0 | AG52: 0
C53: Customer value of time (res) | D53: $/customer min | E53: =Assumptions!G98 -> 0.5476938068 | G53: mins | I53: 0 | J53: 0 | K53: 0 | L53: 0 | M53: 0 | N53: 0 | O53: 0 | P53: 0 | Q53: 0 | R53: 0 | S53: 0 | T53: 0 | U53: 0 | V53: 0 | W53: 0 | X53: 0 | Y53: 0 | Z53: 0 | AA53: 0 | AB53: 0 | AC53: 0 | AD53: 0 | AE53: 0 | AF53: 0 | AG53: 0
C54: Customer value of time (bus) | D54: $/customer min | E54: =Assumptions!G99 -> 0.5476938068 | G54: mins | I54: 0 | J54: 0 | K54: 0 | L54: 0 | M54: 0 | N54: 0 | O54: 0 | P54: 0 | Q54: 0 | R54: 0 | S54: 0 | T54: 0 | U54: 0 | V54: 0 | W54: 0 | X54: 0 | Y54: 0 | Z54: 0 | AA54: 0 | AB54: 0 | AC54: 0 | AD54: 0 | AE54: 0 | AF54: 0 | AG54: 0
C55: Communication | D55: $/customer | E55: =Assumptions!G100 -> 0 | G55: customers | I55: 0 | J55: 0 | K55: 0 | L55: 0 | M55: 0 | N55: 0 | O55: 0 | P55: 0 | Q55: 0 | R55: 0 | S55: 0 | T55: 0 | U55: 0 | V55: 0 | W55: 0 | X55: 0 | Y55: 0 | Z55: 0 | AA55: 0 | AB55: 0 | AC55: 0 | AD55: 0 | AE55: 0 | AF55: 0 | AG55: 0
C56: Information accessibility | D56: $/customer | E56: =Assumptions!G101 -> 0 | G56: customers | I56: 0 | J56: 0 | K56: 0 | L56: 0 | M56: 0 | N56: 0 | O56: 0 | P56: 0 | Q56: 0 | R56: 0 | S56: 0 | T56: 0 | U56: 0 | V56: 0 | W56: 0 | X56: 0 | Y56: 0 | Z56: 0 | AA56: 0 | AB56: 0 | AC56: 0 | AD56: 0 | AE56: 0 | AF56: 0 | AG56: 0
C58: Other benefits 1 | G58: =input_dollars -> 2023-12-31 | I58: 0 | J58: 0 | K58: 0 | L58: 0 | M58: 0 | N58: 0 | O58: 0 | P58: 0 | Q58: 0 | R58: 0 | S58: 0 | T58: 0 | U58: 0 | V58: 0 | W58: 0 | X58: 0 | Y58: 0 | Z58: 0 | AA58: 0 | AB58: 0 | AC58: 0 | AD58: 0 | AE58: 0 | AF58: 0 | AG58: 0
C59: Other benefits 2 | G59: =input_dollars -> 2023-12-31 | I59: 0 | J59: 0 | K59: 0 | L59: 0 | M59: 0 | N59: 0 | O59: 0 | P59: 0 | Q59: 0 | R59: 0 | S59: 0 | T59: 0 | U59: 0 | V59: 0 | W59: 0 | X59: 0 | Y59: 0 | Z59: 0 | AA59: 0 | AB59: 0 | AC59: 0 | AD59: 0 | AE59: 0 | AF59: 0 | AG59: 0
C61: Total other benefits | G61: =input_dollars -> 2023-12-31 | I61: =SUMPRODUCT((I$49:I$56)*($E$49:$E$56))+SUM(I58:I59)+I46 -> 0 | J61: =SUMPRODUCT((J$49:J$56)*($E$49:$E$56))+SUM(J58:J59)+J46 -> 0 | K61: =SUMPRODUCT((K$49:K$56)*($E$49:$E$56))+SUM(K58:K59)+K46 -> 0 | L61: =SUMPRODUCT((L$49:L$56)*($E$49:$E$56))+SUM(L58:L59)+L46 -> 0 | M61: =SUMPRODUCT((M$49:M$56)*($E$49:$E$56))+SUM(M58:M59)+M46 -> 0 | N61: =SUMPRODUCT((N$49:N$56)*($E$49:$E$56))+SUM(N58:N59)+N46 -> 0 | O61: =SUMPRODUCT((O$49:O$56)*($E$49:$E$56))+SUM(O58:O59)+O46 -> 0 | P61: =SUMPRODUCT((P$49:P$56)*($E$49:$E$56))+SUM(P58:P59)+P46 -> 0 | Q61: =SUMPRODUCT((Q$49:Q$56)*($E$49:$E$56))+SUM(Q58:Q59)+Q46 -> 0 | R61: =SUMPRODUCT((R$49:R$56)*($E$49:$E$56))+SUM(R58:R59)+R46 -> 0 | S61: =SUMPRODUCT((S$49:S$56)*($E$49:$E$56))+SUM(S58:S59)+S46 -> 0 | T61: =SUMPRODUCT((T$49:T$56)*($E$49:$E$56))+SUM(T58:T59)+T46 -> 0 | U61: =SUMPRODUCT((U$49:U$56)*($E$49:$E$56))+SUM(U58:U59)+U46 -> 0 | V61: =SUMPRODUCT((V$49:V$56)*($E$49:$E$56))+SUM(V58:V59)+V46 -> 0 | W61: =SUMPRODUCT((W$49:W$56)*($E$49:$E$56))+SUM(W58:W59)+W46 -> 0 | X61: =SUMPRODUCT((X$49:X$56)*($E$49:$E$56))+SUM(X58:X59)+X46 -> 0 | Y61: =SUMPRODUCT((Y$49:Y$56)*($E$49:$E$56))+SUM(Y58:Y59)+Y46 -> 0 | Z61: =SUMPRODUCT((Z$49:Z$56)*($E$49:$E$56))+SUM(Z58:Z59)+Z46 -> 0 | AA61: =SUMPRODUCT((AA$49:AA$56)*($E$49:$E$56))+SUM(AA58:AA59)+AA46 -> 0 | AB61: =SUMPRODUCT((AB$49:AB$56)*($E$49:$E$56))+SUM(AB58:AB59)+AB46 -> 0 | AC61: =SUMPRODUCT((AC$49:AC$56)*($E$49:$E$56))+SUM(AC58:AC59)+AC46 -> 0 | AD61: =SUMPRODUCT((AD$49:AD$56)*($E$49:$E$56))+SUM(AD58:AD59)+AD46 -> 0 | AE61: =SUMPRODUCT((AE$49:AE$56)*($E$49:$E$56))+SUM(AE58:AE59)+AE46 -> 0 | AF61: =SUMPRODUCT((AF$49:AF$56)*($E$49:$E$56))+SUM(AF58:AF59)+AF46 -> 0 | AG61: =SUMPRODUCT((AG$49:AG$56)*($E$49:$E$56))+SUM(AG58:AG59)+AG46 -> 0
A64: SUMMARY
C68: ='Option1 (base case)'!C68 -> Risks mitigated vs base case | G68: =input_dollars -> 2023-12-31 | I68: =(1-INDEX(Data!$C$9:$C$13, MATCH($A$3, options,0)))*('Option1 (base case)'!I40-I40) -> 0 | J68: =(1-INDEX(Data!$C$9:$C$13, MATCH($A$3, options,0)))*('Option1 (base case)'!J40-J40) -> 0 | K68: =(1-INDEX(Data!$C$9:$C$13, MATCH($A$3, options,0)))*('Option1 (base case)'!K40-K40) -> 5081974.985 | L68: =(1-INDEX(Data!$C$9:$C$13, MATCH($A$3, options,0)))*('Option1 (base case)'!L40-L40) -> 5294149.648 | M68: =(1-INDEX(Data!$C$9:$C$13, MATCH($A$3, options,0)))*('Option1 (base case)'!M40-M40) -> 5605903.737 | N68: =(1-INDEX(Data!$C$9:$C$13, MATCH($A$3, options,0)))*('Option1 (base case)'!N40-N40) -> 6410993.296 | O68: =(1-INDEX(Data!$C$9:$C$13, MATCH($A$3, options,0)))*('Option1 (base case)'!O40-O40) -> 7444350.571 | P68: =(1-INDEX(Data!$C$9:$C$13, MATCH($A$3, options,0)))*('Option1 (base case)'!P40-P40) -> 8091970.076 | Q68: =(1-INDEX(Data!$C$9:$C$13, MATCH($A$3, options,0)))*('Option1 (base case)'!Q40-Q40) -> 7988304.287 | R68: =(1-INDEX(Data!$C$9:$C$13, MATCH($A$3, options,0)))*('Option1 (base case)'!R40-R40) -> 7988304.287 | S68: =(1-INDEX(Data!$C$9:$C$13, MATCH($A$3, options,0)))*('Option1 (base case)'!S40-S40) -> 7988304.287 | T68: =(1-INDEX(Data!$C$9:$C$13, MATCH($A$3, options,0)))*('Option1 (base case)'!T40-T40) -> 7988304.287 | U68: =(1-INDEX(Data!$C$9:$C$13, MATCH($A$3, options,0)))*('Option1 (base case)'!U40-U40) -> 7988304.287 | V68: =(1-INDEX(Data!$C$9:$C$13, MATCH($A$3, options,0)))*('Option1 (base case)'!V40-V40) -> 7988304.287 | W68: =(1-INDEX(Data!$C$9:$C$13, MATCH($A$3, options,0)))*('Option1 (base case)'!W40-W40) -> 7988304.287 | X68: =(1-INDEX(Data!$C$9:$C$13, MATCH($A$3, options,0)))*('Option1 (base case)'!X40-X40) -> 7988304.287 | Y68: =(1-INDEX(Data!$C$9:$C$13, MATCH($A$3, options,0)))*('Option1 (base case)'!Y40-Y40) -> 7988304.287 | Z68: =(1-INDEX(Data!$C$9:$C$13, MATCH($A$3, options,0)))*('Option1 (base case)'!Z40-Z40) -> 7988304.287 | AA68: =(1-INDEX(Data!$C$9:$C$13, MATCH($A$3, options,0)))*('Option1 (base case)'!AA40-AA40) -> 7988304.287 | AB68: =(1-INDEX(Data!$C$9:$C$13, MATCH($A$3, options,0)))*('Option1 (base case)'!AB40-AB40) -> 7988304.287 | AC68: =(1-INDEX(Data!$C$9:$C$13, MATCH($A$3, options,0)))*('Option1 (base case)'!AC40-AC40) -> 7988304.287 | AD68: =(1-INDEX(Data!$C$9:$C$13, MATCH($A$3, options,0)))*('Option1 (base case)'!AD40-AD40) -> 7988304.287 | AE68: =(1-INDEX(Data!$C$9:$C$13, MATCH($A$3, options,0)))*('Option1 (base case)'!AE40-AE40) -> 7988304.287 | AF68: =(1-INDEX(Data!$C$9:$C$13, MATCH($A$3, options,0)))*('Option1 (base case)'!AF40-AF40) -> 7988304.287 | AG68: =(1-INDEX(Data!$C$9:$C$13, MATCH($A$3, options,0)))*('Option1 (base case)'!AG40-AG40) -> 7988304.287
C70: Capital expenditure
C71: =C14 -> < Enter description > | G71: =input_dollars -> 2023-12-31 | I71: =-I14 -> -43708350 | J71: -43708350 | K71: 0 | L71: 0 | M71: 0 | N71: 0 | O71: 0 | P71: 0 | Q71: 0 | R71: 0 | S71: 0 | T71: 0 | U71: 0 | V71: 0 | W71: 0 | X71: 0 | Y71: 0 | Z71: 0 | AA71: 0 | AB71: 0 | AC71: 0 | AD71: 0 | AE71: 0 | AF71: 0 | AG71: 0
C72: =C15 -> < Enter description > | G72: =input_dollars -> 2023-12-31 | I72: =-I15 -> 0 | J72: 0 | K72: 0 | L72: 0 | M72: 0 | N72: 0 | O72: 0 | P72: 0 | Q72: 0 | R72: 0 | S72: 0 | T72: 0 | U72: 0 | V72: 0 | W72: 0 | X72: 0 | Y72: 0 | Z72: 0 | AA72: 0 | AB72: 0 | AC72: 0 | AD72: 0 | AE72: 0 | AF72: 0 | AG72: 0
C73: =C16 -> < Enter description > | G73: =input_dollars -> 2023-12-31 | I73: =-I16 -> 0 | J73: 0 | K73: 0 | L73: 0 | M73: 0 | N73: 0 | O73: 0 | P73: 0 | Q73: 0 | R73: 0 | S73: 0 | T73: 0 | U73: 0 | V73: 0 | W73: 0 | X73: 0 | Y73: 0 | Z73: 0 | AA73: 0 | AB73: 0 | AC73: 0 | AD73: 0 | AE73: 0 | AF73: 0 | AG73: 0
C75: Cumulative capex
C76: =C14 -> < Enter description > | G76: =input_dollars -> 2023-12-31 | I76: =SUMPRODUCT(($I71:I71))-SUMPRODUCT(($I71:I71)*($I$6:I$6<=(I$6-$E14))) -> -43708350 | J76: =SUMPRODUCT(($I71:J71))-SUMPRODUCT(($I71:J71)*($I$6:J$6<=(J$6-$E14))) -> -87416700 | K76: =SUMPRODUCT(($I71:K71))-SUMPRODUCT(($I71:K71)*($I$6:K$6<=(K$6-$E14))) -> -87416700 | L76: =SUMPRODUCT(($I71:L71))-SUMPRODUCT(($I71:L71)*($I$6:L$6<=(L$6-$E14))) -> -87416700 | M76: =SUMPRODUCT(($I71:M71))-SUMPRODUCT(($I71:M71)*($I$6:M$6<=(M$6-$E14))) -> -87416700 | N76: =SUMPRODUCT(($I71:N71))-SUMPRODUCT(($I71:N71)*($I$6:N$6<=(N$6-$E14))) -> -87416700 | O76: =SUMPRODUCT(($I71:O71))-SUMPRODUCT(($I71:O71)*($I$6:O$6<=(O$6-$E14))) -> -87416700 | P76: =SUMPRODUCT(($I71:P71))-SUMPRODUCT(($I71:P71)*($I$6:P$6<=(P$6-$E14))) -> -87416700 | Q76: =SUMPRODUCT(($I71:Q71))-SUMPRODUCT(($I71:Q71)*($I$6:Q$6<=(Q$6-$E14))) -> -87416700 | R76: =SUMPRODUCT(($I71:R71))-SUMPRODUCT(($I71:R71)*($I$6:R$6<=(R$6-$E14))) -> -87416700 | S76: =SUMPRODUCT(($I71:S71))-SUMPRODUCT(($I71:S71)*($I$6:S$6<=(S$6-$E14))) -> -87416700 | T76: =SUMPRODUCT(($I71:T71))-SUMPRODUCT(($I71:T71)*($I$6:T$6<=(T$6-$E14))) -> -87416700 | U76: =SUMPRODUCT(($I71:U71))-SUMPRODUCT(($I71:U71)*($I$6:U$6<=(U$6-$E14))) -> -87416700 | V76: =SUMPRODUCT(($I71:V71))-SUMPRODUCT(($I71:V71)*($I$6:V$6<=(V$6-$E14))) -> -87416700 | W76: =SUMPRODUCT(($I71:W71))-SUMPRODUCT(($I71:W71)*($I$6:W$6<=(W$6-$E14))) -> -87416700 | X76: =SUMPRODUCT(($I71:X71))-SUMPRODUCT(($I71:X71)*($I$6:X$6<=(X$6-$E14))) -> -87416700 | Y76: =SUMPRODUCT(($I71:Y71))-SUMPRODUCT(($I71:Y71)*($I$6:Y$6<=(Y$6-$E14))) -> -87416700 | Z76: =SUMPRODUCT(($I71:Z71))-SUMPRODUCT(($I71:Z71)*($I$6:Z$6<=(Z$6-$E14))) -> -87416700 | AA76: =SUMPRODUCT(($I71:AA71))-SUMPRODUCT(($I71:AA71)*($I$6:AA$6<=(AA$6-$E14))) -> -87416700 | AB76: =SUMPRODUCT(($I71:AB71))-SUMPRODUCT(($I71:AB71)*($I$6:AB$6<=(AB$6-$E14))) -> -87416700 | AC76: =SUMPRODUCT(($I71:AC71))-SUMPRODUCT(($I71:AC71)*($I$6:AC$6<=(AC$6-$E14))) -> -87416700 | AD76: =SUMPRODUCT(($I71:AD71))-SUMPRODUCT(($I71:AD71)*($I$6:AD$6<=(AD$6-$E14))) -> -87416700 | AE76: =SUMPRODUCT(($I71:AE71))-SUMPRODUCT(($I71:AE71)*($I$6:AE$6<=(AE$6-$E14))) -> -87416700 | AF76: =SUMPRODUCT(($I71:AF71))-SUMPRODUCT(($I71:AF71)*($I$6:AF$6<=(AF$6-$E14))) -> -87416700 | AG76: =SUMPRODUCT(($I71:AG71))-SUMPRODUCT(($I71:AG71)*($I$6:AG$6<=(AG$6-$E14))) -> -87416700
C77: =C15 -> < Enter description > | G77: =input_dollars -> 2023-12-31 | I77: =SUMPRODUCT(($I72:I72))-SUMPRODUCT(($I72:I72)*($I$6:I$6<=(I$6-$E15))) -> 0 | J77: =SUMPRODUCT(($I72:J72))-SUMPRODUCT(($I72:J72)*($I$6:J$6<=(J$6-$E15))) -> 0 | K77: =SUMPRODUCT(($I72:K72))-SUMPRODUCT(($I72:K72)*($I$6:K$6<=(K$6-$E15))) -> 0 | L77: =SUMPRODUCT(($I72:L72))-SUMPRODUCT(($I72:L72)*($I$6:L$6<=(L$6-$E15))) -> 0 | M77: =SUMPRODUCT(($I72:M72))-SUMPRODUCT(($I72:M72)*($I$6:M$6<=(M$6-$E15))) -> 0 | N77: =SUMPRODUCT(($I72:N72))-SUMPRODUCT(($I72:N72)*($I$6:N$6<=(N$6-$E15))) -> 0 | O77: =SUMPRODUCT(($I72:O72))-SUMPRODUCT(($I72:O72)*($I$6:O$6<=(O$6-$E15))) -> 0 | P77: =SUMPRODUCT(($I72:P72))-SUMPRODUCT(($I72:P72)*($I$6:P$6<=(P$6-$E15))) -> 0 | Q77: =SUMPRODUCT(($I72:Q72))-SUMPRODUCT(($I72:Q72)*($I$6:Q$6<=(Q$6-$E15))) -> 0 | R77: =SUMPRODUCT(($I72:R72))-SUMPRODUCT(($I72:R72)*($I$6:R$6<=(R$6-$E15))) -> 0 | S77: =SUMPRODUCT(($I72:S72))-SUMPRODUCT(($I72:S72)*($I$6:S$6<=(S$6-$E15))) -> 0 | T77: =SUMPRODUCT(($I72:T72))-SUMPRODUCT(($I72:T72)*($I$6:T$6<=(T$6-$E15))) -> 0 | U77: =SUMPRODUCT(($I72:U72))-SUMPRODUCT(($I72:U72)*($I$6:U$6<=(U$6-$E15))) -> 0 | V77: =SUMPRODUCT(($I72:V72))-SUMPRODUCT(($I72:V72)*($I$6:V$6<=(V$6-$E15))) -> 0 | W77: =SUMPRODUCT(($I72:W72))-SUMPRODUCT(($I72:W72)*($I$6:W$6<=(W$6-$E15))) -> 0 | X77: =SUMPRODUCT(($I72:X72))-SUMPRODUCT(($I72:X72)*($I$6:X$6<=(X$6-$E15))) -> 0 | Y77: =SUMPRODUCT(($I72:Y72))-SUMPRODUCT(($I72:Y72)*($I$6:Y$6<=(Y$6-$E15))) -> 0 | Z77: =SUMPRODUCT(($I72:Z72))-SUMPRODUCT(($I72:Z72)*($I$6:Z$6<=(Z$6-$E15))) -> 0 | AA77: =SUMPRODUCT(($I72:AA72))-SUMPRODUCT(($I72:AA72)*($I$6:AA$6<=(AA$6-$E15))) -> 0 | AB77: =SUMPRODUCT(($I72:AB72))-SUMPRODUCT(($I72:AB72)*($I$6:AB$6<=(AB$6-$E15))) -> 0 | AC77: =SUMPRODUCT(($I72:AC72))-SUMPRODUCT(($I72:AC72)*($I$6:AC$6<=(AC$6-$E15))) -> 0 | AD77: =SUMPRODUCT(($I72:AD72))-SUMPRODUCT(($I72:AD72)*($I$6:AD$6<=(AD$6-$E15))) -> 0 | AE77: =SUMPRODUCT(($I72:AE72))-SUMPRODUCT(($I72:AE72)*($I$6:AE$6<=(AE$6-$E15))) -> 0 | AF77: =SUMPRODUCT(($I72:AF72))-SUMPRODUCT(($I72:AF72)*($I$6:AF$6<=(AF$6-$E15))) -> 0 | AG77: =SUMPRODUCT(($I72:AG72))-SUMPRODUCT(($I72:AG72)*($I$6:AG$6<=(AG$6-$E15))) -> 0
C78: =C16 -> < Enter description > | G78: =input_dollars -> 2023-12-31 | I78: =SUMPRODUCT(($I73:I73))-SUMPRODUCT(($I73:I73)*($I$6:I$6<=(I$6-$E16))) -> 0 | J78: =SUMPRODUCT(($I73:J73))-SUMPRODUCT(($I73:J73)*($I$6:J$6<=(J$6-$E16))) -> 0 | K78: =SUMPRODUCT(($I73:K73))-SUMPRODUCT(($I73:K73)*($I$6:K$6<=(K$6-$E16))) -> 0 | L78: =SUMPRODUCT(($I73:L73))-SUMPRODUCT(($I73:L73)*($I$6:L$6<=(L$6-$E16))) -> 0 | M78: =SUMPRODUCT(($I73:M73))-SUMPRODUCT(($I73:M73)*($I$6:M$6<=(M$6-$E16))) -> 0 | N78: =SUMPRODUCT(($I73:N73))-SUMPRODUCT(($I73:N73)*($I$6:N$6<=(N$6-$E16))) -> 0 | O78: =SUMPRODUCT(($I73:O73))-SUMPRODUCT(($I73:O73)*($I$6:O$6<=(O$6-$E16))) -> 0 | P78: =SUMPRODUCT(($I73:P73))-SUMPRODUCT(($I73:P73)*($I$6:P$6<=(P$6-$E16))) -> 0 | Q78: =SUMPRODUCT(($I73:Q73))-SUMPRODUCT(($I73:Q73)*($I$6:Q$6<=(Q$6-$E16))) -> 0 | R78: =SUMPRODUCT(($I73:R73))-SUMPRODUCT(($I73:R73)*($I$6:R$6<=(R$6-$E16))) -> 0 | S78: =SUMPRODUCT(($I73:S73))-SUMPRODUCT(($I73:S73)*($I$6:S$6<=(S$6-$E16))) -> 0 | T78: =SUMPRODUCT(($I73:T73))-SUMPRODUCT(($I73:T73)*($I$6:T$6<=(T$6-$E16))) -> 0 | U78: =SUMPRODUCT(($I73:U73))-SUMPRODUCT(($I73:U73)*($I$6:U$6<=(U$6-$E16))) -> 0 | V78: =SUMPRODUCT(($I73:V73))-SUMPRODUCT(($I73:V73)*($I$6:V$6<=(V$6-$E16))) -> 0 | W78: =SUMPRODUCT(($I73:W73))-SUMPRODUCT(($I73:W73)*($I$6:W$6<=(W$6-$E16))) -> 0 | X78: =SUMPRODUCT(($I73:X73))-SUMPRODUCT(($I73:X73)*($I$6:X$6<=(X$6-$E16))) -> 0 | Y78: =SUMPRODUCT(($I73:Y73))-SUMPRODUCT(($I73:Y73)*($I$6:Y$6<=(Y$6-$E16))) -> 0 | Z78: =SUMPRODUCT(($I73:Z73))-SUMPRODUCT(($I73:Z73)*($I$6:Z$6<=(Z$6-$E16))) -> 0 | AA78: =SUMPRODUCT(($I73:AA73))-SUMPRODUCT(($I73:AA73)*($I$6:AA$6<=(AA$6-$E16))) -> 0 | AB78: =SUMPRODUCT(($I73:AB73))-SUMPRODUCT(($I73:AB73)*($I$6:AB$6<=(AB$6-$E16))) -> 0 | AC78: =SUMPRODUCT(($I73:AC73))-SUMPRODUCT(($I73:AC73)*($I$6:AC$6<=(AC$6-$E16))) -> 0 | AD78: =SUMPRODUCT(($I73:AD73))-SUMPRODUCT(($I73:AD73)*($I$6:AD$6<=(AD$6-$E16))) -> 0 | AE78: =SUMPRODUCT(($I73:AE73))-SUMPRODUCT(($I73:AE73)*($I$6:AE$6<=(AE$6-$E16))) -> 0 | AF78: =SUMPRODUCT(($I73:AF73))-SUMPRODUCT(($I73:AF73)*($I$6:AF$6<=(AF$6-$E16))) -> 0 | AG78: =SUMPRODUCT(($I73:AG73))-SUMPRODUCT(($I73:AG73)*($I$6:AG$6<=(AG$6-$E16))) -> 0
C80: Annualised capex
C81: =$C$80&" - "&C14 -> Annualised capex - < Enter description > | G81: =input_dollars -> 2023-12-31 | I81: =IF($E14=0,0,-PMT(real_disc, $E14,H76,)) -> 0 | J81: -1863449.1 | K81: -3726898.199 | L81: -3726898.199 | M81: -3726898.199 | N81: -3726898.199 | O81: -3726898.199 | P81: -3726898.199 | Q81: -3726898.199 | R81: -3726898.199 | S81: -3726898.199 | T81: -3726898.199 | U81: -3726898.199 | V81: -3726898.199 | W81: -3726898.199 | X81: -3726898.199 | Y81: -3726898.199 | Z81: -3726898.199 | AA81: -3726898.199 | AB81: -3726898.199 | AC81: -3726898.199 | AD81: -3726898.199 | AE81: -3726898.199 | AF81: -3726898.199 | AG81: -3726898.199
C82: =$C$80&" - "&C15 -> Annualised capex - < Enter description > | G82: =input_dollars -> 2023-12-31 | I82: =IF($E15=0,0,-PMT(real_disc, $E15,H77,)) -> 0 | J82: 0 | K82: 0 | L82: 0 | M82: 0 | N82: 0 | O82: 0 | P82: 0 | Q82: 0 | R82: 0 | S82: 0 | T82: 0 | U82: 0 | V82: 0 | W82: 0 | X82: 0 | Y82: 0 | Z82: 0 | AA82: 0 | AB82: 0 | AC82: 0 | AD82: 0 | AE82: 0 | AF82: 0 | AG82: 0
C83: =$C$80&" - "&C16 -> Annualised capex - < Enter description > | G83: =input_dollars -> 2023-12-31 | I83: =IF($E16=0,0,-PMT(real_disc, $E16,H78,)) -> 0 | J83: 0 | K83: 0 | L83: 0 | M83: 0 | N83: 0 | O83: 0 | P83: 0 | Q83: 0 | R83: 0 | S83: 0 | T83: 0 | U83: 0 | V83: 0 | W83: 0 | X83: 0 | Y83: 0 | Z83: 0 | AA83: 0 | AB83: 0 | AC83: 0 | AD83: 0 | AE83: 0 | AF83: 0 | AG83: 0
C84: Total annualised capex | G84: =input_dollars -> 2023-12-31 | I84: =SUM(I81:I83) -> 0 | J84: =SUM(J81:J83) -> -1863449.1 | K84: -3726898.199 | L84: -3726898.199 | M84: -3726898.199 | N84: -3726898.199 | O84: -3726898.199 | P84: -3726898.199 | Q84: -3726898.199 | R84: -3726898.199 | S84: -3726898.199 | T84: -3726898.199 | U84: -3726898.199 | V84: -3726898.199 | W84: -3726898.199 | X84: -3726898.199 | Y84: -3726898.199 | Z84: -3726898.199 | AA84: -3726898.199 | AB84: -3726898.199 | AC84: =SUM(AC81:AC83) -> -3726898.199 | AD84: =SUM(AD81:AD83) -> -3726898.199 | AE84: =SUM(AE81:AE83) -> -3726898.199 | AF84: =SUM(AF81:AF83) -> -3726898.199 | AG84: =SUM(AG81:AG83) -> -3726898.199
C86: Annualised capex | G86: =input_dollars -> 2023-12-31 | I86: =I84 -> 0 | J86: =J84 -> -1863449.1 | K86: -3726898.199 | L86: -3726898.199 | M86: -3726898.199 | N86: -3726898.199 | O86: -3726898.199 | P86: -3726898.199 | Q86: -3726898.199 | R86: -3726898.199 | S86: -3726898.199 | T86: -3726898.199 | U86: -3726898.199 | V86: -3726898.199 | W86: -3726898.199 | X86: -3726898.199 | Y86: -3726898.199 | Z86: -3726898.199 | AA86: -3726898.199 | AB86: -3726898.199 | AC86: =AC84 -> -3726898.199 | AD86: =AD84 -> -3726898.199 | AE86: =AE84 -> -3726898.199 | AF86: =AF84 -> -3726898.199 | AG86: =AG84 -> -3726898.199
C87: Operating expenditure | G87: 2023-12-31 | I87: =-I19 -> 0 | J87: 0 | K87: 0 | L87: 0 | M87: 0 | N87: 0 | O87: 0 | P87: 0 | Q87: 0 | R87: 0 | S87: 0 | T87: 0 | U87: 0 | V87: 0 | W87: 0 | X87: 0 | Y87: 0 | Z87: 0 | AA87: 0 | AB87: 0 | AC87: 0 | AD87: 0 | AE87: 0 | AF87: 0 | AG87: 0
C88: Risk mitigated | G88: 2023-12-31 | I88: =I68 -> 0 | J88: =J68 -> 0 | K88: 5081974.985 | L88: 5294149.648 | M88: 5605903.737 | N88: 6410993.296 | O88: 7444350.571 | P88: 8091970.076 | Q88: 7988304.287 | R88: 7988304.287 | S88: 7988304.287 | T88: 7988304.287 | U88: 7988304.287 | V88: 7988304.287 | W88: 7988304.287 | X88: 7988304.287 | Y88: 7988304.287 | Z88: 7988304.287 | AA88: 7988304.287 | AB88: 7988304.287 | AC88: =AC68 -> 7988304.287 | AD88: =AD68 -> 7988304.287 | AE88: =AE68 -> 7988304.287 | AF88: =AF68 -> 7988304.287 | AG88: =AG68 -> 7988304.287
C89: Other benefits value | G89: 2023-12-31 | I89: =I61 -> 0 | J89: 0 | K89: 0 | L89: 0 | M89: 0 | N89: 0 | O89: 0 | P89: 0 | Q89: 0 | R89: 0 | S89: 0 | T89: 0 | U89: 0 | V89: 0 | W89: 0 | X89: 0 | Y89: 0 | Z89: 0 | AA89: 0 | AB89: 0 | AC89: 0 | AD89: 0 | AE89: 0 | AF89: 0 | AG89: 0
C91: Net benefits | G91: 2023-12-31 | I91: =SUM(I86:I90) -> 0 | J91: -1863449.1 | K91: 1355076.786 | L91: 1567251.449 | M91: 1879005.538 | N91: 2684095.097 | O91: 3717452.372 | P91: 4365071.877 | Q91: 4261406.088 | R91: 4261406.088 | S91: 4261406.088 | T91: 4261406.088 | U91: 4261406.088 | V91: 4261406.088 | W91: 4261406.088 | X91: 4261406.088 | Y91: 4261406.088 | Z91: 4261406.088 | AA91: 4261406.088 | AB91: 4261406.088 | AC91: =SUM(AC86:AC90) -> 4261406.088 | AD91: =SUM(AD86:AD90) -> 4261406.088 | AE91: =SUM(AE86:AE90) -> 4261406.088 | AF91: =SUM(AF86:AF90) -> 4261406.088 | AG91: =SUM(AG86:AG90) -> 4261406.088
C94: First capex year | G94: =IF(SUM($I17:$AG17)=0,0,(INDEX(I$6:AG$6,MATCH(TRUE,INDEX($I17:$AG17<>0,),0)))) -> 1
C96: First year | G96: =IF(_xlfn.MINIFS($G$94:$G$95, $G$94:$G$95, ">"&0)=0, $A$4, _xlfn.MINIFS($G$94:$G$95, $G$94:$G$95, ">"&0)) -> 1
A106: SENSITIVITIES
A110: NPV | C110: Net benefits | G110: =PROPER($A$3)&A110 -> Option 4NPV | I110: =I91 -> 0 | J110: =J91 -> -1863449.1 | K110: 1355076.786 | L110: 1567251.449 | M110: 1879005.538 | N110: 2684095.097 | O110: 3717452.372 | P110: 4365071.877 | Q110: 4261406.088 | R110: 4261406.088 | S110: 4261406.088 | T110: 4261406.088 | U110: 4261406.088 | V110: 4261406.088 | W110: 4261406.088 | X110: 4261406.088 | Y110: 4261406.088 | Z110: 4261406.088 | AA110: 4261406.088 | AB110: 4261406.088 | AC110: 4261406.088 | AD110: 4261406.088 | AE110: 4261406.088 | AF110: 4261406.088 | AG110: 4261406.088
C111: Total annualised capex | I111: =I86 -> 0 | J111: =J86 -> -1863449.1 | K111: -3726898.199 | L111: -3726898.199 | M111: -3726898.199 | N111: -3726898.199 | O111: -3726898.199 | P111: -3726898.199 | Q111: -3726898.199 | R111: -3726898.199 | S111: -3726898.199 | T111: -3726898.199 | U111: -3726898.199 | V111: -3726898.199 | W111: -3726898.199 | X111: -3726898.199 | Y111: -3726898.199 | Z111: -3726898.199 | AA111: -3726898.199 | AB111: -3726898.199 | AC111: -3726898.199 | AD111: -3726898.199 | AE111: -3726898.199 | AF111: -3726898.199 | AG111: -3726898.199
C112: Total benefits | I112: =SUM(I88:I89) -> 0 | J112: =SUM(J88:J89) -> 0 | K112: 5081974.985 | L112: 5294149.648 | M112: 5605903.737 | N112: 6410993.296 | O112: 7444350.571 | P112: 8091970.076 | Q112: 7988304.287 | R112: 7988304.287 | S112: 7988304.287 | T112: 7988304.287 | U112: 7988304.287 | V112: 7988304.287 | W112: 7988304.287 | X112: 7988304.287 | Y112: 7988304.287 | Z112: 7988304.287 | AA112: 7988304.287 | AB112: 7988304.287 | AC112: 7988304.287 | AD112: 7988304.287 | AE112: 7988304.287 | AF112: 7988304.287 | AG112: 7988304.287
D113: =Assumptions!G110 -> Capex | E113: =Assumptions!H110 -> Total benefits
A114: ="sens"&Assumptions!B111 -> sens1 | C114: =Assumptions!C111 -> Capex 10% higher | D114: =Assumptions!G111 -> 0.1 | E114: =Assumptions!H111 -> 0 | G114: =PROPER($A$3)&A114 -> Option 4sens1 | I114: =I$110+IF($C114<>0,SUMPRODUCT((I$111:I$112)*TRANSPOSE(($D114:$E114))),0) -> 0 | J114: =J$110+IF($C114<>0,SUMPRODUCT((J$111:J$112)*TRANSPOSE(($D114:$E114))),0) -> -2049794.009 | K114: =K$110+IF($C114<>0,SUMPRODUCT((K$111:K$112)*TRANSPOSE(($D114:$E114))),0) -> 982386.9659 | L114: =L$110+IF($C114<>0,SUMPRODUCT((L$111:L$112)*TRANSPOSE(($D114:$E114))),0) -> 1194561.629 | M114: =M$110+IF($C114<>0,SUMPRODUCT((M$111:M$112)*TRANSPOSE(($D114:$E114))),0) -> 1506315.718 | N114: =N$110+IF($C114<>0,SUMPRODUCT((N$111:N$112)*TRANSPOSE(($D114:$E114))),0) -> 2311405.277 | O114: =O$110+IF($C114<>0,SUMPRODUCT((O$111:O$112)*TRANSPOSE(($D114:$E114))),0) -> 3344762.552 | P114: =P$110+IF($C114<>0,SUMPRODUCT((P$111:P$112)*TRANSPOSE(($D114:$E114))),0) -> 3992382.057 | Q114: =Q$110+IF($C114<>0,SUMPRODUCT((Q$111:Q$112)*TRANSPOSE(($D114:$E114))),0) -> 3888716.268 | R114: =R$110+IF($C114<>0,SUMPRODUCT((R$111:R$112)*TRANSPOSE(($D114:$E114))),0) -> 3888716.268 | S114: =S$110+IF($C114<>0,SUMPRODUCT((S$111:S$112)*TRANSPOSE(($D114:$E114))),0) -> 3888716.268 | T114: =T$110+IF($C114<>0,SUMPRODUCT((T$111:T$112)*TRANSPOSE(($D114:$E114))),0) -> 3888716.268 | U114: =U$110+IF($C114<>0,SUMPRODUCT((U$111:U$112)*TRANSPOSE(($D114:$E114))),0) -> 3888716.268 | V114: =V$110+IF($C114<>0,SUMPRODUCT((V$111:V$112)*TRANSPOSE(($D114:$E114))),0) -> 3888716.268 | W114: =W$110+IF($C114<>0,SUMPRODUCT((W$111:W$112)*TRANSPOSE(($D114:$E114))),0) -> 3888716.268 | X114: =X$110+IF($C114<>0,SUMPRODUCT((X$111:X$112)*TRANSPOSE(($D114:$E114))),0) -> 3888716.268 | Y114: =Y$110+IF($C114<>0,SUMPRODUCT((Y$111:Y$112)*TRANSPOSE(($D114:$E114))),0) -> 3888716.268 | Z114: =Z$110+IF($C114<>0,SUMPRODUCT((Z$111:Z$112)*TRANSPOSE(($D114:$E114))),0) -> 3888716.268 | AA114: =AA$110+IF($C114<>0,SUMPRODUCT((AA$111:AA$112)*TRANSPOSE(($D114:$E114))),0) -> 3888716.268 | AB114: =AB$110+IF($C114<>0,SUMPRODUCT((AB$111:AB$112)*TRANSPOSE(($D114:$E114))),0) -> 3888716.268 | AC114: =AC$110+IF($C114<>0,SUMPRODUCT((AC$111:AC$112)*TRANSPOSE(($D114:$E114))),0) -> 3888716.268 | AD114: =AD$110+IF($C114<>0,SUMPRODUCT((AD$111:AD$112)*TRANSPOSE(($D114:$E114))),0) -> 3888716.268 | AE114: =AE$110+IF($C114<>0,SUMPRODUCT((AE$111:AE$112)*TRANSPOSE(($D114:$E114))),0) -> 3888716.268 | AF114: =AF$110+IF($C114<>0,SUMPRODUCT((AF$111:AF$112)*TRANSPOSE(($D114:$E114))),0) -> 3888716.268 | AG114: =AG$110+IF($C114<>0,SUMPRODUCT((AG$111:AG$112)*TRANSPOSE(($D114:$E114))),0) -> 3888716.268
A115: ="sens"&Assumptions!B112 -> sens2 | C115: =Assumptions!C112 -> Capex 10% lower | D115: =Assumptions!G112 -> -0.1 | E115: =Assumptions!H112 -> 0 | G115: =PROPER($A$3)&A115 -> Option 4sens2 | I115: =I$110+IF($C115<>0,SUMPRODUCT((I$111:I$112)*TRANSPOSE(($D115:$E115))),0) -> 0 | J115: =J$110+IF($C115<>0,SUMPRODUCT((J$111:J$112)*TRANSPOSE(($D115:$E115))),0) -> -1677104.19 | K115: =K$110+IF($C115<>0,SUMPRODUCT((K$111:K$112)*TRANSPOSE(($D115:$E115))),0) -> 1727766.606 | L115: =L$110+IF($C115<>0,SUMPRODUCT((L$111:L$112)*TRANSPOSE(($D115:$E115))),0) -> 1939941.269 | M115: =M$110+IF($C115<>0,SUMPRODUCT((M$111:M$112)*TRANSPOSE(($D115:$E115))),0) -> 2251695.358 | N115: =N$110+IF($C115<>0,SUMPRODUCT((N$111:N$112)*TRANSPOSE(($D115:$E115))),0) -> 3056784.917 | O115: =O$110+IF($C115<>0,SUMPRODUCT((O$111:O$112)*TRANSPOSE(($D115:$E115))),0) -> 4090142.192 | P115: =P$110+IF($C115<>0,SUMPRODUCT((P$111:P$112)*TRANSPOSE(($D115:$E115))),0) -> 4737761.697 | Q115: =Q$110+IF($C115<>0,SUMPRODUCT((Q$111:Q$112)*TRANSPOSE(($D115:$E115))),0) -> 4634095.908 | R115: =R$110+IF($C115<>0,SUMPRODUCT((R$111:R$112)*TRANSPOSE(($D115:$E115))),0) -> 4634095.908 | S115: =S$110+IF($C115<>0,SUMPRODUCT((S$111:S$112)*TRANSPOSE(($D115:$E115))),0) -> 4634095.908 | T115: =T$110+IF($C115<>0,SUMPRODUCT((T$111:T$112)*TRANSPOSE(($D115:$E115))),0) -> 4634095.908 | U115: =U$110+IF($C115<>0,SUMPRODUCT((U$111:U$112)*TRANSPOSE(($D115:$E115))),0) -> 4634095.908 | V115: =V$110+IF($C115<>0,SUMPRODUCT((V$111:V$112)*TRANSPOSE(($D115:$E115))),0) -> 4634095.908 | W115: =W$110+IF($C115<>0,SUMPRODUCT((W$111:W$112)*TRANSPOSE(($D115:$E115))),0) -> 4634095.908 | X115: =X$110+IF($C115<>0,SUMPRODUCT((X$111:X$112)*TRANSPOSE(($D115:$E115))),0) -> 4634095.908 | Y115: =Y$110+IF($C115<>0,SUMPRODUCT((Y$111:Y$112)*TRANSPOSE(($D115:$E115))),0) -> 4634095.908 | Z115: =Z$110+IF($C115<>0,SUMPRODUCT((Z$111:Z$112)*TRANSPOSE(($D115:$E115))),0) -> 4634095.908 | AA115: =AA$110+IF($C115<>0,SUMPRODUCT((AA$111:AA$112)*TRANSPOSE(($D115:$E115))),0) -> 4634095.908 | AB115: =AB$110+IF($C115<>0,SUMPRODUCT((AB$111:AB$112)*TRANSPOSE(($D115:$E115))),0) -> 4634095.908 | AC115: =AC$110+IF($C115<>0,SUMPRODUCT((AC$111:AC$112)*TRANSPOSE(($D115:$E115))),0) -> 4634095.908 | AD115: =AD$110+IF($C115<>0,SUMPRODUCT((AD$111:AD$112)*TRANSPOSE(($D115:$E115))),0) -> 4634095.908 | AE115: =AE$110+IF($C115<>0,SUMPRODUCT((AE$111:AE$112)*TRANSPOSE(($D115:$E115))),0) -> 4634095.908 | AF115: =AF$110+IF($C115<>0,SUMPRODUCT((AF$111:AF$112)*TRANSPOSE(($D115:$E115))),0) -> 4634095.908 | AG115: =AG$110+IF($C115<>0,SUMPRODUCT((AG$111:AG$112)*TRANSPOSE(($D115:$E115))),0) -> 4634095.908
A116: ="sens"&Assumptions!B113 -> sens3 | C116: =Assumptions!C113 -> Total benefits 10% higher | D116: =Assumptions!G113 -> 0 | E116: =Assumptions!H113 -> 0.1 | G116: Option 4sens3 | I116: =I$110+IF($C116<>0,SUMPRODUCT((I$111:I$112)*TRANSPOSE(($D116:$E116))),0) -> 0 | J116: =J$110+IF($C116<>0,SUMPRODUCT((J$111:J$112)*TRANSPOSE(($D116:$E116))),0) -> -1863449.1 | K116: =K$110+IF($C116<>0,SUMPRODUCT((K$111:K$112)*TRANSPOSE(($D116:$E116))),0) -> 1863274.284 | L116: =L$110+IF($C116<>0,SUMPRODUCT((L$111:L$112)*TRANSPOSE(($D116:$E116))),0) -> 2096666.414 | M116: =M$110+IF($C116<>0,SUMPRODUCT((M$111:M$112)*TRANSPOSE(($D116:$E116))),0) -> 2439595.912 | N116: =N$110+IF($C116<>0,SUMPRODUCT((N$111:N$112)*TRANSPOSE(($D116:$E116))),0) -> 3325194.427 | O116: =O$110+IF($C116<>0,SUMPRODUCT((O$111:O$112)*TRANSPOSE(($D116:$E116))),0) -> 4461887.429 | P116: =P$110+IF($C116<>0,SUMPRODUCT((P$111:P$112)*TRANSPOSE(($D116:$E116))),0) -> 5174268.885 | Q116: =Q$110+IF($C116<>0,SUMPRODUCT((Q$111:Q$112)*TRANSPOSE(($D116:$E116))),0) -> 5060236.516 | R116: =R$110+IF($C116<>0,SUMPRODUCT((R$111:R$112)*TRANSPOSE(($D116:$E116))),0) -> 5060236.516 | S116: =S$110+IF($C116<>0,SUMPRODUCT((S$111:S$112)*TRANSPOSE(($D116:$E116))),0) -> 5060236.516 | T116: =T$110+IF($C116<>0,SUMPRODUCT((T$111:T$112)*TRANSPOSE(($D116:$E116))),0) -> 5060236.516 | U116: =U$110+IF($C116<>0,SUMPRODUCT((U$111:U$112)*TRANSPOSE(($D116:$E116))),0) -> 5060236.516 | V116: =V$110+IF($C116<>0,SUMPRODUCT((V$111:V$112)*TRANSPOSE(($D116:$E116))),0) -> 5060236.516 | W116: =W$110+IF($C116<>0,SUMPRODUCT((W$111:W$112)*TRANSPOSE(($D116:$E116))),0) -> 5060236.516 | X116: =X$110+IF($C116<>0,SUMPRODUCT((X$111:X$112)*TRANSPOSE(($D116:$E116))),0) -> 5060236.516 | Y116: =Y$110+IF($C116<>0,SUMPRODUCT((Y$111:Y$112)*TRANSPOSE(($D116:$E116))),0) -> 5060236.516 | Z116: =Z$110+IF($C116<>0,SUMPRODUCT((Z$111:Z$112)*TRANSPOSE(($D116:$E116))),0) -> 5060236.516 | AA116: =AA$110+IF($C116<>0,SUMPRODUCT((AA$111:AA$112)*TRANSPOSE(($D116:$E116))),0) -> 5060236.516 | AB116: =AB$110+IF($C116<>0,SUMPRODUCT((AB$111:AB$112)*TRANSPOSE(($D116:$E116))),0) -> 5060236.516 | AC116: =AC$110+IF($C116<>0,SUMPRODUCT((AC$111:AC$112)*TRANSPOSE(($D116:$E116))),0) -> 5060236.516 | AD116: =AD$110+IF($C116<>0,SUMPRODUCT((AD$111:AD$112)*TRANSPOSE(($D116:$E116))),0) -> 5060236.516 | AE116: =AE$110+IF($C116<>0,SUMPRODUCT((AE$111:AE$112)*TRANSPOSE(($D116:$E116))),0) -> 5060236.516 | AF116: =AF$110+IF($C116<>0,SUMPRODUCT((AF$111:AF$112)*TRANSPOSE(($D116:$E116))),0) -> 5060236.516 | AG116: =AG$110+IF($C116<>0,SUMPRODUCT((AG$111:AG$112)*TRANSPOSE(($D116:$E116))),0) -> 5060236.516
A117: ="sens"&Assumptions!B114 -> sens4 | C117: =Assumptions!C114 -> Total benefits 10% lower | D117: =Assumptions!G114 -> 0 | E117: =Assumptions!H114 -> -0.1 | G117: Option 4sens4 | I117: =I$110+IF($C117<>0,SUMPRODUCT((I$111:I$112)*TRANSPOSE(($D117:$E117))),0) -> 0 | J117: =J$110+IF($C117<>0,SUMPRODUCT((J$111:J$112)*TRANSPOSE(($D117:$E117))),0) -> -1863449.1 | K117: =K$110+IF($C117<>0,SUMPRODUCT((K$111:K$112)*TRANSPOSE(($D117:$E117))),0) -> 846879.2873 | L117: =L$110+IF($C117<>0,SUMPRODUCT((L$111:L$112)*TRANSPOSE(($D117:$E117))),0) -> 1037836.484 | M117: =M$110+IF($C117<>0,SUMPRODUCT((M$111:M$112)*TRANSPOSE(($D117:$E117))),0) -> 1318415.164 | N117: =N$110+IF($C117<>0,SUMPRODUCT((N$111:N$112)*TRANSPOSE(($D117:$E117))),0) -> 2042995.768 | O117: =O$110+IF($C117<>0,SUMPRODUCT((O$111:O$112)*TRANSPOSE(($D117:$E117))),0) -> 2973017.315 | P117: =P$110+IF($C117<>0,SUMPRODUCT((P$111:P$112)*TRANSPOSE(($D117:$E117))),0) -> 3555874.869 | Q117: =Q$110+IF($C117<>0,SUMPRODUCT((Q$111:Q$112)*TRANSPOSE(($D117:$E117))),0) -> 3462575.659 | R117: =R$110+IF($C117<>0,SUMPRODUCT((R$111:R$112)*TRANSPOSE(($D117:$E117))),0) -> 3462575.659 | S117: =S$110+IF($C117<>0,SUMPRODUCT((S$111:S$112)*TRANSPOSE(($D117:$E117))),0) -> 3462575.659 | T117: =T$110+IF($C117<>0,SUMPRODUCT((T$111:T$112)*TRANSPOSE(($D117:$E117))),0) -> 3462575.659 | U117: =U$110+IF($C117<>0,SUMPRODUCT((U$111:U$112)*TRANSPOSE(($D117:$E117))),0) -> 3462575.659 | V117: =V$110+IF($C117<>0,SUMPRODUCT((V$111:V$112)*TRANSPOSE(($D117:$E117))),0) -> 3462575.659 | W117: =W$110+IF($C117<>0,SUMPRODUCT((W$111:W$112)*TRANSPOSE(($D117:$E117))),0) -> 3462575.659 | X117: =X$110+IF($C117<>0,SUMPRODUCT((X$111:X$112)*TRANSPOSE(($D117:$E117))),0) -> 3462575.659 | Y117: =Y$110+IF($C117<>0,SUMPRODUCT((Y$111:Y$112)*TRANSPOSE(($D117:$E117))),0) -> 3462575.659 | Z117: =Z$110+IF($C117<>0,SUMPRODUCT((Z$111:Z$112)*TRANSPOSE(($D117:$E117))),0) -> 3462575.659 | AA117: =AA$110+IF($C117<>0,SUMPRODUCT((AA$111:AA$112)*TRANSPOSE(($D117:$E117))),0) -> 3462575.659 | AB117: =AB$110+IF($C117<>0,SUMPRODUCT((AB$111:AB$112)*TRANSPOSE(($D117:$E117))),0) -> 3462575.659 | AC117: =AC$110+IF($C117<>0,SUMPRODUCT((AC$111:AC$112)*TRANSPOSE(($D117:$E117))),0) -> 3462575.659 | AD117: =AD$110+IF($C117<>0,SUMPRODUCT((AD$111:AD$112)*TRANSPOSE(($D117:$E117))),0) -> 3462575.659 | AE117: =AE$110+IF($C117<>0,SUMPRODUCT((AE$111:AE$112)*TRANSPOSE(($D117:$E117))),0) -> 3462575.659 | AF117: =AF$110+IF($C117<>0,SUMPRODUCT((AF$111:AF$112)*TRANSPOSE(($D117:$E117))),0) -> 3462575.659 | AG117: =AG$110+IF($C117<>0,SUMPRODUCT((AG$111:AG$112)*TRANSPOSE(($D117:$E117))),0) -> 3462575.659
A118: ="sens"&Assumptions!B115 -> sens5 | C118: =Assumptions!C115 -> Capex 10% higher & Total benefits 10% lower | D118: =Assumptions!G115 -> 0.1 | E118: =Assumptions!H115 -> -0.1 | G118: Option 4sens5 | I118: =I$110+IF($C118<>0,SUMPRODUCT((I$111:I$112)*TRANSPOSE(($D118:$E118))),0) -> 0 | J118: =J$110+IF($C118<>0,SUMPRODUCT((J$111:J$112)*TRANSPOSE(($D118:$E118))),0) -> -2049794.009 | K118: =K$110+IF($C118<>0,SUMPRODUCT((K$111:K$112)*TRANSPOSE(($D118:$E118))),0) -> 474189.4674 | L118: =L$110+IF($C118<>0,SUMPRODUCT((L$111:L$112)*TRANSPOSE(($D118:$E118))),0) -> 665146.6644 | M118: =M$110+IF($C118<>0,SUMPRODUCT((M$111:M$112)*TRANSPOSE(($D118:$E118))),0) -> 945725.3443 | N118: =N$110+IF($C118<>0,SUMPRODUCT((N$111:N$112)*TRANSPOSE(($D118:$E118))),0) -> 1670305.948 | O118: =O$110+IF($C118<>0,SUMPRODUCT((O$111:O$112)*TRANSPOSE(($D118:$E118))),0) -> 2600327.495 | P118: =P$110+IF($C118<>0,SUMPRODUCT((P$111:P$112)*TRANSPOSE(($D118:$E118))),0) -> 3183185.049 | Q118: =Q$110+IF($C118<>0,SUMPRODUCT((Q$111:Q$112)*TRANSPOSE(($D118:$E118))),0) -> 3089885.839 | R118: =R$110+IF($C118<>0,SUMPRODUCT((R$111:R$112)*TRANSPOSE(($D118:$E118))),0) -> 3089885.839 | S118: =S$110+IF($C118<>0,SUMPRODUCT((S$111:S$112)*TRANSPOSE(($D118:$E118))),0) -> 3089885.839 | T118: =T$110+IF($C118<>0,SUMPRODUCT((T$111:T$112)*TRANSPOSE(($D118:$E118))),0) -> 3089885.839 | U118: =U$110+IF($C118<>0,SUMPRODUCT((U$111:U$112)*TRANSPOSE(($D118:$E118))),0) -> 3089885.839 | V118: =V$110+IF($C118<>0,SUMPRODUCT((V$111:V$112)*TRANSPOSE(($D118:$E118))),0) -> 3089885.839 | W118: =W$110+IF($C118<>0,SUMPRODUCT((W$111:W$112)*TRANSPOSE(($D118:$E118))),0) -> 3089885.839 | X118: =X$110+IF($C118<>0,SUMPRODUCT((X$111:X$112)*TRANSPOSE(($D118:$E118))),0) -> 3089885.839 | Y118: =Y$110+IF($C118<>0,SUMPRODUCT((Y$111:Y$112)*TRANSPOSE(($D118:$E118))),0) -> 3089885.839 | Z118: =Z$110+IF($C118<>0,SUMPRODUCT((Z$111:Z$112)*TRANSPOSE(($D118:$E118))),0) -> 3089885.839 | AA118: =AA$110+IF($C118<>0,SUMPRODUCT((AA$111:AA$112)*TRANSPOSE(($D118:$E118))),0) -> 3089885.839 | AB118: =AB$110+IF($C118<>0,SUMPRODUCT((AB$111:AB$112)*TRANSPOSE(($D118:$E118))),0) -> 3089885.839 | AC118: =AC$110+IF($C118<>0,SUMPRODUCT((AC$111:AC$112)*TRANSPOSE(($D118:$E118))),0) -> 3089885.839 | AD118: =AD$110+IF($C118<>0,SUMPRODUCT((AD$111:AD$112)*TRANSPOSE(($D118:$E118))),0) -> 3089885.839 | AE118: =AE$110+IF($C118<>0,SUMPRODUCT((AE$111:AE$112)*TRANSPOSE(($D118:$E118))),0) -> 3089885.839 | AF118: =AF$110+IF($C118<>0,SUMPRODUCT((AF$111:AF$112)*TRANSPOSE(($D118:$E118))),0) -> 3089885.839 | AG118: =AG$110+IF($C118<>0,SUMPRODUCT((AG$111:AG$112)*TRANSPOSE(($D118:$E118))),0) -> 3089885.839
A119: ="sens"&Assumptions!B116 -> sens | C119: =Assumptions!C116 -> 0 | D119: =Assumptions!G116 -> 0 | E119: =Assumptions!H116 -> 0 | G119: Option 4sens | I119: =I$110+IF($C119<>0,SUMPRODUCT((I$111:I$112)*TRANSPOSE(($D119:$E119))),0) -> 0 | J119: =J$110+IF($C119<>0,SUMPRODUCT((J$111:J$112)*TRANSPOSE(($D119:$E119))),0) -> -1863449.1 | K119: =K$110+IF($C119<>0,SUMPRODUCT((K$111:K$112)*TRANSPOSE(($D119:$E119))),0) -> 1355076.786 | L119: =L$110+IF($C119<>0,SUMPRODUCT((L$111:L$112)*TRANSPOSE(($D119:$E119))),0) -> 1567251.449 | M119: =M$110+IF($C119<>0,SUMPRODUCT((M$111:M$112)*TRANSPOSE(($D119:$E119))),0) -> 1879005.538 | N119: =N$110+IF($C119<>0,SUMPRODUCT((N$111:N$112)*TRANSPOSE(($D119:$E119))),0) -> 2684095.097 | O119: =O$110+IF($C119<>0,SUMPRODUCT((O$111:O$112)*TRANSPOSE(($D119:$E119))),0) -> 3717452.372 | P119: =P$110+IF($C119<>0,SUMPRODUCT((P$111:P$112)*TRANSPOSE(($D119:$E119))),0) -> 4365071.877 | Q119: =Q$110+IF($C119<>0,SUMPRODUCT((Q$111:Q$112)*TRANSPOSE(($D119:$E119))),0) -> 4261406.088 | R119: =R$110+IF($C119<>0,SUMPRODUCT((R$111:R$112)*TRANSPOSE(($D119:$E119))),0) -> 4261406.088 | S119: =S$110+IF($C119<>0,SUMPRODUCT((S$111:S$112)*TRANSPOSE(($D119:$E119))),0) -> 4261406.088 | T119: =T$110+IF($C119<>0,SUMPRODUCT((T$111:T$112)*TRANSPOSE(($D119:$E119))),0) -> 4261406.088 | U119: =U$110+IF($C119<>0,SUMPRODUCT((U$111:U$112)*TRANSPOSE(($D119:$E119))),0) -> 4261406.088 | V119: =V$110+IF($C119<>0,SUMPRODUCT((V$111:V$112)*TRANSPOSE(($D119:$E119))),0) -> 4261406.088 | W119: =W$110+IF($C119<>0,SUMPRODUCT((W$111:W$112)*TRANSPOSE(($D119:$E119))),0) -> 4261406.088 | X119: =X$110+IF($C119<>0,SUMPRODUCT((X$111:X$112)*TRANSPOSE(($D119:$E119))),0) -> 4261406.088 | Y119: =Y$110+IF($C119<>0,SUMPRODUCT((Y$111:Y$112)*TRANSPOSE(($D119:$E119))),0) -> 4261406.088 | Z119: =Z$110+IF($C119<>0,SUMPRODUCT((Z$111:Z$112)*TRANSPOSE(($D119:$E119))),0) -> 4261406.088 | AA119: =AA$110+IF($C119<>0,SUMPRODUCT((AA$111:AA$112)*TRANSPOSE(($D119:$E119))),0) -> 4261406.088 | AB119: =AB$110+IF($C119<>0,SUMPRODUCT((AB$111:AB$112)*TRANSPOSE(($D119:$E119))),0) -> 4261406.088 | AC119: =AC$110+IF($C119<>0,SUMPRODUCT((AC$111:AC$112)*TRANSPOSE(($D119:$E119))),0) -> 4261406.088 | AD119: =AD$110+IF($C119<>0,SUMPRODUCT((AD$111:AD$112)*TRANSPOSE(($D119:$E119))),0) -> 4261406.088 | AE119: =AE$110+IF($C119<>0,SUMPRODUCT((AE$111:AE$112)*TRANSPOSE(($D119:$E119))),0) -> 4261406.088 | AF119: =AF$110+IF($C119<>0,SUMPRODUCT((AF$111:AF$112)*TRANSPOSE(($D119:$E119))),0) -> 4261406.088 | AG119: =AG$110+IF($C119<>0,SUMPRODUCT((AG$111:AG$112)*TRANSPOSE(($D119:$E119))),0) -> 4261406.088
A120: ="sens"&Assumptions!B117 -> sens | C120: =Assumptions!C117 -> 0 | D120: =Assumptions!G117 -> 0 | E120: =Assumptions!H117 -> 0 | G120: Option 4sens | I120: =I$110+IF($C120<>0,SUMPRODUCT((I$111:I$112)*TRANSPOSE(($D120:$E120))),0) -> 0 | J120: =J$110+IF($C120<>0,SUMPRODUCT((J$111:J$112)*TRANSPOSE(($D120:$E120))),0) -> -1863449.1 | K120: =K$110+IF($C120<>0,SUMPRODUCT((K$111:K$112)*TRANSPOSE(($D120:$E120))),0) -> 1355076.786 | L120: =L$110+IF($C120<>0,SUMPRODUCT((L$111:L$112)*TRANSPOSE(($D120:$E120))),0) -> 1567251.449 | M120: =M$110+IF($C120<>0,SUMPRODUCT((M$111:M$112)*TRANSPOSE(($D120:$E120))),0) -> 1879005.538 | N120: =N$110+IF($C120<>0,SUMPRODUCT((N$111:N$112)*TRANSPOSE(($D120:$E120))),0) -> 2684095.097 | O120: =O$110+IF($C120<>0,SUMPRODUCT((O$111:O$112)*TRANSPOSE(($D120:$E120))),0) -> 3717452.372 | P120: =P$110+IF($C120<>0,SUMPRODUCT((P$111:P$112)*TRANSPOSE(($D120:$E120))),0) -> 4365071.877 | Q120: =Q$110+IF($C120<>0,SUMPRODUCT((Q$111:Q$112)*TRANSPOSE(($D120:$E120))),0) -> 4261406.088 | R120: =R$110+IF($C120<>0,SUMPRODUCT((R$111:R$112)*TRANSPOSE(($D120:$E120))),0) -> 4261406.088 | S120: =S$110+IF($C120<>0,SUMPRODUCT((S$111:S$112)*TRANSPOSE(($D120:$E120))),0) -> 4261406.088 | T120: =T$110+IF($C120<>0,SUMPRODUCT((T$111:T$112)*TRANSPOSE(($D120:$E120))),0) -> 4261406.088 | U120: =U$110+IF($C120<>0,SUMPRODUCT((U$111:U$112)*TRANSPOSE(($D120:$E120))),0) -> 4261406.088 | V120: =V$110+IF($C120<>0,SUMPRODUCT((V$111:V$112)*TRANSPOSE(($D120:$E120))),0) -> 4261406.088 | W120: =W$110+IF($C120<>0,SUMPRODUCT((W$111:W$112)*TRANSPOSE(($D120:$E120))),0) -> 4261406.088 | X120: =X$110+IF($C120<>0,SUMPRODUCT((X$111:X$112)*TRANSPOSE(($D120:$E120))),0) -> 4261406.088 | Y120: =Y$110+IF($C120<>0,SUMPRODUCT((Y$111:Y$112)*TRANSPOSE(($D120:$E120))),0) -> 4261406.088 | Z120: =Z$110+IF($C120<>0,SUMPRODUCT((Z$111:Z$112)*TRANSPOSE(($D120:$E120))),0) -> 4261406.088 | AA120: =AA$110+IF($C120<>0,SUMPRODUCT((AA$111:AA$112)*TRANSPOSE(($D120:$E120))),0) -> 4261406.088 | AB120: =AB$110+IF($C120<>0,SUMPRODUCT((AB$111:AB$112)*TRANSPOSE(($D120:$E120))),0) -> 4261406.088 | AC120: =AC$110+IF($C120<>0,SUMPRODUCT((AC$111:AC$112)*TRANSPOSE(($D120:$E120))),0) -> 4261406.088 | AD120: =AD$110+IF($C120<>0,SUMPRODUCT((AD$111:AD$112)*TRANSPOSE(($D120:$E120))),0) -> 4261406.088 | AE120: =AE$110+IF($C120<>0,SUMPRODUCT((AE$111:AE$112)*TRANSPOSE(($D120:$E120))),0) -> 4261406.088 | AF120: =AF$110+IF($C120<>0,SUMPRODUCT((AF$111:AF$112)*TRANSPOSE(($D120:$E120))),0) -> 4261406.088 | AG120: =AG$110+IF($C120<>0,SUMPRODUCT((AG$111:AG$112)*TRANSPOSE(($D120:$E120))),0) -> 4261406.088
A121: ="sens"&Assumptions!B118 -> sens | C121: =Assumptions!C118 -> 0 | D121: =Assumptions!G118 -> 0 | E121: =Assumptions!H118 -> 0 | G121: Option 4sens | I121: =I$110+IF($C121<>0,SUMPRODUCT((I$111:I$112)*TRANSPOSE(($D121:$E121))),0) -> 0 | J121: =J$110+IF($C121<>0,SUMPRODUCT((J$111:J$112)*TRANSPOSE(($D121:$E121))),0) -> -1863449.1 | K121: =K$110+IF($C121<>0,SUMPRODUCT((K$111:K$112)*TRANSPOSE(($D121:$E121))),0) -> 1355076.786 | L121: =L$110+IF($C121<>0,SUMPRODUCT((L$111:L$112)*TRANSPOSE(($D121:$E121))),0) -> 1567251.449 | M121: =M$110+IF($C121<>0,SUMPRODUCT((M$111:M$112)*TRANSPOSE(($D121:$E121))),0) -> 1879005.538 | N121: =N$110+IF($C121<>0,SUMPRODUCT((N$111:N$112)*TRANSPOSE(($D121:$E121))),0) -> 2684095.097 | O121: =O$110+IF($C121<>0,SUMPRODUCT((O$111:O$112)*TRANSPOSE(($D121:$E121))),0) -> 3717452.372 | P121: =P$110+IF($C121<>0,SUMPRODUCT((P$111:P$112)*TRANSPOSE(($D121:$E121))),0) -> 4365071.877 | Q121: =Q$110+IF($C121<>0,SUMPRODUCT((Q$111:Q$112)*TRANSPOSE(($D121:$E121))),0) -> 4261406.088 | R121: =R$110+IF($C121<>0,SUMPRODUCT((R$111:R$112)*TRANSPOSE(($D121:$E121))),0) -> 4261406.088 | S121: =S$110+IF($C121<>0,SUMPRODUCT((S$111:S$112)*TRANSPOSE(($D121:$E121))),0) -> 4261406.088 | T121: =T$110+IF($C121<>0,SUMPRODUCT((T$111:T$112)*TRANSPOSE(($D121:$E121))),0) -> 4261406.088 | U121: =U$110+IF($C121<>0,SUMPRODUCT((U$111:U$112)*TRANSPOSE(($D121:$E121))),0) -> 4261406.088 | V121: =V$110+IF($C121<>0,SUMPRODUCT((V$111:V$112)*TRANSPOSE(($D121:$E121))),0) -> 4261406.088 | W121: =W$110+IF($C121<>0,SUMPRODUCT((W$111:W$112)*TRANSPOSE(($D121:$E121))),0) -> 4261406.088 | X121: =X$110+IF($C121<>0,SUMPRODUCT((X$111:X$112)*TRANSPOSE(($D121:$E121))),0) -> 4261406.088 | Y121: =Y$110+IF($C121<>0,SUMPRODUCT((Y$111:Y$112)*TRANSPOSE(($D121:$E121))),0) -> 4261406.088 | Z121: =Z$110+IF($C121<>0,SUMPRODUCT((Z$111:Z$112)*TRANSPOSE(($D121:$E121))),0) -> 4261406.088 | AA121: =AA$110+IF($C121<>0,SUMPRODUCT((AA$111:AA$112)*TRANSPOSE(($D121:$E121))),0) -> 4261406.088 | AB121: =AB$110+IF($C121<>0,SUMPRODUCT((AB$111:AB$112)*TRANSPOSE(($D121:$E121))),0) -> 4261406.088 | AC121: =AC$110+IF($C121<>0,SUMPRODUCT((AC$111:AC$112)*TRANSPOSE(($D121:$E121))),0) -> 4261406.088 | AD121: =AD$110+IF($C121<>0,SUMPRODUCT((AD$111:AD$112)*TRANSPOSE(($D121:$E121))),0) -> 4261406.088 | AE121: =AE$110+IF($C121<>0,SUMPRODUCT((AE$111:AE$112)*TRANSPOSE(($D121:$E121))),0) -> 4261406.088 | AF121: =AF$110+IF($C121<>0,SUMPRODUCT((AF$111:AF$112)*TRANSPOSE(($D121:$E121))),0) -> 4261406.088 | AG121: =AG$110+IF($C121<>0,SUMPRODUCT((AG$111:AG$112)*TRANSPOSE(($D121:$E121))),0) -> 4261406.088

Sheet Option5
A1: =bus -> CitiPower
A2: =proj -> Bouverie Queensberry supply area
A3: OPTION 5 | C3: =INDEX(Assumptions!$E$14:$E$18, MATCH(A3,_xlfn.ANCHORARRAY( Assumptions!$C$14),0)) -> 0
A4: =(INDEX(Data!$D$9:$D$13, MATCH(A3, options,0))) -> Not used
A6: ='Option1 (base case)'!A6 -> Count | I6: ='Option1 (base case)'!I6 -> 1 | J6: ='Option1 (base case)'!J6 -> 2 | K6: ='Option1 (base case)'!K6 -> 3 | L6: ='Option1 (base case)'!L6 -> 4 | M6: ='Option1 (base case)'!M6 -> 5 | N6: ='Option1 (base case)'!N6 -> 6 | O6: ='Option1 (base case)'!O6 -> 7 | P6: ='Option1 (base case)'!P6 -> 8 | Q6: ='Option1 (base case)'!Q6 -> 9 | R6: ='Option1 (base case)'!R6 -> 10 | S6: ='Option1 (base case)'!S6 -> 11 | T6: ='Option1 (base case)'!T6 -> 12 | U6: ='Option1 (base case)'!U6 -> 13 | V6: ='Option1 (base case)'!V6 -> 14 | W6: ='Option1 (base case)'!W6 -> 15 | X6: ='Option1 (base case)'!X6 -> 16 | Y6: ='Option1 (base case)'!Y6 -> 17 | Z6: ='Option1 (base case)'!Z6 -> 18 | AA6: ='Option1 (base case)'!AA6 -> 19 | AB6: ='Option1 (base case)'!AB6 -> 20 | AC6: ='Option1 (base case)'!AC6 -> 21 | AD6: ='Option1 (base case)'!AD6 -> 22 | AE6: ='Option1 (base case)'!AE6 -> 23 | AF6: ='Option1 (base case)'!AF6 -> 24 | AG6: ='Option1 (base case)'!AG6 -> 25
A7: ='Option1 (base case)'!A7 -> Value of CO2 reductions | G7: $/MWh | I7: ='Option1 (base case)'!I7 -> 24.7304868 | J7: ='Option1 (base case)'!J7 -> 22.34074009 | K7: ='Option1 (base case)'!K7 -> 20.19632912 | L7: ='Option1 (base case)'!L7 -> 18.06294208 | M7: ='Option1 (base case)'!M7 -> 15.91339762 | N7: ='Option1 (base case)'!N7 -> 13.71506943 | O7: ='Option1 (base case)'!O7 -> 13.71506943 | P7: ='Option1 (base case)'!P7 -> 13.71506943 | Q7: ='Option1 (base case)'!Q7 -> 13.71506943 | R7: ='Option1 (base case)'!R7 -> 13.71506943 | S7: ='Option1 (base case)'!S7 -> 13.71506943 | T7: ='Option1 (base case)'!T7 -> 13.71506943 | U7: ='Option1 (base case)'!U7 -> 13.71506943 | V7: ='Option1 (base case)'!V7 -> 13.71506943 | W7: ='Option1 (base case)'!W7 -> 13.71506943 | X7: ='Option1 (base case)'!X7 -> 13.71506943 | Y7: ='Option1 (base case)'!Y7 -> 13.71506943 | Z7: ='Option1 (base case)'!Z7 -> 13.71506943 | AA7: ='Option1 (base case)'!AA7 -> 13.71506943 | AB7: ='Option1 (base case)'!AB7 -> 13.71506943 | AC7: ='Option1 (base case)'!AC7 -> 13.71506943 | AD7: ='Option1 (base case)'!AD7 -> 13.71506943 | AE7: ='Option1 (base case)'!AE7 -> 13.71506943 | AF7: ='Option1 (base case)'!AF7 -> 13.71506943 | AG7: ='Option1 (base case)'!AG7 -> 13.71506943
I8: =_xlfn.NUMBERVALUE(LEFT(I$9,4))+1 -> 2027 | J8: =_xlfn.NUMBERVALUE(LEFT(J$9,4))+1 -> 2028 | K8: 2029 | L8: 2030 | M8: 2031 | N8: 2032 | O8: 2033 | P8: 2034 | Q8: 2035 | R8: 2036 | S8: 2037 | T8: 2038 | U8: 2039 | V8: 2040 | W8: 2041 | X8: 2042 | Y8: 2043 | Z8: 2044 | AA8: 2045 | AB8: 2046 | AC8: 2047 | AD8: 2048 | AE8: 2049 | AF8: 2050 | AG8: 2051
G9: Units | I9: ='Option1 (base case)'!I9 -> 2026-27 | J9: ='Option1 (base case)'!J9 -> 2027-28 | K9: ='Option1 (base case)'!K9 -> 2028-29 | L9: ='Option1 (base case)'!L9 -> 2029-30 | M9: ='Option1 (base case)'!M9 -> 2030-31 | N9: ='Option1 (base case)'!N9 -> 2031-32 | O9: ='Option1 (base case)'!O9 -> 2032-33 | P9: ='Option1 (base case)'!P9 -> 2033-34 | Q9: ='Option1 (base case)'!Q9 -> 2034-35 | R9: ='Option1 (base case)'!R9 -> 2035-36 | S9: ='Option1 (base case)'!S9 -> 2036-37 | T9: ='Option1 (base case)'!T9 -> 2037-38 | U9: ='Option1 (base case)'!U9 -> 2038-39 | V9: ='Option1 (base case)'!V9 -> 2039-40 | W9: ='Option1 (base case)'!W9 -> 2040-41 | X9: ='Option1 (base case)'!X9 -> 2041-42 | Y9: ='Option1 (base case)'!Y9 -> 2042-43 | Z9: ='Option1 (base case)'!Z9 -> 2043-44 | AA9: ='Option1 (base case)'!AA9 -> 2044-45 | AB9: ='Option1 (base case)'!AB9 -> 2045-46 | AC9: ='Option1 (base case)'!AC9 -> 2046-47 | AD9: ='Option1 (base case)'!AD9 -> 2047-48 | AE9: ='Option1 (base case)'!AE9 -> 2048-49 | AF9: ='Option1 (base case)'!AF9 -> 2049-50 | AG9: ='Option1 (base case)'!AG9 -> 2050-51
A11: INVESTMENT & OPERATING COST
C13: Capex | E13: Asset life (yrs)
C14: < Enter description > | E14: 0 | G14: =input_dollars -> 2023-12-31 | I14: 0 | J14: 0 | K14: 0 | L14: 0 | M14: 0 | N14: 0 | O14: 0 | P14: 0 | Q14: 0 | R14: 0 | S14: 0 | T14: 0 | U14: 0 | V14: 0 | W14: 0 | X14: 0 | Y14: 0 | Z14: 0 | AA14: 0 | AB14: 0 | AC14: 0 | AD14: 0 | AE14: 0 | AF14: 0 | AG14: 0
C15: < Enter description > | E15: 0 | G15: =input_dollars -> 2023-12-31 | I15: 0 | J15: 0 | K15: 0 | L15: 0 | M15: 0 | N15: 0 | O15: 0 | P15: 0 | Q15: 0 | R15: 0 | S15: 0 | T15: 0 | U15: 0 | V15: 0 | W15: 0 | X15: 0 | Y15: 0 | Z15: 0 | AA15: 0 | AB15: 0 | AC15: 0 | AD15: 0 | AE15: 0 | AF15: 0 | AG15: 0
C16: < Enter description > | E16: 0 | G16: =input_dollars -> 2023-12-31 | I16: 0 | J16: 0 | K16: 0 | L16: 0 | M16: 0 | N16: 0 | O16: 0 | P16: 0 | Q16: 0 | R16: 0 | S16: 0 | T16: 0 | U16: 0 | V16: 0 | W16: 0 | X16: 0 | Y16: 0 | Z16: 0 | AA16: 0 | AB16: 0 | AC16: 0 | AD16: 0 | AE16: 0 | AF16: 0 | AG16: 0
C17: Capital expenditure | G17: =input_dollars -> 2023-12-31 | I17: =SUM(I14:I16) -> 0 | J17: 0 | K17: =SUM(K14:K16) -> 0 | L17: 0 | M17: 0 | N17: 0 | O17: 0 | P17: 0 | Q17: 0 | R17: =SUM(R14:R16) -> 0 | S17: 0 | T17: 0 | U17: 0 | V17: 0 | W17: 0 | X17: 0 | Y17: 0 | Z17: 0 | AA17: 0 | AB17: 0 | AC17: 0 | AD17: 0 | AE17: 0 | AF17: 0 | AG17: 0
C19: Operating expenditure | G19: =input_dollars -> 2023-12-31 | I19: 0 | J19: 0 | K19: 0 | L19: 0 | M19: 0 | N19: 0 | O19: 0 | P19: 0 | Q19: 0 | R19: 0 | S19: 0 | T19: 0 | U19: 0 | V19: 0 | W19: 0 | X19: 0 | Y19: 0 | Z19: 0 | AA19: 0 | AB19: 0 | AC19: 0 | AD19: 0 | AE19: 0 | AF19: 0 | AG19: 0
A22: RISK ASSUMPTIONS
C24: PoF (major) | I24: 0 | J24: 0 | K24: 0 | L24: 0 | M24: 0 | N24: 0 | O24: 0 | P24: 0 | Q24: 0 | R24: 0 | S24: 0 | T24: 0 | U24: 0 | V24: 0 | W24: 0 | X24: 0 | Y24: 0 | Z24: 0 | AA24: 0 | AB24: 0 | AC24: 0 | AD24: 0 | AE24: 0 | AF24: 0 | AG24: 0
C25: PoF (reparable) | I25: 0 | J25: 0 | K25: 0 | L25: 0 | M25: 0 | N25: 0 | O25: 0 | P25: 0 | Q25: 0 | R25: 0 | S25: 0 | T25: 0 | U25: 0 | V25: 0 | W25: 0 | X25: 0 | Y25: 0 | Z25: 0 | AA25: 0 | AB25: 0 | AC25: 0 | AD25: 0 | AE25: 0 | AF25: 0 | AG25: 0
C27: Const end date
C28: Energy at risk 10% PoE | E28: 0.3 | G28: MWh | I28: 0 | J28: 0 | K28: 0 | L28: 0 | M28: 0 | N28: 0 | O28: 0 | P28: 0 | Q28: 0 | R28: 0 | S28: 0 | T28: 0 | U28: 0 | V28: 0 | W28: 0 | X28: 0 | Y28: 0 | Z28: 0 | AA28: 0 | AB28: 0 | AC28: 0 | AD28: 0 | AE28: 0 | AF28: 0 | AG28: 0
C29: Energy at risk 50% PoE | E29: 0.7 | G29: MWh | I29: 0 | J29: 0 | K29: 0 | L29: 0 | M29: 0 | N29: 0 | O29: 0 | P29: 0 | Q29: 0 | R29: 0 | S29: 0 | T29: 0 | U29: 0 | V29: 0 | W29: 0 | X29: 0 | Y29: 0 | Z29: 0 | AA29: 0 | AB29: 0 | AC29: 0 | AD29: 0 | AE29: 0 | AF29: 0 | AG29: 0
C31: Energy at risk (weighted) | G31: MWh | I31: =SUMPRODUCT(I$28:I$29, $E$28:$E$29) -> 0 | J31: =SUMPRODUCT(J$28:J$29, $E$28:$E$29) -> 0 | K31: 0 | L31: 0 | M31: 0 | N31: 0 | O31: 0 | P31: 0 | Q31: 0 | R31: 0 | S31: 0 | T31: 0 | U31: 0 | V31: 0 | W31: 0 | X31: 0 | Y31: 0 | Z31: 0 | AA31: 0 | AB31: 0 | AC31: 0 | AD31: 0 | AE31: 0 | AF31: 0 | AG31: 0
C32: Energy at risk value | D32: $/MWh | E32: =Assumptions!H41*vcr_esc -> 36935.21398 | F32: =IF(AND(SUM(I31:AG31)<>0, E32=0), "!", "") ->  | G32: =input_dollars -> 2023-12-31 | I32: =I31*$E$32 -> 0 | J32: =J31*$E$32 -> 0 | K32: 0 | L32: 0 | M32: 0 | N32: 0 | O32: 0 | P32: 0 | Q32: 0 | R32: 0 | S32: 0 | T32: 0 | U32: 0 | V32: 0 | W32: 0 | X32: 0 | Y32: 0 | Z32: 0 | AA32: 0 | AB32: 0 | AC32: 0 | AD32: 0 | AE32: 0 | AF32: 0 | AG32: 0
C34: Safety consequence | D34: (after DF) | G34: =input_dollars -> 2023-12-31 | I34: =SUMPRODUCT((Assumptions!$H$70:$H$71)*(Assumptions!$G$70:$G$71)*(Assumptions!$I$70:$I$71)*(I$24:I$25)) -> 0 | J34: =SUMPRODUCT((Assumptions!$H$70:$H$71)*(Assumptions!$G$70:$G$71)*(Assumptions!$I$70:$I$71)*(J$24:J$25)) -> 0 | K34: =SUMPRODUCT((Assumptions!$H$70:$H$71)*(Assumptions!$G$70:$G$71)*(Assumptions!$I$70:$I$71)*(K$24:K$25)) -> 0 | L34: =SUMPRODUCT((Assumptions!$H$70:$H$71)*(Assumptions!$G$70:$G$71)*(Assumptions!$I$70:$I$71)*(L$24:L$25)) -> 0 | M34: =SUMPRODUCT((Assumptions!$H$70:$H$71)*(Assumptions!$G$70:$G$71)*(Assumptions!$I$70:$I$71)*(M$24:M$25)) -> 0 | N34: =SUMPRODUCT((Assumptions!$H$70:$H$71)*(Assumptions!$G$70:$G$71)*(Assumptions!$I$70:$I$71)*(N$24:N$25)) -> 0 | O34: =SUMPRODUCT((Assumptions!$H$70:$H$71)*(Assumptions!$G$70:$G$71)*(Assumptions!$I$70:$I$71)*(O$24:O$25)) -> 0 | P34: =SUMPRODUCT((Assumptions!$H$70:$H$71)*(Assumptions!$G$70:$G$71)*(Assumptions!$I$70:$I$71)*(P$24:P$25)) -> 0 | Q34: =SUMPRODUCT((Assumptions!$H$70:$H$71)*(Assumptions!$G$70:$G$71)*(Assumptions!$I$70:$I$71)*(Q$24:Q$25)) -> 0 | R34: =SUMPRODUCT((Assumptions!$H$70:$H$71)*(Assumptions!$G$70:$G$71)*(Assumptions!$I$70:$I$71)*(R$24:R$25)) -> 0 | S34: =SUMPRODUCT((Assumptions!$H$70:$H$71)*(Assumptions!$G$70:$G$71)*(Assumptions!$I$70:$I$71)*(S$24:S$25)) -> 0 | T34: =SUMPRODUCT((Assumptions!$H$70:$H$71)*(Assumptions!$G$70:$G$71)*(Assumptions!$I$70:$I$71)*(T$24:T$25)) -> 0 | U34: =SUMPRODUCT((Assumptions!$H$70:$H$71)*(Assumptions!$G$70:$G$71)*(Assumptions!$I$70:$I$71)*(U$24:U$25)) -> 0 | V34: =SUMPRODUCT((Assumptions!$H$70:$H$71)*(Assumptions!$G$70:$G$71)*(Assumptions!$I$70:$I$71)*(V$24:V$25)) -> 0 | W34: =SUMPRODUCT((Assumptions!$H$70:$H$71)*(Assumptions!$G$70:$G$71)*(Assumptions!$I$70:$I$71)*(W$24:W$25)) -> 0 | X34: =SUMPRODUCT((Assumptions!$H$70:$H$71)*(Assumptions!$G$70:$G$71)*(Assumptions!$I$70:$I$71)*(X$24:X$25)) -> 0 | Y34: =SUMPRODUCT((Assumptions!$H$70:$H$71)*(Assumptions!$G$70:$G$71)*(Assumptions!$I$70:$I$71)*(Y$24:Y$25)) -> 0 | Z34: =SUMPRODUCT((Assumptions!$H$70:$H$71)*(Assumptions!$G$70:$G$71)*(Assumptions!$I$70:$I$71)*(Z$24:Z$25)) -> 0 | AA34: =SUMPRODUCT((Assumptions!$H$70:$H$71)*(Assumptions!$G$70:$G$71)*(Assumptions!$I$70:$I$71)*(AA$24:AA$25)) -> 0 | AB34: =SUMPRODUCT((Assumptions!$H$70:$H$71)*(Assumptions!$G$70:$G$71)*(Assumptions!$I$70:$I$71)*(AB$24:AB$25)) -> 0 | AC34: =SUMPRODUCT((Assumptions!$H$70:$H$71)*(Assumptions!$G$70:$G$71)*(Assumptions!$I$70:$I$71)*(AC$24:AC$25)) -> 0 | AD34: =SUMPRODUCT((Assumptions!$H$70:$H$71)*(Assumptions!$G$70:$G$71)*(Assumptions!$I$70:$I$71)*(AD$24:AD$25)) -> 0 | AE34: =SUMPRODUCT((Assumptions!$H$70:$H$71)*(Assumptions!$G$70:$G$71)*(Assumptions!$I$70:$I$71)*(AE$24:AE$25)) -> 0 | AF34: =SUMPRODUCT((Assumptions!$H$70:$H$71)*(Assumptions!$G$70:$G$71)*(Assumptions!$I$70:$I$71)*(AF$24:AF$25)) -> 0 | AG34: =SUMPRODUCT((Assumptions!$H$70:$H$71)*(Assumptions!$G$70:$G$71)*(Assumptions!$I$70:$I$71)*(AG$24:AG$25)) -> 0
C35: Unplanned replacements | G35: =input_dollars -> 2023-12-31 | I35: =(1+Assumptions!$G$81)*SUMPRODUCT((Assumptions!$G$78:$G$79)*(I$24:I$25)) -> 0 | J35: =(1+Assumptions!$G$81)*SUMPRODUCT((Assumptions!$G$78:$G$79)*(J$24:J$25)) -> 0 | K35: =(1+Assumptions!$G$81)*SUMPRODUCT((Assumptions!$G$78:$G$79)*(K$24:K$25)) -> 0 | L35: =(1+Assumptions!$G$81)*SUMPRODUCT((Assumptions!$G$78:$G$79)*(L$24:L$25)) -> 0 | M35: =(1+Assumptions!$G$81)*SUMPRODUCT((Assumptions!$G$78:$G$79)*(M$24:M$25)) -> 0 | N35: =(1+Assumptions!$G$81)*SUMPRODUCT((Assumptions!$G$78:$G$79)*(N$24:N$25)) -> 0 | O35: =(1+Assumptions!$G$81)*SUMPRODUCT((Assumptions!$G$78:$G$79)*(O$24:O$25)) -> 0 | P35: =(1+Assumptions!$G$81)*SUMPRODUCT((Assumptions!$G$78:$G$79)*(P$24:P$25)) -> 0 | Q35: =(1+Assumptions!$G$81)*SUMPRODUCT((Assumptions!$G$78:$G$79)*(Q$24:Q$25)) -> 0 | R35: =(1+Assumptions!$G$81)*SUMPRODUCT((Assumptions!$G$78:$G$79)*(R$24:R$25)) -> 0 | S35: =(1+Assumptions!$G$81)*SUMPRODUCT((Assumptions!$G$78:$G$79)*(S$24:S$25)) -> 0 | T35: =(1+Assumptions!$G$81)*SUMPRODUCT((Assumptions!$G$78:$G$79)*(T$24:T$25)) -> 0 | U35: =(1+Assumptions!$G$81)*SUMPRODUCT((Assumptions!$G$78:$G$79)*(U$24:U$25)) -> 0 | V35: =(1+Assumptions!$G$81)*SUMPRODUCT((Assumptions!$G$78:$G$79)*(V$24:V$25)) -> 0 | W35: =(1+Assumptions!$G$81)*SUMPRODUCT((Assumptions!$G$78:$G$79)*(W$24:W$25)) -> 0 | X35: =(1+Assumptions!$G$81)*SUMPRODUCT((Assumptions!$G$78:$G$79)*(X$24:X$25)) -> 0 | Y35: =(1+Assumptions!$G$81)*SUMPRODUCT((Assumptions!$G$78:$G$79)*(Y$24:Y$25)) -> 0 | Z35: =(1+Assumptions!$G$81)*SUMPRODUCT((Assumptions!$G$78:$G$79)*(Z$24:Z$25)) -> 0 | AA35: =(1+Assumptions!$G$81)*SUMPRODUCT((Assumptions!$G$78:$G$79)*(AA$24:AA$25)) -> 0 | AB35: =(1+Assumptions!$G$81)*SUMPRODUCT((Assumptions!$G$78:$G$79)*(AB$24:AB$25)) -> 0 | AC35: =(1+Assumptions!$G$81)*SUMPRODUCT((Assumptions!$G$78:$G$79)*(AC$24:AC$25)) -> 0 | AD35: =(1+Assumptions!$G$81)*SUMPRODUCT((Assumptions!$G$78:$G$79)*(AD$24:AD$25)) -> 0 | AE35: =(1+Assumptions!$G$81)*SUMPRODUCT((Assumptions!$G$78:$G$79)*(AE$24:AE$25)) -> 0 | AF35: =(1+Assumptions!$G$81)*SUMPRODUCT((Assumptions!$G$78:$G$79)*(AF$24:AF$25)) -> 0 | AG35: =(1+Assumptions!$G$81)*SUMPRODUCT((Assumptions!$G$78:$G$79)*(AG$24:AG$25)) -> 0
C36: Environmental consequence | D36: (after DF) | G36: =input_dollars -> 2023-12-31 | I36: 0 | J36: 0 | K36: 0 | L36: 0 | M36: 0 | N36: 0 | O36: 0 | P36: 0 | Q36: 0 | R36: 0 | S36: 0 | T36: 0 | U36: 0 | V36: 0 | W36: 0 | X36: 0 | Y36: 0 | Z36: 0 | AA36: 0 | AB36: 0 | AC36: 0 | AD36: 0 | AE36: 0 | AF36: 0 | AG36: 0
C37: < Other risk - enter description > | G37: =input_dollars -> 2023-12-31 | I37: 0 | J37: 0 | K37: 0 | L37: 0 | M37: 0 | N37: 0 | O37: 0 | P37: 0 | Q37: 0 | R37: 0 | S37: 0 | T37: 0 | U37: 0 | V37: 0 | W37: 0 | X37: 0 | Y37: 0 | Z37: 0 | AA37: 0 | AB37: 0 | AC37: 0 | AD37: 0 | AE37: 0 | AF37: 0 | AG37: 0
C38: < Other risk - enter description > | G38: =input_dollars -> 2023-12-31 | I38: 0 | J38: 0 | K38: 0 | L38: 0 | M38: 0 | N38: 0 | O38: 0 | P38: 0 | Q38: 0 | R38: 0 | S38: 0 | T38: 0 | U38: 0 | V38: 0 | W38: 0 | X38: 0 | Y38: 0 | Z38: 0 | AA38: 0 | AB38: 0 | AC38: 0 | AD38: 0 | AE38: 0 | AF38: 0 | AG38: 0
C40: Total risk cost | I40: =SUM(I32:I38) -> 0 | J40: =SUM(J32:J38) -> 0 | K40: 0 | L40: 0 | M40: 0 | N40: 0 | O40: 0 | P40: 0 | Q40: 0 | R40: 0 | S40: 0 | T40: 0 | U40: 0 | V40: 0 | W40: 0 | X40: 0 | Y40: 0 | Z40: 0 | AA40: 0 | AB40: 0 | AC40: 0 | AD40: 0 | AE40: 0 | AF40: 0 | AG40: 0
A42: OTHER BENEFITS
C45: Reduction in CO2 emissions | G45: MWh | I45: 0 | J45: 0 | K45: 0 | L45: 0 | M45: 0 | N45: 0 | O45: 0 | P45: 0 | Q45: 0 | R45: 0 | S45: 0 | T45: 0 | U45: 0 | V45: 0 | W45: 0 | X45: 0 | Y45: 0 | Z45: 0 | AA45: 0 | AB45: 0 | AC45: 0 | AD45: 0 | AE45: 0 | AF45: 0 | AG45: 0
C46: Value of reduction in CO2 emissions | G46: $ | I46: =I45*I7 -> 0 | J46: 0 | K46: 0 | L46: 0 | M46: 0 | N46: 0 | O46: 0 | P46: 0 | Q46: 0 | R46: 0 | S46: 0 | T46: 0 | U46: 0 | V46: 0 | W46: 0 | X46: 0 | Y46: 0 | Z46: 0 | AA46: 0 | AB46: 0 | AC46: 0 | AD46: 0 | AE46: 0 | AF46: 0 | AG46: 0
C49: Reliability in worst-served areas | D49: $/MWh | E49: =Assumptions!G94 -> 0 | G49: MWh | I49: 0 | J49: 0 | K49: 0 | L49: 0 | M49: 0 | N49: 0 | O49: 0 | P49: 0 | Q49: 0 | R49: 0 | S49: 0 | T49: 0 | U49: 0 | V49: 0 | W49: 0 | X49: 0 | Y49: 0 | Z49: 0 | AA49: 0 | AB49: 0 | AC49: 0 | AD49: 0 | AE49: 0 | AF49: 0 | AG49: 0
C50: Network resilience | D50: $/MWh | E50: =Assumptions!G95 -> 0 | G50: MWh | I50: 0 | J50: 0 | K50: 0 | L50: 0 | M50: 0 | N50: 0 | O50: 0 | P50: 0 | Q50: 0 | R50: 0 | S50: 0 | T50: 0 | U50: 0 | V50: 0 | W50: 0 | X50: 0 | Y50: 0 | Z50: 0 | AA50: 0 | AB50: 0 | AC50: 0 | AD50: 0 | AE50: 0 | AF50: 0 | AG50: 0
C51: Enabling solar exports | D51: $/MWh | E51: =Assumptions!G96 -> 4220.99537 | G51: MWh | I51: 0 | J51: 0 | K51: 0 | L51: 0 | M51: 0 | N51: 0 | O51: 0 | P51: 0 | Q51: 0 | R51: 0 | S51: 0 | T51: 0 | U51: 0 | V51: 0 | W51: 0 | X51: 0 | Y51: 0 | Z51: 0 | AA51: 0 | AB51: 0 | AC51: 0 | AD51: 0 | AE51: 0 | AF51: 0 | AG51: 0
C52: Aesthetics | D52: $/customer | E52: =Assumptions!G97 -> 0 | G52: customers | I52: 0 | J52: 0 | K52: 0 | L52: 0 | M52: 0 | N52: 0 | O52: 0 | P52: 0 | Q52: 0 | R52: 0 | S52: 0 | T52: 0 | U52: 0 | V52: 0 | W52: 0 | X52: 0 | Y52: 0 | Z52: 0 | AA52: 0 | AB52: 0 | AC52: 0 | AD52: 0 | AE52: 0 | AF52: 0 | AG52: 0
C53: Customer value of time (res) | D53: $/customer min | E53: =Assumptions!G98 -> 0.5476938068 | G53: mins | I53: 0 | J53: 0 | K53: 0 | L53: 0 | M53: 0 | N53: 0 | O53: 0 | P53: 0 | Q53: 0 | R53: 0 | S53: 0 | T53: 0 | U53: 0 | V53: 0 | W53: 0 | X53: 0 | Y53: 0 | Z53: 0 | AA53: 0 | AB53: 0 | AC53: 0 | AD53: 0 | AE53: 0 | AF53: 0 | AG53: 0
C54: Customer value of time (bus) | D54: $/customer min | E54: =Assumptions!G99 -> 0.5476938068 | G54: mins | I54: 0 | J54: 0 | K54: 0 | L54: 0 | M54: 0 | N54: 0 | O54: 0 | P54: 0 | Q54: 0 | R54: 0 | S54: 0 | T54: 0 | U54: 0 | V54: 0 | W54: 0 | X54: 0 | Y54: 0 | Z54: 0 | AA54: 0 | AB54: 0 | AC54: 0 | AD54: 0 | AE54: 0 | AF54: 0 | AG54: 0
C55: Communication | D55: $/customer | E55: =Assumptions!G100 -> 0 | G55: customers | I55: 0 | J55: 0 | K55: 0 | L55: 0 | M55: 0 | N55: 0 | O55: 0 | P55: 0 | Q55: 0 | R55: 0 | S55: 0 | T55: 0 | U55: 0 | V55: 0 | W55: 0 | X55: 0 | Y55: 0 | Z55: 0 | AA55: 0 | AB55: 0 | AC55: 0 | AD55: 0 | AE55: 0 | AF55: 0 | AG55: 0
C56: Information accessibility | D56: $/customer | E56: =Assumptions!G101 -> 0 | G56: customers | I56: 0 | J56: 0 | K56: 0 | L56: 0 | M56: 0 | N56: 0 | O56: 0 | P56: 0 | Q56: 0 | R56: 0 | S56: 0 | T56: 0 | U56: 0 | V56: 0 | W56: 0 | X56: 0 | Y56: 0 | Z56: 0 | AA56: 0 | AB56: 0 | AC56: 0 | AD56: 0 | AE56: 0 | AF56: 0 | AG56: 0
C58: Other benefits 1 | G58: =input_dollars -> 2023-12-31 | I58: 0 | J58: 0 | K58: 0 | L58: 0 | M58: 0 | N58: 0 | O58: 0 | P58: 0 | Q58: 0 | R58: 0 | S58: 0 | T58: 0 | U58: 0 | V58: 0 | W58: 0 | X58: 0 | Y58: 0 | Z58: 0 | AA58: 0 | AB58: 0 | AC58: 0 | AD58: 0 | AE58: 0 | AF58: 0 | AG58: 0
C59: Other benefits 2 | G59: =input_dollars -> 2023-12-31 | I59: 0 | J59: 0 | K59: 0 | L59: 0 | M59: 0 | N59: 0 | O59: 0 | P59: 0 | Q59: 0 | R59: 0 | S59: 0 | T59: 0 | U59: 0 | V59: 0 | W59: 0 | X59: 0 | Y59: 0 | Z59: 0 | AA59: 0 | AB59: 0 | AC59: 0 | AD59: 0 | AE59: 0 | AF59: 0 | AG59: 0
C61: Total other benefits | G61: =input_dollars -> 2023-12-31 | I61: =SUMPRODUCT((I$49:I$56)*($E$49:$E$56))+SUM(I58:I59)+I46 -> 0 | J61: =SUMPRODUCT((J$49:J$56)*($E$49:$E$56))+SUM(J58:J59)+J46 -> 0 | K61: =SUMPRODUCT((K$49:K$56)*($E$49:$E$56))+SUM(K58:K59)+K46 -> 0 | L61: =SUMPRODUCT((L$49:L$56)*($E$49:$E$56))+SUM(L58:L59)+L46 -> 0 | M61: =SUMPRODUCT((M$49:M$56)*($E$49:$E$56))+SUM(M58:M59)+M46 -> 0 | N61: =SUMPRODUCT((N$49:N$56)*($E$49:$E$56))+SUM(N58:N59)+N46 -> 0 | O61: =SUMPRODUCT((O$49:O$56)*($E$49:$E$56))+SUM(O58:O59)+O46 -> 0 | P61: =SUMPRODUCT((P$49:P$56)*($E$49:$E$56))+SUM(P58:P59)+P46 -> 0 | Q61: =SUMPRODUCT((Q$49:Q$56)*($E$49:$E$56))+SUM(Q58:Q59)+Q46 -> 0 | R61: =SUMPRODUCT((R$49:R$56)*($E$49:$E$56))+SUM(R58:R59)+R46 -> 0 | S61: =SUMPRODUCT((S$49:S$56)*($E$49:$E$56))+SUM(S58:S59)+S46 -> 0 | T61: =SUMPRODUCT((T$49:T$56)*($E$49:$E$56))+SUM(T58:T59)+T46 -> 0 | U61: =SUMPRODUCT((U$49:U$56)*($E$49:$E$56))+SUM(U58:U59)+U46 -> 0 | V61: =SUMPRODUCT((V$49:V$56)*($E$49:$E$56))+SUM(V58:V59)+V46 -> 0 | W61: =SUMPRODUCT((W$49:W$56)*($E$49:$E$56))+SUM(W58:W59)+W46 -> 0 | X61: =SUMPRODUCT((X$49:X$56)*($E$49:$E$56))+SUM(X58:X59)+X46 -> 0 | Y61: =SUMPRODUCT((Y$49:Y$56)*($E$49:$E$56))+SUM(Y58:Y59)+Y46 -> 0 | Z61: =SUMPRODUCT((Z$49:Z$56)*($E$49:$E$56))+SUM(Z58:Z59)+Z46 -> 0 | AA61: =SUMPRODUCT((AA$49:AA$56)*($E$49:$E$56))+SUM(AA58:AA59)+AA46 -> 0 | AB61: =SUMPRODUCT((AB$49:AB$56)*($E$49:$E$56))+SUM(AB58:AB59)+AB46 -> 0 | AC61: =SUMPRODUCT((AC$49:AC$56)*($E$49:$E$56))+SUM(AC58:AC59)+AC46 -> 0 | AD61: =SUMPRODUCT((AD$49:AD$56)*($E$49:$E$56))+SUM(AD58:AD59)+AD46 -> 0 | AE61: =SUMPRODUCT((AE$49:AE$56)*($E$49:$E$56))+SUM(AE58:AE59)+AE46 -> 0 | AF61: =SUMPRODUCT((AF$49:AF$56)*($E$49:$E$56))+SUM(AF58:AF59)+AF46 -> 0 | AG61: =SUMPRODUCT((AG$49:AG$56)*($E$49:$E$56))+SUM(AG58:AG59)+AG46 -> 0
A64: SUMMARY
C68: ='Option1 (base case)'!C68 -> Risks mitigated vs base case | G68: =input_dollars -> 2023-12-31 | I68: =(1-INDEX(Data!$C$9:$C$13, MATCH($A$3, options,0)))*('Option1 (base case)'!I40-I40) -> 0 | J68: =(1-INDEX(Data!$C$9:$C$13, MATCH($A$3, options,0)))*('Option1 (base case)'!J40-J40) -> 0 | K68: =(1-INDEX(Data!$C$9:$C$13, MATCH($A$3, options,0)))*('Option1 (base case)'!K40-K40) -> 0 | L68: =(1-INDEX(Data!$C$9:$C$13, MATCH($A$3, options,0)))*('Option1 (base case)'!L40-L40) -> 0 | M68: =(1-INDEX(Data!$C$9:$C$13, MATCH($A$3, options,0)))*('Option1 (base case)'!M40-M40) -> 0 | N68: =(1-INDEX(Data!$C$9:$C$13, MATCH($A$3, options,0)))*('Option1 (base case)'!N40-N40) -> 0 | O68: =(1-INDEX(Data!$C$9:$C$13, MATCH($A$3, options,0)))*('Option1 (base case)'!O40-O40) -> 0 | P68: =(1-INDEX(Data!$C$9:$C$13, MATCH($A$3, options,0)))*('Option1 (base case)'!P40-P40) -> 0 | Q68: =(1-INDEX(Data!$C$9:$C$13, MATCH($A$3, options,0)))*('Option1 (base case)'!Q40-Q40) -> 0 | R68: =(1-INDEX(Data!$C$9:$C$13, MATCH($A$3, options,0)))*('Option1 (base case)'!R40-R40) -> 0 | S68: =(1-INDEX(Data!$C$9:$C$13, MATCH($A$3, options,0)))*('Option1 (base case)'!S40-S40) -> 0 | T68: =(1-INDEX(Data!$C$9:$C$13, MATCH($A$3, options,0)))*('Option1 (base case)'!T40-T40) -> 0 | U68: =(1-INDEX(Data!$C$9:$C$13, MATCH($A$3, options,0)))*('Option1 (base case)'!U40-U40) -> 0 | V68: =(1-INDEX(Data!$C$9:$C$13, MATCH($A$3, options,0)))*('Option1 (base case)'!V40-V40) -> 0 | W68: =(1-INDEX(Data!$C$9:$C$13, MATCH($A$3, options,0)))*('Option1 (base case)'!W40-W40) -> 0 | X68: =(1-INDEX(Data!$C$9:$C$13, MATCH($A$3, options,0)))*('Option1 (base case)'!X40-X40) -> 0 | Y68: =(1-INDEX(Data!$C$9:$C$13, MATCH($A$3, options,0)))*('Option1 (base case)'!Y40-Y40) -> 0 | Z68: =(1-INDEX(Data!$C$9:$C$13, MATCH($A$3, options,0)))*('Option1 (base case)'!Z40-Z40) -> 0 | AA68: =(1-INDEX(Data!$C$9:$C$13, MATCH($A$3, options,0)))*('Option1 (base case)'!AA40-AA40) -> 0 | AB68: =(1-INDEX(Data!$C$9:$C$13, MATCH($A$3, options,0)))*('Option1 (base case)'!AB40-AB40) -> 0 | AC68: =(1-INDEX(Data!$C$9:$C$13, MATCH($A$3, options,0)))*('Option1 (base case)'!AC40-AC40) -> 0 | AD68: =(1-INDEX(Data!$C$9:$C$13, MATCH($A$3, options,0)))*('Option1 (base case)'!AD40-AD40) -> 0 | AE68: =(1-INDEX(Data!$C$9:$C$13, MATCH($A$3, options,0)))*('Option1 (base case)'!AE40-AE40) -> 0 | AF68: =(1-INDEX(Data!$C$9:$C$13, MATCH($A$3, options,0)))*('Option1 (base case)'!AF40-AF40) -> 0 | AG68: =(1-INDEX(Data!$C$9:$C$13, MATCH($A$3, options,0)))*('Option1 (base case)'!AG40-AG40) -> 0
C70: Capital expenditure
C71: =C14 -> < Enter description > | G71: =input_dollars -> 2023-12-31 | I71: =-I14 -> 0 | J71: 0 | K71: 0 | L71: 0 | M71: 0 | N71: 0 | O71: 0 | P71: 0 | Q71: 0 | R71: 0 | S71: 0 | T71: 0 | U71: 0 | V71: 0 | W71: 0 | X71: 0 | Y71: 0 | Z71: 0 | AA71: 0 | AB71: 0 | AC71: 0 | AD71: 0 | AE71: 0 | AF71: 0 | AG71: 0
C72: =C15 -> < Enter description > | G72: =input_dollars -> 2023-12-31 | I72: =-I15 -> 0 | J72: 0 | K72: 0 | L72: 0 | M72: 0 | N72: 0 | O72: 0 | P72: 0 | Q72: 0 | R72: 0 | S72: 0 | T72: 0 | U72: 0 | V72: 0 | W72: 0 | X72: 0 | Y72: 0 | Z72: 0 | AA72: 0 | AB72: 0 | AC72: 0 | AD72: 0 | AE72: 0 | AF72: 0 | AG72: 0
C73: =C16 -> < Enter description > | G73: =input_dollars -> 2023-12-31 | I73: =-I16 -> 0 | J73: 0 | K73: 0 | L73: 0 | M73: 0 | N73: 0 | O73: 0 | P73: 0 | Q73: 0 | R73: 0 | S73: 0 | T73: 0 | U73: 0 | V73: 0 | W73: 0 | X73: 0 | Y73: 0 | Z73: 0 | AA73: 0 | AB73: 0 | AC73: 0 | AD73: 0 | AE73: 0 | AF73: 0 | AG73: 0
C75: Cumulative capex
C76: =C14 -> < Enter description > | G76: =input_dollars -> 2023-12-31 | I76: =SUMPRODUCT(($I71:I71))-SUMPRODUCT(($I71:I71)*($I$6:I$6<=(I$6-$E14))) -> 0 | J76: =SUMPRODUCT(($I71:J71))-SUMPRODUCT(($I71:J71)*($I$6:J$6<=(J$6-$E14))) -> 0 | K76: =SUMPRODUCT(($I71:K71))-SUMPRODUCT(($I71:K71)*($I$6:K$6<=(K$6-$E14))) -> 0 | L76: =SUMPRODUCT(($I71:L71))-SUMPRODUCT(($I71:L71)*($I$6:L$6<=(L$6-$E14))) -> 0 | M76: =SUMPRODUCT(($I71:M71))-SUMPRODUCT(($I71:M71)*($I$6:M$6<=(M$6-$E14))) -> 0 | N76: =SUMPRODUCT(($I71:N71))-SUMPRODUCT(($I71:N71)*($I$6:N$6<=(N$6-$E14))) -> 0 | O76: =SUMPRODUCT(($I71:O71))-SUMPRODUCT(($I71:O71)*($I$6:O$6<=(O$6-$E14))) -> 0 | P76: =SUMPRODUCT(($I71:P71))-SUMPRODUCT(($I71:P71)*($I$6:P$6<=(P$6-$E14))) -> 0 | Q76: =SUMPRODUCT(($I71:Q71))-SUMPRODUCT(($I71:Q71)*($I$6:Q$6<=(Q$6-$E14))) -> 0 | R76: =SUMPRODUCT(($I71:R71))-SUMPRODUCT(($I71:R71)*($I$6:R$6<=(R$6-$E14))) -> 0 | S76: =SUMPRODUCT(($I71:S71))-SUMPRODUCT(($I71:S71)*($I$6:S$6<=(S$6-$E14))) -> 0 | T76: =SUMPRODUCT(($I71:T71))-SUMPRODUCT(($I71:T71)*($I$6:T$6<=(T$6-$E14))) -> 0 | U76: =SUMPRODUCT(($I71:U71))-SUMPRODUCT(($I71:U71)*($I$6:U$6<=(U$6-$E14))) -> 0 | V76: =SUMPRODUCT(($I71:V71))-SUMPRODUCT(($I71:V71)*($I$6:V$6<=(V$6-$E14))) -> 0 | W76: =SUMPRODUCT(($I71:W71))-SUMPRODUCT(($I71:W71)*($I$6:W$6<=(W$6-$E14))) -> 0 | X76: =SUMPRODUCT(($I71:X71))-SUMPRODUCT(($I71:X71)*($I$6:X$6<=(X$6-$E14))) -> 0 | Y76: =SUMPRODUCT(($I71:Y71))-SUMPRODUCT(($I71:Y71)*($I$6:Y$6<=(Y$6-$E14))) -> 0 | Z76: =SUMPRODUCT(($I71:Z71))-SUMPRODUCT(($I71:Z71)*($I$6:Z$6<=(Z$6-$E14))) -> 0 | AA76: =SUMPRODUCT(($I71:AA71))-SUMPRODUCT(($I71:AA71)*($I$6:AA$6<=(AA$6-$E14))) -> 0 | AB76: =SUMPRODUCT(($I71:AB71))-SUMPRODUCT(($I71:AB71)*($I$6:AB$6<=(AB$6-$E14))) -> 0 | AC76: =SUMPRODUCT(($I71:AC71))-SUMPRODUCT(($I71:AC71)*($I$6:AC$6<=(AC$6-$E14))) -> 0 | AD76: =SUMPRODUCT(($I71:AD71))-SUMPRODUCT(($I71:AD71)*($I$6:AD$6<=(AD$6-$E14))) -> 0 | AE76: =SUMPRODUCT(($I71:AE71))-SUMPRODUCT(($I71:AE71)*($I$6:AE$6<=(AE$6-$E14))) -> 0 | AF76: =SUMPRODUCT(($I71:AF71))-SUMPRODUCT(($I71:AF71)*($I$6:AF$6<=(AF$6-$E14))) -> 0 | AG76: =SUMPRODUCT(($I71:AG71))-SUMPRODUCT(($I71:AG71)*($I$6:AG$6<=(AG$6-$E14))) -> 0
C77: =C15 -> < Enter description > | G77: =input_dollars -> 2023-12-31 | I77: =SUMPRODUCT(($I72:I72))-SUMPRODUCT(($I72:I72)*($I$6:I$6<=(I$6-$E15))) -> 0 | J77: =SUMPRODUCT(($I72:J72))-SUMPRODUCT(($I72:J72)*($I$6:J$6<=(J$6-$E15))) -> 0 | K77: =SUMPRODUCT(($I72:K72))-SUMPRODUCT(($I72:K72)*($I$6:K$6<=(K$6-$E15))) -> 0 | L77: =SUMPRODUCT(($I72:L72))-SUMPRODUCT(($I72:L72)*($I$6:L$6<=(L$6-$E15))) -> 0 | M77: =SUMPRODUCT(($I72:M72))-SUMPRODUCT(($I72:M72)*($I$6:M$6<=(M$6-$E15))) -> 0 | N77: =SUMPRODUCT(($I72:N72))-SUMPRODUCT(($I72:N72)*($I$6:N$6<=(N$6-$E15))) -> 0 | O77: =SUMPRODUCT(($I72:O72))-SUMPRODUCT(($I72:O72)*($I$6:O$6<=(O$6-$E15))) -> 0 | P77: =SUMPRODUCT(($I72:P72))-SUMPRODUCT(($I72:P72)*($I$6:P$6<=(P$6-$E15))) -> 0 | Q77: =SUMPRODUCT(($I72:Q72))-SUMPRODUCT(($I72:Q72)*($I$6:Q$6<=(Q$6-$E15))) -> 0 | R77: =SUMPRODUCT(($I72:R72))-SUMPRODUCT(($I72:R72)*($I$6:R$6<=(R$6-$E15))) -> 0 | S77: =SUMPRODUCT(($I72:S72))-SUMPRODUCT(($I72:S72)*($I$6:S$6<=(S$6-$E15))) -> 0 | T77: =SUMPRODUCT(($I72:T72))-SUMPRODUCT(($I72:T72)*($I$6:T$6<=(T$6-$E15))) -> 0 | U77: =SUMPRODUCT(($I72:U72))-SUMPRODUCT(($I72:U72)*($I$6:U$6<=(U$6-$E15))) -> 0 | V77: =SUMPRODUCT(($I72:V72))-SUMPRODUCT(($I72:V72)*($I$6:V$6<=(V$6-$E15))) -> 0 | W77: =SUMPRODUCT(($I72:W72))-SUMPRODUCT(($I72:W72)*($I$6:W$6<=(W$6-$E15))) -> 0 | X77: =SUMPRODUCT(($I72:X72))-SUMPRODUCT(($I72:X72)*($I$6:X$6<=(X$6-$E15))) -> 0 | Y77: =SUMPRODUCT(($I72:Y72))-SUMPRODUCT(($I72:Y72)*($I$6:Y$6<=(Y$6-$E15))) -> 0 | Z77: =SUMPRODUCT(($I72:Z72))-SUMPRODUCT(($I72:Z72)*($I$6:Z$6<=(Z$6-$E15))) -> 0 | AA77: =SUMPRODUCT(($I72:AA72))-SUMPRODUCT(($I72:AA72)*($I$6:AA$6<=(AA$6-$E15))) -> 0 | AB77: =SUMPRODUCT(($I72:AB72))-SUMPRODUCT(($I72:AB72)*($I$6:AB$6<=(AB$6-$E15))) -> 0 | AC77: =SUMPRODUCT(($I72:AC72))-SUMPRODUCT(($I72:AC72)*($I$6:AC$6<=(AC$6-$E15))) -> 0 | AD77: =SUMPRODUCT(($I72:AD72))-SUMPRODUCT(($I72:AD72)*($I$6:AD$6<=(AD$6-$E15))) -> 0 | AE77: =SUMPRODUCT(($I72:AE72))-SUMPRODUCT(($I72:AE72)*($I$6:AE$6<=(AE$6-$E15))) -> 0 | AF77: =SUMPRODUCT(($I72:AF72))-SUMPRODUCT(($I72:AF72)*($I$6:AF$6<=(AF$6-$E15))) -> 0 | AG77: =SUMPRODUCT(($I72:AG72))-SUMPRODUCT(($I72:AG72)*($I$6:AG$6<=(AG$6-$E15))) -> 0
C78: =C16 -> < Enter description > | G78: =input_dollars -> 2023-12-31 | I78: =SUMPRODUCT(($I73:I73))-SUMPRODUCT(($I73:I73)*($I$6:I$6<=(I$6-$E16))) -> 0 | J78: =SUMPRODUCT(($I73:J73))-SUMPRODUCT(($I73:J73)*($I$6:J$6<=(J$6-$E16))) -> 0 | K78: =SUMPRODUCT(($I73:K73))-SUMPRODUCT(($I73:K73)*($I$6:K$6<=(K$6-$E16))) -> 0 | L78: =SUMPRODUCT(($I73:L73))-SUMPRODUCT(($I73:L73)*($I$6:L$6<=(L$6-$E16))) -> 0 | M78: =SUMPRODUCT(($I73:M73))-SUMPRODUCT(($I73:M73)*($I$6:M$6<=(M$6-$E16))) -> 0 | N78: =SUMPRODUCT(($I73:N73))-SUMPRODUCT(($I73:N73)*($I$6:N$6<=(N$6-$E16))) -> 0 | O78: =SUMPRODUCT(($I73:O73))-SUMPRODUCT(($I73:O73)*($I$6:O$6<=(O$6-$E16))) -> 0 | P78: =SUMPRODUCT(($I73:P73))-SUMPRODUCT(($I73:P73)*($I$6:P$6<=(P$6-$E16))) -> 0 | Q78: =SUMPRODUCT(($I73:Q73))-SUMPRODUCT(($I73:Q73)*($I$6:Q$6<=(Q$6-$E16))) -> 0 | R78: =SUMPRODUCT(($I73:R73))-SUMPRODUCT(($I73:R73)*($I$6:R$6<=(R$6-$E16))) -> 0 | S78: =SUMPRODUCT(($I73:S73))-SUMPRODUCT(($I73:S73)*($I$6:S$6<=(S$6-$E16))) -> 0 | T78: =SUMPRODUCT(($I73:T73))-SUMPRODUCT(($I73:T73)*($I$6:T$6<=(T$6-$E16))) -> 0 | U78: =SUMPRODUCT(($I73:U73))-SUMPRODUCT(($I73:U73)*($I$6:U$6<=(U$6-$E16))) -> 0 | V78: =SUMPRODUCT(($I73:V73))-SUMPRODUCT(($I73:V73)*($I$6:V$6<=(V$6-$E16))) -> 0 | W78: =SUMPRODUCT(($I73:W73))-SUMPRODUCT(($I73:W73)*($I$6:W$6<=(W$6-$E16))) -> 0 | X78: =SUMPRODUCT(($I73:X73))-SUMPRODUCT(($I73:X73)*($I$6:X$6<=(X$6-$E16))) -> 0 | Y78: =SUMPRODUCT(($I73:Y73))-SUMPRODUCT(($I73:Y73)*($I$6:Y$6<=(Y$6-$E16))) -> 0 | Z78: =SUMPRODUCT(($I73:Z73))-SUMPRODUCT(($I73:Z73)*($I$6:Z$6<=(Z$6-$E16))) -> 0 | AA78: =SUMPRODUCT(($I73:AA73))-SUMPRODUCT(($I73:AA73)*($I$6:AA$6<=(AA$6-$E16))) -> 0 | AB78: =SUMPRODUCT(($I73:AB73))-SUMPRODUCT(($I73:AB73)*($I$6:AB$6<=(AB$6-$E16))) -> 0 | AC78: =SUMPRODUCT(($I73:AC73))-SUMPRODUCT(($I73:AC73)*($I$6:AC$6<=(AC$6-$E16))) -> 0 | AD78: =SUMPRODUCT(($I73:AD73))-SUMPRODUCT(($I73:AD73)*($I$6:AD$6<=(AD$6-$E16))) -> 0 | AE78: =SUMPRODUCT(($I73:AE73))-SUMPRODUCT(($I73:AE73)*($I$6:AE$6<=(AE$6-$E16))) -> 0 | AF78: =SUMPRODUCT(($I73:AF73))-SUMPRODUCT(($I73:AF73)*($I$6:AF$6<=(AF$6-$E16))) -> 0 | AG78: =SUMPRODUCT(($I73:AG73))-SUMPRODUCT(($I73:AG73)*($I$6:AG$6<=(AG$6-$E16))) -> 0
C80: Annualised capex
C81: =$C$80&" - "&C14 -> Annualised capex - < Enter description > | G81: =input_dollars -> 2023-12-31 | I81: =IF($E14=0,0,-PMT(real_disc, $E14,H76,)) -> 0 | J81: 0 | K81: 0 | L81: 0 | M81: 0 | N81: 0 | O81: 0 | P81: 0 | Q81: 0 | R81: 0 | S81: 0 | T81: 0 | U81: 0 | V81: 0 | W81: 0 | X81: 0 | Y81: 0 | Z81: 0 | AA81: 0 | AB81: 0 | AC81: 0 | AD81: 0 | AE81: 0 | AF81: 0 | AG81: 0
C82: =$C$80&" - "&C15 -> Annualised capex - < Enter description > | G82: =input_dollars -> 2023-12-31 | I82: =IF($E15=0,0,-PMT(real_disc, $E15,H77,)) -> 0 | J82: 0 | K82: 0 | L82: 0 | M82: 0 | N82: 0 | O82: 0 | P82: 0 | Q82: 0 | R82: 0 | S82: 0 | T82: 0 | U82: 0 | V82: 0 | W82: 0 | X82: 0 | Y82: 0 | Z82: 0 | AA82: 0 | AB82: 0 | AC82: 0 | AD82: 0 | AE82: 0 | AF82: 0 | AG82: 0
C83: =$C$80&" - "&C16 -> Annualised capex - < Enter description > | G83: =input_dollars -> 2023-12-31 | I83: =IF($E16=0,0,-PMT(real_disc, $E16,H78,)) -> 0 | J83: 0 | K83: 0 | L83: 0 | M83: 0 | N83: 0 | O83: 0 | P83: 0 | Q83: 0 | R83: 0 | S83: 0 | T83: 0 | U83: 0 | V83: 0 | W83: 0 | X83: 0 | Y83: 0 | Z83: 0 | AA83: 0 | AB83: 0 | AC83: 0 | AD83: 0 | AE83: 0 | AF83: 0 | AG83: 0
C84: Total annualised capex | G84: =input_dollars -> 2023-12-31 | I84: =SUM(I81:I83) -> 0 | J84: =SUM(J81:J83) -> 0 | K84: 0 | L84: 0 | M84: 0 | N84: 0 | O84: 0 | P84: 0 | Q84: 0 | R84: 0 | S84: 0 | T84: 0 | U84: 0 | V84: 0 | W84: 0 | X84: 0 | Y84: 0 | Z84: 0 | AA84: 0 | AB84: 0 | AC84: =SUM(AC81:AC83) -> 0 | AD84: =SUM(AD81:AD83) -> 0 | AE84: =SUM(AE81:AE83) -> 0 | AF84: =SUM(AF81:AF83) -> 0 | AG84: =SUM(AG81:AG83) -> 0
C86: Annualised capex | G86: =input_dollars -> 2023-12-31 | I86: =I84 -> 0 | J86: =J84 -> 0 | K86: 0 | L86: 0 | M86: 0 | N86: 0 | O86: 0 | P86: 0 | Q86: 0 | R86: 0 | S86: 0 | T86: 0 | U86: 0 | V86: 0 | W86: 0 | X86: 0 | Y86: 0 | Z86: 0 | AA86: 0 | AB86: 0 | AC86: =AC84 -> 0 | AD86: =AD84 -> 0 | AE86: =AE84 -> 0 | AF86: =AF84 -> 0 | AG86: =AG84 -> 0
C87: Operating expenditure | G87: 2023-12-31 | I87: =-I19 -> 0 | J87: 0 | K87: 0 | L87: 0 | M87: 0 | N87: 0 | O87: 0 | P87: 0 | Q87: 0 | R87: 0 | S87: 0 | T87: 0 | U87: 0 | V87: 0 | W87: 0 | X87: 0 | Y87: 0 | Z87: 0 | AA87: 0 | AB87: 0 | AC87: 0 | AD87: 0 | AE87: 0 | AF87: 0 | AG87: 0
C88: Risk mitigated | G88: 2023-12-31 | I88: =I68 -> 0 | J88: =J68 -> 0 | K88: 0 | L88: 0 | M88: 0 | N88: 0 | O88: 0 | P88: 0 | Q88: 0 | R88: 0 | S88: 0 | T88: 0 | U88: 0 | V88: 0 | W88: 0 | X88: 0 | Y88: 0 | Z88: 0 | AA88: 0 | AB88: 0 | AC88: =AC68 -> 0 | AD88: =AD68 -> 0 | AE88: =AE68 -> 0 | AF88: =AF68 -> 0 | AG88: =AG68 -> 0
C89: Other benefits value | G89: 2023-12-31 | I89: =I61 -> 0 | J89: 0 | K89: 0 | L89: 0 | M89: 0 | N89: 0 | O89: 0 | P89: 0 | Q89: 0 | R89: 0 | S89: 0 | T89: 0 | U89: 0 | V89: 0 | W89: 0 | X89: 0 | Y89: 0 | Z89: 0 | AA89: 0 | AB89: 0 | AC89: 0 | AD89: 0 | AE89: 0 | AF89: 0 | AG89: 0
C91: Net benefits | G91: 2023-12-31 | I91: =SUM(I86:I90) -> 0 | J91: 0 | K91: 0 | L91: 0 | M91: 0 | N91: 0 | O91: 0 | P91: 0 | Q91: 0 | R91: 0 | S91: 0 | T91: 0 | U91: 0 | V91: 0 | W91: 0 | X91: 0 | Y91: 0 | Z91: 0 | AA91: 0 | AB91: 0 | AC91: =SUM(AC86:AC90) -> 0 | AD91: =SUM(AD86:AD90) -> 0 | AE91: =SUM(AE86:AE90) -> 0 | AF91: =SUM(AF86:AF90) -> 0 | AG91: =SUM(AG86:AG90) -> 0
C94: First capex year | G94: =IF(SUM($I17:$AG17)=0,0,(INDEX(I$6:AG$6,MATCH(TRUE,INDEX($I17:$AG17<>0,),0)))) -> 0
C96: First year | G96: =IF(_xlfn.MINIFS($G$94:$G$95, $G$94:$G$95, ">"&0)=0, $A$4, _xlfn.MINIFS($G$94:$G$95, $G$94:$G$95, ">"&0)) -> Not used
A106: SENSITIVITIES
A110: NPV | C110: Net benefits | G110: =PROPER($A$3)&A110 -> Option 5NPV | I110: =I91 -> 0 | J110: =J91 -> 0 | K110: 0 | L110: 0 | M110: 0 | N110: 0 | O110: 0 | P110: 0 | Q110: 0 | R110: 0 | S110: 0 | T110: 0 | U110: 0 | V110: 0 | W110: 0 | X110: 0 | Y110: 0 | Z110: 0 | AA110: 0 | AB110: 0 | AC110: 0 | AD110: 0 | AE110: 0 | AF110: 0 | AG110: 0
C111: Total annualised capex | I111: =I86 -> 0 | J111: =J86 -> 0 | K111: 0 | L111: 0 | M111: 0 | N111: 0 | O111: 0 | P111: 0 | Q111: 0 | R111: 0 | S111: 0 | T111: 0 | U111: 0 | V111: 0 | W111: 0 | X111: 0 | Y111: 0 | Z111: 0 | AA111: 0 | AB111: 0 | AC111: 0 | AD111: 0 | AE111: 0 | AF111: 0 | AG111: 0
C112: Total benefits | I112: =SUM(I88:I89) -> 0 | J112: =SUM(J88:J89) -> 0 | K112: 0 | L112: 0 | M112: 0 | N112: 0 | O112: 0 | P112: 0 | Q112: 0 | R112: 0 | S112: 0 | T112: 0 | U112: 0 | V112: 0 | W112: 0 | X112: 0 | Y112: 0 | Z112: 0 | AA112: 0 | AB112: 0 | AC112: 0 | AD112: 0 | AE112: 0 | AF112: 0 | AG112: 0
D113: =Assumptions!G110 -> Capex | E113: =Assumptions!H110 -> Total benefits
A114: ="sens"&Assumptions!B111 -> sens1 | C114: =Assumptions!C111 -> Capex 10% higher | D114: =Assumptions!G111 -> 0.1 | E114: =Assumptions!H111 -> 0 | G114: =PROPER($A$3)&A114 -> Option 5sens1 | I114: =I$110+IF($C114<>0,SUMPRODUCT((I$111:I$112)*TRANSPOSE(($D114:$E114))),0) -> 0 | J114: =J$110+IF($C114<>0,SUMPRODUCT((J$111:J$112)*TRANSPOSE(($D114:$E114))),0) -> 0 | K114: =K$110+IF($C114<>0,SUMPRODUCT((K$111:K$112)*TRANSPOSE(($D114:$E114))),0) -> 0 | L114: =L$110+IF($C114<>0,SUMPRODUCT((L$111:L$112)*TRANSPOSE(($D114:$E114))),0) -> 0 | M114: =M$110+IF($C114<>0,SUMPRODUCT((M$111:M$112)*TRANSPOSE(($D114:$E114))),0) -> 0 | N114: =N$110+IF($C114<>0,SUMPRODUCT((N$111:N$112)*TRANSPOSE(($D114:$E114))),0) -> 0 | O114: =O$110+IF($C114<>0,SUMPRODUCT((O$111:O$112)*TRANSPOSE(($D114:$E114))),0) -> 0 | P114: =P$110+IF($C114<>0,SUMPRODUCT((P$111:P$112)*TRANSPOSE(($D114:$E114))),0) -> 0 | Q114: =Q$110+IF($C114<>0,SUMPRODUCT((Q$111:Q$112)*TRANSPOSE(($D114:$E114))),0) -> 0 | R114: =R$110+IF($C114<>0,SUMPRODUCT((R$111:R$112)*TRANSPOSE(($D114:$E114))),0) -> 0 | S114: =S$110+IF($C114<>0,SUMPRODUCT((S$111:S$112)*TRANSPOSE(($D114:$E114))),0) -> 0 | T114: =T$110+IF($C114<>0,SUMPRODUCT((T$111:T$112)*TRANSPOSE(($D114:$E114))),0) -> 0 | U114: =U$110+IF($C114<>0,SUMPRODUCT((U$111:U$112)*TRANSPOSE(($D114:$E114))),0) -> 0 | V114: =V$110+IF($C114<>0,SUMPRODUCT((V$111:V$112)*TRANSPOSE(($D114:$E114))),0) -> 0 | W114: =W$110+IF($C114<>0,SUMPRODUCT((W$111:W$112)*TRANSPOSE(($D114:$E114))),0) -> 0 | X114: =X$110+IF($C114<>0,SUMPRODUCT((X$111:X$112)*TRANSPOSE(($D114:$E114))),0) -> 0 | Y114: =Y$110+IF($C114<>0,SUMPRODUCT((Y$111:Y$112)*TRANSPOSE(($D114:$E114))),0) -> 0 | Z114: =Z$110+IF($C114<>0,SUMPRODUCT((Z$111:Z$112)*TRANSPOSE(($D114:$E114))),0) -> 0 | AA114: =AA$110+IF($C114<>0,SUMPRODUCT((AA$111:AA$112)*TRANSPOSE(($D114:$E114))),0) -> 0 | AB114: =AB$110+IF($C114<>0,SUMPRODUCT((AB$111:AB$112)*TRANSPOSE(($D114:$E114))),0) -> 0 | AC114: =AC$110+IF($C114<>0,SUMPRODUCT((AC$111:AC$112)*TRANSPOSE(($D114:$E114))),0) -> 0 | AD114: =AD$110+IF($C114<>0,SUMPRODUCT((AD$111:AD$112)*TRANSPOSE(($D114:$E114))),0) -> 0 | AE114: =AE$110+IF($C114<>0,SUMPRODUCT((AE$111:AE$112)*TRANSPOSE(($D114:$E114))),0) -> 0 | AF114: =AF$110+IF($C114<>0,SUMPRODUCT((AF$111:AF$112)*TRANSPOSE(($D114:$E114))),0) -> 0 | AG114: =AG$110+IF($C114<>0,SUMPRODUCT((AG$111:AG$112)*TRANSPOSE(($D114:$E114))),0) -> 0
A115: ="sens"&Assumptions!B112 -> sens2 | C115: =Assumptions!C112 -> Capex 10% lower | D115: =Assumptions!G112 -> -0.1 | E115: =Assumptions!H112 -> 0 | G115: =PROPER($A$3)&A115 -> Option 5sens2 | I115: =I$110+IF($C115<>0,SUMPRODUCT((I$111:I$112)*TRANSPOSE(($D115:$E115))),0) -> 0 | J115: =J$110+IF($C115<>0,SUMPRODUCT((J$111:J$112)*TRANSPOSE(($D115:$E115))),0) -> 0 | K115: =K$110+IF($C115<>0,SUMPRODUCT((K$111:K$112)*TRANSPOSE(($D115:$E115))),0) -> 0 | L115: =L$110+IF($C115<>0,SUMPRODUCT((L$111:L$112)*TRANSPOSE(($D115:$E115))),0) -> 0 | M115: =M$110+IF($C115<>0,SUMPRODUCT((M$111:M$112)*TRANSPOSE(($D115:$E115))),0) -> 0 | N115: =N$110+IF($C115<>0,SUMPRODUCT((N$111:N$112)*TRANSPOSE(($D115:$E115))),0) -> 0 | O115: =O$110+IF($C115<>0,SUMPRODUCT((O$111:O$112)*TRANSPOSE(($D115:$E115))),0) -> 0 | P115: =P$110+IF($C115<>0,SUMPRODUCT((P$111:P$112)*TRANSPOSE(($D115:$E115))),0) -> 0 | Q115: =Q$110+IF($C115<>0,SUMPRODUCT((Q$111:Q$112)*TRANSPOSE(($D115:$E115))),0) -> 0 | R115: =R$110+IF($C115<>0,SUMPRODUCT((R$111:R$112)*TRANSPOSE(($D115:$E115))),0) -> 0 | S115: =S$110+IF($C115<>0,SUMPRODUCT((S$111:S$112)*TRANSPOSE(($D115:$E115))),0) -> 0 | T115: =T$110+IF($C115<>0,SUMPRODUCT((T$111:T$112)*TRANSPOSE(($D115:$E115))),0) -> 0 | U115: =U$110+IF($C115<>0,SUMPRODUCT((U$111:U$112)*TRANSPOSE(($D115:$E115))),0) -> 0 | V115: =V$110+IF($C115<>0,SUMPRODUCT((V$111:V$112)*TRANSPOSE(($D115:$E115))),0) -> 0 | W115: =W$110+IF($C115<>0,SUMPRODUCT((W$111:W$112)*TRANSPOSE(($D115:$E115))),0) -> 0 | X115: =X$110+IF($C115<>0,SUMPRODUCT((X$111:X$112)*TRANSPOSE(($D115:$E115))),0) -> 0 | Y115: =Y$110+IF($C115<>0,SUMPRODUCT((Y$111:Y$112)*TRANSPOSE(($D115:$E115))),0) -> 0 | Z115: =Z$110+IF($C115<>0,SUMPRODUCT((Z$111:Z$112)*TRANSPOSE(($D115:$E115))),0) -> 0 | AA115: =AA$110+IF($C115<>0,SUMPRODUCT((AA$111:AA$112)*TRANSPOSE(($D115:$E115))),0) -> 0 | AB115: =AB$110+IF($C115<>0,SUMPRODUCT((AB$111:AB$112)*TRANSPOSE(($D115:$E115))),0) -> 0 | AC115: =AC$110+IF($C115<>0,SUMPRODUCT((AC$111:AC$112)*TRANSPOSE(($D115:$E115))),0) -> 0 | AD115: =AD$110+IF($C115<>0,SUMPRODUCT((AD$111:AD$112)*TRANSPOSE(($D115:$E115))),0) -> 0 | AE115: =AE$110+IF($C115<>0,SUMPRODUCT((AE$111:AE$112)*TRANSPOSE(($D115:$E115))),0) -> 0 | AF115: =AF$110+IF($C115<>0,SUMPRODUCT((AF$111:AF$112)*TRANSPOSE(($D115:$E115))),0) -> 0 | AG115: =AG$110+IF($C115<>0,SUMPRODUCT((AG$111:AG$112)*TRANSPOSE(($D115:$E115))),0) -> 0
A116: ="sens"&Assumptions!B113 -> sens3 | C116: =Assumptions!C113 -> Total benefits 10% higher | D116: =Assumptions!G113 -> 0 | E116: =Assumptions!H113 -> 0.1 | G116: Option 5sens3 | I116: =I$110+IF($C116<>0,SUMPRODUCT((I$111:I$112)*TRANSPOSE(($D116:$E116))),0) -> 0 | J116: =J$110+IF($C116<>0,SUMPRODUCT((J$111:J$112)*TRANSPOSE(($D116:$E116))),0) -> 0 | K116: =K$110+IF($C116<>0,SUMPRODUCT((K$111:K$112)*TRANSPOSE(($D116:$E116))),0) -> 0 | L116: =L$110+IF($C116<>0,SUMPRODUCT((L$111:L$112)*TRANSPOSE(($D116:$E116))),0) -> 0 | M116: =M$110+IF($C116<>0,SUMPRODUCT((M$111:M$112)*TRANSPOSE(($D116:$E116))),0) -> 0 | N116: =N$110+IF($C116<>0,SUMPRODUCT((N$111:N$112)*TRANSPOSE(($D116:$E116))),0) -> 0 | O116: =O$110+IF($C116<>0,SUMPRODUCT((O$111:O$112)*TRANSPOSE(($D116:$E116))),0) -> 0 | P116: =P$110+IF($C116<>0,SUMPRODUCT((P$111:P$112)*TRANSPOSE(($D116:$E116))),0) -> 0 | Q116: =Q$110+IF($C116<>0,SUMPRODUCT((Q$111:Q$112)*TRANSPOSE(($D116:$E116))),0) -> 0 | R116: =R$110+IF($C116<>0,SUMPRODUCT((R$111:R$112)*TRANSPOSE(($D116:$E116))),0) -> 0 | S116: =S$110+IF($C116<>0,SUMPRODUCT((S$111:S$112)*TRANSPOSE(($D116:$E116))),0) -> 0 | T116: =T$110+IF($C116<>0,SUMPRODUCT((T$111:T$112)*TRANSPOSE(($D116:$E116))),0) -> 0 | U116: =U$110+IF($C116<>0,SUMPRODUCT((U$111:U$112)*TRANSPOSE(($D116:$E116))),0) -> 0 | V116: =V$110+IF($C116<>0,SUMPRODUCT((V$111:V$112)*TRANSPOSE(($D116:$E116))),0) -> 0 | W116: =W$110+IF($C116<>0,SUMPRODUCT((W$111:W$112)*TRANSPOSE(($D116:$E116))),0) -> 0 | X116: =X$110+IF($C116<>0,SUMPRODUCT((X$111:X$112)*TRANSPOSE(($D116:$E116))),0) -> 0 | Y116: =Y$110+IF($C116<>0,SUMPRODUCT((Y$111:Y$112)*TRANSPOSE(($D116:$E116))),0) -> 0 | Z116: =Z$110+IF($C116<>0,SUMPRODUCT((Z$111:Z$112)*TRANSPOSE(($D116:$E116))),0) -> 0 | AA116: =AA$110+IF($C116<>0,SUMPRODUCT((AA$111:AA$112)*TRANSPOSE(($D116:$E116))),0) -> 0 | AB116: =AB$110+IF($C116<>0,SUMPRODUCT((AB$111:AB$112)*TRANSPOSE(($D116:$E116))),0) -> 0 | AC116: =AC$110+IF($C116<>0,SUMPRODUCT((AC$111:AC$112)*TRANSPOSE(($D116:$E116))),0) -> 0 | AD116: =AD$110+IF($C116<>0,SUMPRODUCT((AD$111:AD$112)*TRANSPOSE(($D116:$E116))),0) -> 0 | AE116: =AE$110+IF($C116<>0,SUMPRODUCT((AE$111:AE$112)*TRANSPOSE(($D116:$E116))),0) -> 0 | AF116: =AF$110+IF($C116<>0,SUMPRODUCT((AF$111:AF$112)*TRANSPOSE(($D116:$E116))),0) -> 0 | AG116: =AG$110+IF($C116<>0,SUMPRODUCT((AG$111:AG$112)*TRANSPOSE(($D116:$E116))),0) -> 0
A117: ="sens"&Assumptions!B114 -> sens4 | C117: =Assumptions!C114 -> Total benefits 10% lower | D117: =Assumptions!G114 -> 0 | E117: =Assumptions!H114 -> -0.1 | G117: Option 5sens4 | I117: =I$110+IF($C117<>0,SUMPRODUCT((I$111:I$112)*TRANSPOSE(($D117:$E117))),0) -> 0 | J117: =J$110+IF($C117<>0,SUMPRODUCT((J$111:J$112)*TRANSPOSE(($D117:$E117))),0) -> 0 | K117: =K$110+IF($C117<>0,SUMPRODUCT((K$111:K$112)*TRANSPOSE(($D117:$E117))),0) -> 0 | L117: =L$110+IF($C117<>0,SUMPRODUCT((L$111:L$112)*TRANSPOSE(($D117:$E117))),0) -> 0 | M117: =M$110+IF($C117<>0,SUMPRODUCT((M$111:M$112)*TRANSPOSE(($D117:$E117))),0) -> 0 | N117: =N$110+IF($C117<>0,SUMPRODUCT((N$111:N$112)*TRANSPOSE(($D117:$E117))),0) -> 0 | O117: =O$110+IF($C117<>0,SUMPRODUCT((O$111:O$112)*TRANSPOSE(($D117:$E117))),0) -> 0 | P117: =P$110+IF($C117<>0,SUMPRODUCT((P$111:P$112)*TRANSPOSE(($D117:$E117))),0) -> 0 | Q117: =Q$110+IF($C117<>0,SUMPRODUCT((Q$111:Q$112)*TRANSPOSE(($D117:$E117))),0) -> 0 | R117: =R$110+IF($C117<>0,SUMPRODUCT((R$111:R$112)*TRANSPOSE(($D117:$E117))),0) -> 0 | S117: =S$110+IF($C117<>0,SUMPRODUCT((S$111:S$112)*TRANSPOSE(($D117:$E117))),0) -> 0 | T117: =T$110+IF($C117<>0,SUMPRODUCT((T$111:T$112)*TRANSPOSE(($D117:$E117))),0) -> 0 | U117: =U$110+IF($C117<>0,SUMPRODUCT((U$111:U$112)*TRANSPOSE(($D117:$E117))),0) -> 0 | V117: =V$110+IF($C117<>0,SUMPRODUCT((V$111:V$112)*TRANSPOSE(($D117:$E117))),0) -> 0 | W117: =W$110+IF($C117<>0,SUMPRODUCT((W$111:W$112)*TRANSPOSE(($D117:$E117))),0) -> 0 | X117: =X$110+IF($C117<>0,SUMPRODUCT((X$111:X$112)*TRANSPOSE(($D117:$E117))),0) -> 0 | Y117: =Y$110+IF($C117<>0,SUMPRODUCT((Y$111:Y$112)*TRANSPOSE(($D117:$E117))),0) -> 0 | Z117: =Z$110+IF($C117<>0,SUMPRODUCT((Z$111:Z$112)*TRANSPOSE(($D117:$E117))),0) -> 0 | AA117: =AA$110+IF($C117<>0,SUMPRODUCT((AA$111:AA$112)*TRANSPOSE(($D117:$E117))),0) -> 0 | AB117: =AB$110+IF($C117<>0,SUMPRODUCT((AB$111:AB$112)*TRANSPOSE(($D117:$E117))),0) -> 0 | AC117: =AC$110+IF($C117<>0,SUMPRODUCT((AC$111:AC$112)*TRANSPOSE(($D117:$E117))),0) -> 0 | AD117: =AD$110+IF($C117<>0,SUMPRODUCT((AD$111:AD$112)*TRANSPOSE(($D117:$E117))),0) -> 0 | AE117: =AE$110+IF($C117<>0,SUMPRODUCT((AE$111:AE$112)*TRANSPOSE(($D117:$E117))),0) -> 0 | AF117: =AF$110+IF($C117<>0,SUMPRODUCT((AF$111:AF$112)*TRANSPOSE(($D117:$E117))),0) -> 0 | AG117: =AG$110+IF($C117<>0,SUMPRODUCT((AG$111:AG$112)*TRANSPOSE(($D117:$E117))),0) -> 0
A118: ="sens"&Assumptions!B115 -> sens5 | C118: =Assumptions!C115 -> Capex 10% higher & Total benefits 10% lower | D118: =Assumptions!G115 -> 0.1 | E118: =Assumptions!H115 -> -0.1 | G118: Option 5sens5 | I118: =I$110+IF($C118<>0,SUMPRODUCT((I$111:I$112)*TRANSPOSE(($D118:$E118))),0) -> 0 | J118: =J$110+IF($C118<>0,SUMPRODUCT((J$111:J$112)*TRANSPOSE(($D118:$E118))),0) -> 0 | K118: =K$110+IF($C118<>0,SUMPRODUCT((K$111:K$112)*TRANSPOSE(($D118:$E118))),0) -> 0 | L118: =L$110+IF($C118<>0,SUMPRODUCT((L$111:L$112)*TRANSPOSE(($D118:$E118))),0) -> 0 | M118: =M$110+IF($C118<>0,SUMPRODUCT((M$111:M$112)*TRANSPOSE(($D118:$E118))),0) -> 0 | N118: =N$110+IF($C118<>0,SUMPRODUCT((N$111:N$112)*TRANSPOSE(($D118:$E118))),0) -> 0 | O118: =O$110+IF($C118<>0,SUMPRODUCT((O$111:O$112)*TRANSPOSE(($D118:$E118))),0) -> 0 | P118: =P$110+IF($C118<>0,SUMPRODUCT((P$111:P$112)*TRANSPOSE(($D118:$E118))),0) -> 0 | Q118: =Q$110+IF($C118<>0,SUMPRODUCT((Q$111:Q$112)*TRANSPOSE(($D118:$E118))),0) -> 0 | R118: =R$110+IF($C118<>0,SUMPRODUCT((R$111:R$112)*TRANSPOSE(($D118:$E118))),0) -> 0 | S118: =S$110+IF($C118<>0,SUMPRODUCT((S$111:S$112)*TRANSPOSE(($D118:$E118))),0) -> 0 | T118: =T$110+IF($C118<>0,SUMPRODUCT((T$111:T$112)*TRANSPOSE(($D118:$E118))),0) -> 0 | U118: =U$110+IF($C118<>0,SUMPRODUCT((U$111:U$112)*TRANSPOSE(($D118:$E118))),0) -> 0 | V118: =V$110+IF($C118<>0,SUMPRODUCT((V$111:V$112)*TRANSPOSE(($D118:$E118))),0) -> 0 | W118: =W$110+IF($C118<>0,SUMPRODUCT((W$111:W$112)*TRANSPOSE(($D118:$E118))),0) -> 0 | X118: =X$110+IF($C118<>0,SUMPRODUCT((X$111:X$112)*TRANSPOSE(($D118:$E118))),0) -> 0 | Y118: =Y$110+IF($C118<>0,SUMPRODUCT((Y$111:Y$112)*TRANSPOSE(($D118:$E118))),0) -> 0 | Z118: =Z$110+IF($C118<>0,SUMPRODUCT((Z$111:Z$112)*TRANSPOSE(($D118:$E118))),0) -> 0 | AA118: =AA$110+IF($C118<>0,SUMPRODUCT((AA$111:AA$112)*TRANSPOSE(($D118:$E118))),0) -> 0 | AB118: =AB$110+IF($C118<>0,SUMPRODUCT((AB$111:AB$112)*TRANSPOSE(($D118:$E118))),0) -> 0 | AC118: =AC$110+IF($C118<>0,SUMPRODUCT((AC$111:AC$112)*TRANSPOSE(($D118:$E118))),0) -> 0 | AD118: =AD$110+IF($C118<>0,SUMPRODUCT((AD$111:AD$112)*TRANSPOSE(($D118:$E118))),0) -> 0 | AE118: =AE$110+IF($C118<>0,SUMPRODUCT((AE$111:AE$112)*TRANSPOSE(($D118:$E118))),0) -> 0 | AF118: =AF$110+IF($C118<>0,SUMPRODUCT((AF$111:AF$112)*TRANSPOSE(($D118:$E118))),0) -> 0 | AG118: =AG$110+IF($C118<>0,SUMPRODUCT((AG$111:AG$112)*TRANSPOSE(($D118:$E118))),0) -> 0
A119: ="sens"&Assumptions!B116 -> sens | C119: =Assumptions!C116 -> 0 | D119: =Assumptions!G116 -> 0 | E119: =Assumptions!H116 -> 0 | G119: Option 5sens | I119: =I$110+IF($C119<>0,SUMPRODUCT((I$111:I$112)*TRANSPOSE(($D119:$E119))),0) -> 0 | J119: =J$110+IF($C119<>0,SUMPRODUCT((J$111:J$112)*TRANSPOSE(($D119:$E119))),0) -> 0 | K119: =K$110+IF($C119<>0,SUMPRODUCT((K$111:K$112)*TRANSPOSE(($D119:$E119))),0) -> 0 | L119: =L$110+IF($C119<>0,SUMPRODUCT((L$111:L$112)*TRANSPOSE(($D119:$E119))),0) -> 0 | M119: =M$110+IF($C119<>0,SUMPRODUCT((M$111:M$112)*TRANSPOSE(($D119:$E119))),0) -> 0 | N119: =N$110+IF($C119<>0,SUMPRODUCT((N$111:N$112)*TRANSPOSE(($D119:$E119))),0) -> 0 | O119: =O$110+IF($C119<>0,SUMPRODUCT((O$111:O$112)*TRANSPOSE(($D119:$E119))),0) -> 0 | P119: =P$110+IF($C119<>0,SUMPRODUCT((P$111:P$112)*TRANSPOSE(($D119:$E119))),0) -> 0 | Q119: =Q$110+IF($C119<>0,SUMPRODUCT((Q$111:Q$112)*TRANSPOSE(($D119:$E119))),0) -> 0 | R119: =R$110+IF($C119<>0,SUMPRODUCT((R$111:R$112)*TRANSPOSE(($D119:$E119))),0) -> 0 | S119: =S$110+IF($C119<>0,SUMPRODUCT((S$111:S$112)*TRANSPOSE(($D119:$E119))),0) -> 0 | T119: =T$110+IF($C119<>0,SUMPRODUCT((T$111:T$112)*TRANSPOSE(($D119:$E119))),0) -> 0 | U119: =U$110+IF($C119<>0,SUMPRODUCT((U$111:U$112)*TRANSPOSE(($D119:$E119))),0) -> 0 | V119: =V$110+IF($C119<>0,SUMPRODUCT((V$111:V$112)*TRANSPOSE(($D119:$E119))),0) -> 0 | W119: =W$110+IF($C119<>0,SUMPRODUCT((W$111:W$112)*TRANSPOSE(($D119:$E119))),0) -> 0 | X119: =X$110+IF($C119<>0,SUMPRODUCT((X$111:X$112)*TRANSPOSE(($D119:$E119))),0) -> 0 | Y119: =Y$110+IF($C119<>0,SUMPRODUCT((Y$111:Y$112)*TRANSPOSE(($D119:$E119))),0) -> 0 | Z119: =Z$110+IF($C119<>0,SUMPRODUCT((Z$111:Z$112)*TRANSPOSE(($D119:$E119))),0) -> 0 | AA119: =AA$110+IF($C119<>0,SUMPRODUCT((AA$111:AA$112)*TRANSPOSE(($D119:$E119))),0) -> 0 | AB119: =AB$110+IF($C119<>0,SUMPRODUCT((AB$111:AB$112)*TRANSPOSE(($D119:$E119))),0) -> 0 | AC119: =AC$110+IF($C119<>0,SUMPRODUCT((AC$111:AC$112)*TRANSPOSE(($D119:$E119))),0) -> 0 | AD119: =AD$110+IF($C119<>0,SUMPRODUCT((AD$111:AD$112)*TRANSPOSE(($D119:$E119))),0) -> 0 | AE119: =AE$110+IF($C119<>0,SUMPRODUCT((AE$111:AE$112)*TRANSPOSE(($D119:$E119))),0) -> 0 | AF119: =AF$110+IF($C119<>0,SUMPRODUCT((AF$111:AF$112)*TRANSPOSE(($D119:$E119))),0) -> 0 | AG119: =AG$110+IF($C119<>0,SUMPRODUCT((AG$111:AG$112)*TRANSPOSE(($D119:$E119))),0) -> 0
A120: ="sens"&Assumptions!B117 -> sens | C120: =Assumptions!C117 -> 0 | D120: =Assumptions!G117 -> 0 | E120: =Assumptions!H117 -> 0 | G120: Option 5sens | I120: =I$110+IF($C120<>0,SUMPRODUCT((I$111:I$112)*TRANSPOSE(($D120:$E120))),0) -> 0 | J120: =J$110+IF($C120<>0,SUMPRODUCT((J$111:J$112)*TRANSPOSE(($D120:$E120))),0) -> 0 | K120: =K$110+IF($C120<>0,SUMPRODUCT((K$111:K$112)*TRANSPOSE(($D120:$E120))),0) -> 0 | L120: =L$110+IF($C120<>0,SUMPRODUCT((L$111:L$112)*TRANSPOSE(($D120:$E120))),0) -> 0 | M120: =M$110+IF($C120<>0,SUMPRODUCT((M$111:M$112)*TRANSPOSE(($D120:$E120))),0) -> 0 | N120: =N$110+IF($C120<>0,SUMPRODUCT((N$111:N$112)*TRANSPOSE(($D120:$E120))),0) -> 0 | O120: =O$110+IF($C120<>0,SUMPRODUCT((O$111:O$112)*TRANSPOSE(($D120:$E120))),0) -> 0 | P120: =P$110+IF($C120<>0,SUMPRODUCT((P$111:P$112)*TRANSPOSE(($D120:$E120))),0) -> 0 | Q120: =Q$110+IF($C120<>0,SUMPRODUCT((Q$111:Q$112)*TRANSPOSE(($D120:$E120))),0) -> 0 | R120: =R$110+IF($C120<>0,SUMPRODUCT((R$111:R$112)*TRANSPOSE(($D120:$E120))),0) -> 0 | S120: =S$110+IF($C120<>0,SUMPRODUCT((S$111:S$112)*TRANSPOSE(($D120:$E120))),0) -> 0 | T120: =T$110+IF($C120<>0,SUMPRODUCT((T$111:T$112)*TRANSPOSE(($D120:$E120))),0) -> 0 | U120: =U$110+IF($C120<>0,SUMPRODUCT((U$111:U$112)*TRANSPOSE(($D120:$E120))),0) -> 0 | V120: =V$110+IF($C120<>0,SUMPRODUCT((V$111:V$112)*TRANSPOSE(($D120:$E120))),0) -> 0 | W120: =W$110+IF($C120<>0,SUMPRODUCT((W$111:W$112)*TRANSPOSE(($D120:$E120))),0) -> 0 | X120: =X$110+IF($C120<>0,SUMPRODUCT((X$111:X$112)*TRANSPOSE(($D120:$E120))),0) -> 0 | Y120: =Y$110+IF($C120<>0,SUMPRODUCT((Y$111:Y$112)*TRANSPOSE(($D120:$E120))),0) -> 0 | Z120: =Z$110+IF($C120<>0,SUMPRODUCT((Z$111:Z$112)*TRANSPOSE(($D120:$E120))),0) -> 0 | AA120: =AA$110+IF($C120<>0,SUMPRODUCT((AA$111:AA$112)*TRANSPOSE(($D120:$E120))),0) -> 0 | AB120: =AB$110+IF($C120<>0,SUMPRODUCT((AB$111:AB$112)*TRANSPOSE(($D120:$E120))),0) -> 0 | AC120: =AC$110+IF($C120<>0,SUMPRODUCT((AC$111:AC$112)*TRANSPOSE(($D120:$E120))),0) -> 0 | AD120: =AD$110+IF($C120<>0,SUMPRODUCT((AD$111:AD$112)*TRANSPOSE(($D120:$E120))),0) -> 0 | AE120: =AE$110+IF($C120<>0,SUMPRODUCT((AE$111:AE$112)*TRANSPOSE(($D120:$E120))),0) -> 0 | AF120: =AF$110+IF($C120<>0,SUMPRODUCT((AF$111:AF$112)*TRANSPOSE(($D120:$E120))),0) -> 0 | AG120: =AG$110+IF($C120<>0,SUMPRODUCT((AG$111:AG$112)*TRANSPOSE(($D120:$E120))),0) -> 0
A121: ="sens"&Assumptions!B118 -> sens | C121: =Assumptions!C118 -> 0 | D121: =Assumptions!G118 -> 0 | E121: =Assumptions!H118 -> 0 | G121: Option 5sens | I121: =I$110+IF($C121<>0,SUMPRODUCT((I$111:I$112)*TRANSPOSE(($D121:$E121))),0) -> 0 | J121: =J$110+IF($C121<>0,SUMPRODUCT((J$111:J$112)*TRANSPOSE(($D121:$E121))),0) -> 0 | K121: =K$110+IF($C121<>0,SUMPRODUCT((K$111:K$112)*TRANSPOSE(($D121:$E121))),0) -> 0 | L121: =L$110+IF($C121<>0,SUMPRODUCT((L$111:L$112)*TRANSPOSE(($D121:$E121))),0) -> 0 | M121: =M$110+IF($C121<>0,SUMPRODUCT((M$111:M$112)*TRANSPOSE(($D121:$E121))),0) -> 0 | N121: =N$110+IF($C121<>0,SUMPRODUCT((N$111:N$112)*TRANSPOSE(($D121:$E121))),0) -> 0 | O121: =O$110+IF($C121<>0,SUMPRODUCT((O$111:O$112)*TRANSPOSE(($D121:$E121))),0) -> 0 | P121: =P$110+IF($C121<>0,SUMPRODUCT((P$111:P$112)*TRANSPOSE(($D121:$E121))),0) -> 0 | Q121: =Q$110+IF($C121<>0,SUMPRODUCT((Q$111:Q$112)*TRANSPOSE(($D121:$E121))),0) -> 0 | R121: =R$110+IF($C121<>0,SUMPRODUCT((R$111:R$112)*TRANSPOSE(($D121:$E121))),0) -> 0 | S121: =S$110+IF($C121<>0,SUMPRODUCT((S$111:S$112)*TRANSPOSE(($D121:$E121))),0) -> 0 | T121: =T$110+IF($C121<>0,SUMPRODUCT((T$111:T$112)*TRANSPOSE(($D121:$E121))),0) -> 0 | U121: =U$110+IF($C121<>0,SUMPRODUCT((U$111:U$112)*TRANSPOSE(($D121:$E121))),0) -> 0 | V121: =V$110+IF($C121<>0,SUMPRODUCT((V$111:V$112)*TRANSPOSE(($D121:$E121))),0) -> 0 | W121: =W$110+IF($C121<>0,SUMPRODUCT((W$111:W$112)*TRANSPOSE(($D121:$E121))),0) -> 0 | X121: =X$110+IF($C121<>0,SUMPRODUCT((X$111:X$112)*TRANSPOSE(($D121:$E121))),0) -> 0 | Y121: =Y$110+IF($C121<>0,SUMPRODUCT((Y$111:Y$112)*TRANSPOSE(($D121:$E121))),0) -> 0 | Z121: =Z$110+IF($C121<>0,SUMPRODUCT((Z$111:Z$112)*TRANSPOSE(($D121:$E121))),0) -> 0 | AA121: =AA$110+IF($C121<>0,SUMPRODUCT((AA$111:AA$112)*TRANSPOSE(($D121:$E121))),0) -> 0 | AB121: =AB$110+IF($C121<>0,SUMPRODUCT((AB$111:AB$112)*TRANSPOSE(($D121:$E121))),0) -> 0 | AC121: =AC$110+IF($C121<>0,SUMPRODUCT((AC$111:AC$112)*TRANSPOSE(($D121:$E121))),0) -> 0 | AD121: =AD$110+IF($C121<>0,SUMPRODUCT((AD$111:AD$112)*TRANSPOSE(($D121:$E121))),0) -> 0 | AE121: =AE$110+IF($C121<>0,SUMPRODUCT((AE$111:AE$112)*TRANSPOSE(($D121:$E121))),0) -> 0 | AF121: =AF$110+IF($C121<>0,SUMPRODUCT((AF$111:AF$112)*TRANSPOSE(($D121:$E121))),0) -> 0 | AG121: =AG$110+IF($C121<>0,SUMPRODUCT((AG$111:AG$112)*TRANSPOSE(($D121:$E121))),0) -> 0

Sheet Consol
A1: =bus -> CitiPower
A2: =proj -> Bouverie Queensberry supply area
A3: CONSOLIDATED
A5: Discount factor | H5: =IF(H9=start,1/((1+real_disc)^(1/2)),G5/(1+real_disc)) -> 0 | I5: 0.9829463744 | J5: 0.9497066419 | K5: 0.9175909584 | L5: 0.8865613124 | M5: 0.8565809782 | N5: 0.8276144717 | O5: 0.7996275089 | P5: 0.7725869651 | Q5: 0.7464608358 | R5: 0.7212181989 | S5: 0.6968291777 | T5: 0.6732649059 | U5: 0.6504974937 | V5: 0.6284999939 | W5: 0.6072463709 | X5: 0.5867114695 | Y5: 0.566870985 | Z5: 0.5477014348 | AA5: 0.5291801302 | AB5: 0.51128515 | AC5: 0.493995314 | AD5: 0.4772901584 | AE5: 0.4611499115 | AF5: 0.4455554701 | AG5: 0.4304883769
A6: ='Option1 (base case)'!A6 -> Count | H6: ='Option1 (base case)'!H6 -> 0 | I6: ='Option1 (base case)'!I6 -> 1 | J6: ='Option1 (base case)'!J6 -> 2 | K6: ='Option1 (base case)'!K6 -> 3 | L6: ='Option1 (base case)'!L6 -> 4 | M6: ='Option1 (base case)'!M6 -> 5 | N6: ='Option1 (base case)'!N6 -> 6 | O6: ='Option1 (base case)'!O6 -> 7 | P6: ='Option1 (base case)'!P6 -> 8 | Q6: ='Option1 (base case)'!Q6 -> 9 | R6: ='Option1 (base case)'!R6 -> 10 | S6: ='Option1 (base case)'!S6 -> 11 | T6: ='Option1 (base case)'!T6 -> 12 | U6: ='Option1 (base case)'!U6 -> 13 | V6: ='Option1 (base case)'!V6 -> 14 | W6: ='Option1 (base case)'!W6 -> 15 | X6: ='Option1 (base case)'!X6 -> 16 | Y6: ='Option1 (base case)'!Y6 -> 17 | Z6: ='Option1 (base case)'!Z6 -> 18 | AA6: ='Option1 (base case)'!AA6 -> 19 | AB6: ='Option1 (base case)'!AB6 -> 20 | AC6: ='Option1 (base case)'!AC6 -> 21 | AD6: ='Option1 (base case)'!AD6 -> 22 | AE6: ='Option1 (base case)'!AE6 -> 23 | AF6: ='Option1 (base case)'!AF6 -> 24 | AG6: ='Option1 (base case)'!AG6 -> 25
